Workbook

Sheet Title
B2: Central Hydrogen Production - Project Information
B5: Title: | C5: Current Central Hydrogen from Natural Gas with CO2 Capture and Sequestration
B6: Authors: | C6: US DOE/NETL MD Rutkowski
B7: Contact: | C7: Michael Penev
B8: Contact phone: | C8: 303 275 3880
B9: Contact e-mail: | C9: mike.penev@nrel.gov
B10: Organization: | C10: NREL
B11: Date: | C11: 2018-02-06
B12: Web Site: | C12: www.nrel.gov
B14: Plant Design Capacity (kg/day): | C14: 379387
B15: Start-up Year: | C15: 2015
B16: Primary Product Feedstock Source: | C16: Industrial Natural Gas
B17: Secondary Feedstock Source: | C17: None
B18: Process Energy Source: | C18: Standard fossil energy sources
B19: Conversion Technology: | C19: Steam reformer, quench, shift, PSA
B20: Primary By-Product: | C20: Steam export
B21: Secondary By-Product: | C21: No
B22: Based on Number of Plants Installed per Year (per manufacturer): | C22: None
B23: H2 Onsite Storage Type | C23: N/A
B24: Assumed plant location: | C24: Mid USA
B26: Reporting Spreadsheet Change History:
B27: Date spreadsheet created / modified | C27: Name | D27: Comments
B28: 2020-10-27 | C28: M. Penev | D28: Made compatible with Excel for Mac
B29: H2A Version 3
B30: 2018-02-06 | C30: M. Penev | D30: Case was ported to H2A version 3
B32: 2013-06-17 | C32: NREL - G. Saur | D32: Fixed Feedstock cost to reference AEO 2009 reference case
B34: 2011-12-05 | C34: NREL - D. Steward | D34: Ported to new model structure
B35: H2A version 2
B36: 2008-09-22 | C36: NREL - D. Steward | D36: H2A Version 2.1 updates
B37: 2008-05-23 | C37: NREL - D. Steward | D37: Tornado chart
B38: 2008-03-14 | C38: NREL - D. Steward | D38: Ported to new model structure
B39: H2A version 1
B40: 2006-06-07 | C40: NREL - updated for release
B41: 2005-09-14 | C41: Mike Rutkowski
B42: 2005-06-27 | C42: MD Rutkowski, Revise Capital and Feedstock $
B43: 2005-06-17 | C43: MD Rutkowski
B44: 2005-02-23 | C44: NJ Kuehn
B45: 2004-10-11 | C45: MD Rutkowski

Sheet Description
B2: Central Hydrogen Production - Description
B6: Purpose:
B7: Steam reforming of hydrocarbons continues to be the most efficient, economical, and widely used process for production of hydrogen and hydrogen/carbon monoxide mixtures. The purpose of this analysis is to assess the economic production of hydrogen from the steam reforming of natural gas while sequestering 90% of the carbon as CO2..
B10: System Description:
B11: Natural gas is fed to the plant from the pipeline at a pressure of 450 psia. The desulfurized natural gas feedstock is mixed with process steam to be reacted over a nickel based catalyst contained inside of a system of high alloy steel tubes. The reforming reaction is strongly endothermic, and the metallurgy of the tubes usually limits the reaction temperature to 1400-1700oF. The flue gas path of the fired reformer is integrated with additional boiler surfaces to produce about 700,000 lb/hour steam. Of this, about 450,000 lb/hour is superheated to 450 psia and 750°F, to be added to the incoming natural gas. Additional steam from the boiler is used to regenerate the CO2. After the reformer, the process gas mixture of CO and H2 passes through a heat recovery step and is fed into a water gas shift reactor to produce additional H2.
B12: The Pressure Swing Adsorption (PSA) process is used for hydrogen purification, based on the ability to produce high purity hydrogen, low amounts of CO and CO2 and ease of operation. Shifted gas is fed directly to the PSA unit where hydrogen is purified up to approximately 99.6%. This plant utilizes a proprietary amine-based process to remove and recover 99 percent of the CO2 from the syngas stream. From the shift reactor, gas is passed through an amine tower where it is contacted counter-currently with a circulating stream of lean aqueous amine solution. The rich amine from the absorber is then sent to a stripper column where the amine is regenerated with a steam reboiler to remove the CO2 by fractionation. The regenerated CO2 stream is recovered at 27 psia and 121°F and is compressed to be sent off-site. To reach 90 percent CO2 removal, a secondary MEA treatment process is installed on the reformer stack.
B14: Analysis Methodology Summary:
B15: Material and energy balances in Aspen Plus®; Installed equipment costing based on grass roots estimate of commercial offering; O&M collaborated with KIC
B18: Plant Ownership and Entity Type Assumptions:
B19: Corporate ownership, 100% equity
B21: References:
B22: H2A Version 1 Case Study - h2a_central_natural_gas_sequestration_current_final.xls, M. Rutkowski
B23: Hydrogen from Natural Gas Steam Reforming, November 2003, DOE/FE/NETL

Sheet ProcessFlow
B2: Central Hydrogen Production - Process Flow Diagram
B6: Process Flow Diagram
H10: Energy efficiencies for individual process steps (add rows as appropriate) | I10: Value | J10: Basis | K10: Reference
H11: SMR Efficiency | I11: 0.82 | J11: LHV efficiency of energy in gasifier product gas coming out of gasifier divided by energy in coal fed to gasifier. | K11: Aspen Plus® Model
H12: Shift Reactor Conversion | I12: 0.9 | J12: Molar percent of CO converted to CO2 | K12: Haldor Topsoe commercial catalyst spec.
H13: PSA Hydrogen Separation | I13: 0.8 | J13: Percent hydrogen rercovered from PSA feed gas | K13: UOP commercial PSA design spec.
B29: Stream Summaries
B31: STREAM NUMBER | C31: 1 | D31: 2 | E31: 3 | F31: 4 | G31: 5 | H31: 6
C32: Natural Gas | D32: Steam | E32: Air | F32: Carbon Dioxide | G32: Hydrogen | H32: Stack Gas
B33: Vapor
B34: Mole Fraction
B35: Ar | C35: 0 | D35: 0 | E35: 0.0093 | F35: 0 | G35: 0 | H35: 0.00848097
B36: CH4 | C36: 0.9 | D36: 0 | E36: 0 | F36: 0 | G36: 0 | H36: 0
B37: C2H6 | C37: 0.05 | D37: 0 | E37: 0 | F37: 0 | G37: 0 | H37: 0
B38: CO2 | C38: 0 | D38: 0 | E38: 0.0004 | F38: 0.9428781 | G38: 1.48072e-05 | H38: 0.0444948
B39: H2 | C39: 0 | D39: 0 | E39: 0 | F39: 0.00037684 | G39: 0.995969 | H39: 0
B40: H2O | C40: 0 | D40: 1 | E40: 0.0101 | F40: 0.05668 | G40: 0 | H40: 0.1672174
B41: N2 | C41: 0.05 | D41: 0 | E41: 0.7724 | F41: 6.43182e-05 | G41: 0.00401615 | H41: 0.7109743
B42: O2 | C42: 0 | D42: 0 | E42: 0.2078 | F42: 0 | G42: 0 | H42: 0.0688325
B44: NOx | C44: ---- | D44: ---- | E44: ---- | F44: ---- | G44: ---- | H44: 20 ppm
B46: Total Flow (lbmol/hr) | C46: 6980.5 | D46: 24431.75 | E46: 38507.55 | F46: 5426.53 | G46: 16506 | H46: 42226.32
B47: Total Flow (lb/hr) | C47: 121060 | D47: 440145 | E47: 1111250 | F47: 230734 | G47: 35008 | H47: 1158220
B49: Temperature (°F) | C49: 59 | D49: 750 | E49: 60 | F49: 121 | G49: 108 | H49: 280.0526
B50: Pressure (psia) | C50: 450 | D50: 450 | E50: 14.696 | F50: 27 | G50: 346 | H50: 14.7

Sheet Input_Sheet_Template
B2: H2A Hydrogen Production Cash Flow Analysis Tool v3.2018
A3: title | B3: Central Natural Gas Reforming with CO2 Capture and Sequestration - Current Timeframe
B5: Table of Contents
B6: View and edit project information
B8: H2A cell color coding
B10: Use H2A default values
B14: Technical Operating Parameters and Specifications
B15: Financial Input Values
B16: Energy Feedstocks, Utilities and Byproducts | H16: Cash Flow NPV (Error if not 0)
B17: Capital Cost | H17: =+NPV -> 1.307466814e-06
B18: Fixed Operating Costs
B19: Variable Operating Costs - Other Materials and Byproducts
B20: Variable Operating Costs - Other Variable Operating Costs
B24: Technical Operating Parameters and Specifications | E24: Notes
A25: cap_factor | B25: Operating Capacity Factor (%) | C25: =0.9*sensitivity_01 -> 0.9
A26: design_cap | B26: Plant Design Capacity (kg of H2/day) | C26: =379387*sensitivity_02 -> 379387
B27: Plant Output (kg/day) | C27: =design_cap*cap_factor -> 341448.3
A28: Soutput_kgyear | B28: Plant Output (kg/year) | C28: =output_kgpday*365 -> 124628629.5
B29: Financial Input Values | E29: Notes
A30: ref_year | B30: Reference year | C30: 2016
A31: startup_year | B31: Assumed start-up year | C31: 2015
B32: Basis year | C32: 2005 | D32: Costs must be entered in basis year dollars
A33: construct | B33: Length of Construction Period (years) | C33: 3
A34: percent_cap1 | B34: % of Capital Spent in 1st Year of Construction | C34: 0.08
A35: percent_cap2 | B35: % of Capital Spent in 2nd Year of Construction | C35: 0.6
A36: percent_cap3 | B36: % of Capital Spent in 3rd Year of Construction | C36: 0.32
A37: percent_cap4 | B37: % of Capital Spent in 4th Year of Construction
A38: start_time | B38: Start-up Time (years) | C38: 1
A39: plant_life | B39: Plant life (years) | C39: 40
A40: anal_period | B40: Analysis period (years) | C40: 40
A41: depr_length | B41: Depreciation Schedule Length (years) | C41: 20
A42: depr_type | B42: Depreciation Type | C42: MACRS
A43: equity | B43: % Equity Financing | C43: 0.4
A44: debt_interest | B44: Interest rate on debt, if applicable (%) | C44: 0.037
A45: debt_period | B45: Debt period (years) | C45: 0 | E45: Enter 0 to enable constant outstanding debt.
A46: percnt_fixed | B46: % of Fixed Operating Costs During Start-up (%) | C46: 0.75
A47: percnt_revs | B47: % of Revenues During Start-up (%) | C47: 0.5
A48: percnt_var | B48: % of Variable Operating Costs During Start-up (%) | C48: 0.75
A49: decom_percent | B49: Decommissioning costs (% of depreciable capital investment) | C49: 0.1
A50: salvage_perct | B50: Salvage value (% of total capital investment) | C50: 0.1
A51: inflation_rate | B51: Inflation rate (%) | C51: 0.019
A52: real_irr | B52: After-tax Real IRR (%) | C52: =0.08*sensitivity_03 -> 0.08
A53: state_tax_rate | B53: State Taxes (%) | C53: 0.06
A54: fed_tax_rate | B54: Federal Taxes (%) | C54: 0.21
A55: Stotal_tax_rate | B55: Total Tax Rate (%) | C55: =fed_tax_rate+state_tax_rate*(1-fed_tax_rate) -> 0.2574
A56: WorkingCap | B56: WORKING CAPITAL (% of yearly change in operating costs) | C56: 0.15
B57: Energy Feedstocks, Utilities, and Byproducts
B58: Select the Price Table to Use
B59: AEO_2017_Reference_Case | F59: To use a new feedstock, utility or byproduct, select the price table and product from the dropdown lists and enter the usage (or byproduct) amount. Click the "Add" button to add the product to the "In Use" list. Important; only materials on the "In Use" list will be used in H2A calculations. To delete materials from the list, click the "Delete" button below
B60: Select the Use
B61: utility | C61: =IF(OR(TMP_FeedType="Feedstock",TMP_FeedType = "Utility")," Enter usage in","Enter production in") -> Enter usage in | D61: =VLOOKUP(TMP_FeedName,INDIRECT(TMP_PriceTable),4,FALSE) -> kWh
B62: Select the Feed Type
B63: Industrial Electricity
B65: =SELECTED_FEED -> utility | C65: =TMP_FeedName -> Industrial Electricity
B66: ="Price Conversion Factor (GJ/"&TMP_Units&")" -> Price Conversion Factor (GJ/kWh) | C66: =VLOOKUP(TMP_FeedName,MASTER_PROPERTY_TABLE,9,FALSE) -> 0.0036
B67: ="Price in Startup Year ($" & ref_year & ")/" & TMP_Units -> Price in Startup Year ($2016)/kWh | C67: =HLOOKUP(startup_year,INDIRECT(TMP_PriceTable),MATCH(TMP_FeedName,INDIRECT(Energy_Feed_List),0),FALSE)*TMP_Conversion -> 0.06998061126
B68: =IF(OR(TMP_FeedType="Feedstock",TMP_FeedType = "Utility"),"Usage ("&TMP_Units&"/kg H2)","Production ("&TMP_Units&"/kg H2)") -> Usage (kWh/kg H2) | C68: 0.6
B69: =IF(OR(TMP_FeedType = "Feedstock",TMP_FeedType = "Utility"), "Cost in Startup Year","Income in Startup Year") -> Cost in Startup Year | C69: =design_cap*365*cap_factor*TMP_Usage*TMP_StartPrice -> 5232952.604
B70: Lookup Prices | C70: yes
B72: Energy feedstocks, utilities, and byproducts currently in use
A73: START_TOP
B74: feedstock | C74: Price Conversion Factor (GJ/mmBtu) | D74: Price in Startup Year ($2016)/mmBtu | E74: Usage (mmBtu/kg H2) | F74: Cost in Startup Year | G74: Lookup Prices
B75: Industrial Natural Gas | C75: 1.055 | D75: 4.250547516 | E75: =0.1558*sensitivity_04 -> 0.1558 | F75: =D75*E75*output_kgyear*IF(start_time,percnt_var,1)*'Cash Flow Analysis'!$E$68/'Cash Flow Analysis'!$E$69 -> 60745935.88 | G75: yes
A76: START_TOP
B77: utility | C77: Price Conversion Factor (GJ/kWh) | D77: Price in Startup Year ($2016)/kWh | E77: Usage (kWh/kg H2) | F77: Cost in Startup Year | G77: Lookup Prices
B78: Industrial Electricity | C78: 0.0036 | D78: 0.06998061126 | E78: =0.6*sensitivity_05 -> 0.6 | F78: =D78*E78*output_kgyear*IF(start_time,percnt_var,1)*'Cash Flow Analysis'!$E$68/'Cash Flow Analysis'!$E$69 -> 3851535.282 | G78: yes
A79: START_UTILITY
A80: START_BYPROD
F81: Total
A82: Total_Energy_Feed_Cost | B82: Total Energy Feedstock Cost ($/year) | F82: =SUM(Dynamic_Feed_Total) -> 60745935.88
A83: Total_Energy_Utilities_Cost | B83: Total Energy Utilities Cost ($/year) | F83: =SUM(Dynamic_Utilities_Total) -> 3851535.282
A84: Total_Energy_Byproduct_Credit | B84: Total Energy Byproduct Credit ($/year) | F84: =SUM(Dynamic_Byproduct_Total) -> 0
D85: Notes:
B87: Capital Costs | E87: Notes
A88: direct_cap | B88: H2A Total Direct Capital Cost | C88: =Det_scaled_cap -> 202246783.5 | E88: Click to enter details on the Cost Detail Sheet
B89: H2A Carbon Sequestration Total Direct Capital Cost | C89: =Det_CO2_seq -> 137971172.5 | E89: Click to enter details on the Carbon Sequestration calculation sheet.
B91: Indirect Depreciable Capital Costs | C91: ="Enter values in basis year (" & BasisYear & ") dollars" -> Enter values in basis year (2005) dollars | D91: Combined Plant Scaling and Escalation Factor | E91: ="Reference Year ("& ref_year & ") Dollars" -> Reference Year (2016) Dollars
A92: Site_prep | B92: Site Preparation ($) (may change to construction costs) | C92: =0.02*(direct_cap+CO2_seq)/(CEPCIinflator*CPIinflator) -> 5254679.05 | D92: =CEPCIinflator*CPIinflator -> 1.294914314 | E92: =C92*D92 -> 6804359.119
A93: Engin | B93: Engineering & design ($) | C93: =0.1*(direct_cap+CO2_seq)/(CEPCIinflator*CPIinflator) -> 26273395.25 | D93: 1.294914314 | E93: =C93*D93 -> 34021795.6
A94: Process_cont | B94: Process contingency ($) | D94: 1.294914314 | E94: 0
A95: Project_cont | B95: Project contingency ($) | C95: =0.15*(direct_cap+CO2_seq)/(CEPCIinflator*CPIinflator) -> 39410092.87 | D95: 1.294914314 | E95: 51032693.39
A96: Other_indirect | B96: Other (Depreciable) capital ($) | D96: 1.294914314 | E96: 0
A97: Fees | B97: One-time Licensing Fees ($) | D97: 1.294914314 | E97: 0
A98: Permitting | B98: Up-Front Permitting Costs ($) (legal and contractors fees included here) | C98: =0.15*(direct_cap+CO2_seq)/(CEPCIinflator*CPIinflator) -> 39410092.87 | D98: 1.294914314 | E98: 51032693.39
A99: Sdepr_cap | B99: Total Depreciable Capital Costs | E99: =direct_cap+CO2_seq+SUM($E$92:$E$98) -> 483109497.5
D100: Combined Plant Scaling and Escalation Factor
B101: Non-Depreciable Capital Costs | C101: ="Enter values in basis year (" & BasisYear & ") dollars" -> Enter values in basis year (2005) dollars | E101: ="Reference Year ("& ref_year & ") Dollars" -> Reference Year (2016) Dollars
A102: acre_cost | B102: Cost of land ($/acre) | C102: 50000 | D102: =CPIinflator -> 1.100724187 | E102: =C102*D102 -> 55036.20933
A103: acres | B103: Land required (acres) | C103: 20 | D103: =Scale_Factor *1 -> 1 | E103: =C103*D103 -> 20
A104: Sland_cost | B104: Land Cost ($) | E104: =acre_cost*acres -> 1100724.187
B105: Other non depreciable capital costs | D105: =CPIinflator -> 1.100724187 | E105: =C105*D105 -> 0
A106: Snon_dep_cap | B106: Total Non-Depreciable Capital Costs | E106: =land_cost+$E$105 -> 1100724.187
A108: Stotal_cap | B108: Total Capital Costs | C108: =(depr_cap+non_dep_cap)*sensitivity_06 -> 484210221.7
B110: Fixed Operating Costs | C110: ="Enter values in basis year (" & BasisYear & ") dollars" -> Enter values in basis year (2005) dollars | D110: Combined Plant Scaling and Escalation Factor | E110: ="Reference Year ("& ref_year & ") Dollars" -> Reference Year (2016) Dollars
A111: FTEs | B111: Total plant staff (number of FTEs employed by plant) | C111: 25 | D111: =Scale_Ratio^0.25 -> 1 | E111: =C111*D111 -> 25
A112: FTE_cost | B112: Burdened labor cost, including overhead ($/man-hr) | C112: 50 | D112: =VLOOKUP(ref_year,Tbl_labor_indexes,2,FALSE)/VLOOKUP(BasisYear,Tbl_labor_indexes,2,FALSE) -> 1.15480427 | E112: =C112*D112 -> 57.74021352
A113: Slabor_cost | B113: Labor cost, $/year | E113: =FTEs*2080*FTE_cost -> 3002491.103
A114: overhead_rate | B114: G&A rate (% of labor cost) | C114: 0.2
A115: Soverhead_GA | B115: G&A ($/year) | E115: =labor_cost*overhead_rate -> 600498.2206
A116: licensing | B116: Licensing, Permits and Fees ($/year) | C116: 0 | D116: =Scale_Factor *CEPCIinflator*CPIinflator -> 1.294914314 | E116: =C116*D116 -> 0
A117: tax_ins_rate | B117: Property tax and insurance rate (% of total capital investment per year) | C117: 0.02
A118: Stax_insurance | B118: Property taxes and insurance ($/year) | E118: =tax_ins_rate*total_cap -> 9684204.433
A119: rent | B119: Rent ($/year) | C119: 0 | D119: =Scale_Factor *CPIinflator -> 1.100724187 | E119: =C119*D119 -> 0
A120: material | B120: Material costs for maintenance and repairs ($/year) | C120: 1014762 | D120: =Scale_Factor *CEPCIinflator*CPIinflator -> 1.294914314 | E120: =C120*D120 -> 1314029.84
A121: prod_maint | B121: Production Maintenance and Repairs ($/year) | C121: 0 | D121: =Scale_Factor *CEPCIinflator*CPIinflator -> 1.294914314 | E121: =C121*D121 -> 0
A122: other_fees | B122: Other Fees ($/year) | C122: 0 | D122: =Scale_Ratio * CEPCIinflator*CPIinflator -> 1.294914314 | E122: =C122*D122 -> 0
A123: other_fixed | B123: Other Fixed O&M Costs ($/year) | C123: 0 | D123: =Scale_Factor *CEPCIinflator*CPIinflator -> 1.294914314 | E123: =C123*D123 -> 0
A124: Sfixed | B124: Total Fixed Operating Costs | E124: =(labor_cost+overhead_GA+tax_insurance+licensing+SUM(E119:E123))*sensitivity_07 -> 14601223.6
B126: Variable Operating Costs
B127: Other Materials and Byproducts
B129: Select the Material
B130: Cooling Water
B131: Feed or utility | C131: =B130 -> Cooling Water
B132: ="$(" & ref_year & ")/ " & VLOOKUP(TMP_NonE_Feed,Tbl_Other_Inputs_and_Byproducts,2,FALSE) -> $(2016)/ gal | C132: =HLOOKUP(startup_year,Tbl_Other_Inputs_and_Byproducts,MATCH(TMP_NonE_Feed,Other_Inputs_List,0),FALSE) -> 0.0001133499386
B133: =IF(TMP_NonE_Type="Feed or utility","Usage per kg H2","Production per kg H2") -> Usage per kg H2
B134: =IF(TMP_NonE_Type = "Feed or utility", "Cost in Startup Year","Income in Startup Year") -> Cost in Startup Year | C134: =design_cap*365*cap_factor*TMP_NonE_Usage*TMP_NonE_StartPrice -> 0
B135: Lookup Prices | C135: Yes
A136: START_NONE_TOP
B137: Feed or utility | C137: $(2016)/ gal | D137: Usage per kg H2 | E137: Cost in Startup Year | F137: Lookup Prices
B138: Demineralized Water | C138: 0.007124853284 | D138: 3.355 | E138: =C138*D138*output_kgyear*IF(start_time,percnt_var,1)*'Cash Flow Analysis'!$E$68/'Cash Flow Analysis'!$E$69 -> 2192670.375 | F138: Yes
B139: Feed or utility | C139: $(2016)/ gal | D139: Usage per kg H2 | E139: Cost in Startup Year | F139: Lookup Prices
B140: Cooling Water | C140: 0.0001133499386 | D140: 1.495 | E140: =C140*D140*output_kgyear*IF(start_time,percnt_var,1)*'Cash Flow Analysis'!$E$68/'Cash Flow Analysis'!$E$69 -> 15544.16439 | F140: Yes
A141: START_NONE_FEED
A142: START_NONE_BYPROD
B143: Total Non Energy Utility and Material Costs ($/year) | C143: =SUM(Dynamic_NonE_Feed_Total) -> 2208214.539
A144: total_non_energy_byproduct_credit | B144: Total Non Energy Byproduct Credits ($/year) | C144: =SUM(Dynamic_NonE_Byprod_Total) -> 0
A146: Stotal_feedstock | B146: Total Feedstock Costs ($/year) | C146: =Total_Energy_Feed_Cost -> 60745935.88
A147: Stotal_utilities | B147: Total Utility Costs ($/year) | C147: =Total_Energy_Utilities_Cost+Total_Non_Energy_Feed_Cost -> 6059749.821
A148: Stotal_byproducts | B148: Total Byproduct Credits ($/year) | C148: =Total_Energy_Byproduct_Credit+total_non_energy_byproduct_credit -> 0
B149: Other Variable operating costs (for the first year) | C149: ="Enter values in basis year (" & BasisYear & ") dollars" -> Enter values in basis year (2005) dollars | D149: Combined Plant Scaling and Escalation Factor | E149: ="Reference Year ("& ref_year & ") Dollars" -> Reference Year (2016) Dollars
A150: var_misc | B150: Other variable operating costs (e.g. environmental surcharges) ($/year) | C150: 4629000 | D150: =Scale_Ratio * VLOOKUP(ref_year,Chemical_price_indexes,2,FALSE)/VLOOKUP(BasisYear,Chemical_price_indexes,2,FALSE) -> 1.426054458 | E150: =C150*D150 -> 6601206.086
A151: total_other_raw | B151: Other Material Costs ($/year) | C151: 0 | D151: =Scale_Ratio * VLOOKUP(ref_year,Chemical_price_indexes,2,FALSE)/VLOOKUP(BasisYear,Chemical_price_indexes,2,FALSE) -> 1.426054458 | E151: =C151*D151 -> 0
A152: waste_treat | B152: Waste treatment costs ($/year) | C152: 0 | D152: =Scale_Ratio * VLOOKUP(ref_year,Chemical_price_indexes,2,FALSE)/VLOOKUP(BasisYear,Chemical_price_indexes,2,FALSE) -> 1.426054458 | E152: =C152*D152 -> 0
A153: solidwaste_treat | B153: Solid waste disposal costs ($/year) | C153: 0 | D153: =Scale_Ratio * VLOOKUP(ref_year,Chemical_price_indexes,2,FALSE)/VLOOKUP(BasisYear,Chemical_price_indexes,2,FALSE) -> 1.426054458 | E153: =C153*D153 -> 0
A154: replace_factor | B154: Total Unplanned Replacement Capital Cost Factor (% of total direct depreciable costs/year) | C154: 0.005 | E154: Value added to match other central cases. Use this value for all central cases
A155: royalties | B155: Royalties ($/year) | C155: 0 | D155: =Scale_Ratio * CPIinflator -> 1.100724187 | E155: 0
A156: operator_profit | B156: Operator Profit ($/year) | C156: 0 | D156: =Scale_Ratio * CPIinflator -> 1.100724187 | E156: 0
A157: tax_credit | B157: Subsidies, Tax Incentives ($/year) | C157: 0 | D157: =Scale_Ratio * CPIinflator -> 1.100724187 | E157: 0
A158: CO2_seq | B158: CO2 sequestration O&M costs and credits ($/year) | E158: =Det_CO2_OandMcost -> 9522185.286
B159: Process Carbon Tax ($/metric ton carbon produced as CO2) | C159: 0 | D159: =CPIinflator -> 1.100724187 | E159: 0
B160: Process Carbon Tax ($/year) | E160: =ROUND(Proc_CO2_tax*12/44*Proc_CO2_MTpY,-2) -> 0
B161: Upstream Carbon Tax ($/metric ton upstream GHG CO2 eq) | C161: 0 | D161: =CPIinflator -> 1.100724187 | E161: 0
B162: Upstream Carbon Tax ($/year) | E162: =ROUND(Upstream_CO2_tax/1000*Upstream_GHG_total*output_kgyear,2) -> 0
A163: Stotal_var | B163: Total Variable Operating Costs ($/year) | E163: =ROUND(total_feedstock+total_utilities+total_other_raw-total_byproducts+var_misc+waste_treat+solidwaste_treat+royalties+operator_profit-tax_credit+CO2_OandMcost+Proc_CO2_taxpYear + Upstream_CO2_taxpYear,-2) -> 82929100

Sheet Replacement Costs
A2: Replacement Costs
C5: Color Key
A9: ="NOTE: Enter costs in year "&TEXT(BasisYear,"0")&" $ - Do not inflate" -> NOTE: Enter costs in year 2005 $ - Do not inflate
A10: NOTE: All replacement costs are assumed to be equity financed.
A13: Unplanned Yearly Replacement Capital (Depreciable)
C14: Comments | F14: Source | G14: Information
A15: Total Unplanned Replacement Capital Cost Factor (% of total depreciable capital costs/year) | B15: =replace_factor -> 0.005 | G15: Enter a fixed percentage. This input is meant to include, in the Cash Flow Analysis, a factor for unplanned capital expenditures.
A16: Actual Year | B16: Analysis Year | C16: Operations Year | D16: Specified Yearly Replacement Costs | E16: Carbon Sequestration Related Replacement Costs | F16: Specified Yearly Replacement Costs | G16: Unplanned Replacement Costs | H16: Total Yearly Replacement Costs | I16: Uninstalled costs | J16: Installation factor | K16: Comments: | L16: Data source:
D17: ="Year "&TEXT(BasisYear,"0")&" $" -> Year 2005 $ | E17: ="Year "&TEXT(ref_year,"0")&" $" -> Year 2016 $ | F17: ="Year "&TEXT(ref_year,"0")&" $" -> Year 2016 $ | G17: ="Year "&TEXT(ref_year,"0")&" $" -> Year 2016 $ | H17: Inflated to Start-up Year
A18: =IF(C18<>"",'Cash Flow Analysis'!A65,"") -> 2012 | B18: =construct+1 -> 4 | C18: 1 | E18: 0 | F18: =(D18)*CPIinflator*CEPCIinflator+E18 -> 0 | G18: =IF(C18>anal_period,0,IF(replace_factor<>"",replace_factor*depr_cap,0)) -> 2415547.487 | H18: =(F18+G18)*((1+inflation_rate)^(startup_year-ref_year)) -> 2370507.838
A19: =IF(C19<>"",'Cash Flow Analysis'!A66,"") -> 2013 | B19: =IF(B18<anal_period+construct,B18+1,"") -> 5 | C19: =IF(B19="","",C18+1) -> 2 | E19: =+'Carbon Sequestration'!$C$100*(C19<=anal_period) -> 13144261.78 | F19: 13144261.78 | G19: =IF(C19>anal_period,0,IF(replace_factor<>"",replace_factor*depr_cap,0)) -> 2415547.487 | H19: =(F19+G19)*((1+inflation_rate)^(startup_year-ref_year)) -> 15269685.25
A20: =IF(C20<>"",'Cash Flow Analysis'!A67,"") -> 2014 | B20: 6 | C20: 3 | E20: =+'Carbon Sequestration'!$C$100*(C20<=anal_period) -> 13144261.78 | F20: 13144261.78 | G20: 2415547.487 | H20: 15269685.25
A21: =IF(C21<>"",'Cash Flow Analysis'!A68,"") -> 2015 | B21: 7 | C21: 4 | E21: =+'Carbon Sequestration'!$C$100*(C21<=anal_period) -> 13144261.78 | F21: 13144261.78 | G21: 2415547.487 | H21: 15269685.25
A22: =IF(C22<>"",'Cash Flow Analysis'!A69,"") -> 2016 | B22: 8 | C22: 5 | E22: =+'Carbon Sequestration'!$C$100*(C22<=anal_period) -> 13144261.78 | F22: 13144261.78 | G22: 2415547.487 | H22: 15269685.25
A23: =IF(C23<>"",'Cash Flow Analysis'!A70,"") -> 2017 | B23: 9 | C23: 6 | E23: =+'Carbon Sequestration'!$C$100*(C23<=anal_period) -> 13144261.78 | F23: 13144261.78 | G23: 2415547.487 | H23: 15269685.25
A24: =IF(C24<>"",'Cash Flow Analysis'!A71,"") -> 2018 | B24: 10 | C24: 7 | E24: =+'Carbon Sequestration'!$C$100*(C24<=anal_period) -> 13144261.78 | F24: 13144261.78 | G24: 2415547.487 | H24: 15269685.25
A25: =IF(C25<>"",'Cash Flow Analysis'!A72,"") -> 2019 | B25: 11 | C25: 8 | E25: =+'Carbon Sequestration'!$C$100*(C25<=anal_period) -> 13144261.78 | F25: 13144261.78 | G25: 2415547.487 | H25: 15269685.25
A26: =IF(C26<>"",'Cash Flow Analysis'!A73,"") -> 2020 | B26: 12 | C26: 9 | E26: =+'Carbon Sequestration'!$C$100*(C26<=anal_period) -> 13144261.78 | F26: 13144261.78 | G26: 2415547.487 | H26: 15269685.25
A27: =IF(C27<>"",'Cash Flow Analysis'!A74,"") -> 2021 | B27: 13 | C27: 10 | E27: =+'Carbon Sequestration'!$C$100*(C27<=anal_period) -> 13144261.78 | F27: 13144261.78 | G27: 2415547.487 | H27: 15269685.25
A28: =IF(C28<>"",'Cash Flow Analysis'!A75,"") -> 2022 | B28: 14 | C28: 11 | E28: =+'Carbon Sequestration'!$C$100*(C28<=anal_period) -> 13144261.78 | F28: 13144261.78 | G28: 2415547.487 | H28: 15269685.25
A29: =IF(C29<>"",'Cash Flow Analysis'!A76,"") -> 2023 | B29: 15 | C29: 12 | E29: =+'Carbon Sequestration'!$C$100*(C29<=anal_period) -> 13144261.78 | F29: 13144261.78 | G29: 2415547.487 | H29: 15269685.25
A30: =IF(C30<>"",'Cash Flow Analysis'!A77,"") -> 2024 | B30: 16 | C30: 13 | E30: =+'Carbon Sequestration'!$C$100*(C30<=anal_period) -> 13144261.78 | F30: 13144261.78 | G30: 2415547.487 | H30: 15269685.25
A31: =IF(C31<>"",'Cash Flow Analysis'!A78,"") -> 2025 | B31: 17 | C31: 14 | E31: =+'Carbon Sequestration'!$C$100*(C31<=anal_period) -> 13144261.78 | F31: 13144261.78 | G31: 2415547.487 | H31: 15269685.25
A32: =IF(C32<>"",'Cash Flow Analysis'!A79,"") -> 2026 | B32: 18 | C32: 15 | E32: =+'Carbon Sequestration'!$C$100*(C32<=anal_period) -> 13144261.78 | F32: 13144261.78 | G32: 2415547.487 | H32: 15269685.25
A33: =IF(C33<>"",'Cash Flow Analysis'!A80,"") -> 2027 | B33: 19 | C33: 16 | E33: =+'Carbon Sequestration'!$C$100*(C33<=anal_period) -> 13144261.78 | F33: 13144261.78 | G33: 2415547.487 | H33: 15269685.25
A34: =IF(C34<>"",'Cash Flow Analysis'!A81,"") -> 2028 | B34: 20 | C34: 17 | E34: =+'Carbon Sequestration'!$C$100*(C34<=anal_period) -> 13144261.78 | F34: 13144261.78 | G34: 2415547.487 | H34: 15269685.25
A35: =IF(C35<>"",'Cash Flow Analysis'!A82,"") -> 2029 | B35: 21 | C35: 18 | E35: =+'Carbon Sequestration'!$C$100*(C35<=anal_period) -> 13144261.78 | F35: 13144261.78 | G35: 2415547.487 | H35: 15269685.25
A36: =IF(C36<>"",'Cash Flow Analysis'!A83,"") -> 2030 | B36: 22 | C36: 19 | E36: =+'Carbon Sequestration'!$C$100*(C36<=anal_period) -> 13144261.78 | F36: 13144261.78 | G36: 2415547.487 | H36: 15269685.25
A37: =IF(C37<>"",'Cash Flow Analysis'!A84,"") -> 2031 | B37: 23 | C37: 20 | E37: =+'Carbon Sequestration'!$C$100*(C37<=anal_period) -> 13144261.78 | F37: 13144261.78 | G37: 2415547.487 | H37: 15269685.25
A38: =IF(C38<>"",'Cash Flow Analysis'!A85,"") -> 2032 | B38: 24 | C38: 21 | E38: =+'Carbon Sequestration'!$C$100*(C38<=anal_period) -> 13144261.78 | F38: 13144261.78 | G38: 2415547.487 | H38: 15269685.25
A39: =IF(C39<>"",'Cash Flow Analysis'!A86,"") -> 2033 | B39: 25 | C39: 22 | E39: =+'Carbon Sequestration'!$C$100*(C39<=anal_period) -> 13144261.78 | F39: 13144261.78 | G39: 2415547.487 | H39: 15269685.25
A40: =IF(C40<>"",'Cash Flow Analysis'!A87,"") -> 2034 | B40: 26 | C40: 23 | E40: =+'Carbon Sequestration'!$C$100*(C40<=anal_period) -> 13144261.78 | F40: 13144261.78 | G40: 2415547.487 | H40: 15269685.25
A41: =IF(C41<>"",'Cash Flow Analysis'!A88,"") -> 2035 | B41: 27 | C41: 24 | E41: =+'Carbon Sequestration'!$C$100*(C41<=anal_period) -> 13144261.78 | F41: 13144261.78 | G41: 2415547.487 | H41: 15269685.25
A42: =IF(C42<>"",'Cash Flow Analysis'!A89,"") -> 2036 | B42: 28 | C42: 25 | E42: =+'Carbon Sequestration'!$C$100*(C42<=anal_period) -> 13144261.78 | F42: 13144261.78 | G42: 2415547.487 | H42: 15269685.25
A43: =IF(C43<>"",'Cash Flow Analysis'!A90,"") -> 2037 | B43: 29 | C43: 26 | E43: =+'Carbon Sequestration'!$C$100*(C43<=anal_period) -> 13144261.78 | F43: 13144261.78 | G43: 2415547.487 | H43: 15269685.25
A44: =IF(C44<>"",'Cash Flow Analysis'!A91,"") -> 2038 | B44: 30 | C44: 27 | E44: =+'Carbon Sequestration'!$C$100*(C44<=anal_period) -> 13144261.78 | F44: 13144261.78 | G44: 2415547.487 | H44: 15269685.25
A45: =IF(C45<>"",'Cash Flow Analysis'!A92,"") -> 2039 | B45: 31 | C45: 28 | E45: =+'Carbon Sequestration'!$C$100*(C45<=anal_period) -> 13144261.78 | F45: 13144261.78 | G45: 2415547.487 | H45: 15269685.25
A46: =IF(C46<>"",'Cash Flow Analysis'!A93,"") -> 2040 | B46: 32 | C46: 29 | E46: =+'Carbon Sequestration'!$C$100*(C46<=anal_period) -> 13144261.78 | F46: 13144261.78 | G46: 2415547.487 | H46: 15269685.25
A47: =IF(C47<>"",'Cash Flow Analysis'!A94,"") -> 2041 | B47: 33 | C47: 30 | E47: =+'Carbon Sequestration'!$C$100*(C47<=anal_period) -> 13144261.78 | F47: 13144261.78 | G47: 2415547.487 | H47: 15269685.25
A48: =IF(C48<>"",'Cash Flow Analysis'!A95,"") -> 2042 | B48: 34 | C48: 31 | E48: =+'Carbon Sequestration'!$C$100*(C48<=anal_period) -> 13144261.78 | F48: 13144261.78 | G48: 2415547.487 | H48: 15269685.25
A49: =IF(C49<>"",'Cash Flow Analysis'!A96,"") -> 2043 | B49: 35 | C49: 32 | E49: =+'Carbon Sequestration'!$C$100*(C49<=anal_period) -> 13144261.78 | F49: 13144261.78 | G49: 2415547.487 | H49: 15269685.25
A50: =IF(C50<>"",'Cash Flow Analysis'!A97,"") -> 2044 | B50: 36 | C50: 33 | E50: =+'Carbon Sequestration'!$C$100*(C50<=anal_period) -> 13144261.78 | F50: 13144261.78 | G50: 2415547.487 | H50: 15269685.25
A51: =IF(C51<>"",'Cash Flow Analysis'!A98,"") -> 2045 | B51: 37 | C51: 34 | E51: =+'Carbon Sequestration'!$C$100*(C51<=anal_period) -> 13144261.78 | F51: 13144261.78 | G51: 2415547.487 | H51: 15269685.25
A52: =IF(C52<>"",'Cash Flow Analysis'!A99,"") -> 2046 | B52: 38 | C52: 35 | E52: =+'Carbon Sequestration'!$C$100*(C52<=anal_period) -> 13144261.78 | F52: 13144261.78 | G52: 2415547.487 | H52: 15269685.25
A53: =IF(C53<>"",'Cash Flow Analysis'!A100,"") -> 2047 | B53: 39 | C53: 36 | E53: =+'Carbon Sequestration'!$C$100*(C53<=anal_period) -> 13144261.78 | F53: 13144261.78 | G53: 2415547.487 | H53: 15269685.25
A54: =IF(C54<>"",'Cash Flow Analysis'!A101,"") -> 2048 | B54: 40 | C54: 37 | E54: =+'Carbon Sequestration'!$C$100*(C54<=anal_period) -> 13144261.78 | F54: 13144261.78 | G54: 2415547.487 | H54: 15269685.25
A55: =IF(C55<>"",'Cash Flow Analysis'!A102,"") -> 2049 | B55: 41 | C55: 38 | E55: =+'Carbon Sequestration'!$C$100*(C55<=anal_period) -> 13144261.78 | F55: 13144261.78 | G55: 2415547.487 | H55: 15269685.25
A56: =IF(C56<>"",'Cash Flow Analysis'!A103,"") -> 2050 | B56: 42 | C56: 39 | E56: =+'Carbon Sequestration'!$C$100*(C56<=anal_period) -> 13144261.78 | F56: 13144261.78 | G56: 2415547.487 | H56: 15269685.25
A57: =IF(C57<>"",'Cash Flow Analysis'!A104,"") -> 2051 | B57: 43 | C57: 40 | E57: =+'Carbon Sequestration'!$C$100*(C57<=anal_period) -> 13144261.78 | F57: 13144261.78 | G57: 2415547.487 | H57: 15269685.25

Sheet Capital Costs
B2: Capital Costs
C4: Color Key
B7: Design Plant Hydrogen Production (kg/day) | C7: 379387 | D7: Capital costs for the design plant (baseline) are entered on this sheet. Use the Plant Scaling sheet to set scaling parameters for scaling up or down in size from the baseline plant. Enter the output kg/day for the plant you wish to analyze on the Input Sheet
D8: Comments
B9: Basis year for capital costs | C9: =BasisYear -> 2005
B10: Enter current year for capital costs | C10: 2010
B11: ="CEPCI Inflator ("&BasisYear&" to "&CurrentYear&")" -> CEPCI Inflator (2005 to 2010) | C11: =VLOOKUP(CurrentYear,Tbl_PlantCostIndexes,2,FALSE)/VLOOKUP(BasisYear,Tbl_PlantCostIndexes,2,FALSE) -> 1.176420333 | D11: The Chemical Engineering Plant Cost Index (CEPCI) is used to adjust the capital cost of the H2 Production facility from the basis year to the current year.
B12: ="Consumer Price Inflator ("&CurrentYear&" to "&ref_year&")" -> Consumer Price Inflator (2010 to 2016) | C12: =VLOOKUP(ref_year,DeflatorTable,2,FALSE)/VLOOKUP(CurrentYear,DeflatorTable,2,FALSE) -> 1.100724187 | D12: The Consumer Price Inflator (CPI) is used to deflate all dollars from the current year to the Reference Year.
B14: ="CAPITAL INVESTMENT (Inputs REQUIRED in Basis Year, (" & BasisYear & ") $)" -> CAPITAL INVESTMENT (Inputs REQUIRED in Basis Year, (2005) $)
B15: Major pieces/systems of equipment | C15: ="Baseline Uninstalled Costs $"&BasisYear&" Dollars" -> Baseline Uninstalled Costs $2005 Dollars | D15: ="Baseline Uninstalled Costs $"&ref_year&" Dollars" -> Baseline Uninstalled Costs $2016 Dollars | E15: Installation Cost Factor | F15: Baseline Installed Costs | G15: Comments | H15: Data Source
B16: Process Plant Equipment (Reformer) | C16: 49969788 | D16: =C16*CEPCIinflator*CPIinflator -> 64706593.77 | E16: 1.92 | F16: =D16*E16 -> 124236660
B17: Balance of Plant and Offsites | C17: 19964651 | D17: =C17*CEPCIinflator*CPIinflator -> 25852512.36 | E17: 1.92 | F17: =D17*E17 -> 49636823.74
B18: Process CO2 Removal | C18: 6072440 | D18: 7863289.479 | E18: 1.92 | F18: 15097515.8
B19: Stack CO2 Removal | C19: 5339713 | D19: 6914470.799 | E19: 1.92 | F19: 13275783.93
D20: 0 | F20: 0
D21: 0 | F21: 0
D22: 0 | F22: 0
D23: 0 | F23: 0
D24: 0 | F24: 0
D25: 0 | F25: 0
D26: 0 | F26: 0
D27: 0 | F27: 0
D28: 0 | F28: 0
D29: 0 | F29: 0
D30: 0 | F30: 0
D31: 0 | F31: 0
D32: 0 | F32: 0
D33: 0 | F33: 0
D34: 0 | F34: 0
D35: 0 | F35: 0
C36: =SUM(C16:C35) -> 81346592 | D36: =SUM(D16:D35) -> 105336866.4 | F36: =SUM(F16:F35) -> 202246783.5

Sheet Plant Scaling
B1: leave this sheet as is for scaled costs
B2: Plant Scaling Factors
B3: Baseline Design Capacity (kg H2/day) | C3: =Baseline_Design_Capacity -> 379387 | D3: Design capacity for original H2A case. Imported from capital cost sheet
B4: Scale Ratio | C4: =design_cap/Baseline_Design_Capacity -> 1 | D4: Ratio of new design capacity (enter on Input Sheet) to the Baseline Design Capacity. Used for linear scaling
B5: Scale Factor | C5: =$G$27/Det_direct_cap -> 1 | D5: Ratio of total scaled installed capital capital cost to total baseline installed capital costs. Used for exponential scaling.
B6: Default Scaling Factor Exponent | C6: 0.6 | D6: Scaling factor exponent used for scaling all capital equipment where an individual factor has not been entered below.
B7: Lower Limit for Scaling Capacity (kg H2/day) | C7: 235000 | D7: http://www.chemicals-technology.com/projects/air-products-plant/
B8: Upper Limit for Scaling Capacity (kg H2/day) | C8: 425000 | D8: http://hydrogen.pnl.gov/filedownloads/hydrogen/datasheets/hydrogen_production_capacity_by_state.xls
B11: ="CAPITAL INVESTMENT (Inputs REQUIRED in Reference Year, (" & ref_year & ") $)" -> CAPITAL INVESTMENT (Inputs REQUIRED in Reference Year, (2016) $)
B12: Major pieces/systems of equipment | C12: Baseline Uninstalled Costs | D12: Scaling Factor Exponent | E12: Scaled Uninstalled Costs | F12: Installation Cost Factor | G12: Installed Cost (scaled) | H12: Installed Cost (baseline) | I12: Comments | J12: Data Source
B13: ='Capital Costs'!B16 -> Process Plant Equipment (Reformer) | C13: ='Capital Costs'!D16 -> 64706593.77 | E13: =IF($D13="",$C13*Scale_Ratio^Scaling_Factor_Exponent,$C13*Scale_Ratio^$D13) -> 64706593.77 | F13: ='Capital Costs'!E16 -> 1.92 | G13: =$E13*$F13 -> 124236660 | H13: =C13*F13 -> 124236660
B14: ='Capital Costs'!B17 -> Balance of Plant and Offsites | C14: ='Capital Costs'!D17 -> 25852512.36 | E14: =IF($D14="",$C14*Scale_Ratio^Scaling_Factor_Exponent,$C14*Scale_Ratio^$D14) -> 25852512.36 | F14: ='Capital Costs'!E17 -> 1.92 | G14: =$E14*$F14 -> 49636823.74 | H14: =C14*F14 -> 49636823.74
B15: ='Capital Costs'!B18 -> Process CO2 Removal | C15: ='Capital Costs'!D18 -> 7863289.479 | E15: 7863289.479 | F15: ='Capital Costs'!E18 -> 1.92 | G15: 15097515.8 | H15: 15097515.8
B16: ='Capital Costs'!B19 -> Stack CO2 Removal | C16: ='Capital Costs'!D19 -> 6914470.799 | E16: 6914470.799 | F16: ='Capital Costs'!E19 -> 1.92 | G16: 13275783.93 | H16: 13275783.93
B17: ='Capital Costs'!B20 -> 0 | C17: ='Capital Costs'!D20 -> 0 | E17: 0 | F17: ='Capital Costs'!E20 -> 0 | G17: 0 | H17: 0
B18: ='Capital Costs'!B21 -> 0 | C18: ='Capital Costs'!D21 -> 0 | E18: 0 | F18: ='Capital Costs'!E21 -> 0 | G18: 0 | H18: 0
B19: ='Capital Costs'!B22 -> 0 | C19: ='Capital Costs'!D22 -> 0 | E19: 0 | F19: ='Capital Costs'!E22 -> 0 | G19: 0 | H19: 0
B20: ='Capital Costs'!B23 -> 0 | C20: ='Capital Costs'!D23 -> 0 | E20: 0 | F20: ='Capital Costs'!E23 -> 0 | G20: 0 | H20: 0
B21: ='Capital Costs'!B24 -> 0 | C21: ='Capital Costs'!D24 -> 0 | E21: 0 | F21: ='Capital Costs'!E24 -> 0 | G21: 0 | H21: 0
B22: ='Capital Costs'!B25 -> 0 | C22: ='Capital Costs'!D25 -> 0 | E22: 0 | F22: ='Capital Costs'!E25 -> 0 | G22: 0 | H22: 0
B23: ='Capital Costs'!B26 -> 0 | C23: ='Capital Costs'!D26 -> 0 | E23: 0 | F23: ='Capital Costs'!E26 -> 0 | G23: 0 | H23: 0
B24: ='Capital Costs'!B27 -> 0 | C24: ='Capital Costs'!D27 -> 0 | E24: 0 | F24: ='Capital Costs'!E27 -> 0 | G24: 0 | H24: 0
B25: ='Capital Costs'!B28 -> 0 | C25: ='Capital Costs'!D28 -> 0 | E25: 0 | F25: ='Capital Costs'!E28 -> 0 | G25: 0 | H25: 0
B26: ='Capital Costs'!B29 -> 0 | C26: ='Capital Costs'!D29 -> 0 | E26: 0 | F26: ='Capital Costs'!E29 -> 0 | G26: 0 | H26: 0
B27: TOTALS (including scaling) | C27: =SUM(C13:C26) -> 105336866.4 | E27: =SUM(E13:E26) -> 105336866.4 | G27: =SUM(G13:G26) -> 202246783.5 | H27: =SUM(H13:H26) -> 202246783.5

Sheet Carbon Sequestration
B2: Carbon Sequestration
B4: Carbon Sequestration Calculation Information
B5: Costs for carbon (CO2) compression, transport to the sequestration site and injection are calculated in this section. Capital and operating costs for carbon capture are assumed to be included in the capital and operating costs for the production facility and are not included here. For H2A analysis of hydrogen production processes, it is assumed that only carbon contained in the process feedstock can be captured. Carbon contained in fuels such as natural gas used for steam generation (i.e., as a utility) cannot be captured. Therefore, only CO2 emissions from feedstocks are shown below. CO2 emissions from fuels used as utilities are included in the total emissions from the process shown on the Results sheet. All feedstocks and utilities should be specified before completing this section. See the QuickStart Guide for information on the derivation of the equations used in this section.
B7: Table of Contents
B8: Color Key
B11: Use default values (checkboxes)
B15: Carbon Sequestration Input Values
B16: Summary of Output Values
B17: Carbon Sequestration Calculations
B20: Carbon Sequestration Information | H20: Summary of Output Values (CO2 Seq. costs are reported on Results Tab as part of total H2 Production cost)
B21: CO2 Produced from Feedstock (metric tons CO2/year) | C21: =Feed_CO2_MTpY -> 1153600 | D21: CO2 emissions are based on the carbon content of the feed. See the Physical Properties Table for specific values | H21: Capital Costs
B22: CO2 Produced from Feedstock (kg CO2/kg H2) | C22: =Feed_CO2_kgpkgH2 -> 9.256495897 | H22: CO2 Pipeline | J22: =SUM(C54:C57) -> 50405887.86
B23: CO2 Mass Flowrate (metric tons/day) | C23: =Feed_CO2_MTpY/365*CO2_Capture_Efficiency -> 2844.493151 | H23: CO2 Pumps | J23: =C71 -> 1158867.101
B24: CO2 Mass Flowrate (G metric tons/year) | C24: =CO2_flowrate*365/1000000 -> 1.03824 | H24: CO2 Other Equipment | J24: =SUM(C82:C83) -> 556590.5677
B25: Electricity Cost ($/kWh) | C25: =HLOOKUP(startup_year,INDIRECT(TMP_PriceTable),MATCH("Industrial Electricity",INDIRECT(Energy_Feed_List),0),FALSE)*VLOOKUP("kWh",CC_feedconversion,2,FALSE) -> 0.06998061126 | D25: Price for industrial electricity in the startup year | H25: CO2 Storage (annualized) | J25: =SUM(C93:C95) -> 85849826.93
B26: Carbon Sequestration Electricity Usage (kWh/kg H2) | C26: =IF(C21=0,0,(pump_power)*cap_factor*24*365/output_kgyear) -> 0.05309432243 | J26: =IF(CO2_Capture_Efficiency,SUM(J22:J25),0) -> 137971172.5 | K26: ="Total ("&ref_year&"$)" -> Total (2016$)
H27: Approx. Uninstalled Equipment Cost | J27: =IF(CO2_inUse = "To Use Carbon Sequestration Click 'Link to Detail Sheet' in the Input Sheet Capital Cost Section",0,(J23+J24)/1.2+J25/1.5+J22) -> 109068653.9
B28: Carbon Sequestration Input Values
B29: Process Design Parameters
B30: Carbon Capture Efficiency (%) | C30: 0.9 | E30: Set to 0 to turn off CCS | H30: Electrical Costs (annual cost)
B31: CO2 capture process outlet pressure (psia) | C31: 14.7 | E31: Inlet pressure for CO2 transport (pump suction pressure) | H31: CO2 Compressor | J31: =C74 -> 463066.788
B32: Number of Pumps (H2 Production Site + Booster Pumps) | C32: 1 | H32: CO2 Injection (Site and wells) | J32: 0
B33: Pump Efficiency | C33: 0.75 | H33: CO2 Pipeline | J33: 0
B34: Pipeline Control System | C34: Yes | J34: =SUM(J31:J33) -> 463066.788 | K34: ="Total ("&ref_year&"$)" -> Total (2016$)
B35: CO2 Surge Tank | C35: Yes | H35: O&M (annual cost)
B36: Pipeline length (miles) | C36: 100 | H36: CO2 Capture Credit | J36: =-Feed_CO2_MTpY*CO2_Capture_Efficiency*CO2_credit -> 0
B37: Pipeline Elevation Change (ft) | C37: 0 | H37: CO2 Pipeline | J37: =+C61 -> 693420.3789
B38: Pipeline Nominal Diameter (in) | C38: =Pipe_Diameter(CO2_PipeLength, C67, C66, C37, 0.5, CO2_flowrate, CO2_Pipeline_Temp, n_CO2_pumps) -> 8 | H38: CO2 Pumps | J38: =C78 -> 46354.68405
B39: Process Conditions | H39: CO2 Other Equipment | J39: =C86 -> 22263.62271
B40: Pipeline Temperature (°F) | C40: 53 | E40: Ground temperature | H40: CO2 Storage | J40: =SUM(C103:C107) -> 8760146.6
B41: CO2 Density (kg/m3) | C41: =denPRCO2(0.00005,AVERAGE(C66:C67)/MPa_to_psi,CO2_Pipeline_Temp) -> 865.7947105 | E41: PR Equation of state: ρCO2 = denPRCO2(vCO2-init, Pave, TPipeline) | J41: =IF(CO2_Capture_Efficiency>0,SUM(J36:J40),0) -> 9522185.286 | K41: ="Total ("&ref_year&"$)" -> Total (2016$)
B42: Other Considerations
B43: CO2 capture credit ($/metric ton CO2 captured) | C43: 0 | H43: Property tax and insurance | J43: =Det_CO2_seq*tax_ins_rate -> 2759423.449 | K43: =+K41 -> Total (2016$)
B44: Operation and maintenance factor for equipment (pumps, etc.) | C44: 0.04
B45: Finance Parameters | H45: Carbon Sequestration Energy Charge ($/tonne CO2) | K45: =ROUND(CO2_eCostpY/(Feed_CO2_MTpY*CO2_Capture_Efficiency),1) -> 0.4
B46: After Tax Real Capital Recovery Factor | C46: =(real_irr*(1+real_irr)^anal_period)/(((real_irr+1)^anal_period)-1) -> 0.0838601615 | H46: Carbon Sequestration O&M Charge ($/tonne CO2) | K46: =ROUND((Det_CO2_OandMcost+ CCS_tax_insurance)/(Feed_CO2_MTpY*CO2_Capture_Efficiency),1) -> 11.8
B47: Real Present Value of Depreciation | C47: =INDEX(MACRS_Table,MATCH("NPV - Real IRR",recovery_year,0),MATCH(depr_length,recovery_period,0))*(1+real_irr) -> 0.5467411219 | H47: Approx Carbon Seq. Cap. Charge ($/tonne CO2) | K47: =ROUND((Det_CO2_seq+(-PV(nominal_irr,plant_life,C100)*(1+nominal_irr)))*CO2_cap_charge_rate/(Feed_CO2_MTpY*CO2_Capture_Efficiency),1) -> 26.1
B48: Approx Capital Charge Rate | C48: =(CO2_cap_rec*(1-total_tax_rate*CO2_depr_factor))/(1-total_tax_rate) -> 0.09703531281 | H48: Total transportation and storage cost (w/o capture) | K48: =SUM(K45:K47) -> 38.3
B50: Carbon Transport Calculations
B51: ="CO2 Pipeline Costs ("&ref_year&" USD)" -> CO2 Pipeline Costs (2016 USD) | D51: Units | E51: Notes / References
B52: Capital Costs
B53: Adjustment factor (Natural Gas Pipeline -> CO2 Pipeline) | C53: =IF(CO2_PipeDia>20,1.25, IF(CO2_PipeDia>16,1.18,IF(CO2_PipeDia>12,1.12,1))) -> 1 | E53: CCost_Type = a0 + L * (a1 * D2 + a2 * D + a3) based on NETL CO2 Transport Model which uses Parker (2004) UCD-ITS-RR-04-35 basis
B54: Material Capital | C54: =(35000+CO2_PipeLength*(330.5*CO2_PipeDia^2+687*CO2_PipeDia+26960))*NG_to_CO2Pipeline*VLOOKUP(ref_year,Tbl_PlantCostIndexes,2)/VLOOKUP(2000,Tbl_PlantCostIndexes,2) -> 7416657.853 | D54: =ref_year&"$" -> 2016$ | E54: a0 = 35,000 $; a1 = 330.5 $/mi-in2; a2 = 687 $/mi-in; a3 = 26,960 $/mi (coefficient basis is 2000$)
B55: Labor | C55: =(185000+CO2_PipeLength*(343*CO2_PipeDia^2+2074*CO2_PipeDia+170013))*NG_to_CO2Pipeline*VLOOKUP(ref_year,Tbl_labor_indexes,2)/VLOOKUP(2000,Tbl_labor_indexes,2) -> 27966032.8 | D55: =ref_year&"$" -> 2016$ | E55: a0 = 185,000 $; a1 = 343 $/mi-in2; a2 = 2,074 $/mi-in; a3 = 170,013 $/mi (coefficient basis is 2000$)
B56: Right of Way and Damages | C56: =(40000+CO2_PipeLength*(0*CO2_PipeDia^2+577*CO2_PipeDia+29788))*NG_to_CO2Pipeline*(VLOOKUP(ref_year,DeflatorTable,2)/VLOOKUP(2000,DeflatorTable,2)) -> 4735516.833 | D56: =ref_year&"$" -> 2016$ | E56: a0 = 40,000 $; a1 = 0 $/mi-in2; a2 = 577 $/mi-in; a3 = 29,788 $/mi (coefficient basis is 2000$)
B57: Miscellaneous (Surveying, engineering, supervision, etc.) | C57: =(95000+CO2_PipeLength*(0*CO2_PipeDia^2+8417*CO2_PipeDia+7324))*NG_to_CO2Pipeline*VLOOKUP(ref_year,DeflatorTable,2)/VLOOKUP(2000,DeflatorTable,2) -> 10287680.37 | D57: =ref_year&"$" -> 2016$ | E57: a0 = 95,000 $; a1 = 0 $/mi-in2; a2 = 8,417 $/mi-in; a3 = 7,324 $/mi (coefficient basis is 2000$)
B58: Pipeline Capital Cost Per Mile | C58: =SUM(C54:C57)/CO2_PipeLength -> 504058.8786 | D58: =ref_year&"$/mile" -> 2016$/mile
B60: O&M Costs
B61: Pipeline cost of $5000/mi-yr | C61: =5000*CO2_PipeLength*(VLOOKUP(ref_year,Tbl_PlantCostIndexes,2)/VLOOKUP(1999,Tbl_PlantCostIndexes,2)) -> 693420.3789 | D61: =ref_year&"$/year" -> 2016$/year | E61: Based on NETL CO2 Transport Model which uses Bock (2003) basis. $5000/mi-yr is based in 1999$
B64: CO2 Pump Costs
B65: Capital Costs
B66: Inlet Pressure | C66: =CO2_Pin_psia -> 14.7 | D66: psia
B67: Outlet Pressure | C67: =15*MPa_to_psi -> 2175.57 | D67: psia
B68: Pump Power | C68: =(1000*1000000*0.001/ (24*3600))*(CO2_flowrate/cap_factor*(C67-C66)/MPa_to_psi)/(C41*Pump_Eff) -> 839.3039877 | D68: kW | E68: Wpump = ((1e3 kg/t * 1e6 Pa/MPa * 1e-3 kW/W) / (24*3600 s/day))*qmax*dPpump/(ηpump*ρCO2) from NETL CO2 Transport Model
B69: Pump Fixed Cost | C69: =70000*VLOOKUP(ref_year,Tbl_PlantCostIndexes,2)/VLOOKUP(2005,Tbl_PlantCostIndexes,2) -> 80988.89364 | D69: =ref_year&"$" -> 2016$ | E69: Fixed cost of $70,000 (2005$) from NETL CO2 Transport Model which uses McCollum & Ogden (2006) UCD-ITS-RR-06-14 basis
B70: Pump Variable Cost | C70: =1110*C68*VLOOKUP(ref_year,Tbl_PlantCostIndexes,2)/VLOOKUP(2005,Tbl_PlantCostIndexes,2) -> 1077878.208 | D70: =ref_year&"$" -> 2016$ | E70: Cost of $1,110/kW (2005$) from NETL CO2 Transport Model which uses McCollum & Ogden (2006) UCD-ITS-RR-06-14 basis
B71: Pump Capital Cost | C71: =SUM(C69:C70) -> 1158867.101 | D71: =ref_year&"$" -> 2016$ | E71: Cpump = (Cpump_fix + Cpump_var * Wpump)
B73: Electricity Costs
B74: Ecomp = elec cost*Wcomp*(capacity factor*24*365)*n_pumps | C74: =CO2_eCost*pump_power*cap_factor*24*365*n_CO2_pumps -> 463066.788 | D74: =startup_year&"$/year" -> 2015$/year | E74: $/yr (start-up year electricity cost)
B75: Electricity consumption | C75: =pump_power*cap_factor*24*365*n_CO2_pumps/output_kgyear -> 0.05309432243 | D75: kWh/kg H2
B77: O&M Costs
B78: (Total Other Equipment Cost) * O&M Factor | C78: =C71*CO2_MaintFactor -> 46354.68405 | D78: =ref_year&"$/year" -> 2016$/year
B80: CO2 Other Equipment Costs
B81: Capital Costs
B82: CO2 Surge Tank | C82: =IF(C35="yes",701600*(CO2_flowrate_GTpY/3.2)^Scaling_Factor_Exponent*(VLOOKUP(ref_year,Tbl_PlantCostIndexes,2)/VLOOKUP(2000,Tbl_PlantCostIndexes,2)),0) -> 490829.4901 | D82: =ref_year&"$" -> 2016$ | E82: Based on NETL CO2 Transport Model which uses NETL (2010) DOE/NETL-2010/1447 basis. Original cost is in 2000$
B83: Pipeline Process Control System | C83: =IF(C34="yes",94000*(CO2_flowrate_GTpY/3.2)^Scaling_Factor_Exponent*(VLOOKUP(ref_year,Tbl_PlantCostIndexes,2)/VLOOKUP(2000,Tbl_PlantCostIndexes,2)),0) -> 65761.07763 | D83: =ref_year&"$" -> 2016$ | E83: Based on NETL CO2 Transport Model which uses NETL (2010) DOE/NETL-2010/1447 basis. Original cost is in 2000$
B85: O&M Costs
B86: (Total Other Equipment Cost) * O&M Factor | C86: =SUM(C82:C83)*CO2_MaintFactor -> 22263.62271 | D86: =ref_year&"$/year" -> 2016$/year
B89: Carbon Storage (Saline) Calculations
B90: CO2 Storage Cost Breakdown (2007 USD) | D90: Units | E90: Notes / References
B91: CEPC Inflation Adj: 2008->2005 | C91: =VLOOKUP(2005,DeflatorTable,2)/VLOOKUP(2008,DeflatorTable,2) -> 0.9267607053
B92: ="Capital Costs by Stage (Annual Cost of "&plant_life&" year project in "&ref_year&"$)" -> Capital Costs by Stage (Annual Cost of 40 year project in 2016$) | E92: Based on NETL CO2 Saline Storage Cost Model -- P50 correlation determined (2008$) as function of CO2 flowrate for each stage of cost
B93: Regional Evaluation | C93: =94000*VLOOKUP(ref_year,Tbl_labor_indexes,2)/VLOOKUP(2008,Tbl_labor_indexes,2) -> 109497.9487 | D93: =ref_year&"$" -> 2016$
B94: Site Characterization | C94: =(-16600*CO2_flowrate_GTpY^2+53500*CO2_flowrate_GTpY+20300)*1000*VLOOKUP(ref_year,Tbl_labor_indexes,2)/VLOOKUP(2008,Tbl_labor_indexes,2) -> 67506647.76 | D94: =ref_year&"$" -> 2016$
B95: Permitting | C95: =(-400*CO2_flowrate_GTpY^2 + 2200*CO2_flowrate_GTpY + 13800)*1000*VLOOKUP(ref_year,Tbl_labor_indexes,2)/VLOOKUP(2008,Tbl_labor_indexes,2) -> 18233681.22 | D95: =ref_year&"$" -> 2016$
B97: Ongoing Capital Expences
B98: Operations | C98: =(-36000*CO2_flowrate_GTpY^2+224000*CO2_flowrate_GTpY+47000)*1000*(VLOOKUP(ref_year,Tbl_labor_indexes,2)/VLOOKUP(2008,Tbl_labor_indexes,2))/plant_life -> 7011358.595 | D98: =ref_year&"$/year" -> 2016$/year
B99: Post Injection Site Care & Site Closure | C99: =(-18000*CO2_flowrate_GTpY^2 + 183000*CO2_flowrate_GTpY+ 40000)*1000*(VLOOKUP(ref_year,Tbl_labor_indexes,2)/VLOOKUP(2008,Tbl_labor_indexes,2))/plant_life -> 6132903.187 | D99: =ref_year&"$/year" -> 2016$/year
B100: Total ongoing capital expenses | C100: =+IF(CO2_Capture_Efficiency,SUM(C98:C99),0) -> 13144261.78 | D100: =ref_year&"$/year" -> 2016$/year
B102: Expense Costs by Stage
B103: Regional Evaluation | C103: =0*(VLOOKUP(ref_year,Tbl_labor_indexes,2)/VLOOKUP(2008,Tbl_labor_indexes,2)) -> 0 | D103: =ref_year&"$/year" -> 2016$/year
B104: Site Characterization | C104: =395000*(VLOOKUP(ref_year,Tbl_labor_indexes,2)/VLOOKUP(2008,Tbl_labor_indexes,2))/plant_life -> 11503.10897 | D104: =ref_year&"$/year" -> 2016$/year
B105: Permitting | C105: =100000*(VLOOKUP(ref_year,Tbl_labor_indexes,2)/VLOOKUP(2008,Tbl_labor_indexes,2))/plant_life -> 2912.179487 | D105: =ref_year&"$/year" -> 2016$/year
B106: Operations | C106: =(-30000*CO2_flowrate_GTpY^2 + 143000*CO2_flowrate_GTpY + 41000)*1000*(VLOOKUP(ref_year,Tbl_labor_indexes,2)/VLOOKUP(2008,Tbl_labor_indexes,2))/plant_life -> 4575909.116 | D106: =ref_year&"$/year" -> 2016$/year
B107: Post Injection Site Care & Site Closure | C107: =(111200*CO2_flowrate_GTpY+27733.33)*1000*(VLOOKUP(ref_year,Tbl_labor_indexes,2)/VLOOKUP(2008,Tbl_labor_indexes,2))/plant_life -> 4169822.196 | D107: =ref_year&"$/year" -> 2016$/year

Sheet Results
B2: Table of Contents
B3: Specific Item Cost Calculation
B4: Energy Data
B5: Production Process Energy Efficiency
B6: Upstream Energy Usage
B7: Emissions Summary
B8: Production Process GHG Emissions Summary
B9: Production Process GHG Emissions
B10: Upstream GHG Emissions
B12: H2a Analysis Results
B14: COST RESULTS
B15: Lang Factor | C15: =total_cap/(ProcEqpCap+IF(CO2_Capture_Efficiency>0,CCSEqpCap,0)) -> 2.25838505
B17: Specific Item Cost Calculation | F17: =IF(CO2_inUse = "Carbon Sequestration","Approximate Carbon Sequestration Costs*","Carbon Sequestration is not included in this case") -> Approximate Carbon Sequestration Costs*
B18: Cost Component | C18: Cost Contribution ($/kg) | D18: Percentage of H2 Cost | F18: Cost Component | G18: Cost Contribution ($/ kg H2) | H18: Cost Contribution ($/ tonne CO2 Sequestered)
B19: Capital Costs | C19: ='Cash Flow Analysis'!D119 -> 0.4062737219 | D19: ='Cash Flow Analysis'!C119 -> 0.2607294076 | F19: Capital Costs | G19: =IF(CO2_inUse = "Carbon Sequestration",ROUND((Det_CO2_seq+CO2_aprx_indCap)*CO2_cap_charge_rate/output_kgyear,2),"") -> 0.11 | H19: =IF(CO2_inUse = "Carbon Sequestration",CO2_capptonneCO2,"") -> 26.1
B20: Decommissioning Costs | C20: ='Cash Flow Analysis'!D120 -> 0.001556791244 | D20: ='Cash Flow Analysis'!C120 -> 0.0009990832211 | F20: O&M Cost | G20: =IF(CO2_inUse = "Carbon Sequestration",ROUND(Det_CO2_OandMcost/output_kgyear,2),"") -> 0.08 | H20: =IF(CO2_inUse = "Carbon Sequestration",CO2_OandMptonneCO2,"") -> 11.8
B21: Fixed O&M | C21: ='Cash Flow Analysis'!D121 -> 0.1195240011 | D21: ='Cash Flow Analysis'!C121 -> 0.07670548281 | F21: Energy Cost | G21: =IF(CO2_inUse = "Carbon Sequestration",ROUND(CO2_eCostpY/output_kgyear,2),"") -> 0 | H21: =IF(CO2_inUse = "Carbon Sequestration",CO2_energyptonneCO2,"") -> 0.4
B22: Feedstock Costs | C22: ='Cash Flow Analysis'!D122 -> 0.8252495578 | D22: ='Cash Flow Analysis'!C122 -> 0.5296104984 | F22: Total | G22: =SUM(G19:G21) -> 0.19 | H22: =SUM(H19:H21) -> 38.3
B23: Other Raw Material Costs | C23: ='Cash Flow Analysis'!D123 -> 0 | D23: ='Cash Flow Analysis'!C123 -> 0 | F23: *Carbon sequestration costs presented in this table do not include carbon capture capital and operating costs.
B24: Byproduct Credits | C24: ='Cash Flow Analysis'!D124 -> 0 | D24: ='Cash Flow Analysis'!C124 -> 0
B25: Other Variable Costs (including utilities) | C25: ='Cash Flow Analysis'!D125 -> 0.2056157145 | D25: ='Cash Flow Analysis'!C125 -> 0.1319555279
B26: Total | C26: =SUM(C19:C25) -> 1.558219787
B28: ENERGY
B30: Energy Data
B31: Feedstock | C31: Energy Input (GJ/kg H2) | D31: Energy Input (kWh/kg H2) | E31: LHV (GJ/usage unit) | F31: Usage (/kg H2) | G31: Unit | H31: Unit System Conversion Factor | I31: Real levelized cost
B32: =IF('Cash Flow Analysis'!$B$131=0,"",'Cash Flow Analysis'!$B$131) -> Industrial Natural Gas | C32: =IF($B$32="","",$E$32*$F$32*$H$32) -> 0.164369 | D32: =IF($B32="","",$C32*1000*MJ_to_kWh) -> 45.65805556 | E32: =IF($B$32<>"",VLOOKUP($B$32,MASTER_PROPERTY_TABLE,MATCH("H2A LHV (GJ/ H2A usage input unit)",key_MPTable,0),FALSE),"") -> 1.055 | F32: =IF('Cash Flow Analysis'!$B$133="","",'Cash Flow Analysis'!$B$133) -> 0.1558 | G32: =IF($B$32<>"",VLOOKUP($B$32,MASTER_PROPERTY_TABLE,MATCH("H2A Usage Input Unit/ kg H2",key_MPTable,0),FALSE),"") -> mmBtu | H32: =IF($B32="","",IF(VLOOKUP($B32,MASTER_PROPERTY_TABLE,MATCH("Unit System",key_MPTable,0),FALSE)="English",mmBTU_to_GJ,1)) -> 1 | I32: =+'Cash Flow Analysis'!$B$233 -> 5.604545496
B33: =IF('Cash Flow Analysis'!$C$131=0,"",'Cash Flow Analysis'!$C$131) ->  | C33: =IF($B$33="","",$E$33*$F$33*$H$33) ->  | D33: =IF($B33="","",$C33*1000*MJ_to_kWh) ->  | E33: =IF($B$33<>"",VLOOKUP($B$33,MASTER_PROPERTY_TABLE,MATCH("H2A LHV (GJ/ H2A usage input unit)",key_MPTable,0),FALSE),"") ->  | F33: =IF('Cash Flow Analysis'!$C$133="","",'Cash Flow Analysis'!$C$133) ->  | G33: =IF($B$33<>"",VLOOKUP($B$33,MASTER_PROPERTY_TABLE,MATCH("H2A Usage Input Unit/ kg H2",key_MPTable,0),FALSE),"") ->  | H33: =IF($B$33="","",IF(VLOOKUP($B$33,MASTER_PROPERTY_TABLE,MATCH("Unit System",key_MPTable,0),FALSE)="English",mmBTU_to_GJ,1)) ->  | I33: =+'Cash Flow Analysis'!$C$233 -> 
B34: =IF('Cash Flow Analysis'!$D$131=0,"",'Cash Flow Analysis'!$D$131) ->  | C34: =IF($B$34="","",$E$34*$F$34*$H$34) ->  | D34: =IF($B34="","",$C34*1000*MJ_to_kWh) ->  | E34: =IF($B$34<>"",VLOOKUP($B$34,MASTER_PROPERTY_TABLE,MATCH("H2A LHV (GJ/ H2A usage input unit)",key_MPTable,0),FALSE),"") ->  | F34: =IF('Cash Flow Analysis'!$D$133="","",'Cash Flow Analysis'!$D$133) ->  | G34: =IF($B$34<>"",VLOOKUP($B$34,MASTER_PROPERTY_TABLE,MATCH("H2A Usage Input Unit/ kg H2",key_MPTable,0),FALSE),"") ->  | H34: =IF($B$34="","",IF(VLOOKUP($B$34,MASTER_PROPERTY_TABLE,MATCH("Unit System",key_MPTable,0),FALSE)="English",mmBTU_to_GJ,1)) ->  | I34: =+'Cash Flow Analysis'!$D$233 -> 
B35: =IF('Cash Flow Analysis'!$E$131=0,"",'Cash Flow Analysis'!$E$131) ->  | C35: =IF($B$35="","",$E$35*$F$35*$H$35) ->  | D35: =IF($B35="","",$C35*1000*MJ_to_kWh) ->  | E35: =IF($B$35<>"",VLOOKUP($B$35,MASTER_PROPERTY_TABLE,MATCH("H2A LHV (GJ/ H2A usage input unit)",key_MPTable,0),FALSE),"") ->  | F35: =IF('Cash Flow Analysis'!$E$133="","",'Cash Flow Analysis'!$E$133) ->  | G35: =IF($B$35<>"",VLOOKUP($B$35,MASTER_PROPERTY_TABLE,MATCH("H2A Usage Input Unit/ kg H2",key_MPTable,0),FALSE),"") ->  | H35: =IF($B$35="","",IF(VLOOKUP($B$35,MASTER_PROPERTY_TABLE,MATCH("Unit System",key_MPTable,0),FALSE)="English",mmBTU_to_GJ,1)) ->  | I35: =+'Cash Flow Analysis'!$E$233 -> 
B36: Utility
B37: =IF('Cash Flow Analysis'!$F$131=0,"",'Cash Flow Analysis'!$F$131) -> Industrial Electricity | C37: =IF($B$37="","",$E$37*$F$37*$H$37) -> 0.00216 | D37: =IF($B37="","",$C37*1000*MJ_to_kWh) -> 0.6 | E37: =IF($B37<>"",VLOOKUP($B37,MASTER_PROPERTY_TABLE,MATCH("H2A LHV (GJ/ H2A usage input unit)",key_MPTable,0),FALSE),"") -> 0.0036 | F37: =IF('Cash Flow Analysis'!$F$133="","",'Cash Flow Analysis'!$F$133) -> 0.6 | G37: =IF($B$37<>"",VLOOKUP($B$37,MASTER_PROPERTY_TABLE,MATCH("H2A Usage Input Unit/ kg H2",key_MPTable,0),FALSE),"") -> kWh | H37: =IF($B$37="","",IF(VLOOKUP($B$37,MASTER_PROPERTY_TABLE,MATCH("Unit System",key_MPTable,0),FALSE)="English",mmBTU_to_GJ,1)) -> 1 | I37: =+'Cash Flow Analysis'!$F$233 -> 0.07950224534
B38: =IF('Cash Flow Analysis'!$G$131=0,"",'Cash Flow Analysis'!$G$131) ->  | C38: =IF($B$38="","",$E$38*$F$38*$H$38) ->  | D38: =IF($B38="","",$C38*1000*MJ_to_kWh) ->  | E38: =IF($B38<>"",VLOOKUP($B38,MASTER_PROPERTY_TABLE,MATCH("H2A LHV (GJ/ H2A usage input unit)",key_MPTable,0),FALSE),"") ->  | F38: =IF('Cash Flow Analysis'!$G$133="","",'Cash Flow Analysis'!$G$133) ->  | G38: =IF($B$38<>"",VLOOKUP($B$38,MASTER_PROPERTY_TABLE,MATCH("H2A Usage Input Unit/ kg H2",key_MPTable,0),FALSE),"") ->  | H38: =IF($B$38="","",IF(VLOOKUP($B$38,MASTER_PROPERTY_TABLE,MATCH("Unit System",key_MPTable,0),FALSE)="English",mmBTU_to_GJ,1)) ->  | I38: =+'Cash Flow Analysis'!$G$233 -> 
B39: =IF('Cash Flow Analysis'!$H$131=0,"",'Cash Flow Analysis'!$H$131) ->  | C39: =IF($B$39="","",$E$39*$F$39*$H$39) ->  | D39: =IF($B39="","",$C39*1000*MJ_to_kWh) ->  | E39: =IF($B39<>"",VLOOKUP($B39,MASTER_PROPERTY_TABLE,MATCH("H2A LHV (GJ/ H2A usage input unit)",key_MPTable,0),FALSE),"") ->  | F39: =IF('Cash Flow Analysis'!$H$133="","",'Cash Flow Analysis'!$H$133) ->  | G39: =IF($B$39<>"",VLOOKUP($B$39,MASTER_PROPERTY_TABLE,MATCH("H2A Usage Input Unit/ kg H2",key_MPTable,0),FALSE),"") ->  | H39: =IF($B$39="","",IF(VLOOKUP($B$39,MASTER_PROPERTY_TABLE,MATCH("Unit System",key_MPTable,0),FALSE)="English",mmBTU_to_GJ,1)) ->  | I39: =+'Cash Flow Analysis'!$H$233 -> 
B40: =IF('Cash Flow Analysis'!$I$131=0,"",'Cash Flow Analysis'!$I$131) ->  | C40: =IF($B$40="","",$E$40*$F$40*$H$40) ->  | D40: =IF($B40="","",$C40*1000*MJ_to_kWh) ->  | E40: =IF($B40<>"",VLOOKUP($B40,MASTER_PROPERTY_TABLE,MATCH("H2A LHV (GJ/ H2A usage input unit)",key_MPTable,0),FALSE),"") ->  | F40: =IF('Cash Flow Analysis'!$I$133="","",'Cash Flow Analysis'!$I$133) ->  | G40: =IF($B$40<>"",VLOOKUP($B$40,MASTER_PROPERTY_TABLE,MATCH("H2A Usage Input Unit/ kg H2",key_MPTable,0),FALSE),"") ->  | H40: =IF($B$40="","",IF(VLOOKUP($B$40,MASTER_PROPERTY_TABLE,MATCH("Unit System",key_MPTable,0),FALSE)="English",mmBTU_to_GJ,1)) ->  | I40: =+'Cash Flow Analysis'!$I$233 -> 
B41: Carbon Sequestration
B42: =IF('Cash Flow Analysis'!$J$131=0,"",'Cash Flow Analysis'!$J$131) -> Industrial Electricity | C42: =IF($B$42="","",$E$42*$F$42*$H$42) -> 0.0001911395608 | D42: =IF($B42="","",$C42*1000*MJ_to_kWh) -> 0.05309432243 | E42: =IF($B42<>"",VLOOKUP($B42,MASTER_PROPERTY_TABLE,MATCH("H2A LHV (GJ/ H2A usage input unit)",key_MPTable,0),FALSE),"") -> 0.0036 | F42: =CO2_CashFlow_eUse -> 0.05309432243 | G42: =IF($B$42<>"",VLOOKUP($B$42,MASTER_PROPERTY_TABLE,MATCH("H2A Usage Input Unit/ kg H2",key_MPTable,0),FALSE),"") -> kWh | H42: =IF($B42="","",IF(VLOOKUP($B42,MASTER_PROPERTY_TABLE,MATCH("Unit System",key_MPTable,0),FALSE)="English",mmBTU_to_GJ,1)) -> 1
C43: Energy Output (GJ/kg H2) | D43: Energy Output (kWh/kg H2) | E43: LHV (GJ/usage unit) | F43: Production (/kg H2) | G43: Unit | H43: Unit System Conversion Factor
B44: Hydrogen (1 kg) | C44: =kgH2_to_GJ -> 0.1202116383 | D44: =IF($B44="","",$C44*1000*MJ_to_kWh) -> 33.39212175 | E44: =kgH2_to_GJ -> 0.1202116383 | F44: 1 | G44: kg | H44: 1
B46: Byproducts
B47: =IF('Cash Flow Analysis'!$K$131=0,"",'Cash Flow Analysis'!$K$131) ->  | C47: =IF($B$47="","",$E$47*$F$47*$H$47) ->  | D47: =IF($B47="","",$C47*1000*MJ_to_kWh) ->  | E47: =IF($B47<>"",VLOOKUP($B47,MASTER_PROPERTY_TABLE,MATCH("H2A LHV (GJ/ H2A usage input unit)",key_MPTable,0),FALSE),"") ->  | F47: =IF('Cash Flow Analysis'!$K$133="","",'Cash Flow Analysis'!$K$133) ->  | G47: =IF($B$47<>"",VLOOKUP($B$47,MASTER_PROPERTY_TABLE,MATCH("H2A Usage Input Unit/ kg H2",key_MPTable,0),FALSE),"") ->  | H47: =IF($B$47="","",IF(VLOOKUP($B$47,MASTER_PROPERTY_TABLE,MATCH("Unit System",key_MPTable,0),FALSE)="English",mmBTU_to_GJ,1)) ->  | I47: =+'Cash Flow Analysis'!$K$233 -> 
B48: =IF('Cash Flow Analysis'!$L$131=0,"",'Cash Flow Analysis'!$L$131) ->  | C48: =IF($B$48="","",$E$48*$F$48*$H$48) ->  | D48: =IF($B48="","",$C48*1000*MJ_to_kWh) ->  | E48: =IF($B48<>"",VLOOKUP($B48,MASTER_PROPERTY_TABLE,MATCH("H2A LHV (GJ/ H2A usage input unit)",key_MPTable,0),FALSE),"") ->  | F48: =IF('Cash Flow Analysis'!$L$133="","",'Cash Flow Analysis'!$L$133) ->  | G48: =IF($B$48<>"",VLOOKUP($B$48,MASTER_PROPERTY_TABLE,MATCH("H2A Usage Input Unit/ kg H2",key_MPTable,0),FALSE),"") ->  | H48: =IF($B$48="","",IF(VLOOKUP($B$48,MASTER_PROPERTY_TABLE,MATCH("Unit System",key_MPTable,0),FALSE)="English",mmBTU_to_GJ,1)) ->  | I48: =+'Cash Flow Analysis'!$L$233 -> 
B49: =IF('Cash Flow Analysis'!$M$131=0,"",'Cash Flow Analysis'!$M$131) ->  | C49: =IF($B$49="","",$E$49*$F$49*$H$49) ->  | D49: =IF($B49="","",$C49*1000*MJ_to_kWh) ->  | E49: =IF($B49<>"",VLOOKUP($B49,MASTER_PROPERTY_TABLE,MATCH("H2A LHV (GJ/ H2A usage input unit)",key_MPTable,0),FALSE),"") ->  | F49: =IF('Cash Flow Analysis'!$M$133="","",'Cash Flow Analysis'!$M$133) ->  | G49: =IF($B$49<>"",VLOOKUP($B$49,MASTER_PROPERTY_TABLE,MATCH("H2A Usage Input Unit/ kg H2",key_MPTable,0),FALSE),"") ->  | H49: =IF($B$49="","",IF(VLOOKUP($B$49,MASTER_PROPERTY_TABLE,MATCH("Unit System",key_MPTable,0),FALSE)="English",mmBTU_to_GJ,1)) ->  | I49: =+'Cash Flow Analysis'!$M$233 -> 
B50: =IF('Cash Flow Analysis'!$N$131=0,"",'Cash Flow Analysis'!$N$131) ->  | C50: =IF($B$50="","",$E$50*$F$50*$H$50) ->  | D50: =IF($B50="","",$C50*1000*MJ_to_kWh) ->  | E50: =IF($B50<>"",VLOOKUP($B50,MASTER_PROPERTY_TABLE,MATCH("H2A LHV (GJ/ H2A usage input unit)",key_MPTable,0),FALSE),"") ->  | F50: =IF('Cash Flow Analysis'!$N$133="","",'Cash Flow Analysis'!$N$133) ->  | G50: =IF($B$50<>"",VLOOKUP($B$50,MASTER_PROPERTY_TABLE,MATCH("H2A Usage Input Unit/ kg H2",key_MPTable,0),FALSE),"") ->  | H50: =IF($B$50="","",IF(VLOOKUP($B$50,MASTER_PROPERTY_TABLE,MATCH("Unit System",key_MPTable,0),FALSE)="English",mmBTU_to_GJ,1)) ->  | I50: =+'Cash Flow Analysis'!$N$233 -> 
B52: Production Process Energy Efficiency | D52: =(C56+C57)/(C53+C54+C55) -> 0.7210384937
B53: Feedstock energy input (GJ)/kg H2 | C53: =SUM(C32:C35) -> 0.164369
B54: Utility energy input (GJ/kg H2) | C54: =SUM(C37:C40) -> 0.00216
B55: Carbon sequestration energy input (GJ/kg H2) | C55: =IF(C42="",0,C42) -> 0.0001911395608
B56: Hydrogen energy output (GJ/kg) | C56: =C44 -> 0.1202116383
B57: Byproduct energy output (GJ/kg H2) | C57: =SUM(C47:C50) -> 0
B59: Upstream Energy Usage (GJ/kg H2)
B60: Feedstock | C60: Total Energy | D60: Fossil Fuels | E60: Petroleum
B61: =B32 -> Industrial Natural Gas | C61: =IF($B61="","",$C32/1000000*VLOOKUP($B61,Tbl_Emissions,3,FALSE)) -> 0.1795457377 | D61: =IF($B61="","",$C32/1000000*VLOOKUP($B61,Tbl_Emissions,4,FALSE)) -> 0.179490948 | E61: =IF($B61="","",$C32/1000000*VLOOKUP($B61,Tbl_Emissions,5,FALSE)) -> 0.0006546999902
B62: =B33 ->  | C62: =IF($B62="","",$C33/1000000*VLOOKUP($B62,Tbl_Emissions,3,FALSE)) ->  | D62: =IF($B62="","",$C33/1000000*VLOOKUP($B62,Tbl_Emissions,4,FALSE)) ->  | E62: =IF($B62="","",$C33/1000000*VLOOKUP($B62,Tbl_Emissions,5,FALSE)) -> 
B63: =B34 ->  | C63: =IF($B63="","",$C34/1000000*VLOOKUP($B63,Tbl_Emissions,3,FALSE)) ->  | D63: =IF($B63="","",$C34/1000000*VLOOKUP($B63,Tbl_Emissions,4,FALSE)) ->  | E63: =IF($B63="","",$C34/1000000*VLOOKUP($B63,Tbl_Emissions,5,FALSE)) -> 
B64: =B35 ->  | C64: =IF($B64="","",$C35/1000000*VLOOKUP($B64,Tbl_Emissions,3,FALSE)) ->  | D64: =IF($B64="","",$C35/1000000*VLOOKUP($B64,Tbl_Emissions,4,FALSE)) ->  | E64: =IF($B64="","",$C35/1000000*VLOOKUP($B64,Tbl_Emissions,5,FALSE)) -> 
B65: Utility
B66: =B37 -> Industrial Electricity | C66: =IF($B66="","",$C37/1000000*VLOOKUP($B66,Tbl_Emissions,3,FALSE)) -> 0.00385992 | D66: =IF($B66="","",$C37/1000000*VLOOKUP($B66,Tbl_Emissions,4,FALSE)) -> 0.00295944 | E66: =IF($B66="","",$C37/1000000*VLOOKUP($B66,Tbl_Emissions,5,FALSE)) -> 4.5612e-05
B67: =B38 ->  | C67: =IF($B67="","",$C38/1000000*VLOOKUP($B67,Tbl_Emissions,3,FALSE)) ->  | D67: =IF($B67="","",$C38/1000000*VLOOKUP($B67,Tbl_Emissions,4,FALSE)) ->  | E67: =IF($B67="","",$C38/1000000*VLOOKUP($B67,Tbl_Emissions,5,FALSE)) -> 
B68: =B39 ->  | C68: =IF($B68="","",$C39/1000000*VLOOKUP($B68,Tbl_Emissions,3,FALSE)) ->  | D68: =IF($B68="","",$C39/1000000*VLOOKUP($B68,Tbl_Emissions,4,FALSE)) ->  | E68: =IF($B68="","",$C39/1000000*VLOOKUP($B68,Tbl_Emissions,5,FALSE)) -> 
B69: =B40 ->  | C69: =IF($B69="","",$C40/1000000*VLOOKUP($B69,Tbl_Emissions,3,FALSE)) ->  | D69: =IF($B69="","",$C40/1000000*VLOOKUP($B69,Tbl_Emissions,4,FALSE)) ->  | E69: =IF($B69="","",$C40/1000000*VLOOKUP($B69,Tbl_Emissions,5,FALSE)) -> 
B70: Carbon Sequestration
B71: =B42 -> Industrial Electricity | C71: =IF($B71="","",$C42/1000000*VLOOKUP($B71,Tbl_Emissions,3,FALSE)) -> 0.0003415663951 | D71: =IF($B71="","",$C42/1000000*VLOOKUP($B71,Tbl_Emissions,4,FALSE)) -> 0.000261882436 | E71: =IF($B71="","",$C42/1000000*VLOOKUP($B71,Tbl_Emissions,5,FALSE)) -> 4.036230391e-06
B74: EMISSIONS
B76: Emissions Summary | D76: CO2 | E76: CH4 | F76: N2O | G76: Total GHG (CO2 eq)
B77: Total upstream emissions (kg/kg H2) | D77: =C121 -> 1.276817893 | E77: =D121 -> 0.03084764347 | F77: =E121 -> 0.00014641418 | G77: =F121 -> 2.091640405
B78: Total process emissions (kg/kg H2) | D78: =D89 -> 0.9256495897 | E78: =E89 -> 0 | F78: =F89 -> 0 | G78: =G89 -> 0.9256495897
B80: Total well to pump emissions (kg/kg H2) | D80: =SUM(D77:D79) -> 2.202467483 | E80: =SUM(E77:E79) -> 0.03084764347 | F80: =SUM(F77:F79) -> 0.00014641418 | G80: =SUM(G77:G79) -> 3.017289995
B82: Production Process GHG Emissions Summary | D82: CO2 | E82: CH4 | F82: N2O | G82: Total GHG (CO2 eq)
B83: Total Process Pollutants Produced (kg /kg H2) | D83: =SUM(C95:C105) -> 9.256495897 | E83: =SUM(D95:D105) -> 0 | F83: =SUM(E95:E105) -> 0 | G83: =SUM(F95:F105) -> 9.256495897
B84: Total Process Pollutants Produced (metric tons/year) | D84: =ROUND(D83*output_kgyear/1000,-2) -> 1153600 | E84: =ROUND(E83*output_kgyear/1000,-2) -> 0 | F84: =ROUND(F83*output_kgyear/1000,-2) -> 0 | G84: =ROUND(G83*output_kgyear/1000,-2) -> 1153600
B85: Total Feedstock Pollutants Produced (kg /kg H2) | D85: =SUM(C95:C98) -> 9.256495897 | E85: =SUM(D95:D98) -> 0 | F85: =SUM(E95:E98) -> 0 | G85: =SUM(F95:F98) -> 9.256495897
B86: Total Feedstock Pollutants Produced (metric tons /year) | D86: =ROUND(D85*output_kgyear/1000,-2) -> 1153600 | E86: =ROUND(E85*output_kgyear/1000,-2) -> 0 | F86: =ROUND(F85*output_kgyear/1000,-2) -> 0 | G86: =ROUND(G85*output_kgyear/1000,-2) -> 1153600
B87: CO2 Captured (kg/kg H2)* | D87: =IF(CO2_CashFlow_eUse>0,D85*CO2_Capture_Efficiency,0) -> 8.330846307
B88: CO2 Captured (metric tons/year)* | D88: =ROUND(D87*output_kgyear/1000,-2) -> 1038300
B89: Total Process Emissions (kg/kg H2) | D89: =D83-D87 -> 0.9256495897 | E89: =E83-E87 -> 0 | F89: =F83-F87 -> 0 | G89: =D89*GHG_CO2_factor + E89*GHG_CH4_factor + F89*GHG_N2O_factor -> 0.9256495897
B90: Total Process Emissions (metric tons/year) | D90: =ROUND(D89*output_kgyear/1000,-2) -> 115400 | E90: =ROUND(E89*output_kgyear/1000,-2) -> 0 | F90: =ROUND(F89*output_kgyear/1000,-2) -> 0 | G90: =ROUND(G89*output_kgyear/1000,-2) -> 115400
B91: *Carbon sequestration values are only calculated if the detailed Carbon Sequestration sheet is used.
B93: Production Process GHG Emissions (/kg H2)
B94: Feedstock | C94: CO2 | D94: CH4 | E94: N2O | F94: Total GHG (CO2 eq)
B95: =B32 -> Industrial Natural Gas | C95: =IF($B95="","",VLOOKUP($B95,MASTER_PROPERTY_TABLE,MATCH("CO2 Emissions Factor (kg CO2 produced/GJ feed)",key_MPTable,0),FALSE)*$E32*$F32) -> 9.256495897 | D95: =IF($B95="","",VLOOKUP($B95,MASTER_PROPERTY_TABLE,MATCH("CH4 Emissions Factor (kg CH4 produced/GJ or mmBtu feed)",key_MPTable,0),FALSE)*$E32*$F32) -> 0 | E95: =IF($B95="","",VLOOKUP($B95,MASTER_PROPERTY_TABLE,MATCH("N2O Emissions Factor (kg N2O produced/GJ or mmBtu feed)",key_MPTable,0),FALSE)*$E32*$F32) -> 0 | F95: =IF($B95="","",$C95*GHG_CO2_factor+$D95*GHG_CH4_factor+$E95*GHG_N2O_factor) -> 9.256495897
B96: =B33 ->  | C96: =IF($B96="","",VLOOKUP($B96,MASTER_PROPERTY_TABLE,MATCH("CO2 Emissions Factor (kg CO2 produced/GJ feed)",key_MPTable,0),FALSE)*$E33*$F33) ->  | D96: =IF($B96="","",VLOOKUP($B96,MASTER_PROPERTY_TABLE,MATCH("CH4 Emissions Factor (kg CH4 produced/GJ or mmBtu feed)",key_MPTable,0),FALSE)*$E33*$F33) ->  | E96: =IF($B96="","",VLOOKUP($B96,MASTER_PROPERTY_TABLE,MATCH("N2O Emissions Factor (kg N2O produced/GJ or mmBtu feed)",key_MPTable,0),FALSE)*$E33*$F33) ->  | F96: =IF($B96="","",$C96*GHG_CO2_factor+$D96*GHG_CH4_factor+$E96*GHG_N2O_factor) -> 
B97: =B34 ->  | C97: =IF($B97="","",VLOOKUP($B97,MASTER_PROPERTY_TABLE,MATCH("CO2 Emissions Factor (kg CO2 produced/GJ feed)",key_MPTable,0),FALSE)*$E34*$F34) ->  | D97: =IF($B97="","",VLOOKUP($B97,MASTER_PROPERTY_TABLE,MATCH("CH4 Emissions Factor (kg CH4 produced/GJ or mmBtu feed)",key_MPTable,0),FALSE)*$E34*$F34) ->  | E97: =IF($B97="","",VLOOKUP($B97,MASTER_PROPERTY_TABLE,MATCH("N2O Emissions Factor (kg N2O produced/GJ or mmBtu feed)",key_MPTable,0),FALSE)*$E34*$F34) ->  | F97: =IF($B97="","",$C97*GHG_CO2_factor+$D97*GHG_CH4_factor+$E97*GHG_N2O_factor) -> 
B98: =B35 ->  | C98: =IF($B98="","",VLOOKUP($B98,MASTER_PROPERTY_TABLE,MATCH("CO2 Emissions Factor (kg CO2 produced/GJ feed)",key_MPTable,0),FALSE)*$E35*$F35) ->  | D98: =IF($B98="","",VLOOKUP($B98,MASTER_PROPERTY_TABLE,MATCH("CH4 Emissions Factor (kg CH4 produced/GJ or mmBtu feed)",key_MPTable,0),FALSE)*$E35*$F35) ->  | E98: =IF($B98="","",VLOOKUP($B98,MASTER_PROPERTY_TABLE,MATCH("N2O Emissions Factor (kg N2O produced/GJ or mmBtu feed)",key_MPTable,0),FALSE)*$E35*$F35) ->  | F98: =IF($B98="","",$C98*GHG_CO2_factor+$D98*GHG_CH4_factor+$E98*GHG_N2O_factor) -> 
B99: Utility
B100: =B37 -> Industrial Electricity | C100: =IF($B100="","",VLOOKUP($B100,MASTER_PROPERTY_TABLE,MATCH("CO2 Emissions Factor (kg CO2 produced/GJ feed)",key_MPTable,0),FALSE)*$E37*$F37) -> 0 | D100: =IF($B100="","",VLOOKUP($B100,MASTER_PROPERTY_TABLE,MATCH("CH4 Emissions Factor (kg CH4 produced/GJ or mmBtu feed)",key_MPTable,0),FALSE)*$E37*$F37) -> 0 | E100: =IF($B100="","",VLOOKUP($B100,MASTER_PROPERTY_TABLE,MATCH("N2O Emissions Factor (kg N2O produced/GJ or mmBtu feed)",key_MPTable,0),FALSE)*$E37*$F37) -> 0 | F100: =IF($B100="","",$C100*GHG_CO2_factor+$D100*GHG_CH4_factor+$E100*GHG_N2O_factor) -> 0
B101: =B38 ->  | C101: =IF($B101="","",VLOOKUP($B101,MASTER_PROPERTY_TABLE,MATCH("CO2 Emissions Factor (kg CO2 produced/GJ feed)",key_MPTable,0),FALSE)*$E38*$F38) ->  | D101: =IF($B101="","",VLOOKUP($B101,MASTER_PROPERTY_TABLE,MATCH("CH4 Emissions Factor (kg CH4 produced/GJ or mmBtu feed)",key_MPTable,0),FALSE)*$E38*$F38) ->  | E101: =IF($B101="","",VLOOKUP($B101,MASTER_PROPERTY_TABLE,MATCH("N2O Emissions Factor (kg N2O produced/GJ or mmBtu feed)",key_MPTable,0),FALSE)*$E38*$F38) ->  | F101: =IF($B101="","",$C101*GHG_CO2_factor+$D101*GHG_CH4_factor+$E101*GHG_N2O_factor) -> 
B102: =B39 ->  | C102: =IF($B102="","",VLOOKUP($B102,MASTER_PROPERTY_TABLE,MATCH("CO2 Emissions Factor (kg CO2 produced/GJ feed)",key_MPTable,0),FALSE)*$E39*$F39) ->  | D102: =IF($B102="","",VLOOKUP($B102,MASTER_PROPERTY_TABLE,MATCH("CH4 Emissions Factor (kg CH4 produced/GJ or mmBtu feed)",key_MPTable,0),FALSE)*$E39*$F39) ->  | E102: =IF($B102="","",VLOOKUP($B102,MASTER_PROPERTY_TABLE,MATCH("N2O Emissions Factor (kg N2O produced/GJ or mmBtu feed)",key_MPTable,0),FALSE)*$E39*$F39) ->  | F102: =IF($B102="","",$C102*GHG_CO2_factor+$D102*GHG_CH4_factor+$E102*GHG_N2O_factor) -> 
B103: =B40 ->  | C103: =IF($B103="","",VLOOKUP($B103,MASTER_PROPERTY_TABLE,MATCH("CO2 Emissions Factor (kg CO2 produced/GJ feed)",key_MPTable,0),FALSE)*$E40*$F40) ->  | D103: =IF($B103="","",VLOOKUP($B103,MASTER_PROPERTY_TABLE,MATCH("CH4 Emissions Factor (kg CH4 produced/GJ or mmBtu feed)",key_MPTable,0),FALSE)*$E40*$F40) ->  | E103: =IF($B103="","",VLOOKUP($B103,MASTER_PROPERTY_TABLE,MATCH("N2O Emissions Factor (kg N2O produced/GJ or mmBtu feed)",key_MPTable,0),FALSE)*$E40*$F40) ->  | F103: =IF($B103="","",$C103*GHG_CO2_factor+$D103*GHG_CH4_factor+$E103*GHG_N2O_factor) -> 
B104: Carbon Sequestration
B105: =B42 -> Industrial Electricity | C105: =IF($B105="","",VLOOKUP($B105,MASTER_PROPERTY_TABLE,MATCH("CO2 Emissions Factor (kg CO2 produced/GJ feed)",key_MPTable,0),FALSE)*$E42*$F42) -> 0 | D105: =IF($B105="","",VLOOKUP($B105,MASTER_PROPERTY_TABLE,MATCH("CH4 Emissions Factor (kg CH4 produced/GJ or mmBtu feed)",key_MPTable,0),FALSE)*$E42*$F42) -> 0 | E105: =IF($B105="","",VLOOKUP($B105,MASTER_PROPERTY_TABLE,MATCH("N2O Emissions Factor (kg N2O produced/GJ or mmBtu feed)",key_MPTable,0),FALSE)*$E42*$F42) -> 0 | F105: =IF($B105="","",$C105*GHG_CO2_factor+$D105*GHG_CH4_factor+$E105*GHG_N2O_factor) -> 0
B108: Upstream GHG Emissions (kg/kg H2) based on GREET.NET 2017
B109: Feedstock | C109: CO2 | D109: CH4 | E109: N2O | F109: Total GHG (CO2 eq)
B110: =B32 -> Industrial Natural Gas | C110: =IF($B110="","",$C32*VLOOKUP($B110,Tbl_Emissions,6,FALSE)) -> 0.9473736053 | D110: =IF($B110="","",$C32*VLOOKUP($B110,Tbl_Emissions,7,FALSE)) -> 0.03034786852 | E110: =IF($B110="","",$C32*VLOOKUP($B110,Tbl_Emissions,8,FALSE)) -> 0.0001415947619 | F110: =IF($B110="","",$C110*GHG_CO2_factor+$D110*GHG_CH4_factor+$E110*GHG_N2O_factor) -> 1.748265557
B111: =B33 ->  | C111: =IF($B111="","",$C33*VLOOKUP($B111,Tbl_Emissions,6,FALSE)) ->  | D111: =IF($B111="","",$C33*VLOOKUP($B111,Tbl_Emissions,7,FALSE)) ->  | E111: =IF($B111="","",$C33*VLOOKUP($B111,Tbl_Emissions,8,FALSE)) ->  | F111: =IF($B111="","",$C111*GHG_CO2_factor+$D111*GHG_CH4_factor+$E111*GHG_N2O_factor) -> 
B112: =B34 ->  | C112: =IF($B112="","",$C34*VLOOKUP($B112,Tbl_Emissions,6,FALSE)) ->  | D112: =IF($B112="","",$C34*VLOOKUP($B112,Tbl_Emissions,7,FALSE)) ->  | E112: =IF($B112="","",$C34*VLOOKUP($B112,Tbl_Emissions,8,FALSE)) ->  | F112: =IF($B112="","",$C112*GHG_CO2_factor+$D112*GHG_CH4_factor+$E112*GHG_N2O_factor) -> 
B113: =B35 ->  | C113: =IF($B113="","",$C35*VLOOKUP($B113,Tbl_Emissions,6,FALSE)) ->  | D113: =IF($B113="","",$C35*VLOOKUP($B113,Tbl_Emissions,7,FALSE)) ->  | E113: =IF($B113="","",$C35*VLOOKUP($B113,Tbl_Emissions,8,FALSE)) ->  | F113: =IF($B113="","",$C113*GHG_CO2_factor+$D113*GHG_CH4_factor+$E113*GHG_N2O_factor) -> 
B114: Utility
B115: =B37 -> Industrial Electricity | C115: =IF($B115="","",$C37*VLOOKUP($B115,Tbl_Emissions,6,FALSE)) -> 0.3026616 | D115: =IF($B115="","",$C37*VLOOKUP($B115,Tbl_Emissions,7,FALSE)) -> 0.00045914496 | E115: =IF($B115="","",$C37*VLOOKUP($B115,Tbl_Emissions,8,FALSE)) -> 4.427616e-06 | F115: =IF($B115="","",$C115*GHG_CO2_factor+$D115*GHG_CH4_factor+$E115*GHG_N2O_factor) -> 0.3154596536
B116: =B38 ->  | C116: =IF($B116="","",$C38*VLOOKUP($B116,Tbl_Emissions,6,FALSE)) ->  | D116: =IF($B116="","",$C38*VLOOKUP($B116,Tbl_Emissions,7,FALSE)) ->  | E116: =IF($B116="","",$C38*VLOOKUP($B116,Tbl_Emissions,8,FALSE)) ->  | F116: =IF($B116="","",$C116*GHG_CO2_factor+$D116*GHG_CH4_factor+$E116*GHG_N2O_factor) -> 
B117: =B39 ->  | C117: =IF($B117="","",$C39*VLOOKUP($B117,Tbl_Emissions,6,FALSE)) ->  | D117: =IF($B117="","",$C39*VLOOKUP($B117,Tbl_Emissions,7,FALSE)) ->  | E117: =IF($B117="","",$C39*VLOOKUP($B117,Tbl_Emissions,8,FALSE)) ->  | F117: =IF($B117="","",$C117*GHG_CO2_factor+$D117*GHG_CH4_factor+$E117*GHG_N2O_factor) -> 
B118: =B40 ->  | C118: =IF($B118="","",$C40*VLOOKUP($B118,Tbl_Emissions,6,FALSE)) ->  | D118: =IF($B118="","",$C40*VLOOKUP($B118,Tbl_Emissions,7,FALSE)) ->  | E118: =IF($B118="","",$C40*VLOOKUP($B118,Tbl_Emissions,8,FALSE)) ->  | F118: =IF($B118="","",$C118*GHG_CO2_factor+$D118*GHG_CH4_factor+$E118*GHG_N2O_factor) -> 
B119: Carbon Sequestration
B120: =B42 -> Industrial Electricity | C120: =IF($B120="","",$C42*VLOOKUP($B120,Tbl_Emissions,6,FALSE)) -> 0.02678268763 | D120: =IF($B120="","",$C42*VLOOKUP($B120,Tbl_Emissions,7,FALSE)) -> 4.062998425e-05 | E120: =IF($B120="","",$C42*VLOOKUP($B120,Tbl_Emissions,8,FALSE)) -> 3.918021192e-07 | F120: =IF($B120="","",$C120*GHG_CO2_factor+$D120*GHG_CH4_factor+$E120*GHG_N2O_factor) -> 0.02791519427
B121: TOTAL | C121: =SUM(C110:C120) -> 1.276817893 | D121: =SUM(D110:D120) -> 0.03084764347 | E121: =SUM(E110:E120) -> 0.00014641418 | F121: =SUM(F110:F120) -> 2.091640405

Sheet Tornado Charts & Risk Analysis
B2: Parameter | C2: Nominal | D2: Enter deviation % for lowering H2 cost | E2: Enter deviation % for increasing H2 cost | F2: Price-decreasing factor | G2: Price-increasing factor | H2: Price-decreasing value | I2: Price-increasing value
B3: Operating Capacity Factor | C3: =+cap_factor -> 0.9 | D3: 0.05 | E3: 0.05 | F3: =1+D3 -> 1.05 | G3: =1-E3 -> 0.95 | H3: =+C3*F3 -> 0.945 | I3: =+C3*G3 -> 0.855
B4: =+Input_Sheet_Template!B26 -> Plant Design Capacity (kg of H2/day) | C4: =+design_cap -> 379387 | D4: 0.05 | E4: 0.05 | F4: =1+D4 -> 1.05 | G4: =1-E4 -> 0.95 | H4: 398356.35 | I4: 360417.65
B5: After-tax Real IRR | C5: =+real_irr -> 0.08 | D5: 0.05 | E5: 0.05 | F5: =1-D5 -> 0.95 | G5: =1+E5 -> 1.05 | H5: 0.076 | I5: 0.084
B6: Feedstock Consumption (% of baseline) | C6: 1 | D6: 0.05 | E6: 0.05 | F6: =1-D6 -> 0.95 | G6: =1+E6 -> 1.05 | H6: 0.95 | I6: 1.05
B7: Utilities Consumption (% of baseline) | C7: 1 | D7: 0.05 | E7: 0.05 | F7: =1-D7 -> 0.95 | G7: 1.05 | H7: 0.95 | I7: 1.05
B8: Total Capital Investment | C8: =+total_cap -> 484210221.7 | D8: 0.05 | E8: 0.05 | F8: =1-D8 -> 0.95 | G8: 1.05 | H8: 459999710.6 | I8: 508420732.7
B9: Total Fixed Operating Cost | C9: =+fixed -> 14601223.6 | D9: 0.05 | E9: 0.05 | F9: =1-D9 -> 0.95 | G9: 1.05 | H9: 13871162.42 | I9: 15331284.78
B11: Run Risk Analysis (note: Risk analysis could take ~5 min to run)? | D11: Yes | E11: =IF(RunRiskAnalysis="Yes"," Please click Update Charts and Risk Analysis button before using results below","") -> Please click Update Charts and Risk Analysis button before using results below
P12: Risk variable to plot | R12: Cost of hydrogen ($/kg)
V13: Percentile | W13: Value
V14: 0 | W14: =+MIN(OFFSET($B$251:$B$2250,0,$C$194))*$C$198 -> 1.488931923
V15: 0.05 | W15: =+PERCENTILE(OFFSET($B$251:$B$2250,0,$C$194),V15)*$C$198 -> 1.517548961
V16: =+V15+0.05 -> 0.1 | W16: 1.525676303
V17: 0.15 | W17: 1.532294516
V18: 0.2 | W18: 1.537348647
V19: 0.25 | W19: 1.541053304
V20: 0.3 | W20: 1.544485628
V21: 0.35 | W21: 1.548506696
V22: 0.4 | W22: 1.551902877
V23: 0.45 | W23: 1.55468072
V24: 0.5 | W24: 1.557954397
V25: 0.55 | W25: 1.560742412
V26: 0.6 | W26: 1.56458188
V27: 0.65 | W27: 1.568396941
V28: 0.7 | W28: 1.572186303
V29: 0.75 | W29: 1.576057231
V30: 0.8 | W30: 1.580111531
V31: 0.85 | W31: 1.585293902
V32: 0.9 | W32: 1.591712764
V33: 0.95 | W33: 1.600092658
V34: 1 | W34: =+MAX(OFFSET($B$251:$B$2250,0,$C$194))*$C$198 -> 1.632375007
B45: No user interactions below this row
B47: Displayed case
B48: 1 | C48: =+OFFSET(C50,$B$48,0) -> 1 | D48: 1 | E48: 1 | F48: =+OFFSET(F50,$B$48,0) -> 1 | G48: =+OFFSET(G50,$B$48,0) -> 1 | H48: =+OFFSET(H50,$B$48,0) -> 1 | I48: =+OFFSET(I50,$B$48,0) -> 1 | K48: =+'Cash Flow Analysis'!F118 -> 1.558219787 | L48: =+'Cash Flow Analysis'!Q118 -> 0 | M48: =+'Cash Flow Analysis'!L118 -> 0.001560338261 | N48: =+'Cash Flow Analysis'!H117 -> 0.1435766003 | O48: =+'Cash Flow Analysis'!I117 -> 0.121372203 | P48: =+'Cash Flow Analysis'!J117 -> 0.01568579946 | Q48: =+'Cash Flow Analysis'!K117 -> 0.0008987958215 | R48: =+'Cash Flow Analysis'!M117 -> 0.001556791244 | S48: =+'Cash Flow Analysis'!N117 -> 0.1195240011 | T48: =+'Cash Flow Analysis'!O117 -> 0.8252495578 | U48: =+'Cash Flow Analysis'!P117 -> 0 | V48: =+'Cash Flow Analysis'!R117 -> 0.2056157145 | W48: =+'Cash Flow Analysis'!S117 -> 0.0943200662 | X48: =+'Cash Flow Analysis'!X117 -> 0.02774352283 | Y48: =+'Cash Flow Analysis'!Z117 -> 0.004237072569
B50: Case | C50: Operating capacity factor | D50: Plant design capacity (kg of H2/day) | E50: After-tax real IRR (%) | F50: Feedstock consumption (% of most likely value) | G50: Utilities consumption (% of most likely value) | H50: Total capital investment ($) | I50: Total fixed operating cost ($/year) | K50: Cost of hydrogen ($/kg) | L50: Revenue from byproduct sales ($/kg) | M50: Salvage value ($/kg) | N50: Initial equity depreciable capital ($/kg) | O50: Yearly replacement costs ($/kg) | P50: Cash from working capital reserve ($/kg) | Q50: Other non-depreciable capital costs ($/kg) | R50: Decommissioning costs ($/kg) | S50: Fixed operating cost ($/kg) | T50: Feedstock cost ($/kg) | U50: Other raw material cost ($/kg) | V50: Other variable operating costs ($/kg) | W50: Debt interest ($/kg) | X50: Taxes ($/kg) | Y50: Principal payment ($/kg)
B51: 1 | C51: 1 | D51: 1 | E51: 1 | F51: 1 | G51: 1 | H51: 1 | I51: 1 | K51: 1.558219787 | L51: 0 | M51: 0.001560338261 | N51: 0.1435766003 | O51: 0.121372203 | P51: 0.01568579946 | Q51: 0.0008987958215 | R51: 0.001556791244 | S51: 0.1195240011 | T51: 0.8252495578 | U51: 0 | V51: 0.2056157145 | W51: 0.0943200662 | X51: 0.02774352283 | Y51: 0.004237072569
B52: =+B51+1 -> 2 | C52: =+F3 -> 1.05 | D52: 1 | E52: 1 | F52: 1 | G52: 1 | H52: 1 | I52: 1 | K52: 1.53486268 | L52: 0 | M52: 0.001491253701 | N52: 0.1372207864 | O52: 0.1188990995 | P52: 0.01555667156 | Q52: 0.0008559960205 | R52: 0.001487875589 | S52: 0.1140974478 | T52: 0.8252495578 | U52: 0 | V52: 0.2015801727 | W52: 0.09014472854 | X52: 0.02721209112 | Y52: 0.004049506875
B53: =+B52+1 -> 3 | C53: =+G3 -> 0.95 | D53: 1 | E53: 1 | F53: 1 | G53: 1 | H53: 1 | I53: 1 | K53: 1.583798292 | L53: 0 | M53: 0.00163617881 | N53: 0.1505538522 | O53: 0.1240302051 | P53: 0.01582760629 | Q53: 0.0009461008648 | R53: 0.001632445108 | S53: 0.1254955513 | T53: 0.8252495578 | U53: 0 | V53: 0.2100353322 | W53: 0.09890364638 | X53: 0.0283171963 | Y53: 0.004442977448
B54: 4 | C54: 1 | D54: =+F4 -> 1.05 | E54: 1 | F54: 1 | G54: 1 | H54: 1 | I54: 1 | K54: 1.544094517 | L54: 0 | M54: 0.001517772039 | N54: 0.1396572111 | O54: 0.1192412871 | P54: 0.01561926024 | Q54: 0.0008814249204 | R54: 0.001514293575 | S54: 0.1160937686 | T54: 0.8252495578 | U54: 0 | V54: 0.2041701576 | W54: 0.09174529393 | X54: 0.02731862635 | Y54: 0.004121407924
B55: 5 | C55: 1 | D55: =+G4 -> 0.95 | E55: 1 | F55: 1 | G55: 1 | H55: 1 | I55: 1 | K55: 1.573441554 | L55: 0 | M55: 0.001606281928 | N55: 0.147807019 | O55: 0.1236444217 | P55: 0.01575773068 | Q55: 0.0009174271802 | R55: 0.001602661383 | S55: 0.1232378957 | T55: 0.8252495578 | U55: 0 | V55: 0.2071727179 | W55: 0.09709916368 | X55: 0.02819732454 | Y55: 0.004361915968
B56: 6 | C56: 1 | D56: 1 | E56: =+F5 -> 0.95 | F56: 1 | G56: 1 | H56: 1 | I56: 1 | K56: 1.551049937 | L56: 0 | M56: 0.001730147937 | N56: 0.1368429805 | O56: 0.1215132473 | P56: 0.01513945235 | Q56: 0.0008527921449 | R56: 0.001726214902 | S56: 0.119428024 | T56: 0.8285905754 | U56: 0 | V56: 0.2055280669 | W56: 0.09266334711 | X56: 0.02579719645 | Y56: 0.004698187916
B57: 7 | C57: 1 | D57: 1 | E57: =+G5 -> 1.05 | F57: 1 | G57: 1 | H57: 1 | I57: 1 | K57: 1.565709003 | L57: 0 | M57: 0.001406062743 | N57: 0.1504368725 | O57: 0.1212300484 | P57: 0.01622570243 | Q57: 0.0009459738027 | R57: 0.00140286643 | S57: 0.1196207335 | T57: 0.8219892496 | U57: 0 | V57: 0.2057062749 | W57: 0.09598851125 | X57: 0.02975069338 | Y57: 0.003818139967
B58: 8 | C58: 1 | D58: 1 | E58: 1 | F58: =+F6 -> 0.95 | G58: 1 | H58: 1 | I58: 1 | K58: 1.508081467 | L58: 0 | M58: 0.001554123263 | N58: 0.143003416 | O58: 0.1178255006 | P58: 0.01508332362 | Q58: 0.0008987958215 | R58: 0.001550576246 | S58: 0.1192082447 | T58: 0.7839870799 | U58: 0 | V58: 0.2029980211 | W58: 0.09394352309 | X58: 0.02691695178 | Y58: 0.004220157393
B59: 9 | C59: 1 | D59: 1 | E59: 1 | F59: =+G6 -> 1.05 | G59: 1 | H59: 1 | I59: 1 | K59: 1.608132727 | L59: 0 | M59: 0.001566063001 | N59: 0.1441045701 | O59: 0.1248472489 | P59: 0.01628740751 | Q59: 0.0008987958215 | R59: 0.001562515984 | S59: 0.1198148496 | T59: 0.8665120357 | U59: 0 | V59: 0.2081947263 | W59: 0.09466690645 | X59: 0.02855708042 | Y59: 0.004252653424
B60: 10 | C60: 1 | D60: 1 | E60: 1 | F60: 1 | G60: =+F7 -> 0.95 | H60: 1 | I60: 1 | K60: 1.555924251 | L60: 0 | M60: 0.001560338261 | N60: 0.1435766003 | O60: 0.121372203 | P60: 0.01565504804 | Q60: 0.0008987958215 | R60: 0.001556791244 | S60: 0.1195240011 | T60: 0.8252495578 | U60: 0 | V60: 0.203361589 | W60: 0.0943200662 | X60: 0.02773286377 | Y60: 0.004237072569
B61: 11 | C61: 1 | D61: 1 | E61: 1 | F61: 1 | G61: =+G6 -> 1.05 | H61: 1 | I61: 1 | K61: 1.560515323 | L61: 0 | M61: 0.001560338261 | N61: 0.1435766003 | O61: 0.121372203 | P61: 0.01571655088 | Q61: 0.0008987958215 | R61: 0.001556791244 | S61: 0.1195240011 | T61: 0.8252495578 | U61: 0 | V61: 0.20786984 | W61: 0.0943200662 | X61: 0.02775418189 | Y61: 0.004237072569
B62: 12 | C62: 1 | D62: 1 | E62: 1 | F62: 1 | G62: 1 | H62: =+F8 -> 0.95 | I62: 1 | K62: 1.541999766 | L62: 0 | M62: 0.001482321348 | N62: 0.136381414 | O62: 0.121372203 | P62: 0.01563170752 | Q62: 0.0008987958215 | R62: 0.00147877433 | S62: 0.1155603097 | T62: 0.8252495578 | U62: 0 | V62: 0.2056157145 | W62: 0.08959331788 | X62: 0.02767555657 | Y62: 0.00402473625
B63: 13 | C63: 1 | D63: 1 | E63: 1 | F63: 1 | G63: 1 | H63: =+G8 -> 1.05 | I63: 1 | K63: 1.574439807 | L63: 0 | M63: 0.001638355174 | N63: 0.1507717867 | O63: 0.121372203 | P63: 0.01573989141 | Q63: 0.0008987958215 | R63: 0.001634808157 | S63: 0.1234876924 | T63: 0.8252495578 | U63: 0 | V63: 0.2056157145 | W63: 0.09904681453 | X63: 0.02781148909 | Y63: 0.004449408888
B64: 14 | C64: 1 | D64: 1 | E64: 1 | F64: 1 | G64: 1 | H64: 1 | I64: =+F9 -> 0.95 | K64: 1.552133761 | L64: 0 | M64: 0.001560338261 | N64: 0.1435766003 | O64: 0.121372203 | P64: 0.01560424309 | Q64: 0.0008987958215 | R64: 0.001556791244 | S64: 0.113547801 | T64: 0.8252495578 | U64: 0 | V64: 0.2056157145 | W64: 0.0943200662 | X64: 0.02771525376 | Y64: 0.004237072569
B65: 15 | C65: 1 | D65: 1 | E65: 1 | F65: 1 | G65: 1 | H65: 1 | I65: =+G9 -> 1.05 | K65: 1.564305812 | L65: 0 | M65: 0.001560338261 | N65: 0.1435766003 | O65: 0.121372203 | P65: 0.01576735584 | Q65: 0.0008987958215 | R65: 0.001556791244 | S65: 0.1255002011 | T65: 0.8252495578 | U65: 0 | V65: 0.2056157145 | W65: 0.0943200662 | X65: 0.0277717919 | Y65: 0.004237072569
B66: 16 | C66: =(C$72=1)*$F$3 +(C$72=2) +(C$72=3) +(C$72=4) +(C$72=5) -> 1 | D66: 1 | E66: 1 | F66: =(F$72=1)*$F$6 +(F$72=2) +(F$72=3) +(F$72=4) +(F$72=5) -> 0.95 | G66: =(G$72=1)*$F$7 +(G$72=2) +(G$72=3) +(G$72=4) +(G$72=5) -> 1 | H66: =(H$72=1)*$F$8 +(H$72=2) +(H$72=3) +(H$72=4) +(H$72=5) -> 1 | I66: =(I$72=1)*$F$9 +(I$72=2) +(I$72=3) +(I$72=4) +(I$72=5) -> 1 | K66: 1.508081467 | L66: 0 | M66: 0.001554123263 | N66: 0.143003416 | O66: 0.1178255006 | P66: 0.01508332362 | Q66: 0.0008987958215 | R66: 0.001550576246 | S66: 0.1192082447 | T66: 0.7839870799 | U66: 0 | V66: 0.2029980211 | W66: 0.09394352309 | X66: 0.02691695178 | Y66: 0.004220157393
B67: 17 | C67: =(C$72=1)*$F$3 +(C$72=2)*$F$3 +(C$72=3) +(C$72=4) +(C$72=5) -> 1.05 | D67: 1 | E67: 1 | F67: =(F$72=1)*$F$6 +(F$72=2)*$F$6 +(F$72=3) +(F$72=4) +(F$72=5) -> 0.95 | G67: =(G$72=1)*$F$7 +(G$72=2)*$F$7 +(G$72=3) +(G$72=4) +(G$72=5) -> 1 | H67: =(H$72=1)*$F$8 +(H$72=2)*$F$8 +(H$72=3) +(H$72=4) +(H$72=5) -> 1 | I67: =(I$72=1)*$F$9 +(I$72=2)*$F$9 +(I$72=3) +(I$72=4) +(I$72=5) -> 1 | K67: 1.484945598 | L67: 0 | M67: 0.001485526971 | N67: 0.1366926332 | O67: 0.1154215443 | P67: 0.01495505163 | Q67: 0.0008559960205 | R67: 0.001482148859 | S67: 0.1138064982 | T67: 0.7839870799 | U67: 0 | V67: 0.1990003909 | W67: 0.08979776776 | X67: 0.02639809389 | Y67: 0.004033920605
B68: 18 | C68: =(C$72=1)*$F$3 +(C$72=2)*$F$3 +(C$72=3)*$F$3 +(C$72=4) +(C$72=5) -> 1.05 | D68: 1 | E68: 1 | F68: =(F$72=1)*$F$6 +(F$72=2)*$F$6 +(F$72=3)*$F$6 +(F$72=4) +(F$72=5) -> 0.95 | G68: =(G$72=1)*$F$7 +(G$72=2)*$F$7 +(G$72=3)*$F$7 +(G$72=4) +(G$72=5) -> 1 | H68: =(H$72=1)*$F$8 +(H$72=2)*$F$8 +(H$72=3)*$F$8 +(H$72=4) +(H$72=5) -> 0.95 | I68: =(I$72=1)*$F$9 +(I$72=2)*$F$9 +(I$72=3)*$F$9 +(I$72=4) +(I$72=5) -> 1 | K68: 1.469503256 | L68: 0 | M68: 0.001411250623 | N68: 0.1298424241 | O68: 0.1154215443 | P68: 0.01490355315 | Q68: 0.0008559960205 | R68: 0.001407872511 | S68: 0.1100328483 | T68: 0.7839870799 | U68: 0 | V68: 0.1990003909 | W68: 0.08529764603 | X68: 0.02633338631 | Y68: 0.00383176487
B69: 19 | C69: =(C$72=1)*$F$3 +(C$72=2)*$F$3 +(C$72=3)*$F$3 +(C$72=4)*$F$3 +(C$72=5) -> 1.05 | D69: 1 | E69: 1 | F69: =(F$72=1)*$F$6 +(F$72=2)*$F$6 +(F$72=3)*$F$6 +(F$72=4)*$F$6 +(F$72=5) -> 0.95 | G69: =(G$72=1)*$F$7 +(G$72=2)*$F$7 +(G$72=3)*$F$7 +(G$72=4)*$F$7 +(G$72=5) -> 1 | H69: =(H$72=1)*$F$8 +(H$72=2)*$F$8 +(H$72=3)*$F$8 +(H$72=4)*$F$8 +(H$72=5) -> 0.95 | I69: =(I$72=1)*$F$9 +(I$72=2)*$F$9 +(I$72=3)*$F$9 +(I$72=4)*$F$9 +(I$72=5) -> 0.95 | K69: 1.463900509 | L69: 0 | M69: 0.001411250623 | N69: 0.1298424241 | O69: 0.1154215443 | P69: 0.014828473 | Q69: 0.0008559960205 | R69: 0.001407872511 | S69: 0.1045312058 | T69: 0.7839870799 | U69: 0 | V69: 0.1990003909 | W69: 0.08529764603 | X69: 0.02630736203 | Y69: 0.00383176487
B70: 20 | C70: =(C$72=1)*$F$3 +(C$72=2)*$F$3 +(C$72=3)*$F$3 +(C$72=4)*$F$3 +(C$72=5)*$F$3 -> 1.05 | D70: 1 | E70: 1 | F70: =(F$72=1)*$F$6 +(F$72=2)*$F$6 +(F$72=3)*$F$6 +(F$72=4)*$F$6 +(F$72=5)*$F$6 -> 0.95 | G70: =(G$72=1)*$F$7 +(G$72=2)*$F$7 +(G$72=3)*$F$7 +(G$72=4)*$F$7 +(G$72=5)*$F$7 -> 0.95 | H70: =(H$72=1)*$F$8 +(H$72=2)*$F$8 +(H$72=3)*$F$8 +(H$72=4)*$F$8 +(H$72=5)*$F$8 -> 0.95 | I70: =(I$72=1)*$F$9 +(I$72=2)*$F$9 +(I$72=3)*$F$9 +(I$72=4)*$F$9 +(I$72=5)*$F$9 -> 0.95 | K70: 1.461604973 | L70: 0 | M70: 0.001411250623 | N70: 0.1298424241 | O70: 0.1154215443 | P70: 0.01479772158 | Q70: 0.0008559960205 | R70: 0.001407872511 | S70: 0.1045312058 | T70: 0.7839870799 | U70: 0 | V70: 0.1967462653 | W70: 0.08529764603 | X70: 0.02629670297 | Y70: 0.00383176487
B72: Waterfall Chart Priority | C72: =6-RANK($N$101,($N$101,$N$104:$N$107)) -> 2 | F72: =6-RANK($N$104,($N$101,$N$104:$N$107)) -> 1 | G72: =6-RANK($N$105,($N$101,$N$104:$N$107)) -> 5 | H72: =6-RANK($N$106,($N$101,$N$104:$N$107)) -> 3 | I72: =6-RANK($N$107,($N$101,$N$104:$N$107)) -> 4
B74: Visualization data formatting
B76: parameter | C76: level | D76: Chart titles | E76: Revenue from Hydrogen Sales | F76: Revenue from Byproduct Sales | G76: Salvage Value | H76: Initial Equity Depreciable Capital | I76: Yearly Replacement Costs | J76: Cash for Working Capital Reserve | K76: Other Non-Depreciable Capital Costs | L76: Decommissioning Costs | M76: Fixed Operating Cost | N76: Feedstock Cost | O76: Other Raw Material Cost | P76: Other Variable Operating Costs | Q76: Debt Interest | R76: Taxes | S76: Principal Payment
B77: =+$B$3 -> Operating Capacity Factor | C77: =+H3 -> 0.945 | D77: =+B77&" = "&C77*100&"%" -> Operating Capacity Factor = 94.5% | E77: =+K52 -> 1.53486268 | F77: 0 | G77: 0.001491253701 | H77: 0.1372207864 | I77: 0.1188990995 | J77: 0.01555667156 | K77: 0.0008559960205 | L77: 0.001487875589 | M77: 0.1140974478 | N77: 0.8252495578 | O77: 0 | P77: 0.2015801727 | Q77: 0.09014472854 | R77: 0.02721209112 | S77: 0.004049506875
B78: =+$B$3 -> Operating Capacity Factor | C78: =+C3 -> 0.9 | D78: =+B78&" = "&C78*100&"%" -> Operating Capacity Factor = 90% | E78: =+K$51 -> 1.558219787 | F78: 0 | G78: 0.001560338261 | H78: 0.1435766003 | I78: 0.121372203 | J78: 0.01568579946 | K78: 0.0008987958215 | L78: 0.001556791244 | M78: 0.1195240011 | N78: 0.8252495578 | O78: 0 | P78: 0.2056157145 | Q78: 0.0943200662 | R78: 0.02774352283 | S78: 0.004237072569
B79: Operating Capacity Factor | C79: =+I3 -> 0.855 | D79: Operating Capacity Factor = 85.5% | E79: =+K53 -> 1.583798292 | F79: 0 | G79: 0.00163617881 | H79: 0.1505538522 | I79: 0.1240302051 | J79: 0.01582760629 | K79: 0.0009461008648 | L79: 0.001632445108 | M79: 0.1254955513 | N79: 0.8252495578 | O79: 0 | P79: 0.2100353322 | Q79: 0.09890364638 | R79: 0.0283171963 | S79: 0.004442977448
B80: =+$B$4 -> Plant Design Capacity (kg of H2/day) | C80: =ROUND(H4,0) -> 398356 | D80: =+B80&" = "&TEXT(C80,"0,000") -> Plant Design Capacity (kg of H2/day) = 398,356 | E80: 1.544094517 | F80: 0 | G80: 0.001517772039 | H80: 0.1396572111 | I80: 0.1192412871 | J80: 0.01561926024 | K80: 0.0008814249204 | L80: 0.001514293575 | M80: 0.1160937686 | N80: 0.8252495578 | O80: 0 | P80: 0.2041701576 | Q80: 0.09174529393 | R80: 0.02731862635 | S80: 0.004121407924
B81: =+$B$4 -> Plant Design Capacity (kg of H2/day) | C81: =+ROUND(C4,0) -> 379387 | D81: =+B81&" = "&TEXT(C81,"0,000") -> Plant Design Capacity (kg of H2/day) = 379,387 | E81: =+K$51 -> 1.558219787 | F81: 0 | G81: 0.001560338261 | H81: 0.1435766003 | I81: 0.121372203 | J81: 0.01568579946 | K81: 0.0008987958215 | L81: 0.001556791244 | M81: 0.1195240011 | N81: 0.8252495578 | O81: 0 | P81: 0.2056157145 | Q81: 0.0943200662 | R81: 0.02774352283 | S81: 0.004237072569
B82: Plant Design Capacity (kg of H2/day) | C82: =ROUND(I4,0) -> 360418 | D82: Plant Design Capacity (kg of H2/day) = 360,418 | E82: =+K55 -> 1.573441554 | F82: 0 | G82: 0.001606281928 | H82: 0.147807019 | I82: 0.1236444217 | J82: 0.01575773068 | K82: 0.0009174271802 | L82: 0.001602661383 | M82: 0.1232378957 | N82: 0.8252495578 | O82: 0 | P82: 0.2071727179 | Q82: 0.09709916368 | R82: 0.02819732454 | S82: 0.004361915968
B83: =+$B$5 -> After-tax Real IRR | C83: =+ROUND(H5,2) -> 0.08 | D83: =+B83&" = "&C83*100&"%" -> After-tax Real IRR = 8% | E83: 1.551049937 | F83: 0 | G83: 0.001730147937 | H83: 0.1368429805 | I83: 0.1215132473 | J83: 0.01513945235 | K83: 0.0008527921449 | L83: 0.001726214902 | M83: 0.119428024 | N83: 0.8285905754 | O83: 0 | P83: 0.2055280669 | Q83: 0.09266334711 | R83: 0.02579719645 | S83: 0.004698187916
B84: =+$B$5 -> After-tax Real IRR | C84: =ROUND(C5,2) -> 0.08 | D84: After-tax Real IRR = 8% | E84: =+K$51 -> 1.558219787 | F84: 0 | G84: 0.001560338261 | H84: 0.1435766003 | I84: 0.121372203 | J84: 0.01568579946 | K84: 0.0008987958215 | L84: 0.001556791244 | M84: 0.1195240011 | N84: 0.8252495578 | O84: 0 | P84: 0.2056157145 | Q84: 0.0943200662 | R84: 0.02774352283 | S84: 0.004237072569
B85: After-tax Real IRR | C85: =ROUND(I5,2) -> 0.08 | D85: After-tax Real IRR = 8% | E85: =+K57 -> 1.565709003 | F85: 0 | G85: 0.001406062743 | H85: 0.1504368725 | I85: 0.1212300484 | J85: 0.01622570243 | K85: 0.0009459738027 | L85: 0.00140286643 | M85: 0.1196207335 | N85: 0.8219892496 | O85: 0 | P85: 0.2057062749 | Q85: 0.09598851125 | R85: 0.02975069338 | S85: 0.003818139967
B86: =+$B$6 -> Feedstock Consumption (% of baseline) | C86: =+ROUND(H6,3) -> 0.95 | D86: =+B86&" = "&C86*100&"%" -> Feedstock Consumption (% of baseline) = 95% | E86: 1.508081467 | F86: 0 | G86: 0.001554123263 | H86: 0.143003416 | I86: 0.1178255006 | J86: 0.01508332362 | K86: 0.0008987958215 | L86: 0.001550576246 | M86: 0.1192082447 | N86: 0.7839870799 | O86: 0 | P86: 0.2029980211 | Q86: 0.09394352309 | R86: 0.02691695178 | S86: 0.004220157393
B87: =+$B$6 -> Feedstock Consumption (% of baseline) | C87: =+ROUND(C6,3) -> 1 | D87: =+B87&" = "&C87*100&"%" -> Feedstock Consumption (% of baseline) = 100% | E87: =+K$51 -> 1.558219787 | F87: 0 | G87: 0.001560338261 | H87: 0.1435766003 | I87: 0.121372203 | J87: 0.01568579946 | K87: 0.0008987958215 | L87: 0.001556791244 | M87: 0.1195240011 | N87: 0.8252495578 | O87: 0 | P87: 0.2056157145 | Q87: 0.0943200662 | R87: 0.02774352283 | S87: 0.004237072569
B88: Feedstock Consumption (% of baseline) | C88: =+ROUND(I6,3) -> 1.05 | D88: =+B88&" = "&C88*100&"%" -> Feedstock Consumption (% of baseline) = 105% | E88: =+K59 -> 1.608132727 | F88: 0 | G88: 0.001566063001 | H88: 0.1441045701 | I88: 0.1248472489 | J88: 0.01628740751 | K88: 0.0008987958215 | L88: 0.001562515984 | M88: 0.1198148496 | N88: 0.8665120357 | O88: 0 | P88: 0.2081947263 | Q88: 0.09466690645 | R88: 0.02855708042 | S88: 0.004252653424
B89: =+$B$7 -> Utilities Consumption (% of baseline) | C89: =+ROUND(H7,3) -> 0.95 | D89: =+B89&" = "&C89*100&"%" -> Utilities Consumption (% of baseline) = 95% | E89: 1.555924251 | F89: 0 | G89: 0.001560338261 | H89: 0.1435766003 | I89: 0.121372203 | J89: 0.01565504804 | K89: 0.0008987958215 | L89: 0.001556791244 | M89: 0.1195240011 | N89: 0.8252495578 | O89: 0 | P89: 0.203361589 | Q89: 0.0943200662 | R89: 0.02773286377 | S89: 0.004237072569
B90: =+$B$7 -> Utilities Consumption (% of baseline) | C90: =+ROUND(C7,3) -> 1 | D90: Utilities Consumption (% of baseline) = 100% | E90: =+K$51 -> 1.558219787 | F90: =+L$51 -> 0 | G90: 0.001560338261 | H90: 0.1435766003 | I90: 0.121372203 | J90: 0.01568579946 | K90: 0.0008987958215 | L90: 0.001556791244 | M90: 0.1195240011 | N90: 0.8252495578 | O90: 0 | P90: 0.2056157145 | Q90: 0.0943200662 | R90: 0.02774352283 | S90: 0.004237072569
B91: Utilities Consumption (% of baseline) | C91: =+ROUND(I7,3) -> 1.05 | D91: Utilities Consumption (% of baseline) = 105% | E91: =+K61 -> 1.560515323 | F91: 0 | G91: 0.001560338261 | H91: 0.1435766003 | I91: 0.121372203 | J91: 0.01571655088 | K91: 0.0008987958215 | L91: 0.001556791244 | M91: 0.1195240011 | N91: 0.8252495578 | O91: 0 | P91: 0.20786984 | Q91: 0.0943200662 | R91: 0.02775418189 | S91: 0.004237072569
B92: =+$B$8 -> Total Capital Investment | C92: =+ROUND(H8,0) -> 459999711 | D92: =+B92&" = "&TEXT(C92/1000,"$0,000K") -> Total Capital Investment = $460,000K | E92: 1.541999766 | F92: 0 | G92: 0.001482321348 | H92: 0.136381414 | I92: 0.121372203 | J92: 0.01563170752 | K92: 0.0008987958215 | L92: 0.00147877433 | M92: 0.1155603097 | N92: 0.8252495578 | O92: 0 | P92: 0.2056157145 | Q92: 0.08959331788 | R92: 0.02767555657 | S92: 0.00402473625
B93: =+$B$8 -> Total Capital Investment | C93: =+ROUND(C8,0) -> 484210222 | D93: Total Capital Investment = $484,210K | E93: =+K$51 -> 1.558219787 | F93: 0 | G93: 0.001560338261 | H93: 0.1435766003 | I93: 0.121372203 | J93: 0.01568579946 | K93: 0.0008987958215 | L93: 0.001556791244 | M93: 0.1195240011 | N93: 0.8252495578 | O93: 0 | P93: 0.2056157145 | Q93: 0.0943200662 | R93: 0.02774352283 | S93: 0.004237072569
B94: Total Capital Investment | C94: =+ROUND(I8,0) -> 508420733 | D94: Total Capital Investment = $508,421K | E94: =+K63 -> 1.574439807 | F94: 0 | G94: 0.001638355174 | H94: 0.1507717867 | I94: 0.121372203 | J94: 0.01573989141 | K94: 0.0008987958215 | L94: 0.001634808157 | M94: 0.1234876924 | N94: 0.8252495578 | O94: 0 | P94: 0.2056157145 | Q94: 0.09904681453 | R94: 0.02781148909 | S94: 0.004449408888
B95: =+$B$9 -> Total Fixed Operating Cost | C95: =+ROUND(H9,0) -> 13871162 | D95: Total Fixed Operating Cost = $13,871K | E95: 1.552133761 | F95: 0 | G95: 0.001560338261 | H95: 0.1435766003 | I95: 0.121372203 | J95: 0.01560424309 | K95: 0.0008987958215 | L95: 0.001556791244 | M95: 0.113547801 | N95: 0.8252495578 | O95: 0 | P95: 0.2056157145 | Q95: 0.0943200662 | R95: 0.02771525376 | S95: 0.004237072569
B96: =+$B$9 -> Total Fixed Operating Cost | C96: =+ROUND(C9,0) -> 14601224 | D96: Total Fixed Operating Cost = $14,601K | E96: =+K$51 -> 1.558219787 | F96: 0 | G96: 0.001560338261 | H96: 0.1435766003 | I96: 0.121372203 | J96: 0.01568579946 | K96: 0.0008987958215 | L96: 0.001556791244 | M96: 0.1195240011 | N96: 0.8252495578 | O96: 0 | P96: 0.2056157145 | Q96: 0.0943200662 | R96: 0.02774352283 | S96: 0.004237072569
B97: Total Fixed Operating Cost | C97: =+ROUND(I9,0) -> 15331285 | D97: Total Fixed Operating Cost = $15,331K | E97: =+K65 -> 1.564305812 | F97: 0 | G97: 0.001560338261 | H97: 0.1435766003 | I97: 0.121372203 | J97: 0.01576735584 | K97: 0.0008987958215 | L97: 0.001556791244 | M97: 0.1255002011 | N97: 0.8252495578 | O97: 0 | P97: 0.2056157145 | Q97: 0.0943200662 | R97: 0.0277717919 | S97: 0.004237072569
B100: Standard Toranado | C100: Rank | D100: Titles | E100: Low cost price | F100: Default price | G100: High price | H100: dL0 | I100: dL1 | J100: dL2 | L100: Unsorted titles | M100: Results spread ($/kg) | N100: Importance ranking
C101: 1 | D101: =OFFSET(L$100,MATCH($C101,$N$101:$N$107,0),0) -> Feedstock Consumption (% of baseline) (95%, 100%, 105%) | E101: =OFFSET(E$76,MATCH($C101,$N$101:$N$107,0)*3-2,0) -> 1.508081467 | F101: =+$K$51 -> 1.558219787 | G101: =OFFSET(E$76,MATCH($C101,$N$101:$N$107,0)*3,0) -> 1.608132727 | H101: =+E101 -> 1.508081467 | I101: =+F101-E101 -> 0.05013831933 | J101: =+G101-F101 -> 0.04991294067 | L101: =+B3&" ("&TEXT(H3,"0%, ")&TEXT(C3,"0%, ")&TEXT(I3,"0%)") -> Operating Capacity Factor (95%, 90%, 86%) | M101: =ABS(K52-K53)+0.000000001 -> 0.048935613 | N101: =+RANK(M101,$M$101:$M$107) -> 2
C102: 2 | D102: Operating Capacity Factor (95%, 90%, 86%) | E102: 1.53486268 | F102: 1.558219787 | G102: 1.583798292 | H102: =+E102 -> 1.53486268 | I102: =+F102-E102 -> 0.0233571063 | J102: =+G102-F102 -> 0.0255785057 | L102: =+B4&" ("&TEXT(H4,"0,000")&", "&TEXT(C4,"0,000")&", "&TEXT(I4,"0,000")&") " -> Plant Design Capacity (kg of H2/day) (398,356, 379,387, 360,418) | M102: =+ABS(K54-K55)+0.000000002 -> 0.0293470384 | N102: 4
C103: 3 | D103: Total Capital Investment ($460,000K, $484,210K, $508,421K) | E103: 1.541999766 | F103: 1.558219787 | G103: 1.574439807 | H103: 1.541999766 | I103: 0.01622002053 | J103: 0.01622002053 | L103: =+B5&" ("&TEXT(H5,"0%, ")&TEXT(C5,"0%, ")&TEXT(I5,"0%)") -> After-tax Real IRR (8%, 8%, 8%) | M103: =+ABS(K56-K57)+0.000000003 -> 0.01465906924 | N103: 5
C104: 4 | D104: Plant Design Capacity (kg of H2/day) (398,356, 379,387, 360,418) | E104: 1.544094517 | F104: 1.558219787 | G104: 1.573441554 | H104: 1.544094517 | I104: 0.01412526931 | J104: 0.01522176708 | L104: =+B6&" ("&TEXT(H6,"0%, ")&TEXT(C6,"0%, ")&TEXT(I6,"0%)") -> Feedstock Consumption (% of baseline) (95%, 100%, 105%) | M104: =+ABS(K58-K59)+0.000000004 -> 0.100051264 | N104: 1
C105: 5 | D105: After-tax Real IRR (8%, 8%, 8%) | E105: 1.551049937 | F105: 1.558219787 | G105: 1.565709003 | H105: =+E105 -> 1.551049937 | I105: =+F105-E105 -> 0.00716984939 | J105: =+G105-F105 -> 0.007489216853 | L105: =+B7&" ("&TEXT(H7,"0%, ")&TEXT(C7,"0%, ")&TEXT(I7,"0%)") -> Utilities Consumption (% of baseline) (95%, 100%, 105%) | M105: =+ABS(K60-K61)+0.000000004 -> 0.004591076001 | N105: 7
C106: 6 | D106: Total Fixed Operating Cost ($13,871K, $14,601K, $15,331K) | E106: 1.552133761 | F106: 1.558219787 | G106: 1.564305812 | H106: 1.552133761 | I106: 0.006086025498 | J106: 0.006086025498 | L106: =+B8&" ("&TEXT(H8/1000,"$0,000K")&", "&TEXT(C8/1000,"$0,000K")&", "&TEXT(I8/1000,"$0,000K")&") " -> Total Capital Investment ($460,000K, $484,210K, $508,421K) | M106: =+ABS(K62-K63)+0.000000006 -> 0.03244004707 | N106: 3
C107: 7 | D107: Utilities Consumption (% of baseline) (95%, 100%, 105%) | E107: 1.555924251 | F107: 1.558219787 | G107: 1.560515323 | H107: 1.555924251 | I107: 0.002295536001 | J107: 0.002295536001 | L107: =+B9&" ("&TEXT(H9/1000,"$0,000K")&", "&TEXT(C9/1000,"$0,000K")&", "&TEXT(I9/1000,"$0,000K")&") " -> Total Fixed Operating Cost ($13,871K, $14,601K, $15,331K) | M107: =+ABS(K64-K65)+0.00000007 -> 0.012172121 | N107: 6
B110: Simple bar chart | C110: Rank | D110: =+D76 -> Chart titles | E110: Hydrogen Sales | F110: Byproduct Sales | G110: Salvage Value | H110: =+H76 -> Initial Equity Depreciable Capital | I110: Yearly Replacement Costs | J110: Cash for Working Capital Reserve | K110: Other Non-Depreciable Capital Costs | L110: Decommissioning Costs | M110: Fixed Operating Cost | N110: Feedstock Cost | O110: Other Raw Material Cost | P110: Other Variable Operating Costs | Q110: Debt Interest | R110: Taxes | S110: Principal Payment
C111: 1 | D111: Base case | E111: =OFFSET(E$76,MATCH($C111,$N$101:$N$107,0)*3-1,0) -> 1.558219787 | F111: =OFFSET(F$76,MATCH($C111,$N$101:$N$107,0)*3-1,0) -> 0 | G111: =OFFSET(G$76,MATCH($C111,$N$101:$N$107,0)*3-1,0) -> 0.001560338261
H112: =OFFSET(H$76,MATCH($C111,$N$101:$N$107,0)*3-1,0) -> 0.1435766003 | I112: 0.121372203 | J112: 0.01568579946 | K112: 0.0008987958215 | L112: 0.001556791244 | M112: 0.1195240011 | N112: 0.8252495578 | O112: 0 | P112: 0.2056157145 | Q112: 0.0943200662 | R112: 0.02774352283 | S112: 0.004237072569
C115: 1 | D115: =OFFSET(D$76,MATCH($C115,$N$101:$N$107,0)*3-2,0) -> Feedstock Consumption (% of baseline) = 95% | E115: 1.508081467 | F115: 0 | G115: 0.001554123263
H116: =OFFSET(H$76,MATCH($C115,$N$101:$N$107,0)*3-2,0) -> 0.143003416 | I116: 0.1178255006 | J116: 0.01508332362 | K116: 0.0008987958215 | L116: 0.001550576246 | M116: 0.1192082447 | N116: 0.7839870799 | O116: 0 | P116: 0.2029980211 | Q116: 0.09394352309 | R116: 0.02691695178 | S116: 0.004220157393
C117: 1 | D117: =OFFSET(D$76,MATCH($C117,$N$101:$N$107,0)*3,0) -> Feedstock Consumption (% of baseline) = 105% | E117: 1.608132727 | F117: 0 | G117: 0.001566063001
H118: =OFFSET(H$76,MATCH($C117,$N$101:$N$107,0)*3,0) -> 0.1441045701 | I118: 0.1248472489 | J118: 0.01628740751 | K118: 0.0008987958215 | L118: 0.001562515984 | M118: 0.1198148496 | N118: 0.8665120357 | O118: 0 | P118: 0.2081947263 | Q118: 0.09466690645 | R118: 0.02855708042 | S118: 0.004252653424
C120: 2 | D120: =OFFSET(D$76,MATCH($C120,$N$101:$N$107,0)*3-2,0) -> Operating Capacity Factor = 94.5% | E120: 1.53486268 | F120: 0 | G120: 0.001491253701
H121: =OFFSET(H$76,MATCH($C120,$N$101:$N$107,0)*3-2,0) -> 0.1372207864 | I121: 0.1188990995 | J121: 0.01555667156 | K121: 0.0008559960205 | L121: 0.001487875589 | M121: 0.1140974478 | N121: 0.8252495578 | O121: 0 | P121: 0.2015801727 | Q121: 0.09014472854 | R121: 0.02721209112 | S121: 0.004049506875
C122: 2 | D122: =OFFSET(D$76,MATCH($C122,$N$101:$N$107,0)*3,0) -> Operating Capacity Factor = 85.5% | E122: 1.583798292 | F122: 0 | G122: 0.00163617881
H123: =OFFSET(H$76,MATCH($C122,$N$101:$N$107,0)*3,0) -> 0.1505538522 | I123: 0.1240302051 | J123: 0.01582760629 | K123: 0.0009461008648 | L123: 0.001632445108 | M123: 0.1254955513 | N123: 0.8252495578 | O123: 0 | P123: 0.2100353322 | Q123: 0.09890364638 | R123: 0.0283171963 | S123: 0.004442977448
C125: 3 | D125: =OFFSET(D$76,MATCH($C125,$N$101:$N$107,0)*3-2,0) -> Total Capital Investment = $460,000K | E125: 1.541999766 | F125: 0 | G125: 0.001482321348
H126: =OFFSET(H$76,MATCH($C125,$N$101:$N$107,0)*3-2,0) -> 0.136381414 | I126: 0.121372203 | J126: 0.01563170752 | K126: 0.0008987958215 | L126: 0.00147877433 | M126: 0.1155603097 | N126: 0.8252495578 | O126: 0 | P126: 0.2056157145 | Q126: 0.08959331788 | R126: 0.02767555657 | S126: 0.00402473625
C127: 3 | D127: =OFFSET(D$76,MATCH($C127,$N$101:$N$107,0)*3,0) -> Total Capital Investment = $508,421K | E127: 1.574439807 | F127: 0 | G127: 0.001638355174
H128: =OFFSET(H$76,MATCH($C127,$N$101:$N$107,0)*3,0) -> 0.1507717867 | I128: 0.121372203 | J128: 0.01573989141 | K128: 0.0008987958215 | L128: 0.001634808157 | M128: 0.1234876924 | N128: 0.8252495578 | O128: 0 | P128: 0.2056157145 | Q128: 0.09904681453 | R128: 0.02781148909 | S128: 0.004449408888
C130: 4 | D130: =OFFSET(D$76,MATCH($C130,$N$101:$N$107,0)*3-2,0) -> Plant Design Capacity (kg of H2/day) = 398,356 | E130: 1.544094517 | F130: 0 | G130: 0.001517772039
H131: =OFFSET(H$76,MATCH($C130,$N$101:$N$107,0)*3-2,0) -> 0.1396572111 | I131: 0.1192412871 | J131: 0.01561926024 | K131: 0.0008814249204 | L131: 0.001514293575 | M131: 0.1160937686 | N131: 0.8252495578 | O131: 0 | P131: 0.2041701576 | Q131: 0.09174529393 | R131: 0.02731862635 | S131: 0.004121407924
C132: 4 | D132: =OFFSET(D$76,MATCH($C132,$N$101:$N$107,0)*3,0) -> Plant Design Capacity (kg of H2/day) = 360,418 | E132: 1.573441554 | F132: 0 | G132: 0.001606281928
H133: =OFFSET(H$76,MATCH($C132,$N$101:$N$107,0)*3,0) -> 0.147807019 | I133: 0.1236444217 | J133: 0.01575773068 | K133: 0.0009174271802 | L133: 0.001602661383 | M133: 0.1232378957 | N133: 0.8252495578 | O133: 0 | P133: 0.2071727179 | Q133: 0.09709916368 | R133: 0.02819732454 | S133: 0.004361915968
C135: 5 | D135: =OFFSET(D$76,MATCH($C135,$N$101:$N$107,0)*3-2,0) -> After-tax Real IRR = 8% | E135: 1.551049937 | F135: 0 | G135: 0.001730147937
H136: =OFFSET(H$76,MATCH($C135,$N$101:$N$107,0)*3-2,0) -> 0.1368429805 | I136: 0.1215132473 | J136: 0.01513945235 | K136: 0.0008527921449 | L136: 0.001726214902 | M136: 0.119428024 | N136: 0.8285905754 | O136: 0 | P136: 0.2055280669 | Q136: 0.09266334711 | R136: 0.02579719645 | S136: 0.004698187916
C137: 5 | D137: =OFFSET(D$76,MATCH($C137,$N$101:$N$107,0)*3,0) -> After-tax Real IRR = 8% | E137: 1.565709003 | F137: 0 | G137: 0.001406062743
H138: =OFFSET(H$76,MATCH($C137,$N$101:$N$107,0)*3,0) -> 0.1504368725 | I138: 0.1212300484 | J138: 0.01622570243 | K138: 0.0009459738027 | L138: 0.00140286643 | M138: 0.1196207335 | N138: 0.8219892496 | O138: 0 | P138: 0.2057062749 | Q138: 0.09598851125 | R138: 0.02975069338 | S138: 0.003818139967
C140: 6 | D140: =OFFSET(D$76,MATCH($C140,$N$101:$N$107,0)*3-2,0) -> Total Fixed Operating Cost = $13,871K | E140: 1.552133761 | F140: 0 | G140: 0.001560338261
H141: =OFFSET(H$76,MATCH($C140,$N$101:$N$107,0)*3-2,0) -> 0.1435766003 | I141: 0.121372203 | J141: 0.01560424309 | K141: 0.0008987958215 | L141: 0.001556791244 | M141: 0.113547801 | N141: 0.8252495578 | O141: 0 | P141: 0.2056157145 | Q141: 0.0943200662 | R141: 0.02771525376 | S141: 0.004237072569
C142: 6 | D142: =OFFSET(D$76,MATCH($C142,$N$101:$N$107,0)*3,0) -> Total Fixed Operating Cost = $15,331K | E142: 1.564305812 | F142: 0 | G142: 0.001560338261
H143: =OFFSET(H$76,MATCH($C142,$N$101:$N$107,0)*3,0) -> 0.1435766003 | I143: 0.121372203 | J143: 0.01576735584 | K143: 0.0008987958215 | L143: 0.001556791244 | M143: 0.1255002011 | N143: 0.8252495578 | O143: 0 | P143: 0.2056157145 | Q143: 0.0943200662 | R143: 0.0277717919 | S143: 0.004237072569
C145: 7 | D145: =OFFSET(D$76,MATCH($C145,$N$101:$N$107,0)*3-2,0) -> Utilities Consumption (% of baseline) = 95% | E145: 1.555924251 | F145: 0 | G145: 0.001560338261
H146: =OFFSET(H$76,MATCH($C145,$N$101:$N$107,0)*3-2,0) -> 0.1435766003 | I146: 0.121372203 | J146: 0.01565504804 | K146: 0.0008987958215 | L146: 0.001556791244 | M146: 0.1195240011 | N146: 0.8252495578 | O146: 0 | P146: 0.203361589 | Q146: 0.0943200662 | R146: 0.02773286377 | S146: 0.004237072569
C147: 7 | D147: =OFFSET(D$76,MATCH($C147,$N$101:$N$107,0)*3,0) -> Utilities Consumption (% of baseline) = 105% | E147: 1.560515323 | F147: 0 | G147: 0.001560338261
H148: =OFFSET(H$76,MATCH($C147,$N$101:$N$107,0)*3,0) -> 0.1435766003 | I148: 0.121372203 | J148: 0.01571655088 | K148: 0.0008987958215 | L148: 0.001556791244 | M148: 0.1195240011 | N148: 0.8252495578 | O148: 0 | P148: 0.20786984 | Q148: 0.0943200662 | R148: 0.02775418189 | S148: 0.004237072569
B152: Parado chart
D153: Unsorted
D154: Title | E154: Unsorted values | F154: Unsorted Ranking | G154: Sorted ranking | H154: Sorted titles | I154: Sorted values | K154: Grayed Titles | L154: Revenues $/kg H2 | M154: Expenses $/kg H2 | N154: Colored titles
B155: Revenues | C155: 1 | D155: Cost of Hydrogen | E155: =+K48+C155/10000000000 -> 1.558219787 | F155: =+RANK(E155,$E$155:$E$157) -> 1 | G155: 1 | H155: =OFFSET($D$154,MATCH($G155,$F$155:$F$157,0),0) -> Cost of Hydrogen | I155: =OFFSET($E$154,MATCH($G155,$F$155:$F$157,0),0)-OFFSET($C$154,MATCH($G155,$F$155:$F$157,0),0)/10000000000 -> 1.558219787 | K155: =+H155 -> Cost of Hydrogen | L155: =+I155 -> 1.558219787 | N155: =+IF(L155>0,K155,"") -> Cost of Hydrogen
C156: 2 | D156: =+F110 -> Byproduct Sales | E156: =+L48+C156/10000000000 -> 2e-10 | F156: =+RANK(E156,$E$155:$E$157) -> 3 | G156: 2 | H156: =OFFSET($D$154,MATCH($G156,$F$155:$F$157,0),0) -> Salvage Value | I156: =OFFSET($E$154,MATCH($G156,$F$155:$F$157,0),0)-OFFSET($C$154,MATCH($G156,$F$155:$F$157,0),0)/10000000000 -> 0.001560338261 | K156: =+H156 -> Salvage Value | L156: =+I156 -> 0.001560338261 | N156: =+IF(L156>0,K156,"") -> Salvage Value
C157: 3 | D157: =+G110 -> Salvage Value | E157: =+M48+C157/10000000000 -> 0.001560338561 | F157: =+RANK(E157,$E$155:$E$157) -> 2 | G157: 3 | H157: =OFFSET($D$154,MATCH($G157,$F$155:$F$157,0),0) -> Byproduct Sales | I157: =OFFSET($E$154,MATCH($G157,$F$155:$F$157,0),0)-OFFSET($C$154,MATCH($G157,$F$155:$F$157,0),0)/10000000000 -> 0 | K157: Byproduct Sales | L157: 0
N158: =+IF(L158>0.01,K158,"") -> 
B159: Expenses | C159: 1 | D159: =+H110 -> Initial Equity Depreciable Capital | E159: =+N48+C159/10000000000 -> 0.1435766004 | F159: =+RANK(E159,$E$159:$E$170) -> 3 | G159: 1 | H159: =OFFSET($D$158,MATCH($G159,$F$159:$F$170,0),0) -> Feedstock Cost | I159: =OFFSET($E$158,MATCH($G159,$F$159:$F$170,0),0)-OFFSET($C$158,MATCH($G159,$F$159:$F$170,0),0)/10000000000 -> 0.8252495578 | K159: Feedstock Cost | M159: =+I159 -> 0.8252495578 | N159: =+IF(M159>0,K159,"") -> Feedstock Cost
C160: =+C159+1 -> 2 | D160: =+I110 -> Yearly Replacement Costs | E160: =+O48+C160/10000000000 -> 0.1213722032 | F160: 4 | G160: 2 | H160: Other Variable Operating Costs | I160: 0.2056157145 | K160: Other Variable Operating Costs | M160: =+I160 -> 0.2056157145 | N160: =+IF(M160>0,K160,"") -> Other Variable Operating Costs
C161: =+C160+1 -> 3 | D161: =+J110 -> Cash for Working Capital Reserve | E161: =+P48+C161/10000000000 -> 0.01568579976 | F161: 8 | G161: 3 | H161: Initial Equity Depreciable Capital | I161: 0.1435766003 | K161: Initial Equity Depreciable Capital | M161: 0.1435766003 | N161: Initial Equity Depreciable Capital
C162: 4 | D162: =+K110 -> Other Non-Depreciable Capital Costs | E162: =+Q48+C162/10000000000 -> 0.0008987962215 | F162: 11 | G162: 4 | H162: Yearly Replacement Costs | I162: 0.121372203 | K162: Yearly Replacement Costs | M162: 0.121372203 | N162: Yearly Replacement Costs
C163: 5 | D163: =+L110 -> Decommissioning Costs | E163: =+R48+C163/10000000000 -> 0.001556791744 | F163: 10 | G163: 5 | H163: Fixed Operating Cost | I163: 0.1195240011 | K163: Fixed Operating Cost | M163: 0.1195240011 | N163: Fixed Operating Cost
C164: 6 | D164: =+M110 -> Fixed Operating Cost | E164: =+S48+C164/10000000000 -> 0.1195240017 | F164: 5 | G164: 6 | H164: Debt Interest | I164: 0.0943200662 | K164: Debt Interest | M164: 0.0943200662 | N164: Debt Interest
C165: 7 | D165: =+N110 -> Feedstock Cost | E165: =+T48+C165/10000000000 -> 0.8252495585 | F165: 1 | G165: 7 | H165: Taxes | I165: 0.02774352283 | K165: Taxes | M165: 0.02774352283 | N165: Taxes
C166: 8 | D166: =+O110 -> Other Raw Material Cost | E166: =+U48+C166/10000000000 -> 8e-10 | F166: 12 | G166: 8 | H166: Cash for Working Capital Reserve | I166: 0.01568579946 | K166: Cash for Working Capital Reserve | M166: 0.01568579946 | N166: Cash for Working Capital Reserve
C167: 9 | D167: =+P110 -> Other Variable Operating Costs | E167: =+V48+C167/10000000000 -> 0.2056157154 | F167: 2 | G167: 9 | H167: Principal Payment | I167: 0.004237072569 | K167: Principal Payment | M167: 0.004237072569 | N167: Principal Payment
C168: 10 | D168: =+Q110 -> Debt Interest | E168: =+W48+C168/10000000000 -> 0.0943200672 | F168: 6 | G168: 10 | H168: Decommissioning Costs | I168: 0.001556791244 | K168: Decommissioning Costs | M168: 0.001556791244 | N168: Decommissioning Costs
C169: 11 | D169: =+R110 -> Taxes | E169: =+X48+C169/10000000000 -> 0.02774352393 | F169: 7 | G169: 11 | H169: Other Non-Depreciable Capital Costs | I169: 0.0008987958215 | K169: Other Non-Depreciable Capital Costs | M169: 0.0008987958215 | N169: Other Non-Depreciable Capital Costs
C170: 12 | D170: =+S110 -> Principal Payment | E170: =+Y48+C170/10000000000 -> 0.004237073769 | F170: 9 | G170: 12 | H170: Other Raw Material Cost | I170: 0 | K170: Other Raw Material Cost | M170: 0
K171: Total | L171: =+SUM(L155:L170) -> 1.559780125 | M171: =+SUM(M155:M170) -> 1.559780125 | N171: =+IF(M171<0.01,K171,"") -> 
B174: Waterfall Chart | D174: Values | E174: Base | F174: Decrease | G174: Increase
B175: 0 | C175: Baseline | D175: =+K51 -> 1.558219787 | E175: =+D175 -> 1.558219787
B176: 1 | C176: =OFFSET($B$50,0,MATCH($B176,$C$72:$I$72,0))& IF(OFFSET($F$2,MATCH($B176,$C$72:$I$72,0),0)<1, " = "&OFFSET($F$2,MATCH($B176,$C$72:$I$72,0),0)*100-100, " = +"&OFFSET($F$2,MATCH($B176,$C$72:$I$72,0),0)*100-100) &"%" -> Feedstock consumption (% of most likely value) = -5% | D176: =+K66 -> 1.508081467 | E176: =+E175+G175-F176 -> 1.508081467 | F176: =+MAX(D175-D176,0) -> 0.05013831933 | G176: =+MAX(D176-D175,0) -> 0
B177: 2 | C177: =OFFSET($B$50,0,MATCH($B177,$C$72:$I$72,0))& IF(OFFSET($F$2,MATCH($B177,$C$72:$I$72,0),0)<1, " = "&OFFSET($F$2,MATCH($B177,$C$72:$I$72,0),0)*100-100, " = +"&OFFSET($F$2,MATCH($B177,$C$72:$I$72,0),0)*100-100) &"%" -> Operating capacity factor = +5% | D177: =+K67 -> 1.484945598 | E177: 1.484945598 | F177: =+MAX(D176-D177,0) -> 0.02313586894 | G177: =+MAX(D177-D176,0) -> 0
B178: 3 | C178: =OFFSET($B$50,0,MATCH($B178,$C$72:$I$72,0))& IF(OFFSET($F$2,MATCH($B178,$C$72:$I$72,0),0)<1, " = "&OFFSET($F$2,MATCH($B178,$C$72:$I$72,0),0)*100-100, " = +"&OFFSET($F$2,MATCH($B178,$C$72:$I$72,0),0)*100-100) &"%" -> Total capital investment ($) = -5% | D178: =+K68 -> 1.469503256 | E178: 1.469503256 | F178: =+MAX(D177-D178,0) -> 0.01544234259 | G178: =+MAX(D178-D177,0) -> 0
B179: 4 | C179: =OFFSET($B$50,0,MATCH($B179,$C$72:$I$72,0))& IF(OFFSET($F$2,MATCH($B179,$C$72:$I$72,0),0)<1, " = "&OFFSET($F$2,MATCH($B179,$C$72:$I$72,0),0)*100-100, " = +"&OFFSET($F$2,MATCH($B179,$C$72:$I$72,0),0)*100-100) &"%" -> Total fixed operating cost ($/year) = -5% | D179: =+K69 -> 1.463900509 | E179: 1.463900509 | F179: =+MAX(D178-D179,0) -> 0.005602746848 | G179: =+MAX(D179-D178,0) -> 0
B180: 5 | C180: =OFFSET($B$50,0,MATCH($B180,$C$72:$I$72,0))& IF(OFFSET($F$2,MATCH($B180,$C$72:$I$72,0),0)<1, " = "&OFFSET($F$2,MATCH($B180,$C$72:$I$72,0),0)*100-100, " = +"&OFFSET($F$2,MATCH($B180,$C$72:$I$72,0),0)*100-100) &"%" -> Utilities consumption (% of most likely value) = -5% | D180: =+K70 -> 1.461604973 | E180: 1.461604973 | F180: =+MAX(D179-D180,0) -> 0.002295536001 | G180: =+MAX(D180-D179,0) -> 0
B181: 6 | C181: Adjusted | D181: =+K70 -> 1.461604973 | E181: 1.461604973
B189: Min factor | C189: =+MIN(F3:G3) -> 0.95 | D189: =+MIN(F4:G4) -> 0.95 | E189: =+MIN(F5:G5) -> 0.95 | F189: =+MIN(F6:G6) -> 0.95 | G189: =+MIN(F7:G7) -> 0.95 | H189: =+MIN(F8:G8) -> 0.95 | I189: =+MIN(F9:G9) -> 0.95
B190: Nominal factor | C190: 1 | D190: 1 | E190: 1 | F190: 1 | G190: 1 | H190: 1 | I190: 1
B191: Max factor | C191: =+MAX(F3:G3) -> 1.05 | D191: =+MAX(F4:G4) -> 1.05 | E191: =+MAX(F5:G5) -> 1.05 | F191: =+MAX(F6:G6) -> 1.05 | G191: =+MAX(F7:G7) -> 1.05 | H191: =+MAX(F8:G8) -> 1.05 | I191: =+MAX(F9:G9) -> 1.05
B194: Variable | C194: =+MATCH(R12,C50:Y50,0) -> 9
B195: Min | C195: =+MIN(OFFSET($B$251:$B$2250,0,C194)) -> 1.488931923
B196: max | C196: =+MAX(OFFSET($B$251:$B$2250,0,C194)) -> 1.632375007
B197: max-min | C197: =+C196-C195 -> 0.1434430839
B198: gain | C198: =+OFFSET(B199,0,C194) -> 1
B199: gain | C199: =+C3 -> 0.9 | D199: =+C4 -> 379387 | E199: =+C5 -> 0.08 | F199: =+C6 -> 1 | G199: =+C7 -> 1 | H199: =+C8 -> 484210221.7 | I199: =+C9 -> 14601223.6 | K199: 1 | L199: 1 | M199: 1 | N199: 1 | O199: 1 | P199: 1 | Q199: 1 | R199: 1 | S199: 1 | T199: 1 | U199: 1 | V199: 1 | W199: 1 | X199: 1
B200: Range to plot
B201: Min | C201: Max | E201: Min*gain | F201: Max*gain | G201: Average | H201: Probability | I201: Cumulative probability
B202: =+C195 -> 1.488931923 | C202: =+B202+($C$197/20) -> 1.496104077 | D202: =+COUNTIFS(OFFSET(B$251:B$2250,0,$C$194),">="&$B202, OFFSET(B$251:B$2250,0,$C$194),"<="&$C202) -> 6 | E202: =+B202*$C$198 -> 1.488931923 | F202: =+C202*$C$198 -> 1.496104077 | G202: =+AVERAGE(E202:F202) -> 1.492518 | H202: =+D202/$D$223 -> 0.003 | I202: =+H202 -> 0.003
B203: =+C202 -> 1.496104077 | C203: =+B203+($C$197/20) -> 1.503276232 | D203: 17 | E203: =+B203*$C$198 -> 1.496104077 | F203: =+C203*$C$198 -> 1.503276232 | G203: =+AVERAGE(E203:F203) -> 1.499690155 | H203: =+D203/$D$223 -> 0.0085 | I203: =+I202+H203 -> 0.0115
B204: =+C203 -> 1.503276232 | C204: 1.510448386 | D204: 29 | E204: 1.503276232 | F204: 1.510448386 | G204: 1.506862309 | H204: 0.0145 | I204: =+I203+H204 -> 0.026
B205: 1.510448386 | C205: 1.51762054 | D205: 50 | E205: 1.510448386 | F205: 1.51762054 | G205: 1.514034463 | H205: 0.025 | I205: 0.051
B206: 1.51762054 | C206: 1.524792694 | D206: 84 | E206: 1.51762054 | F206: 1.524792694 | G206: 1.521206617 | H206: 0.042 | I206: 0.093
B207: 1.524792694 | C207: 1.531964848 | D207: 108 | E207: 1.524792694 | F207: 1.531964848 | G207: 1.528378771 | H207: 0.054 | I207: 0.147
B208: 1.531964848 | C208: 1.539137003 | D208: 153 | E208: 1.531964848 | F208: 1.539137003 | G208: 1.535550926 | H208: 0.0765 | I208: 0.2235
B209: 1.539137003 | C209: 1.546309157 | D209: 196 | E209: 1.539137003 | F209: 1.546309157 | G209: 1.54272308 | H209: 0.098 | I209: 0.3215
B210: 1.546309157 | C210: 1.553481311 | D210: 207 | E210: 1.546309157 | F210: 1.553481311 | G210: 1.549895234 | H210: 0.1035 | I210: 0.425
B211: 1.553481311 | C211: 1.560653465 | D211: 244 | E211: 1.553481311 | F211: 1.560653465 | G211: 1.557067388 | H211: 0.122 | I211: 0.547
B212: 1.560653465 | C212: 1.567825619 | D212: 191 | E212: 1.560653465 | F212: 1.567825619 | G212: 1.564239542 | H212: 0.0955 | I212: 0.6425
B213: 1.567825619 | C213: 1.574997774 | D213: 192 | E213: 1.567825619 | F213: 1.574997774 | G213: 1.571411696 | H213: 0.096 | I213: 0.7385
B214: 1.574997774 | C214: 1.582169928 | D214: 170 | E214: 1.574997774 | F214: 1.582169928 | G214: 1.578583851 | H214: 0.085 | I214: 0.8235
B215: 1.582169928 | C215: 1.589342082 | D215: 113 | E215: 1.582169928 | F215: 1.589342082 | G215: 1.585756005 | H215: 0.0565 | I215: 0.88
B216: 1.589342082 | C216: 1.596514236 | D216: 97 | E216: 1.589342082 | F216: 1.596514236 | G216: 1.592928159 | H216: 0.0485 | I216: 0.9285
B217: 1.596514236 | C217: 1.60368639 | D217: 70 | E217: 1.596514236 | F217: 1.60368639 | G217: 1.600100313 | H217: 0.035 | I217: 0.9635
B218: 1.60368639 | C218: 1.610858545 | D218: 38 | E218: 1.60368639 | F218: 1.610858545 | G218: 1.607272467 | H218: 0.019 | I218: 0.9825
B219: 1.610858545 | C219: 1.618030699 | D219: 23 | E219: 1.610858545 | F219: 1.618030699 | G219: 1.614444622 | H219: 0.0115 | I219: 0.994
B220: 1.618030699 | C220: 1.625202853 | D220: 6 | E220: 1.618030699 | F220: 1.625202853 | G220: 1.621616776 | H220: 0.003 | I220: 0.997
B221: 1.625202853 | C221: =+B221+($C$197/20)+0.000001 -> 1.632376007 | D221: 6 | E221: 1.625202853 | F221: 1.632376007 | G221: 1.62878943 | H221: 0.003 | I221: 1
F222: 0 | G222: 0
B223: Variable to plot | D223: =+SUM(D202:D221) -> 2000
B224: =+TRANSPOSE(Sensitivity_output) -> Cost of hydrogen ($/kg)
B225: Revenue from byproduct sales ($/kg)
B226: Salvage value ($/kg)
B227: Initial equity depreciable capital ($/kg)
B228: Yearly replacement costs ($/kg)
B229: Cash from working capital reserve ($/kg)
B230: Other non-depreciable capital costs ($/kg)
B231: Decommissioning costs ($/kg)
B232: Fixed operating cost ($/kg)
B233: Feedstock cost ($/kg)
B234: Other raw material cost ($/kg)
B235: Other variable operating costs ($/kg)
B236: Debt interest ($/kg)
B237: Taxes ($/kg)
B238: Principal payment ($/kg)
B239: =+TRANSPOSE(C50:I50) -> Operating capacity factor
B240: Plant design capacity (kg of H2/day)
B241: After-tax real IRR (%)
B242: Feedstock consumption (% of most likely value)
B243: Utilities consumption (% of most likely value)
... 2004 more rows

Sheet Cash Flow Analysis
A2: TABLE OF CONTENTS
A3: DCF Calculations
A4: Yearly Cash Flow Calculations
A5: Specific Item Cost Calculation
A6: Feedstock, Utility, and Byproduct Cost Information
A15: DCF CALCULATION INPUTS: | D15: DCF CALCULATION OUTPUTS:
A16: Process | D16: ="Hydrogen Cost (Year "&TEXT(ref_year,"0")&" Real $/kg)" -> Hydrogen Cost (Year 2016 Real $/kg) | E16: =H2_price_nominal/INFLATION_FACTOR -> 1.558219787
A17: Actual Hydrogen Produced (kg/yr) | B17: =output_kgyear -> 124628629.5 | D17: Hydrogen Cost (Start-up Year Nominal $/kg) | E17: =+SUM(X57:AB57)/AC57*(1+inflation_rate)^construct -> 1.529165639
A18: Actual Hydrogen Energy Produced (MMBtu(LHV)/yr) | B18: =B17*H2_LHV_MJ_p_kg/1000/mmBTU_to_GJ -> 14200769.41 | D18: After Tax Real IRR | E18: =((E20+1)/(1+B30))-1 -> 0.08
A19: Actual Hydrogen Energy Produced (MJ(LHV)/yr) | B19: =B17*H2_LHV_MJ_p_kg -> 1.498181173e+10 | D19: Pre Tax Real IRR | E19: =((E21+1)/(1+B30))-1 -> 0.09871618731
A20: Design Capacity (kg/day) | B20: =design_cap -> 379387 | D20: After Tax Nominal IRR | E20: =IRR(AA65:AA113) -> 0.10052
A21: Design Capacity (kg/yr) | B21: =B20*365 -> 138476255 | D21: Pre Tax Nominal IRR | E21: =IRR(AC65:AC113) -> 0.1195917949
A22: Capacity Factor | B22: =cap_factor -> 0.9 | D22: After Tax Real Capital Recovery Factor | E22: =(real_irr*(1+real_irr)^anal_period)/(((1+real_irr)^anal_period)-1) -> 0.0838601615
D23: After Tax Nominal Capital Recovery Factor | E23: =(nominal_irr*(1+nominal_irr)^anal_period)/(((1+nominal_irr)^anal_period)-1) -> 0.1027476886
A24: Financial | D24: Total Real Fixed Charge Rate | E24: =(E22*(1-total_tax_rate*INDEX(Depreciation!B12:H37,MATCH("NPV - Real IRR",Depreciation!B12:B37,0),MATCH(depr_length,recovery_period,0))))/(1-total_tax_rate) -> 0.09821253181
A25: Start-up Year | B25: =startup_year -> 2015 | D25: Total Nominal Fixed Charge Rate | E25: =(E23*(1-total_tax_rate*INDEX(Depreciation!B12:H37,MATCH("NPV - Nominal IRR",Depreciation!B12:B37,0),MATCH(depr_length,recovery_period,0))))/(1-total_tax_rate) -> 0.1226581394
A26: After-Tax Real IRR | B26: =real_irr -> 0.08 | D26: NPV | E26: =NPV(nominal_irr,AA65:AA113) -> 1.307466814e-06
A27: After-Tax Nominal IRR | B27: =((1+B26)*(1+B30))-1 -> 0.10052
A28: Analysis Period (yrs) | B28: =anal_period -> 40
A29: Plant Life (yrs) | B29: =plant_life -> 40
A30: Inflation Rate | B30: =inflation_rate -> 0.019
A31: Debt Financing | B31: =100%-equity -> 0.6
A32: Equity Financing | B32: =equity -> 0.4
A33: Total Tax Rate | B33: =total_tax_rate -> 0.2574
A35: Cost of Debt Financing
A36: Debt Financing Period (yrs) | B36: =debt_period -> 0
A37: Interest Rate on Debt | B37: =debt_interest -> 0.037
A39: Construction/Start Up Information
A40: Construction Period (yrs) | B40: =construct -> 3
A41: Start-up Period (yrs) | B41: =start_time -> 1
A42: % Revenue During Start-up | B42: =percnt_revs -> 0.5
A43: % Variable Costs During Start-up | B43: =percnt_var -> 0.75
A44: % Fixed Costs During Start-up | B44: =percnt_fixed -> 0.75
A46: Depreciation Parameters
A47: Depreciation Type | B47: =depr_type -> MACRS
A48: Depreciation Period (yrs) | B48: =depr_length -> 20
A50: Plant Costs (Inflated to Start-up Year $)
A51: Total Depreciable Capital Costs | B51: =(total_cap-non_dep_cap)*INFLATION_FACTOR -> 474101567.7
A52: Total Non-Depreciable Capital Costs | B52: =non_dep_cap*INFLATION_FACTOR -> 1080200.379
A53: Total Capital Investment | B53: =SUM(B51:B52) -> 475181768.1 | W53: Closed form formulas for calculating price of hydrogen.
A54: Decommissioning | B54: =decom_percent*depr_cap_infl -> 47410156.77 | X54: Capital Costs | Y54: Depr | Z54: Principal | AA54: Op costs | AB54: Tax incentives | AC54: H2 sales (kg)
A55: Salvage Value | B55: =salvage_perct*B53 -> 47518176.81 | W55: Discounted values | X55: =-SUM(H116:K116) -> 319779524 | Y55: =-U116 -> 233678624.8 | Z55: =-Z116 -> 4812676.067 | AA55: =-SUM(L116:S116) -> 1413798249 | AB55: =+AF116 -> 0 | AC55: =+AE116 -> 1224665447
A56: Fixed Operating Costs ($/year) | B56: =fixed*INFLATION_FACTOR -> 14328973.11 | W56: Tax coefficient | X56: 1 | Y56: =-total_tax_rate -> -0.2574 | Z56: 1 | AA56: =1-total_tax_rate -> 0.7426 | AB56: -1 | AC56: =1-total_tax_rate -> 0.7426
A57: Other Raw Material ($/year) | B57: =total_other_raw*INFLATION_FACTOR -> 0 | W57: LCOE cost contribution factors | X57: =+X55*X56 -> 319779524 | Y57: -60148878.02 | Z57: 4812676.067 | AA57: =+AA55*AA56 -> 1049886580 | AB57: =+AB55*AB56 -> 0 | AC57: =+AC55*AC56 -> 909436561
A58: Other Variable O&M Costs (not including tax credits and incentives) | B58: =(var_misc+royalties+operator_profit+CO2_OandMcost+waste_treat+solidwaste_treat)*INFLATION_FACTOR -> 15822758.95
W59: Target after-tax nominal IRR | X59: =+(1+real_irr)*(1+inflation_rate)-1 -> 0.10052
W60: =+D16 -> Hydrogen Cost (Year 2016 Real $/kg) | X60: =+SUM(X57:AB57)/AC57*(1+inflation_rate)^construct/INFLATION_FACTOR -> 1.558219787
A63: CASH FLOW ANALYSIS
A64: Actual Year (beginning of year) | B64: Analysis Year | C64: Operation Year | D64: Plant Life | E64: Inflation Price Increase Factor | F64: Revenue from Hydrogen Sales | G64: Portion of Initial Depreciable Capital Investment Financed with Debt (value ONLY used in debt financing calculations) | H64: Initial Equity Depreciable Capital | I64: Yearly Replacement Costs | J64: Cash from Working Capital Reserve | K64: Other Non-Depreciable Capital Costs | L64: Salvage Value | M64: Decommissioning Costs | N64: Fixed Operating Cost | O64: Feedstock Cost | P64: Other Raw Material Cost | Q64: Revenue from Byproduct Sales | R64: Other Variable Operating Costs | S64: Debt Interest | T64: Pre-Depreciation Income | U64: Depreciation Charge | V64: Taxable Income | W64: Tax Rate | X64: Total Taxes | Y64: After-Tax Income | Z64: Principal Payment | AA64: After-Tax Post-Depreciation Cash Flow | AB64: Cumulative Cash Flow | AC64: Pre-Tax Cash Flow | AE64: H2 sales (kg/year) | AF64: Tax Credit
A65: =startup_year-construct -> 2012 | B65: 1 | C65: =IF(construct=0,1,-construct) -> -3 | D65: =IF(C65="","",IF(C65<=plant_life,C65,IF(D64=plant_life,1,D64+1))) -> -3 | E65: =IF(C65="","",(1+inflation_rate)^(A65-$B$25)) -> 0.9450993141 | F65: =IF(C65="","",IF(C65<0,0,IF(AND(C65=1,start_time<1),E65*(H2_price_nominal*output_kgyear*start_time*percnt_revs+H2_price_nominal*output_kgyear*(1-start_time)),IF(C65<=start_time,H2_price_nominal*E65*output_kgyear*percnt_revs,H2_price_nominal*output_kgyear*E65)))) -> 0 | G65: =-$B$31*depr_cap_infl*E65 -> -268843839.9 | H65: =IF(C65<0,-E65*equity*depr_cap_infl*percent_cap1,IF(C65=1,-E65*equity*depr_cap_infl,0)) -> -14338338.13 | I65: =IF(OR(C65<0,C65=""),"",-E65*INDEX('Replacement Costs'!$A$16:$H$57,MATCH(C65,'Replacement Costs'!$C$16:$C$57,0),MATCH("Total Yearly Replacement Costs",'Replacement Costs'!$A$16:$H$16,0))) ->  | J65: =IF(AND(C65>=1,C65<anal_period),WorkingCap*SUM(N65:R65)-WorkingCap*SUM(N64:R64),0) -> 0 | K65: =IF(C65=-construct,-E65*non_dep_infl,"") -> -1020896.638 | L65: =IF(C65=anal_period,salvage*E65,"") ->  | M65: =IF(D65=plant_life,-E65*decom,"") ->  | N65: =IF(C65="","",IF(C65<0,0,IF(AND(C65=1,start_time<1),-(inflated_fixed*percnt_fixed*start_time+(inflated_fixed*(1-start_time))),IF(C65<=start_time,-inflated_fixed*percnt_fixed*E65,-inflated_fixed*E65)))) -> 0 | O65: =IF(C65="","",IF(C65<0,0,IF(AND(C65=1,start_time<1),-(SUM(B139:E139)*output_kgyear*E65*percnt_var*start_time+SUM(B139:E139)*output_kgyear*E65*(1-start_time)),IF(C65<=start_time,-SUM(B139:E139)*output_kgyear*E65*percnt_var,-SUM(B139:E139)*output_kgyear*E65)))) -> 0 | P65: =IF(C65="","",IF(C65<0,0,IF(AND(C65=1,start_time<1),-(inflated_otherraw*E65*percnt_var*start_time+inflated_otherraw*E65*(1-start_time)),IF(C65<=start_time,-inflated_otherraw*E65*percnt_var,-(inflated_otherraw*E65))))) -> 0 | Q65: =IF(C65="","",IF(C65<0,0,IF(AND(C65=1,start_time<1),SUM(K139:N139,T139:V139)*output_kgyear*E65*percnt_revs*start_time+SUM(K139:N139,T139:V139)*output_kgyear*E65*(1-start_time),IF(C65<=start_time,SUM(K139:N139,T139:V139)*output_kgyear*E65*percnt_revs,SUM(K139:N139,T139:V139)*output_kgyear*E65)))) -> 0 | R65: =IF(C65="","",IF(C65<0,0,IF(AND(C65=1,start_time<1),-((SUM(F139:J139,P139:R139)*output_kgyear+inflated_othervar)*E65*percnt_var*start_time+(SUM(F139:J139,P139:R139)*output_kgyear+inflated_othervar)*E65*(1-start_time)),IF(C65<=start_time,-(SUM(F139:J139,P139:R139)*output_kgyear+inflated_othervar)*E65*percnt_var,-E65*(SUM(F139:J139,P139:R139)*output_kgyear+inflated_othervar))))) -> 0 | S65: =IF(B65="","",IF($B$31=0,"",-'Debt Financing Calculations'!E14)) -> -9947222.075 | T65: =IF(C65="","",F65+SUM(L65:S65)) -> -9947222.075 | U65: =IF(C65="","",IF(C65<-1,0,IF(C65=anal_period,-LOOKUP(C65,depr_yr,depr_cost)-Depreciation!$C$141-Depreciation!$B$166,-LOOKUP(C65,depr_yr,depr_cost)))) -> 0 | V65: =IF(C65="","",SUM(T65:U65)) -> -9947222.075 | W65: =IF(C65="","",$B$33) -> 0.2574 | X65: =IF(C65="","",tax_credit-(V65*W65 +Upstream_CO2_taxpYear + Proc_CO2_taxpYear)) -> 2560414.962 | Y65: =IF(C65="","",SUM(T65,X65)) -> -7386807.113 | Z65: =IF(C65="","",IF($B$31=0,"",-'Debt Financing Calculations'!F14)) -> 0 | AA65: =IF(C65="","",SUM(H65,I65,J65,K65,T65,X65,Z65)) -> -22746041.88 | AB65: =AA65 -> -22746041.88 | AC65: =IF(C65="","",SUM(H65,I65,J65,K65,T65,Z65)) -> -25306456.84 | AE65: =IF(C65="","",IF(C65<0,0,IF(AND(C65=1,start_time<1),(output_kgyear*start_time*percnt_revs+output_kgyear*(1-start_time)),IF(C65<=start_time,output_kgyear*percnt_revs,output_kgyear)))) -> 0 | AF65: =IF(C65="","",tax_credit) -> 0
A66: =IF(B66<>"",A65+1,"") -> 2013 | B66: =IF(MAX($B$65:B65)<(construct+anal_period),B65+1,"") -> 2 | C66: =IF(B66="","",IF(C65=-1,1,C65+1)) -> -2 | D66: -2 | E66: 0.9630562011 | F66: 0 | H66: =IF(C66<0,-E66*equity*depr_cap_infl*percent_cap2,0) -> -109580749.1 | I66: =IF(OR(C66<0,C66=""),"",-E66*INDEX('Replacement Costs'!$A$16:$H$57,MATCH(C66,'Replacement Costs'!$C$16:$C$57,0),MATCH("Total Yearly Replacement Costs",'Replacement Costs'!$A$16:$H$16,0))) ->  | J66: =IF(AND(C66>=1,C66<anal_period),WorkingCap*SUM(N66:R66)-WorkingCap*SUM(N65:R65),IF(C66<0,0,IF(B66="","",-SUM(J$65:J65)))) -> 0 | N66: 0 | O66: 0 | P66: 0 | Q66: 0 | R66: 0 | S66: =IF(B66="","",IF($B$31=0,"",-'Debt Financing Calculations'!E15)) -> -9947222.075 | T66: -9947222.075 | U66: =IF(C66="","",IF(C66<-1,0,IF(C66=anal_period,-LOOKUP(C66,depr_yr,depr_cost)-Depreciation!$C$141-Depreciation!$B$166,-LOOKUP(C66,depr_yr,depr_cost)))) -> 0 | V66: -9947222.075 | W66: 0.2574 | X66: 2560414.962 | Y66: -7386807.113 | Z66: =IF(C66="","",IF($B$31=0,"",-'Debt Financing Calculations'!F15)) -> 0 | AA66: -116967556.2 | AB66: =IF(C66="","",AB65+AA66) -> -139713598.1 | AC66: -119527971.2 | AE66: 0 | AF66: 0
A67: 2014 | B67: =IF(MAX($B$65:B66)<(construct+anal_period),B66+1,"") -> 3 | C67: -1 | D67: -1 | E67: 0.9813542689 | F67: 0 | H67: =IF(C67<0,-E67*equity*depr_cap_infl*percent_cap3,0) -> -59553484.46 | I67: =IF(OR(C67<0,C67=""),"",-E67*INDEX('Replacement Costs'!$A$16:$H$57,MATCH(C67,'Replacement Costs'!$C$16:$C$57,0),MATCH("Total Yearly Replacement Costs",'Replacement Costs'!$A$16:$H$16,0))) ->  | J67: =IF(AND(C67>=1,C67<anal_period),WorkingCap*SUM(N67:R67)-WorkingCap*SUM(N66:R66),IF(C67<0,0,IF(B67="","",-SUM(J$65:J66)))) -> 0 | N67: 0 | O67: 0 | P67: 0 | Q67: 0 | R67: 0 | S67: =IF(B67="","",IF($B$31=0,"",-'Debt Financing Calculations'!E16)) -> -9947222.075 | T67: -9947222.075 | U67: =IF(C67="","",IF(C67<-1,0,IF(C67=anal_period,-LOOKUP(C67,depr_yr,depr_cost)-Depreciation!$C$141-Depreciation!$B$166,-LOOKUP(C67,depr_yr,depr_cost)))) -> 0 | V67: -9947222.075 | W67: 0.2574 | X67: 2560414.962 | Y67: -7386807.113 | Z67: =IF(C67="","",IF($B$31=0,"",-'Debt Financing Calculations'!F16)) -> 0 | AA67: -66940291.57 | AB67: -206653889.7 | AC67: -69500706.53 | AE67: 0 | AF67: 0
A68: 2015 | B68: =IF(MAX($B$65:B67)<(construct+anal_period),B67+1,"") -> 4 | C68: 1 | D68: 1 | E68: 1 | F68: 95288908.96 | H68: =IF(C68<0,-E68*equity*depr_cap_infl*percent_cap4,0) -> 0 | I68: =IF(OR(C68<0,C68=""),"",-E68*INDEX('Replacement Costs'!$A$16:$H$57,MATCH(C68,'Replacement Costs'!$C$16:$C$57,0),MATCH("Total Yearly Replacement Costs",'Replacement Costs'!$A$16:$H$16,0))) -> -2370507.838 | J68: =IF(AND(C68>=1,C68<anal_period),WorkingCap*SUM(N68:R68)-WorkingCap*SUM(N67:R67),IF(C68<0,0,IF(B68="","",-SUM(J$65:J67)))) -> -12356027.38 | N68: -10746729.83 | O68: -53359142.56 | P68: 0 | Q68: 0 | R68: -18267643.46 | S68: =IF(B68="","",IF($B$31=0,"",-'Debt Financing Calculations'!E17)) -> -9947222.075 | T68: 2968171.026 | U68: =IF(C68="","",IF(C68<-1,0,IF(C68=anal_period,-LOOKUP(C68,depr_yr,depr_cost)-Depreciation!$C$141-Depreciation!$B$166,-LOOKUP(C68,depr_yr,depr_cost)))) -> -17050759.48 | V68: -14082588.45 | W68: 0.2574 | X68: 3624858.268 | Y68: =IF(C68="","",SUM(T68,X68)) -> 6593029.293 | Z68: =IF(C68="","",IF($B$31=0,"",-'Debt Financing Calculations'!F17)) -> 0 | AA68: -8133505.924 | AB68: -214787395.6 | AC68: -11758364.19 | AE68: 62314314.75 | AF68: 0
A69: 2016 | B69: =IF(MAX($B$65:B68)<(construct+anal_period),B68+1,"") -> 5 | C69: 2 | D69: 2 | E69: 1.019 | F69: 194198796.5 | H69: =IF(C69="","",0) -> 0 | I69: =IF(OR(C69<0,C69=""),"",-E69*INDEX('Replacement Costs'!$A$16:$H$57,MATCH(C69,'Replacement Costs'!$C$16:$C$57,0),MATCH("Total Yearly Replacement Costs",'Replacement Costs'!$A$16:$H$16,0))) -> -15559809.27 | J69: =IF(AND(C69>=1,C69<anal_period),WorkingCap*SUM(N69:R69)-WorkingCap*SUM(N68:R68),IF(C69<0,0,IF(B69="","",-SUM(J$65:J68)))) -> -3719898.128 | N69: -14601223.6 | O69: -67945744.47 | P69: 0 | Q69: 0 | R69: -24625868.64 | S69: =IF(B69="","",IF($B$31=0,"",-'Debt Financing Calculations'!E18)) -> -9947222.075 | T69: 77078737.67 | U69: =IF(C69="","",IF(C69<-1,0,IF(C69=anal_period,-LOOKUP(C69,depr_yr,depr_cost)-Depreciation!$C$141-Depreciation!$B$166,-LOOKUP(C69,depr_yr,depr_cost)))) -> -33407341.56 | V69: 43671396.11 | W69: 0.2574 | X69: -11241017.36 | Y69: 65837720.31 | Z69: =IF(C69="","",IF($B$31=0,"",-'Debt Financing Calculations'!F18)) -> 0 | AA69: 46558012.91 | AB69: -168229382.7 | AC69: 57799030.27 | AE69: 124628629.5 | AF69: 0
A70: 2017 | B70: =IF(MAX($B$65:B69)<(construct+anal_period),B69+1,"") -> 6 | C70: 3 | D70: 3 | E70: 1.038361 | F70: 197888573.6 | H70: 0 | I70: =IF(OR(C70<0,C70=""),"",-E70*INDEX('Replacement Costs'!$A$16:$H$57,MATCH(C70,'Replacement Costs'!$C$16:$C$57,0),MATCH("Total Yearly Replacement Costs",'Replacement Costs'!$A$16:$H$16,0))) -> -15855445.64 | J70: =IF(AND(C70>=1,C70<anal_period),WorkingCap*SUM(N70:R70)-WorkingCap*SUM(N69:R69),IF(C70<0,0,IF(B70="","",-SUM(J$65:J69)))) -> -2067288.486 | N70: -14878646.84 | O70: -80755510.33 | P70: 0 | Q70: 0 | R70: -25320602.77 | S70: =IF(B70="","",IF($B$31=0,"",-'Debt Financing Calculations'!E19)) -> -9947222.075 | T70: 66986591.56 | U70: =IF(C70="","",IF(C70<-1,0,IF(C70=anal_period,-LOOKUP(C70,depr_yr,depr_cost)-Depreciation!$C$141-Depreciation!$B$166,-LOOKUP(C70,depr_yr,depr_cost)))) -> -32077287.45 | V70: 34909304.11 | W70: 0.2574 | X70: -8985654.878 | Y70: 58000936.68 | Z70: =IF(C70="","",IF($B$31=0,"",-'Debt Financing Calculations'!F19)) -> 0 | AA70: 40078202.55 | AB70: -128151180.1 | AC70: 49063857.43 | AE70: 124628629.5 | AF70: 0
A71: 2018 | B71: =IF(MAX($B$65:B70)<(construct+anal_period),B70+1,"") -> 7 | C71: 4 | D71: 4 | E71: 1.058089859 | F71: 201648456.5 | H71: 0 | I71: =IF(OR(C71<0,C71=""),"",-E71*INDEX('Replacement Costs'!$A$16:$H$57,MATCH(C71,'Replacement Costs'!$C$16:$C$57,0),MATCH("Total Yearly Replacement Costs",'Replacement Costs'!$A$16:$H$16,0))) -> -16156699.11 | J71: =IF(AND(C71>=1,C71<anal_period),WorkingCap*SUM(N71:R71)-WorkingCap*SUM(N70:R70),IF(C71<0,0,IF(B71="","",-SUM(J$65:J70)))) -> -1478780.66 | N71: -15161341.13 | O71: -89984990.07 | P71: 0 | Q71: 0 | R71: -25666966.48 | S71: =IF(B71="","",IF($B$31=0,"",-'Debt Financing Calculations'!E20)) -> -9947222.075 | T71: 60887936.72 | U71: =IF(C71="","",IF(C71<-1,0,IF(C71=anal_period,-LOOKUP(C71,depr_yr,depr_cost)-Depreciation!$C$141-Depreciation!$B$166,-LOOKUP(C71,depr_yr,depr_cost)))) -> -30875420.31 | V71: 30012516.41 | W71: 0.2574 | X71: -7725221.723 | Y71: 53162715 | Z71: =IF(C71="","",IF($B$31=0,"",-'Debt Financing Calculations'!F20)) -> 0 | AA71: 35527235.23 | AB71: -92623944.92 | AC71: 43252456.95 | AE71: 124628629.5 | AF71: 0
A72: 2019 | B72: =IF(MAX($B$65:B71)<(construct+anal_period),B71+1,"") -> 8 | C72: 5 | D72: 5 | E72: 1.078193566 | F72: 205479777.2 | H72: 0 | I72: =IF(OR(C72<0,C72=""),"",-E72*INDEX('Replacement Costs'!$A$16:$H$57,MATCH(C72,'Replacement Costs'!$C$16:$C$57,0),MATCH("Total Yearly Replacement Costs",'Replacement Costs'!$A$16:$H$16,0))) -> -16463676.4 | J72: =IF(AND(C72>=1,C72<anal_period),WorkingCap*SUM(N72:R72)-WorkingCap*SUM(N71:R71),IF(C72<0,0,IF(B72="","",-SUM(J$65:J71)))) -> -1707742.927 | N72: -15449406.62 | O72: -100517875.6 | P72: 0 | Q72: 0 | R72: -26230968.29 | S72: =IF(B72="","",IF($B$31=0,"",-'Debt Financing Calculations'!E21)) -> -9947222.075 | T72: 53334304.55 | U72: =IF(C72="","",IF(C72<-1,0,IF(C72=anal_period,-LOOKUP(C72,depr_yr,depr_cost)-Depreciation!$C$141-Depreciation!$B$166,-LOOKUP(C72,depr_yr,depr_cost)))) -> -29779801.2 | V72: 23554503.35 | W72: 0.2574 | X72: -6062929.161 | Y72: 47271375.39 | Z72: =IF(C72="","",IF($B$31=0,"",-'Debt Financing Calculations'!F21)) -> 0 | AA72: 29099956.07 | AB72: -63523988.85 | AC72: 35162885.23 | AE72: 124628629.5 | AF72: 0
A73: 2020 | B73: =IF(MAX($B$65:B72)<(construct+anal_period),B72+1,"") -> 9 | C73: 6 | D73: 6 | E73: 1.098679244 | F73: 209383892.9 | H73: 0 | I73: =IF(OR(C73<0,C73=""),"",-E73*INDEX('Replacement Costs'!$A$16:$H$57,MATCH(C73,'Replacement Costs'!$C$16:$C$57,0),MATCH("Total Yearly Replacement Costs",'Replacement Costs'!$A$16:$H$16,0))) -> -16776486.25 | J73: =IF(AND(C73>=1,C73<anal_period),WorkingCap*SUM(N73:R73)-WorkingCap*SUM(N72:R72),IF(C73<0,0,IF(B73="","",-SUM(J$65:J72)))) -> -1755439.906 | N73: -15742945.34 | O73: -111315194.4 | P73: 0 | Q73: 0 | R73: -26843043.48 | S73: =IF(B73="","",IF($B$31=0,"",-'Debt Financing Calculations'!E22)) -> -9947222.075 | T73: 45535487.61 | U73: =IF(C73="","",IF(C73<-1,0,IF(C73=anal_period,-LOOKUP(C73,depr_yr,depr_cost)-Depreciation!$C$141-Depreciation!$B$166,-LOOKUP(C73,depr_yr,depr_cost)))) -> -28794940.3 | V73: 16740547.3 | W73: 0.2574 | X73: -4309016.876 | Y73: 41226470.73 | Z73: =IF(C73="","",IF($B$31=0,"",-'Debt Financing Calculations'!F22)) -> 0 | AA73: 22694544.58 | AB73: -40829444.27 | AC73: 27003561.46 | AE73: 124628629.5 | AF73: 0
A74: 2021 | B74: =IF(MAX($B$65:B73)<(construct+anal_period),B73+1,"") -> 10 | C74: 7 | D74: 7 | E74: 1.11955415 | F74: 213362186.9 | H74: 0 | I74: =IF(OR(C74<0,C74=""),"",-E74*INDEX('Replacement Costs'!$A$16:$H$57,MATCH(C74,'Replacement Costs'!$C$16:$C$57,0),MATCH("Total Yearly Replacement Costs",'Replacement Costs'!$A$16:$H$16,0))) -> -17095239.49 | J74: =IF(AND(C74>=1,C74<anal_period),WorkingCap*SUM(N74:R74)-WorkingCap*SUM(N73:R73),IF(C74<0,0,IF(B74="","",-SUM(J$65:J73)))) -> -461901.8372 | N74: -16042061.3 | O74: -113550474.7 | P74: 0 | Q74: 0 | R74: -27387992.83 | S74: =IF(B74="","",IF($B$31=0,"",-'Debt Financing Calculations'!E23)) -> -9947222.075 | T74: 46434435.99 | U74: =IF(C74="","",IF(C74<-1,0,IF(C74=anal_period,-LOOKUP(C74,depr_yr,depr_cost)-Depreciation!$C$141-Depreciation!$B$166,-LOOKUP(C74,depr_yr,depr_cost)))) -> -27902699.15 | V74: 18531736.84 | W74: 0.2574 | X74: -4770069.063 | Y74: 41664366.93 | Z74: =IF(C74="","",IF($B$31=0,"",-'Debt Financing Calculations'!F23)) -> 0 | AA74: 24107225.61 | AB74: -16722218.67 | AC74: 28877294.67 | AE74: 124628629.5 | AF74: 0
A75: 2022 | B75: =IF(MAX($B$65:B74)<(construct+anal_period),B74+1,"") -> 11 | C75: 8 | D75: 8 | E75: 1.140825679 | F75: 217416068.4 | H75: 0 | I75: =IF(OR(C75<0,C75=""),"",-E75*INDEX('Replacement Costs'!$A$16:$H$57,MATCH(C75,'Replacement Costs'!$C$16:$C$57,0),MATCH("Total Yearly Replacement Costs",'Replacement Costs'!$A$16:$H$16,0))) -> -17420049.04 | J75: =IF(AND(C75>=1,C75<anal_period),WorkingCap*SUM(N75:R75)-WorkingCap*SUM(N74:R74),IF(C75<0,0,IF(B75="","",-SUM(J$65:J74)))) -> -286987.2235 | N75: -16346860.47 | O75: -114428797.2 | P75: 0 | Q75: 0 | R75: -28118119.3 | S75: =IF(B75="","",IF($B$31=0,"",-'Debt Financing Calculations'!E24)) -> -9947222.075 | T75: 48575069.39 | U75: =IF(C75="","",IF(C75<-1,0,IF(C75=anal_period,-LOOKUP(C75,depr_yr,depr_cost)-Depreciation!$C$141-Depreciation!$B$166,-LOOKUP(C75,depr_yr,depr_cost)))) -> -27106982.95 | V75: 21468086.44 | W75: 0.2574 | X75: -5525885.449 | Y75: 43049183.94 | Z75: =IF(C75="","",IF($B$31=0,"",-'Debt Financing Calculations'!F24)) -> 0 | AA75: 25342147.68 | AB75: 8619929.014 | AC75: 30868033.13 | AE75: 124628629.5 | AF75: 0
A76: 2023 | B76: =IF(MAX($B$65:B75)<(construct+anal_period),B75+1,"") -> 12 | C76: 9 | D76: 9 | E76: 1.162501366 | F76: 221546973.7 | H76: 0 | I76: =IF(OR(C76<0,C76=""),"",-E76*INDEX('Replacement Costs'!$A$16:$H$57,MATCH(C76,'Replacement Costs'!$C$16:$C$57,0),MATCH("Total Yearly Replacement Costs",'Replacement Costs'!$A$16:$H$16,0))) -> -17751029.97 | J76: =IF(AND(C76>=1,C76<anal_period),WorkingCap*SUM(N76:R76)-WorkingCap*SUM(N75:R75),IF(C76<0,0,IF(B76="","",-SUM(J$65:J75)))) -> -496157.0972 | N76: -16657450.82 | O76: -116870011.7 | P76: 0 | Q76: 0 | R76: -28674028.45 | S76: =IF(B76="","",IF($B$31=0,"",-'Debt Financing Calculations'!E25)) -> -9947222.075 | T76: 49398260.71 | U76: =IF(C76="","",IF(C76<-1,0,IF(C76=anal_period,-LOOKUP(C76,depr_yr,depr_cost)-Depreciation!$C$141-Depreciation!$B$166,-LOOKUP(C76,depr_yr,depr_cost)))) -> -27662160.14 | V76: 21736100.56 | W76: 0.2574 | X76: -5594872.285 | Y76: 43803388.42 | Z76: =IF(C76="","",IF($B$31=0,"",-'Debt Financing Calculations'!F25)) -> 0 | AA76: 25556201.36 | AB76: 34176130.37 | AC76: 31151073.64 | AE76: 124628629.5 | AF76: 0
A77: 2024 | B77: =IF(MAX($B$65:B76)<(construct+anal_period),B76+1,"") -> 13 | C77: 10 | D77: 10 | E77: 1.184588892 | F77: 225756366.2 | H77: 0 | I77: =IF(OR(C77<0,C77=""),"",-E77*INDEX('Replacement Costs'!$A$16:$H$57,MATCH(C77,'Replacement Costs'!$C$16:$C$57,0),MATCH("Total Yearly Replacement Costs",'Replacement Costs'!$A$16:$H$16,0))) -> -18088299.54 | J77: =IF(AND(C77>=1,C77<anal_period),WorkingCap*SUM(N77:R77)-WorkingCap*SUM(N76:R76),IF(C77<0,0,IF(B77="","",-SUM(J$65:J76)))) -> -765878.7152 | N77: -16973942.38 | O77: -121132992.1 | P77: 0 | Q77: 0 | R77: -29200414.54 | S77: =IF(B77="","",IF($B$31=0,"",-'Debt Financing Calculations'!E26)) -> -9947222.075 | T77: 48501795.11 | U77: =IF(C77="","",IF(C77<-1,0,IF(C77=anal_period,-LOOKUP(C77,depr_yr,depr_cost)-Depreciation!$C$141-Depreciation!$B$166,-LOOKUP(C77,depr_yr,depr_cost)))) -> -28491998.53 | V77: 20009796.58 | W77: 0.2574 | X77: -5150521.639 | Y77: 43351273.47 | Z77: =IF(C77="","",IF($B$31=0,"",-'Debt Financing Calculations'!F26)) -> 0 | AA77: 24497095.22 | AB77: 58673225.59 | AC77: 29647616.85 | AE77: 124628629.5 | AF77: 0
A78: 2025 | B78: =IF(MAX($B$65:B77)<(construct+anal_period),B77+1,"") -> 14 | C78: 11 | D78: 11 | E78: 1.207096081 | F78: 230045737.2 | H78: 0 | I78: =IF(OR(C78<0,C78=""),"",-E78*INDEX('Replacement Costs'!$A$16:$H$57,MATCH(C78,'Replacement Costs'!$C$16:$C$57,0),MATCH("Total Yearly Replacement Costs",'Replacement Costs'!$A$16:$H$16,0))) -> -18431977.23 | J78: =IF(AND(C78>=1,C78<anal_period),WorkingCap*SUM(N78:R78)-WorkingCap*SUM(N77:R77),IF(C78<0,0,IF(B78="","",-SUM(J$65:J77)))) -> -909757.7655 | N78: -17296447.29 | O78: -126150210.7 | P78: 0 | Q78: 0 | R78: -29925742.8 | S78: =IF(B78="","",IF($B$31=0,"",-'Debt Financing Calculations'!E27)) -> -9947222.075 | T78: 46726114.3 | U78: =IF(C78="","",IF(C78<-1,0,IF(C78=anal_period,-LOOKUP(C78,depr_yr,depr_cost)-Depreciation!$C$141-Depreciation!$B$166,-LOOKUP(C78,depr_yr,depr_cost)))) -> -29346628.38 | V78: 17379485.92 | W78: 0.2574 | X78: -4473479.676 | Y78: 42252634.62 | Z78: =IF(C78="","",IF($B$31=0,"",-'Debt Financing Calculations'!F27)) -> 0 | AA78: 22910899.63 | AB78: 81584125.21 | AC78: 27384379.3 | AE78: 124628629.5 | AF78: 0
A79: 2026 | B79: =IF(MAX($B$65:B78)<(construct+anal_period),B78+1,"") -> 15 | C79: 12 | D79: 12 | E79: 1.230030907 | F79: 234416606.2 | H79: 0 | I79: =IF(OR(C79<0,C79=""),"",-E79*INDEX('Replacement Costs'!$A$16:$H$57,MATCH(C79,'Replacement Costs'!$C$16:$C$57,0),MATCH("Total Yearly Replacement Costs",'Replacement Costs'!$A$16:$H$16,0))) -> -18782184.8 | J79: =IF(AND(C79>=1,C79<anal_period),WorkingCap*SUM(N79:R79)-WorkingCap*SUM(N78:R78),IF(C79<0,0,IF(B79="","",-SUM(J$65:J78)))) -> -934618.5491 | N79: -17625079.79 | O79: -131408525 | P79: 0 | Q79: 0 | R79: -30569586.41 | S79: =IF(B79="","",IF($B$31=0,"",-'Debt Financing Calculations'!E28)) -> -9947222.075 | T79: 44866192.97 | U79: =IF(C79="","",IF(C79<-1,0,IF(C79=anal_period,-LOOKUP(C79,depr_yr,depr_cost)-Depreciation!$C$141-Depreciation!$B$166,-LOOKUP(C79,depr_yr,depr_cost)))) -> -30208471.66 | V79: 14657721.32 | W79: 0.2574 | X79: -3772897.467 | Y79: 41093295.51 | Z79: =IF(C79="","",IF($B$31=0,"",-'Debt Financing Calculations'!F28)) -> 0 | AA79: 21376492.16 | AB79: 102960617.4 | AC79: 25149389.63 | AE79: 124628629.5 | AF79: 0
A80: 2027 | B80: =IF(MAX($B$65:B79)<(construct+anal_period),B79+1,"") -> 16 | C80: 13 | D80: 13 | E80: 1.253401494 | F80: 238870521.7 | H80: 0 | I80: =IF(OR(C80<0,C80=""),"",-E80*INDEX('Replacement Costs'!$A$16:$H$57,MATCH(C80,'Replacement Costs'!$C$16:$C$57,0),MATCH("Total Yearly Replacement Costs",'Replacement Costs'!$A$16:$H$16,0))) -> -19139046.31 | J80: =IF(AND(C80>=1,C80<anal_period),WorkingCap*SUM(N80:R80)-WorkingCap*SUM(N79:R79),IF(C80<0,0,IF(B80="","",-SUM(J$65:J79)))) -> -868837.984 | N80: -17959956.3 | O80: -136241130.4 | P80: 0 | Q80: 0 | R80: -31194357.64 | S80: =IF(B80="","",IF($B$31=0,"",-'Debt Financing Calculations'!E29)) -> -9947222.075 | T80: 43527855.27 | U80: =IF(C80="","",IF(C80<-1,0,IF(C80=anal_period,-LOOKUP(C80,depr_yr,depr_cost)-Depreciation!$C$141-Depreciation!$B$166,-LOOKUP(C80,depr_yr,depr_cost)))) -> -31095714.49 | V80: 12432140.77 | W80: 0.2574 | X80: -3200033.034 | Y80: 40327822.23 | Z80: =IF(C80="","",IF($B$31=0,"",-'Debt Financing Calculations'!F29)) -> 0 | AA80: 20319937.94 | AB80: 123280555.3 | AC80: 23519970.98 | AE80: 124628629.5 | AF80: 0
A81: 2028 | B81: =IF(MAX($B$65:B80)<(construct+anal_period),B80+1,"") -> 17 | C81: 14 | D81: 14 | E81: 1.277216123 | F81: 243409061.6 | H81: 0 | I81: =IF(OR(C81<0,C81=""),"",-E81*INDEX('Replacement Costs'!$A$16:$H$57,MATCH(C81,'Replacement Costs'!$C$16:$C$57,0),MATCH("Total Yearly Replacement Costs",'Replacement Costs'!$A$16:$H$16,0))) -> -19502688.19 | J81: =IF(AND(C81>=1,C81<anal_period),WorkingCap*SUM(N81:R81)-WorkingCap*SUM(N80:R80),IF(C81<0,0,IF(B81="","",-SUM(J$65:J80)))) -> -889967.1125 | N81: -18301195.47 | O81: -141189518.4 | P81: 0 | Q81: 0 | R81: -31837844.6 | S81: =IF(B81="","",IF($B$31=0,"",-'Debt Financing Calculations'!E30)) -> -9947222.075 | T81: 42133281.09 | U81: =IF(C81="","",IF(C81<-1,0,IF(C81=anal_period,-LOOKUP(C81,depr_yr,depr_cost)-Depreciation!$C$141-Depreciation!$B$166,-LOOKUP(C81,depr_yr,depr_cost)))) -> -31990790.41 | V81: 10142490.68 | W81: 0.2574 | X81: -2610677.101 | Y81: 39522603.99 | Z81: =IF(C81="","",IF($B$31=0,"",-'Debt Financing Calculations'!F30)) -> 0 | AA81: 19129948.69 | AB81: 142410504 | AC81: 21740625.8 | AE81: 124628629.5 | AF81: 0
A82: 2029 | B82: =IF(MAX($B$65:B81)<(construct+anal_period),B81+1,"") -> 18 | C82: 15 | D82: 15 | E82: 1.301483229 | F82: 248033833.8 | H82: 0 | I82: =IF(OR(C82<0,C82=""),"",-E82*INDEX('Replacement Costs'!$A$16:$H$57,MATCH(C82,'Replacement Costs'!$C$16:$C$57,0),MATCH("Total Yearly Replacement Costs",'Replacement Costs'!$A$16:$H$16,0))) -> -19873239.26 | J82: =IF(AND(C82>=1,C82<anal_period),WorkingCap*SUM(N82:R82)-WorkingCap*SUM(N81:R81),IF(C82<0,0,IF(B82="","",-SUM(J$65:J81)))) -> -854459.4277 | N82: -18648918.19 | O82: -145892607.4 | P82: 0 | Q82: 0 | R82: -32483429.05 | S82: =IF(B82="","",IF($B$31=0,"",-'Debt Financing Calculations'!E31)) -> -9947222.075 | T82: 41061657.08 | U82: =IF(C82="","",IF(C82<-1,0,IF(C82=anal_period,-LOOKUP(C82,depr_yr,depr_cost)-Depreciation!$C$141-Depreciation!$B$166,-LOOKUP(C82,depr_yr,depr_cost)))) -> -32911897.31 | V82: 8149759.775 | W82: 0.2574 | X82: -2097748.166 | Y82: 38963908.92 | Z82: =IF(C82="","",IF($B$31=0,"",-'Debt Financing Calculations'!F31)) -> 0 | AA82: 18236210.23 | AB82: 160646714.2 | AC82: 20333958.39 | AE82: 124628629.5 | AF82: 0
A83: 2030 | B83: =IF(MAX($B$65:B82)<(construct+anal_period),B82+1,"") -> 19 | C83: 16 | D83: 16 | E83: 1.32621141 | F83: 252746476.7 | H83: 0 | I83: =IF(OR(C83<0,C83=""),"",-E83*INDEX('Replacement Costs'!$A$16:$H$57,MATCH(C83,'Replacement Costs'!$C$16:$C$57,0),MATCH("Total Yearly Replacement Costs",'Replacement Costs'!$A$16:$H$16,0))) -> -20250830.81 | J83: =IF(AND(C83>=1,C83<anal_period),WorkingCap*SUM(N83:R83)-WorkingCap*SUM(N82:R82),IF(C83<0,0,IF(B83="","",-SUM(J$65:J82)))) -> -642982.85 | N83: -19003247.63 | O83: -149178856.7 | P83: 0 | Q83: 0 | R83: -33129402.62 | S83: =IF(B83="","",IF($B$31=0,"",-'Debt Financing Calculations'!E32)) -> -9947222.075 | T83: 41487747.59 | U83: =IF(C83="","",IF(C83<-1,0,IF(C83=anal_period,-LOOKUP(C83,depr_yr,depr_cost)-Depreciation!$C$141-Depreciation!$B$166,-LOOKUP(C83,depr_yr,depr_cost)))) -> -33841480.7 | V83: 7646266.892 | W83: 0.2574 | X83: -1968149.098 | Y83: 39519598.49 | Z83: =IF(C83="","",IF($B$31=0,"",-'Debt Financing Calculations'!F32)) -> 0 | AA83: 18625784.84 | AB83: 179272499.1 | AC83: 20593933.93 | AE83: 124628629.5 | AF83: 0
A84: 2031 | B84: =IF(MAX($B$65:B83)<(construct+anal_period),B83+1,"") -> 20 | C84: 17 | D84: 17 | E84: 1.351409427 | F84: 257548659.7 | H84: 0 | I84: =IF(OR(C84<0,C84=""),"",-E84*INDEX('Replacement Costs'!$A$16:$H$57,MATCH(C84,'Replacement Costs'!$C$16:$C$57,0),MATCH("Total Yearly Replacement Costs",'Replacement Costs'!$A$16:$H$16,0))) -> -20635596.59 | J84: =IF(AND(C84>=1,C84<anal_period),WorkingCap*SUM(N84:R84)-WorkingCap*SUM(N83:R83),IF(C84<0,0,IF(B84="","",-SUM(J$65:J83)))) -> -673193.2348 | N84: -19364309.34 | O84: -152665653.6 | P84: 0 | Q84: 0 | R84: -33769498.92 | S84: =IF(B84="","",IF($B$31=0,"",-'Debt Financing Calculations'!E33)) -> -9947222.075 | T84: 41801975.75 | U84: =IF(C84="","",IF(C84<-1,0,IF(C84=anal_period,-LOOKUP(C84,depr_yr,depr_cost)-Depreciation!$C$141-Depreciation!$B$166,-LOOKUP(C84,depr_yr,depr_cost)))) -> -34797750.71 | V84: 7004225.041 | W84: 0.2574 | X84: -1802887.526 | Y84: 39999088.22 | Z84: =IF(C84="","",IF($B$31=0,"",-'Debt Financing Calculations'!F33)) -> 0 | AA84: 18690298.4 | AB84: 197962797.5 | AC84: 20493185.92 | AE84: 124628629.5 | AF84: 0
A85: 2032 | B85: =IF(MAX($B$65:B84)<(construct+anal_period),B84+1,"") -> 21 | C85: 18 | D85: 18 | E85: 1.377086206 | F85: 262442084.2 | H85: 0 | I85: =IF(OR(C85<0,C85=""),"",-E85*INDEX('Replacement Costs'!$A$16:$H$57,MATCH(C85,'Replacement Costs'!$C$16:$C$57,0),MATCH("Total Yearly Replacement Costs",'Replacement Costs'!$A$16:$H$16,0))) -> -21027672.93 | J85: =IF(AND(C85>=1,C85<anal_period),WorkingCap*SUM(N85:R85)-WorkingCap*SUM(N84:R84),IF(C85<0,0,IF(B85="","",-SUM(J$65:J84)))) -> -525121.3617 | N85: -19732231.21 | O85: -155176466.5 | P85: 0 | Q85: 0 | R85: -34391573.22 | S85: =IF(B85="","",IF($B$31=0,"",-'Debt Financing Calculations'!E34)) -> -9947222.075 | T85: 43194591.21 | U85: =IF(C85="","",IF(C85<-1,0,IF(C85=anal_period,-LOOKUP(C85,depr_yr,depr_cost)-Depreciation!$C$141-Depreciation!$B$166,-LOOKUP(C85,depr_yr,depr_cost)))) -> -35763165.31 | V85: 7431425.891 | W85: 0.2574 | X85: -1912849.024 | Y85: 41281742.18 | Z85: =IF(C85="","",IF($B$31=0,"",-'Debt Financing Calculations'!F34)) -> 0 | AA85: 19728947.89 | AB85: 217691745.4 | AC85: 21641796.92 | AE85: 124628629.5 | AF85: 0
A86: 2033 | B86: =IF(MAX($B$65:B85)<(construct+anal_period),B85+1,"") -> 22 | C86: 19 | D86: 19 | E86: 1.403250844 | F86: 267428483.8 | H86: 0 | I86: =IF(OR(C86<0,C86=""),"",-E86*INDEX('Replacement Costs'!$A$16:$H$57,MATCH(C86,'Replacement Costs'!$C$16:$C$57,0),MATCH("Total Yearly Replacement Costs",'Replacement Costs'!$A$16:$H$16,0))) -> -21427198.71 | J86: =IF(AND(C86>=1,C86<anal_period),WorkingCap*SUM(N86:R86)-WorkingCap*SUM(N85:R85),IF(C86<0,0,IF(B86="","",-SUM(J$65:J85)))) -> -356282.3399 | N86: -20107143.61 | O86: -156554463.3 | P86: 0 | Q86: 0 | R86: -35013879.64 | S86: =IF(B86="","",IF($B$31=0,"",-'Debt Financing Calculations'!E35)) -> -9947222.075 | T86: 45805775.21 | U86: =IF(C86="","",IF(C86<-1,0,IF(C86=anal_period,-LOOKUP(C86,depr_yr,depr_cost)-Depreciation!$C$141-Depreciation!$B$166,-LOOKUP(C86,depr_yr,depr_cost)))) -> -36755947.33 | V86: 9049827.877 | W86: 0.2574 | X86: -2329425.695 | Y86: 43476349.51 | Z86: =IF(C86="","",IF($B$31=0,"",-'Debt Financing Calculations'!F35)) -> 0 | AA86: 21692868.46 | AB86: 239384613.8 | AC86: 24022294.15 | AE86: 124628629.5 | AF86: 0
A87: 2034 | B87: =IF(MAX($B$65:B86)<(construct+anal_period),B86+1,"") -> 23 | C87: 20 | D87: 20 | E87: 1.42991261 | F87: 272509625 | H87: 0 | I87: =IF(OR(C87<0,C87=""),"",-E87*INDEX('Replacement Costs'!$A$16:$H$57,MATCH(C87,'Replacement Costs'!$C$16:$C$57,0),MATCH("Total Yearly Replacement Costs",'Replacement Costs'!$A$16:$H$16,0))) -> -21834315.49 | J87: =IF(AND(C87>=1,C87<anal_period),WorkingCap*SUM(N87:R87)-WorkingCap*SUM(N86:R86),IF(C87<0,0,IF(B87="","",-SUM(J$65:J86)))) -> -593318.0167 | N87: -20489179.34 | O87: -159488320.3 | P87: 0 | Q87: 0 | R87: -35653440.34 | S87: =IF(B87="","",IF($B$31=0,"",-'Debt Financing Calculations'!E36)) -> -9947222.075 | T87: 46931462.95 | U87: =IF(C87="","",IF(C87<-1,0,IF(C87=anal_period,-LOOKUP(C87,depr_yr,depr_cost)-Depreciation!$C$141-Depreciation!$B$166,-LOOKUP(C87,depr_yr,depr_cost)))) -> -37758567.67 | V87: 9172895.282 | W87: 0.2574 | X87: -2361103.246 | Y87: 44570359.71 | Z87: =IF(C87="","",IF($B$31=0,"",-'Debt Financing Calculations'!F36)) -> 0 | AA87: 22142726.2 | AB87: 261527340 | AC87: 24503829.45 | AE87: 124628629.5 | AF87: 0
A88: 2035 | B88: =IF(MAX($B$65:B87)<(construct+anal_period),B87+1,"") -> 24 | C88: 21 | D88: 21 | E88: 1.45708095 | F88: 277687307.9 | H88: 0 | I88: =IF(OR(C88<0,C88=""),"",-E88*INDEX('Replacement Costs'!$A$16:$H$57,MATCH(C88,'Replacement Costs'!$C$16:$C$57,0),MATCH("Total Yearly Replacement Costs",'Replacement Costs'!$A$16:$H$16,0))) -> -22249167.48 | J88: =IF(AND(C88>=1,C88<anal_period),WorkingCap*SUM(N88:R88)-WorkingCap*SUM(N87:R87),IF(C88<0,0,IF(B88="","",-SUM(J$65:J87)))) -> -998075.6183 | N88: -20878473.74 | O88: -165043674.2 | P88: 0 | Q88: 0 | R88: -36362629.5 | S88: =IF(B88="","",IF($B$31=0,"",-'Debt Financing Calculations'!E37)) -> -9947222.075 | T88: 45455308.38 | U88: =IF(C88="","",IF(C88<-1,0,IF(C88=anal_period,-LOOKUP(C88,depr_yr,depr_cost)-Depreciation!$C$141-Depreciation!$B$166,-LOOKUP(C88,depr_yr,depr_cost)))) -> -28645197.16 | V88: 16810111.21 | W88: 0.2574 | X88: -4326922.626 | Y88: 41128385.75 | Z88: =IF(C88="","",IF($B$31=0,"",-'Debt Financing Calculations'!F37)) -> 0 | AA88: 17881142.65 | AB88: 279408482.7 | AC88: 22208065.27 | AE88: 124628629.5 | AF88: 0
A89: 2036 | B89: =IF(MAX($B$65:B88)<(construct+anal_period),B88+1,"") -> 25 | C89: 22 | D89: 22 | E89: 1.484765488 | F89: 282963366.8 | H89: 0 | I89: =IF(OR(C89<0,C89=""),"",-E89*INDEX('Replacement Costs'!$A$16:$H$57,MATCH(C89,'Replacement Costs'!$C$16:$C$57,0),MATCH("Total Yearly Replacement Costs",'Replacement Costs'!$A$16:$H$16,0))) -> -22671901.67 | J89: =IF(AND(C89>=1,C89<anal_period),WorkingCap*SUM(N89:R89)-WorkingCap*SUM(N88:R88),IF(C89<0,0,IF(B89="","",-SUM(J$65:J88)))) -> -655281.1695 | N89: -21275164.74 | O89: -168291224.6 | P89: 0 | Q89: 0 | R89: -37086929.28 | S89: =IF(B89="","",IF($B$31=0,"",-'Debt Financing Calculations'!E38)) -> -9947222.075 | T89: 46362826.1 | U89: =IF(C89="","",IF(C89<-1,0,IF(C89=anal_period,-LOOKUP(C89,depr_yr,depr_cost)-Depreciation!$C$141-Depreciation!$B$166,-LOOKUP(C89,depr_yr,depr_cost)))) -> -19199792.84 | V89: 27163033.25 | W89: 0.2574 | X89: -6991764.76 | Y89: 39371061.34 | Z89: =IF(C89="","",IF($B$31=0,"",-'Debt Financing Calculations'!F38)) -> 0 | AA89: 16043878.5 | AB89: 295452361.2 | AC89: 23035643.26 | AE89: 124628629.5 | AF89: 0
A90: 2037 | B90: =IF(MAX($B$65:B89)<(construct+anal_period),B89+1,"") -> 26 | C90: 23 | D90: 23 | E90: 1.512976032 | F90: 288339670.7 | H90: 0 | I90: =IF(OR(C90<0,C90=""),"",-E90*INDEX('Replacement Costs'!$A$16:$H$57,MATCH(C90,'Replacement Costs'!$C$16:$C$57,0),MATCH("Total Yearly Replacement Costs",'Replacement Costs'!$A$16:$H$16,0))) -> -23102667.8 | J90: =IF(AND(C90>=1,C90<anal_period),WorkingCap*SUM(N90:R90)-WorkingCap*SUM(N89:R89),IF(C90<0,0,IF(B90="","",-SUM(J$65:J89)))) -> -691987.2888 | N90: -21679392.87 | O90: -171802698.8 | P90: 0 | Q90: 0 | R90: -37784475.52 | S90: =IF(B90="","",IF($B$31=0,"",-'Debt Financing Calculations'!E39)) -> -9947222.075 | T90: 47125881.47 | U90: =IF(C90="","",IF(C90<-1,0,IF(C90=anal_period,-LOOKUP(C90,depr_yr,depr_cost)-Depreciation!$C$141-Depreciation!$B$166,-LOOKUP(C90,depr_yr,depr_cost)))) -> -19564588.91 | V90: 27561292.57 | W90: 0.2574 | X90: -7094276.707 | Y90: 40031604.77 | Z90: =IF(C90="","",IF($B$31=0,"",-'Debt Financing Calculations'!F39)) -> 0 | AA90: 16236949.68 | AB90: 311689310.8 | AC90: 23331226.39 | AE90: 124628629.5 | AF90: 0
A91: 2038 | B91: =IF(MAX($B$65:B90)<(construct+anal_period),B90+1,"") -> 27 | C91: 24 | D91: 24 | E91: 1.541722577 | F91: 293818124.5 | H91: 0 | I91: =IF(OR(C91<0,C91=""),"",-E91*INDEX('Replacement Costs'!$A$16:$H$57,MATCH(C91,'Replacement Costs'!$C$16:$C$57,0),MATCH("Total Yearly Replacement Costs",'Replacement Costs'!$A$16:$H$16,0))) -> -23541618.49 | J91: =IF(AND(C91>=1,C91<anal_period),WorkingCap*SUM(N91:R91)-WorkingCap*SUM(N90:R90),IF(C91<0,0,IF(B91="","",-SUM(J$65:J90)))) -> -633840.4602 | N91: -22091301.34 | O91: -174896363 | P91: 0 | Q91: 0 | R91: -38504505.91 | S91: =IF(B91="","",IF($B$31=0,"",-'Debt Financing Calculations'!E40)) -> -9947222.075 | T91: 48378732.15 | U91: =IF(C91="","",IF(C91<-1,0,IF(C91=anal_period,-LOOKUP(C91,depr_yr,depr_cost)-Depreciation!$C$141-Depreciation!$B$166,-LOOKUP(C91,depr_yr,depr_cost)))) -> -19936316.1 | V91: 28442416.05 | W91: 0.2574 | X91: -7321077.892 | Y91: 41057654.26 | Z91: =IF(C91="","",IF($B$31=0,"",-'Debt Financing Calculations'!F40)) -> 0 | AA91: 16882195.31 | AB91: 328571506.2 | AC91: 24203273.2 | AE91: 124628629.5 | AF91: 0
A92: 2039 | B92: =IF(MAX($B$65:B91)<(construct+anal_period),B91+1,"") -> 28 | C92: 25 | D92: 25 | E92: 1.571015306 | F92: 299400668.8 | H92: 0 | I92: =IF(OR(C92<0,C92=""),"",-E92*INDEX('Replacement Costs'!$A$16:$H$57,MATCH(C92,'Replacement Costs'!$C$16:$C$57,0),MATCH("Total Yearly Replacement Costs",'Replacement Costs'!$A$16:$H$16,0))) -> -23988909.24 | J92: =IF(AND(C92>=1,C92<anal_period),WorkingCap*SUM(N92:R92)-WorkingCap*SUM(N91:R91),IF(C92<0,0,IF(B92="","",-SUM(J$65:J91)))) -> -773788.9453 | N92: -22511036.06 | O92: -178896087.7 | P92: 0 | Q92: 0 | R92: -39243639.49 | S92: =IF(B92="","",IF($B$31=0,"",-'Debt Financing Calculations'!E41)) -> -9947222.075 | T92: 48802683.55 | U92: =IF(C92="","",IF(C92<-1,0,IF(C92=anal_period,-LOOKUP(C92,depr_yr,depr_cost)-Depreciation!$C$141-Depreciation!$B$166,-LOOKUP(C92,depr_yr,depr_cost)))) -> -20315106.1 | V92: 28487577.44 | W92: 0.2574 | X92: -7332702.434 | Y92: 41469981.11 | Z92: =IF(C92="","",IF($B$31=0,"",-'Debt Financing Calculations'!F41)) -> 0 | AA92: 16707282.93 | AB92: 345278789.1 | AC92: 24039985.36 | AE92: 124628629.5 | AF92: 0
A93: 2040 | B93: =IF(MAX($B$65:B92)<(construct+anal_period),B92+1,"") -> 29 | C93: 26 | D93: 26 | E93: 1.600864596 | F93: 305089281.5 | H93: 0 | I93: =IF(OR(C93<0,C93=""),"",-E93*INDEX('Replacement Costs'!$A$16:$H$57,MATCH(C93,'Replacement Costs'!$C$16:$C$57,0),MATCH("Total Yearly Replacement Costs",'Replacement Costs'!$A$16:$H$16,0))) -> -24444698.51 | J93: =IF(AND(C93>=1,C93<anal_period),WorkingCap*SUM(N93:R93)-WorkingCap*SUM(N92:R92),IF(C93<0,0,IF(B93="","",-SUM(J$65:J92)))) -> -475221.4065 | N93: -22938745.75 | O93: -180914211.8 | P93: 0 | Q93: 0 | R93: -39965948.43 | S93: =IF(B93="","",IF($B$31=0,"",-'Debt Financing Calculations'!E42)) -> -9947222.075 | T93: 51323153.54 | U93: =IF(C93="","",IF(C93<-1,0,IF(C93=anal_period,-LOOKUP(C93,depr_yr,depr_cost)-Depreciation!$C$141-Depreciation!$B$166,-LOOKUP(C93,depr_yr,depr_cost)))) -> -20701093.12 | V93: 30622060.43 | W93: 0.2574 | X93: -7882118.354 | Y93: 43441035.19 | Z93: =IF(C93="","",IF($B$31=0,"",-'Debt Financing Calculations'!F42)) -> 0 | AA93: 18521115.27 | AB93: 363799904.4 | AC93: 26403233.62 | AE93: 124628629.5 | AF93: 0
A94: 2041 | B94: =IF(MAX($B$65:B93)<(construct+anal_period),B93+1,"") -> 30 | C94: 27 | D94: 27 | E94: 1.631281024 | F94: 310885977.9 | H94: 0 | I94: =IF(OR(C94<0,C94=""),"",-E94*INDEX('Replacement Costs'!$A$16:$H$57,MATCH(C94,'Replacement Costs'!$C$16:$C$57,0),MATCH("Total Yearly Replacement Costs",'Replacement Costs'!$A$16:$H$16,0))) -> -24909147.78 | J94: =IF(AND(C94>=1,C94<anal_period),WorkingCap*SUM(N94:R94)-WorkingCap*SUM(N93:R93),IF(C94<0,0,IF(B94="","",-SUM(J$65:J93)))) -> -712788.986 | N94: -23374581.92 | O94: -184500684.8 | P94: 0 | Q94: 0 | R94: -40695565.75 | S94: =IF(B94="","",IF($B$31=0,"",-'Debt Financing Calculations'!E43)) -> -9947222.075 | T94: 52367923.32 | U94: =IF(C94="","",IF(C94<-1,0,IF(C94=anal_period,-LOOKUP(C94,depr_yr,depr_cost)-Depreciation!$C$141-Depreciation!$B$166,-LOOKUP(C94,depr_yr,depr_cost)))) -> -21094413.89 | V94: 31273509.43 | W94: 0.2574 | X94: -8049801.328 | Y94: 44318121.99 | Z94: =IF(C94="","",IF($B$31=0,"",-'Debt Financing Calculations'!F43)) -> 0 | AA94: 18696185.22 | AB94: 382496089.6 | AC94: 26745986.55 | AE94: 124628629.5 | AF94: 0
A95: 2042 | B95: =IF(MAX($B$65:B94)<(construct+anal_period),B94+1,"") -> 31 | C95: 28 | D95: 28 | E95: 1.662275363 | F95: 316792811.5 | H95: 0 | I95: =IF(OR(C95<0,C95=""),"",-E95*INDEX('Replacement Costs'!$A$16:$H$57,MATCH(C95,'Replacement Costs'!$C$16:$C$57,0),MATCH("Total Yearly Replacement Costs",'Replacement Costs'!$A$16:$H$16,0))) -> -25382421.59 | J95: =IF(AND(C95>=1,C95<anal_period),WorkingCap*SUM(N95:R95)-WorkingCap*SUM(N94:R94),IF(C95<0,0,IF(B95="","",-SUM(J$65:J94)))) -> -981746.274 | N95: -23818698.98 | O95: -189816412.3 | P95: 0 | Q95: 0 | R95: -41480696.36 | S95: =IF(B95="","",IF($B$31=0,"",-'Debt Financing Calculations'!E44)) -> -9947222.075 | T95: 51729781.74 | U95: =IF(C95="","",IF(C95<-1,0,IF(C95=anal_period,-LOOKUP(C95,depr_yr,depr_cost)-Depreciation!$C$141-Depreciation!$B$166,-LOOKUP(C95,depr_yr,depr_cost)))) -> -21495207.75 | V95: 30234573.99 | W95: 0.2574 | X95: -7782379.345 | Y95: 43947402.39 | Z95: =IF(C95="","",IF($B$31=0,"",-'Debt Financing Calculations'!F44)) -> 0 | AA95: 17583234.53 | AB95: 400079324.1 | AC95: 25365613.87 | AE95: 124628629.5 | AF95: 0
A96: 2043 | B96: =IF(MAX($B$65:B95)<(construct+anal_period),B95+1,"") -> 32 | C96: 29 | D96: 29 | E96: 1.693858595 | F96: 322811874.9 | H96: 0 | I96: =IF(OR(C96<0,C96=""),"",-E96*INDEX('Replacement Costs'!$A$16:$H$57,MATCH(C96,'Replacement Costs'!$C$16:$C$57,0),MATCH("Total Yearly Replacement Costs",'Replacement Costs'!$A$16:$H$16,0))) -> -25864687.6 | J96: =IF(AND(C96>=1,C96<anal_period),WorkingCap*SUM(N96:R96)-WorkingCap*SUM(N95:R95),IF(C96<0,0,IF(B96="","",-SUM(J$65:J95)))) -> -1155389.014 | N96: -24271254.26 | O96: -196246334.3 | P96: 0 | Q96: 0 | R96: -42300812.57 | S96: =IF(B96="","",IF($B$31=0,"",-'Debt Financing Calculations'!E45)) -> -9947222.075 | T96: 50046251.73 | U96: =IF(C96="","",IF(C96<-1,0,IF(C96=anal_period,-LOOKUP(C96,depr_yr,depr_cost)-Depreciation!$C$141-Depreciation!$B$166,-LOOKUP(C96,depr_yr,depr_cost)))) -> -21903616.7 | V96: 28142635.03 | W96: 0.2574 | X96: -7243914.257 | Y96: 42802337.47 | Z96: =IF(C96="","",IF($B$31=0,"",-'Debt Financing Calculations'!F45)) -> 0 | AA96: 15782260.86 | AB96: 415861585 | AC96: 23026175.11 | AE96: 124628629.5 | AF96: 0
A97: 2044 | B97: =IF(MAX($B$65:B96)<(construct+anal_period),B96+1,"") -> 33 | C97: 30 | D97: =IF(C97="","",IF(C97<=plant_life,C97,IF(D96=plant_life,1,D96+1))) -> 30 | E97: =IF(C97="","",(1+inflation_rate)^(A97-$B$25)) -> 1.726041908 | F97: =IF(C97="","",IF(C97<0,0,IF(AND(C97=1,start_time<1),E97*(H2_price_nominal*output_kgyear*start_time*percnt_revs+H2_price_nominal*output_kgyear*(1-start_time)),IF(C97<=start_time,H2_price_nominal*E97*output_kgyear*percnt_revs,H2_price_nominal*output_kgyear*E97)))) -> 328945300.5 | H97: 0 | I97: =IF(OR(C97<0,C97=""),"",-E97*INDEX('Replacement Costs'!$A$16:$H$57,MATCH(C97,'Replacement Costs'!$C$16:$C$57,0),MATCH("Total Yearly Replacement Costs",'Replacement Costs'!$A$16:$H$16,0))) -> -26356116.67 | J97: =IF(AND(C97>=1,C97<anal_period),WorkingCap*SUM(N97:R97)-WorkingCap*SUM(N96:R96),IF(C97<0,0,IF(B97="","",-SUM(J$65:J96)))) -> -1050872.67 | K97: =IF(C97=-construct,-E97*non_dep_infl,"") ->  | L97: =IF(C97=anal_period,salvage*E97,"") ->  | M97: =IF(D97=plant_life,-E97*decom,"") ->  | N97: =IF(C97="","",IF(C97<0,0,IF(AND(C97=1,start_time<1),-(inflated_fixed*percnt_fixed*start_time+(inflated_fixed*(1-start_time))),IF(C97<=start_time,-inflated_fixed*percnt_fixed*E97,-inflated_fixed*E97)))) -> -24732408.09 | O97: =IF(C97="","",IF(C97<0,0,IF(AND(C97=1,start_time<1),-(SUM(B171:E171)*output_kgyear*E97*percnt_var*start_time+SUM(B171:E171)*output_kgyear*E97*(1-start_time)),IF(C97<=start_time,-SUM(B171:E171)*output_kgyear*E97*percnt_var,-SUM(B171:E171)*output_kgyear*E97)))) -> -201946922 | P97: =IF(C97="","",IF(C97<0,0,IF(AND(C97=1,start_time<1),-(inflated_otherraw*E97*percnt_var*start_time+inflated_otherraw*E97*(1-start_time)),IF(C97<=start_time,-inflated_otherraw*E97*percnt_var,-(inflated_otherraw*E97))))) -> 0 | Q97: 0 | R97: =IF(C97="","",IF(C97<0,0,IF(AND(C97=1,start_time<1),-((SUM(F171:J171,P171:R171)*output_kgyear+inflated_othervar)*E97*percnt_var*start_time+(SUM(F171:J171,P171:R171)*output_kgyear+inflated_othervar)*E97*(1-start_time)),IF(C97<=start_time,-(SUM(F171:J171,P171:R171)*output_kgyear+inflated_othervar)*E97*percnt_var,-E97*(SUM(F171:J171,P171:R171)*output_kgyear+inflated_othervar))))) -> -43144888.82 | S97: =IF(B97="","",IF($B$31=0,"",-'Debt Financing Calculations'!E46)) -> -9947222.075 | T97: =IF(C97="","",F97+SUM(L97:S97)) -> 49173859.55 | U97: =IF(C97="","",IF(C97<-1,0,IF(C97=anal_period,-LOOKUP(C97,depr_yr,depr_cost)-Depreciation!$C$141-Depreciation!$B$166,-LOOKUP(C97,depr_yr,depr_cost)))) -> -22319785.41 | V97: =IF(C97="","",SUM(T97:U97)) -> 26854074.14 | W97: =IF(C97="","",$B$33) -> 0.2574 | X97: =IF(C97="","",tax_credit-(V97*W97 +Upstream_CO2_taxpYear + Proc_CO2_taxpYear)) -> -6912238.683 | Y97: =IF(C97="","",SUM(T97,X97)) -> 42261620.87 | Z97: =IF(C97="","",IF($B$31=0,"",-'Debt Financing Calculations'!F46)) -> 0 | AA97: =IF(C97="","",SUM(H97,I97,J97,K97,T97,X97,Z97)) -> 14854631.53 | AB97: 430716216.5 | AC97: =IF(C97="","",SUM(H97,I97,J97,K97,T97,Z97)) -> 21766870.22 | AE97: =IF(C97="","",IF(C97<0,0,IF(AND(C97=1,start_time<1),(output_kgyear*start_time*percnt_revs+output_kgyear*(1-start_time)),IF(C97<=start_time,output_kgyear*percnt_revs,output_kgyear)))) -> 124628629.5 | AF97: =IF(C97="","",tax_credit) -> 0
A98: 2045 | B98: =IF(MAX($B$65:B97)<(construct+anal_period),B97+1,"") -> 34 | C98: 31 | D98: 31 | E98: 1.758836705 | F98: 335195261.2 | H98: 0 | I98: =IF(OR(C98<0,C98=""),"",-E98*INDEX('Replacement Costs'!$A$16:$H$57,MATCH(C98,'Replacement Costs'!$C$16:$C$57,0),MATCH("Total Yearly Replacement Costs",'Replacement Costs'!$A$16:$H$16,0))) -> -26856882.88 | J98: =IF(AND(C98>=1,C98<anal_period),WorkingCap*SUM(N98:R98)-WorkingCap*SUM(N97:R97),IF(C98<0,0,IF(B98="","",-SUM(J$65:J97)))) -> -1171362.73 | N98: -25202323.84 | O98: -208426314.5 | P98: 0 | Q98: 0 | R98: -44004665.38 | S98: =IF(B98="","",IF($B$31=0,"",-'Debt Financing Calculations'!E47)) -> -9947222.075 | T98: 47614735.4 | U98: =IF(C98="","",IF(C98<-1,0,IF(C98=anal_period,-LOOKUP(C98,depr_yr,depr_cost)-Depreciation!$C$141-Depreciation!$B$166,-LOOKUP(C98,depr_yr,depr_cost)))) -> -22743861.34 | V98: 24870874.06 | W98: 0.2574 | X98: -6401762.983 | Y98: 41212972.42 | Z98: =IF(C98="","",IF($B$31=0,"",-'Debt Financing Calculations'!F47)) -> 0 | AA98: 13184726.8 | AB98: 443900943.3 | AC98: 19586489.79 | AE98: 124628629.5 | AF98: 0
A99: 2046 | B99: =IF(MAX($B$65:B98)<(construct+anal_period),B98+1,"") -> 35 | C99: 32 | D99: 32 | E99: 1.792254602 | F99: 341563971.2 | H99: 0 | I99: =IF(OR(C99<0,C99=""),"",-E99*INDEX('Replacement Costs'!$A$16:$H$57,MATCH(C99,'Replacement Costs'!$C$16:$C$57,0),MATCH("Total Yearly Replacement Costs",'Replacement Costs'!$A$16:$H$16,0))) -> -27367163.66 | J99: =IF(AND(C99>=1,C99<anal_period),WorkingCap*SUM(N99:R99)-WorkingCap*SUM(N98:R98),IF(C99<0,0,IF(B99="","",-SUM(J$65:J98)))) -> -1106236.449 | N99: -25681167.99 | O99: -214444825.8 | P99: 0 | Q99: 0 | R99: -44882219.57 | S99: =IF(B99="","",IF($B$31=0,"",-'Debt Financing Calculations'!E48)) -> -9947222.075 | T99: 46608535.71 | U99: =IF(C99="","",IF(C99<-1,0,IF(C99=anal_period,-LOOKUP(C99,depr_yr,depr_cost)-Depreciation!$C$141-Depreciation!$B$166,-LOOKUP(C99,depr_yr,depr_cost)))) -> -23175994.7 | V99: 23432541 | W99: 0.2574 | X99: -6031536.054 | Y99: 40576999.65 | Z99: =IF(C99="","",IF($B$31=0,"",-'Debt Financing Calculations'!F48)) -> 0 | AA99: 12103599.54 | AB99: 456004542.8 | AC99: 18135135.6 | AE99: 124628629.5 | AF99: 0
A100: 2047 | B100: =IF(MAX($B$65:B99)<(construct+anal_period),B99+1,"") -> 36 | C100: 33 | D100: 33 | E100: 1.826307439 | F100: 348053686.6 | H100: 0 | I100: =IF(OR(C100<0,C100=""),"",-E100*INDEX('Replacement Costs'!$A$16:$H$57,MATCH(C100,'Replacement Costs'!$C$16:$C$57,0),MATCH("Total Yearly Replacement Costs",'Replacement Costs'!$A$16:$H$16,0))) -> -27887139.77 | J100: =IF(AND(C100>=1,C100<anal_period),WorkingCap*SUM(N100:R100)-WorkingCap*SUM(N99:R99),IF(C100<0,0,IF(B100="","",-SUM(J$65:J99)))) -> -1163062.262 | N100: -26169110.19 | O100: -220819953 | P100: 0 | Q100: 0 | R100: -45772898.65 | S100: =IF(B100="","",IF($B$31=0,"",-'Debt Financing Calculations'!E49)) -> -9947222.075 | T100: 45344502.75 | U100: =IF(C100="","",IF(C100<-1,0,IF(C100=anal_period,-LOOKUP(C100,depr_yr,depr_cost)-Depreciation!$C$141-Depreciation!$B$166,-LOOKUP(C100,depr_yr,depr_cost)))) -> -23616338.6 | V100: 21728164.15 | W100: 0.2574 | X100: -5592829.451 | Y100: 39751673.3 | Z100: =IF(C100="","",IF($B$31=0,"",-'Debt Financing Calculations'!F49)) -> 0 | AA100: 10701471.27 | AB100: 466706014.1 | AC100: 16294300.72 | AE100: 124628629.5 | AF100: 0
A101: 2048 | B101: =IF(MAX($B$65:B100)<(construct+anal_period),B100+1,"") -> 37 | C101: 34 | D101: 34 | E101: 1.861007281 | F101: 354666706.7 | H101: 0 | I101: =IF(OR(C101<0,C101=""),"",-E101*INDEX('Replacement Costs'!$A$16:$H$57,MATCH(C101,'Replacement Costs'!$C$16:$C$57,0),MATCH("Total Yearly Replacement Costs",'Replacement Costs'!$A$16:$H$16,0))) -> -28416995.42 | J101: =IF(AND(C101>=1,C101<anal_period),WorkingCap*SUM(N101:R101)-WorkingCap*SUM(N100:R100),IF(C101<0,0,IF(B101="","",-SUM(J$65:J100)))) -> -1459555.924 | N101: -26666323.28 | O101: -229139966.2 | P101: 0 | Q101: 0 | R101: -46686045.2 | S101: =IF(B101="","",IF($B$31=0,"",-'Debt Financing Calculations'!E50)) -> -9947222.075 | T101: 42227149.97 | U101: =IF(C101="","",IF(C101<-1,0,IF(C101=anal_period,-LOOKUP(C101,depr_yr,depr_cost)-Depreciation!$C$141-Depreciation!$B$166,-LOOKUP(C101,depr_yr,depr_cost)))) -> -24065049.04 | V101: 18162100.93 | W101: 0.2574 | X101: -4674924.78 | Y101: 37552225.19 | Z101: =IF(C101="","",IF($B$31=0,"",-'Debt Financing Calculations'!F50)) -> 0 | AA101: 7675673.841 | AB101: 474381687.9 | AC101: 12350598.62 | AE101: 124628629.5 | AF101: 0
A102: 2049 | B102: =IF(MAX($B$65:B101)<(construct+anal_period),B101+1,"") -> 38 | C102: 35 | D102: 35 | E102: 1.896366419 | F102: 361405374.1 | H102: 0 | I102: =IF(OR(C102<0,C102=""),"",-E102*INDEX('Replacement Costs'!$A$16:$H$57,MATCH(C102,'Replacement Costs'!$C$16:$C$57,0),MATCH("Total Yearly Replacement Costs",'Replacement Costs'!$A$16:$H$16,0))) -> -28956918.34 | J102: =IF(AND(C102>=1,C102<anal_period),WorkingCap*SUM(N102:R102)-WorkingCap*SUM(N101:R101),IF(C102<0,0,IF(B102="","",-SUM(J$65:J101)))) -> -1072979.667 | N102: -27172983.42 | O102: -234861098.7 | P102: 0 | Q102: 0 | R102: -47611450.34 | S102: =IF(B102="","",IF($B$31=0,"",-'Debt Financing Calculations'!E51)) -> -9947222.075 | T102: 41812619.62 | U102: =IF(C102="","",IF(C102<-1,0,IF(C102=anal_period,-LOOKUP(C102,depr_yr,depr_cost)-Depreciation!$C$141-Depreciation!$B$166,-LOOKUP(C102,depr_yr,depr_cost)))) -> -24522284.97 | V102: 17290334.65 | W102: 0.2574 | X102: -4450532.139 | Y102: 37362087.48 | Z102: =IF(C102="","",IF($B$31=0,"",-'Debt Financing Calculations'!F51)) -> 0 | AA102: 7332189.475 | AB102: 481713877.4 | AC102: 11782721.61 | AE102: 124628629.5 | AF102: 0
A103: 2050 | B103: =IF(MAX($B$65:B102)<(construct+anal_period),B102+1,"") -> 39 | C103: 36 | D103: 36 | E103: 1.932397381 | F103: 368272076.2 | H103: 0 | I103: =IF(OR(C103<0,C103=""),"",-E103*INDEX('Replacement Costs'!$A$16:$H$57,MATCH(C103,'Replacement Costs'!$C$16:$C$57,0),MATCH("Total Yearly Replacement Costs",'Replacement Costs'!$A$16:$H$16,0))) -> -29507099.78 | J103: =IF(AND(C103>=1,C103<anal_period),WorkingCap*SUM(N103:R103)-WorkingCap*SUM(N102:R102),IF(C103<0,0,IF(B103="","",-SUM(J$65:J102)))) -> -1342697.182 | N103: -27689270.11 | O103: -242353603.1 | P103: 0 | Q103: 0 | R103: -48553973.78 | S103: =IF(B103="","",IF($B$31=0,"",-'Debt Financing Calculations'!E52)) -> -9947222.075 | T103: 39728007.18 | U103: =IF(C103="","",IF(C103<-1,0,IF(C103=anal_period,-LOOKUP(C103,depr_yr,depr_cost)-Depreciation!$C$141-Depreciation!$B$166,-LOOKUP(C103,depr_yr,depr_cost)))) -> -24988208.38 | V103: 14739798.8 | W103: 0.2574 | X103: -3794024.211 | Y103: 35933982.97 | Z103: =IF(C103="","",IF($B$31=0,"",-'Debt Financing Calculations'!F52)) -> 0 | AA103: 5084186.003 | AB103: 486798063.4 | AC103: 8878210.213 | AE103: 124628629.5 | AF103: 0
A104: 2051 | B104: =IF(MAX($B$65:B103)<(construct+anal_period),B103+1,"") -> 40 | C104: 37 | D104: 37 | E104: 1.969112931 | F104: 375269245.7 | H104: 0 | I104: =IF(OR(C104<0,C104=""),"",-E104*INDEX('Replacement Costs'!$A$16:$H$57,MATCH(C104,'Replacement Costs'!$C$16:$C$57,0),MATCH("Total Yearly Replacement Costs",'Replacement Costs'!$A$16:$H$16,0))) -> -30067734.68 | J104: =IF(AND(C104>=1,C104<anal_period),WorkingCap*SUM(N104:R104)-WorkingCap*SUM(N103:R103),IF(C104<0,0,IF(B104="","",-SUM(J$65:J103)))) -> -1115643.398 | N104: -28215366.24 | O104: -248331247.2 | P104: 0 | Q104: 0 | R104: -49487856.24 | S104: =IF(B104="","",IF($B$31=0,"",-'Debt Financing Calculations'!E53)) -> -9947222.075 | T104: 39287553.97 | U104: =IF(C104="","",IF(C104<-1,0,IF(C104=anal_period,-LOOKUP(C104,depr_yr,depr_cost)-Depreciation!$C$141-Depreciation!$B$166,-LOOKUP(C104,depr_yr,depr_cost)))) -> -25462984.34 | V104: 13824569.63 | W104: 0.2574 | X104: -3558444.223 | Y104: 35729109.75 | Z104: =IF(C104="","",IF($B$31=0,"",-'Debt Financing Calculations'!F53)) -> 0 | AA104: 4545731.67 | AB104: 491343795.1 | AC104: 8104175.893 | AE104: 124628629.5 | AF104: 0
A105: 2052 | B105: =IF(MAX($B$65:B104)<(construct+anal_period),B104+1,"") -> 41 | C105: 38 | D105: 38 | E105: 2.006526077 | F105: 382399361.3 | H105: 0 | I105: =IF(OR(C105<0,C105=""),"",-E105*INDEX('Replacement Costs'!$A$16:$H$57,MATCH(C105,'Replacement Costs'!$C$16:$C$57,0),MATCH("Total Yearly Replacement Costs",'Replacement Costs'!$A$16:$H$16,0))) -> -30639021.64 | J105: =IF(AND(C105>=1,C105<anal_period),WorkingCap*SUM(N105:R105)-WorkingCap*SUM(N104:R104),IF(C105<0,0,IF(B105="","",-SUM(J$65:J104)))) -> -1141954.04 | N105: -28751458.2 | O105: -254456329.6 | P105: 0 | Q105: 0 | R105: -50439708.74 | S105: =IF(B105="","",IF($B$31=0,"",-'Debt Financing Calculations'!E54)) -> -9947222.075 | T105: 38804642.71 | U105: =IF(C105="","",IF(C105<-1,0,IF(C105=anal_period,-LOOKUP(C105,depr_yr,depr_cost)-Depreciation!$C$141-Depreciation!$B$166,-LOOKUP(C105,depr_yr,depr_cost)))) -> -25946781.04 | V105: 12857861.66 | W105: 0.2574 | X105: -3309613.592 | Y105: 35495029.12 | Z105: =IF(C105="","",IF($B$31=0,"",-'Debt Financing Calculations'!F54)) -> 0 | AA105: 3714053.436 | AB105: 495057848.5 | AC105: 7023667.028 | AE105: 124628629.5 | AF105: 0
A106: 2053 | B106: =IF(MAX($B$65:B105)<(construct+anal_period),B105+1,"") -> 42 | C106: 39 | D106: 39 | E106: 2.044650072 | F106: 389664949.2 | H106: 0 | I106: =IF(OR(C106<0,C106=""),"",-E106*INDEX('Replacement Costs'!$A$16:$H$57,MATCH(C106,'Replacement Costs'!$C$16:$C$57,0),MATCH("Total Yearly Replacement Costs",'Replacement Costs'!$A$16:$H$16,0))) -> -31221163.05 | J106: =IF(AND(C106>=1,C106<anal_period),WorkingCap*SUM(N106:R106)-WorkingCap*SUM(N105:R105),IF(C106<0,0,IF(B106="","",-SUM(J$65:J105)))) -> -1168890.545 | N106: -29297735.9 | O106: -260732487.1 | P106: 0 | Q106: 0 | R106: -51409877.23 | S106: =IF(B106="","",IF($B$31=0,"",-'Debt Financing Calculations'!E55)) -> -9947222.075 | T106: =IF(C106="","",F106+SUM(L106:S106)) -> 38277626.94 | U106: =IF(C106="","",IF(C106<-1,0,IF(C106=anal_period,-LOOKUP(C106,depr_yr,depr_cost)-Depreciation!$C$141-Depreciation!$B$166,-LOOKUP(C106,depr_yr,depr_cost)))) -> -26439769.88 | V106: 11837857.06 | W106: 0.2574 | X106: -3047064.407 | Y106: 35230562.54 | Z106: =IF(C106="","",IF($B$31=0,"",-'Debt Financing Calculations'!F55)) -> 0 | AA106: 2840508.94 | AB106: 497898357.5 | AC106: =IF(C106="","",SUM(H106,I106,J106,K106,T106,Z106)) -> 5887573.346 | AE106: 124628629.5 | AF106: 0
A107: 2054 | B107: =IF(MAX($B$65:B106)<(construct+anal_period),B106+1,"") -> 43 | C107: 40 | D107: 40 | E107: 2.083498424 | F107: 397068583.2 | H107: 0 | I107: =IF(OR(C107<0,C107=""),"",-E107*INDEX('Replacement Costs'!$A$16:$H$57,MATCH(C107,'Replacement Costs'!$C$16:$C$57,0),MATCH("Total Yearly Replacement Costs",'Replacement Costs'!$A$16:$H$16,0))) -> -31814365.15 | J107: =IF(AND(C107>=1,C107<anal_period),WorkingCap*SUM(N107:R107)-WorkingCap*SUM(N106:R106),IF(C107<0,0,IF(B107="","",-SUM(J$65:J106)))) -> 51216015.03 | L107: 99004046.48 | M107: -98778986.9 | N107: -29854392.88 | O107: -267163445.7 | P107: 0 | Q107: 0 | R107: -52398714.3 | S107: =IF(B107="","",IF($B$31=0,"",-'Debt Financing Calculations'!E56)) -> -9947222.075 | T107: 37929867.83 | U107: =IF(C107="","",IF(C107<-1,0,IF(C107=anal_period,-LOOKUP(C107,depr_yr,depr_cost)-Depreciation!$C$141-Depreciation!$B$166,-LOOKUP(C107,depr_yr,depr_cost)))) -> -288248030.3 | V107: -250318162.5 | W107: 0.2574 | X107: 64431895.02 | Y107: 102361762.9 | Z107: =IF(C107="","",IF($B$31=0,"",-'Debt Financing Calculations'!F56)) -> -268843839.9 | AA107: -147080427.1 | AB107: 350817930.3 | AC107: -211512322.1 | AE107: 124628629.5 | AF107: 0
B108: =IF(MAX($B$65:B107)<(construct+anal_period),B107+1,"") ->  | I108: =IF(OR(C108<0,C108=""),"",-E108*INDEX('Replacement Costs'!$A$16:$H$57,MATCH(C108,'Replacement Costs'!$C$16:$C$57,0),MATCH("Total Yearly Replacement Costs",'Replacement Costs'!$A$16:$H$16,0))) ->  | J108: =IF(AND(C108>=1,C108<anal_period),WorkingCap*SUM(N108:R108)-WorkingCap*SUM(N107:R107),IF(C108<0,0,IF(B108="","",-SUM(J$65:J107)))) ->  | S108: =IF(B108="","",IF($B$31=0,"",-'Debt Financing Calculations'!E57)) ->  | U108: =IF(C108="","",IF(C108<-1,0,IF(C108=anal_period,-LOOKUP(C108,depr_yr,depr_cost)-Depreciation!$C$141-Depreciation!$B$166,-LOOKUP(C108,depr_yr,depr_cost)))) ->  | Z108: =IF(C108="","",IF($B$31=0,"",-'Debt Financing Calculations'!F57)) -> 
B109: =IF(MAX($B$65:B108)<(construct+anal_period),B108+1,"") ->  | I109: =IF(OR(C109<0,C109=""),"",-E109*INDEX('Replacement Costs'!$A$16:$H$57,MATCH(C109,'Replacement Costs'!$C$16:$C$57,0),MATCH("Total Yearly Replacement Costs",'Replacement Costs'!$A$16:$H$16,0))) ->  | J109: =IF(AND(C109>=1,C109<anal_period),WorkingCap*SUM(N109:R109)-WorkingCap*SUM(N108:R108),IF(C109<0,0,IF(B109="","",-SUM(J$65:J108)))) ->  | S109: =IF(B109="","",IF($B$31=0,"",-'Debt Financing Calculations'!E58)) ->  | U109: =IF(C109="","",IF(C109<-1,0,IF(C109=anal_period,-LOOKUP(C109,depr_yr,depr_cost)-Depreciation!$C$141-Depreciation!$B$166,-LOOKUP(C109,depr_yr,depr_cost)))) ->  | Z109: =IF(C109="","",IF($B$31=0,"",-'Debt Financing Calculations'!F58)) -> 
B110: =IF(MAX($B$65:B109)<(construct+anal_period),B109+1,"") ->  | I110: =IF(OR(C110<0,C110=""),"",-E110*INDEX('Replacement Costs'!$A$16:$H$57,MATCH(C110,'Replacement Costs'!$C$16:$C$57,0),MATCH("Total Yearly Replacement Costs",'Replacement Costs'!$A$16:$H$16,0))) ->  | J110: =IF(AND(C110>=1,C110<anal_period),WorkingCap*SUM(N110:R110)-WorkingCap*SUM(N109:R109),IF(C110<0,0,IF(B110="","",-SUM(J$65:J109)))) ->  | O110: =IF(C110="","",IF(C110<0,0,IF(AND(C110=1,start_time<1),-(SUM(B185:E185)*output_kgyear*E110*percnt_var*start_time+SUM(B185:E185)*output_kgyear*E110*(1-start_time)),IF(C110<=start_time,-SUM(B185:E185)*output_kgyear*E110*percnt_var,-SUM(B185:E185)*output_kgyear*E110)))) ->  | Q110: =IF(C110="","",IF(C110<0,0,IF(AND(C110=1,start_time<1),SUM(K185:N185,T185:V185)*output_kgyear*E110*percnt_revs*start_time+SUM(K185:N185,T185:V185)*output_kgyear*E110*(1-start_time),IF(C110<=start_time,SUM(K185:N185,T185:V185)*output_kgyear*E110*percnt_revs,SUM(K185:N185,T185:V185)*output_kgyear*E110)))) ->  | R110: =IF(C110="","",IF(C110<0,0,IF(AND(C110=1,start_time<1),-((SUM(F185:J185,P185:R185)*output_kgyear+inflated_othervar)*E110*percnt_var*start_time+(SUM(F185:J185,P185:R185)*output_kgyear+inflated_othervar)*E110*(1-start_time)),IF(C110<=start_time,-(SUM(F185:J185,P185:R185)*output_kgyear+inflated_othervar)*E110*percnt_var,-E110*(SUM(F185:J185,P185:R185)*output_kgyear+inflated_othervar))))) ->  | S110: =IF(B110="","",IF($B$31=0,"",-'Debt Financing Calculations'!E59)) ->  | U110: =IF(C110="","",IF(C110<-1,0,IF(C110=anal_period,-LOOKUP(C110,depr_yr,depr_cost)-Depreciation!$C$141-Depreciation!$B$166,-LOOKUP(C110,depr_yr,depr_cost)))) ->  | Z110: =IF(C110="","",IF($B$31=0,"",-'Debt Financing Calculations'!F59)) -> 
B111: =IF(MAX($B$65:B110)<(construct+anal_period),B110+1,"") ->  | I111: =IF(OR(C111<0,C111=""),"",-E111*INDEX('Replacement Costs'!$A$16:$H$57,MATCH(C111,'Replacement Costs'!$C$16:$C$57,0),MATCH("Total Yearly Replacement Costs",'Replacement Costs'!$A$16:$H$16,0))) ->  | J111: =IF(AND(C111>=1,C111<anal_period),WorkingCap*SUM(N111:R111)-WorkingCap*SUM(N110:R110),IF(C111<0,0,IF(B111="","",-SUM(J$65:J110)))) ->  | O111: =IF(C111="","",IF(C111<0,0,IF(AND(C111=1,start_time<1),-(SUM(B278:E278)*output_kgyear*E111*percnt_var*start_time+SUM(B278:E278)*output_kgyear*E111*(1-start_time)),IF(C111<=start_time,-SUM(B278:E278)*output_kgyear*E111*percnt_var,-SUM(B278:E278)*output_kgyear*E111)))) ->  | Q111: =IF(C111="","",IF(C111<0,0,IF(AND(C111=1,start_time<1),SUM(K278:N278,T278:V278)*output_kgyear*E111*percnt_revs*start_time+SUM(K278:N278,T278:V278)*output_kgyear*E111*(1-start_time),IF(C111<=start_time,SUM(K278:N278,T278:V278)*output_kgyear*E111*percnt_revs,SUM(K278:N278,T278:V278)*output_kgyear*E111)))) ->  | R111: =IF(C111="","",IF(C111<0,0,IF(AND(C111=1,start_time<1),-((SUM(F278:J278,P278:R278)*output_kgyear+inflated_othervar)*E111*percnt_var*start_time+(SUM(F278:J278,P278:R278)*output_kgyear+inflated_othervar)*E111*(1-start_time)),IF(C111<=start_time,-(SUM(F278:J278,P278:R278)*output_kgyear+inflated_othervar)*E111*percnt_var,-E111*(SUM(F278:J278,P278:R278)*output_kgyear+inflated_othervar))))) ->  | S111: =IF(B111="","",IF($B$31=0,"",-'Debt Financing Calculations'!E60)) ->  | U111: =IF(C111="","",IF(C111<-1,0,IF(C111=anal_period,-LOOKUP(C111,depr_yr,depr_cost)-Depreciation!$C$141-Depreciation!$B$166,-LOOKUP(C111,depr_yr,depr_cost)))) ->  | Z111: =IF(C111="","",IF($B$31=0,"",-'Debt Financing Calculations'!F60)) -> 
B112: =IF(MAX($B$65:B111)<(construct+anal_period),B111+1,"") ->  | I112: =IF(OR(C112<0,C112=""),"",-E112*INDEX('Replacement Costs'!$A$16:$H$57,MATCH(C112,'Replacement Costs'!$C$16:$C$57,0),MATCH("Total Yearly Replacement Costs",'Replacement Costs'!$A$16:$H$16,0))) ->  | J112: =IF(AND(C112>=1,C112<anal_period),WorkingCap*SUM(N112:R112)-WorkingCap*SUM(N111:R111),IF(C112<0,0,IF(B112="","",-SUM(J$65:J111)))) ->  | O112: =IF(C112="","",IF(C112<0,0,IF(AND(C112=1,start_time<1),-(SUM(B279:E279)*output_kgyear*E112*percnt_var*start_time+SUM(B279:E279)*output_kgyear*E112*(1-start_time)),IF(C112<=start_time,-SUM(B279:E279)*output_kgyear*E112*percnt_var,-SUM(B279:E279)*output_kgyear*E112)))) ->  | Q112: =IF(C112="","",IF(C112<0,0,IF(AND(C112=1,start_time<1),SUM(K279:N279,T279:V279)*output_kgyear*E112*percnt_revs*start_time+SUM(K279:N279,T279:V279)*output_kgyear*E112*(1-start_time),IF(C112<=start_time,SUM(K279:N279,T279:V279)*output_kgyear*E112*percnt_revs,SUM(K279:N279,T279:V279)*output_kgyear*E112)))) ->  | R112: =IF(C112="","",IF(C112<0,0,IF(AND(C112=1,start_time<1),-((SUM(F279:J279,P279:R279)*output_kgyear+inflated_othervar)*E112*percnt_var*start_time+(SUM(F279:J279,P279:R279)*output_kgyear+inflated_othervar)*E112*(1-start_time)),IF(C112<=start_time,-(SUM(F279:J279,P279:R279)*output_kgyear+inflated_othervar)*E112*percnt_var,-E112*(SUM(F279:J279,P279:R279)*output_kgyear+inflated_othervar))))) ->  | S112: =IF(B112="","",IF($B$31=0,"",-'Debt Financing Calculations'!E61)) ->  | U112: =IF(C112="","",IF(C112<-1,0,IF(C112=anal_period,-LOOKUP(C112,depr_yr,depr_cost)-Depreciation!$C$141-Depreciation!$B$166,-LOOKUP(C112,depr_yr,depr_cost)))) ->  | Z112: =IF(C112="","",IF($B$31=0,"",-'Debt Financing Calculations'!F61)) -> 
B113: =IF(MAX($B$65:B112)<(construct+anal_period),B112+1,"") ->  | I113: =IF(OR(C113<0,C113=""),"",-E113*INDEX('Replacement Costs'!$A$16:$H$57,MATCH(C113,'Replacement Costs'!$C$16:$C$57,0),MATCH("Total Yearly Replacement Costs",'Replacement Costs'!$A$16:$H$16,0))) ->  | J113: =IF(AND(C113>=1,C113<anal_period),WorkingCap*SUM(N113:R113)-WorkingCap*SUM(N112:R112),IF(C113<0,0,IF(B113="","",-SUM(J$65:J112)))) ->  | O113: =IF(C113="","",IF(C113<0,0,IF(AND(C113=1,start_time<1),-(SUM(B280:E280)*output_kgyear*E113*percnt_var*start_time+SUM(B280:E280)*output_kgyear*E113*(1-start_time)),IF(C113<=start_time,-SUM(B280:E280)*output_kgyear*E113*percnt_var,-SUM(B280:E280)*output_kgyear*E113)))) ->  | Q113: =IF(C113="","",IF(C113<0,0,IF(AND(C113=1,start_time<1),SUM(K280:N280,T280:V280)*output_kgyear*E113*percnt_revs*start_time+SUM(K280:N280,T280:V280)*output_kgyear*E113*(1-start_time),IF(C113<=start_time,SUM(K280:N280,T280:V280)*output_kgyear*E113*percnt_revs,SUM(K280:N280,T280:V280)*output_kgyear*E113)))) ->  | R113: =IF(C113="","",IF(C113<0,0,IF(AND(C113=1,start_time<1),-((SUM(F280:J280,P280:R280)*output_kgyear+inflated_othervar)*E113*percnt_var*start_time+(SUM(F280:J280,P280:R280)*output_kgyear+inflated_othervar)*E113*(1-start_time)),IF(C113<=start_time,-(SUM(F280:J280,P280:R280)*output_kgyear+inflated_othervar)*E113*percnt_var,-E113*(SUM(F280:J280,P280:R280)*output_kgyear+inflated_othervar))))) ->  | S113: =IF(B113="","",IF($B$31=0,"",-'Debt Financing Calculations'!E62)) ->  | U113: =IF(C113="","",IF(C113<-1,0,IF(C113=anal_period,-LOOKUP(C113,depr_yr,depr_cost)-Depreciation!$C$141-Depreciation!$B$166,-LOOKUP(C113,depr_yr,depr_cost)))) ->  | Z113: =IF(C113="","",IF($B$31=0,"",-'Debt Financing Calculations'!F62)) -> 
E114: Cumulative Total | F114: =SUM(F65:F113) -> 1.116971469e+10 | G114: -268843839.9 | H114: -183472571.7 | I114: -889687814 | J114: 0 | K114: -1020896.638 | L114: 99004046.48 | M114: -98778986.9 | N114: -843399506.3 | O114: -6616890370 | P114: 0 | Q114: 0 | R114: -1466121905 | S114: -427730549.2 | T114: 1815797421 | U114: -1342004226 | V114: 473793195.5 | W114: 11.0682 | X114: -121954368.5 | Y114: 1693843053 | Z114: -268843839.9 | AA114: 350817930.3 | AB114: 8912186342 | AC114: 472772298.9
E115: PV of Cash Flow | F115: =NPV(nominal_irr,F65:F113) -> 1608242386 | G115: -244288009.2 | H115: -148185754.2 | I115: -125268542.3 | J115: -16189351.32 | K115: -927649.3273 | L115: 1610428.869 | M115: -1606767.984 | N115: -123361008.7 | O115: -851742051.8 | P115: 0 | Q115: 0 | R115: -212216473 | S115: -97347966.99 | T115: 323578546.6 | U115: -212334737 | V115: 111243809.6 | W115: 2.519031596 | X115: -28634156.58 | Y115: 294944390 | Z115: -4373092.78 | AA115: 1.307466814e-06 | AB115: -56769870.56 | AC115: 28634156.58
E116: Discounted Values | F116: =+F65+NPV($X$59,F66:F113) -> 1769902911 | G116: -268843839.9 | H116: =+H65+NPV($X$59,H66:H113) -> -163081386.2 | I116: -137860536.2 | J116: -17816704.92 | K116: -1020896.638 | L116: 1772309.179 | M116: -1768280.301 | N116: -135761257.3 | O116: -937359162.9 | P116: 0 | Q116: 0 | R116: -233548472.9 | S116: -107133384.6 | T116: 356104662.1 | U116: -233678624.8 | V116: 122426037.3 | W116: 2.772244653 | X116: -31512462 | Y116: 324592200.1 | Z116: -4812676.067 | AA116: 1.464039087e-06 | AB116: -62476377.94 | AC116: 31512462 | AE116: =+AE65+NPV(real_irr,AE66:AE113) -> 1224665447 | AF116: =+AF65+NPV($X$59,AF66:AF113) -> 0
A117: Specific Item Cost Calculation | E117: Expenses $/kg H2 | H117: =-H116/$AE$116*(1+inflation_rate)^construct/INFLATION_FACTOR -> 0.1435766003 | I117: =-I116/$AE$116*(1+inflation_rate)^construct/INFLATION_FACTOR -> 0.121372203 | J117: =-J116/$AE$116*(1+inflation_rate)^construct/INFLATION_FACTOR -> 0.01568579946 | K117: =-K116/$AE$116*(1+inflation_rate)^construct/INFLATION_FACTOR -> 0.0008987958215 | M117: =-M116/$AE$116*(1+inflation_rate)^construct/INFLATION_FACTOR -> 0.001556791244 | N117: =-N116/$AE$116*(1+inflation_rate)^construct/INFLATION_FACTOR -> 0.1195240011 | O117: =-O116/$AE$116*(1+inflation_rate)^construct/INFLATION_FACTOR -> 0.8252495578 | P117: =-P116/$AE$116*(1+inflation_rate)^construct/INFLATION_FACTOR -> 0 | R117: =-R116/$AE$116*(1+inflation_rate)^construct/INFLATION_FACTOR -> 0.2056157145 | S117: =-S116/$AE$116*(1+inflation_rate)^construct/INFLATION_FACTOR -> 0.0943200662 | X117: =-X116/$AE$116*(1+inflation_rate)^construct/INFLATION_FACTOR -> 0.02774352283 | Z117: =-Z116/$AE$116*(1+inflation_rate)^construct/INFLATION_FACTOR -> 0.004237072569 | AG117: =+SUM(F117:AC117) -> 1.559780125
A118: Cost Component | B118: After Tax Present Value | C118: % of Total | D118: $/kg of H2 | E118: Revenues $/kg H2 | F118: =F116/$AE$116*(1+inflation_rate)^construct/INFLATION_FACTOR -> 1.558219787 | L118: =L116/$AE$116*(1+inflation_rate)^construct/INFLATION_FACTOR -> 0.001560338261 | Q118: =Q116/$AE$116*(1+inflation_rate)^construct/INFLATION_FACTOR -> 0 | AG118: =+SUM(F118:AC118) -> 1.559780125
A119: Capital-Related Costs | B119: =(SUM(H115:K115)+L115*(1-total_tax_rate)+S115*(1-total_tax_rate)+U115*(-total_tax_rate)+Z115)/(1-total_tax_rate) -> -419316084.7 | C119: =B119/SUM($B$118:$B$125) -> 0.2607294076 | D119: =H2_price_real*C119 -> 0.4062737219
A120: Decommissioning Costs | B120: =M115 -> -1606767.984 | C120: 0.0009990832211 | D120: 0.001556791244
A121: Fixed O&M | B121: =N115 -> -123361008.7 | C121: 0.07670548281 | D121: 0.1195240011
A122: Feedstock Costs | B122: =O115 -> -851742051.8 | C122: 0.5296104984 | D122: 0.8252495578
A123: Other Raw Material Costs | B123: =P115 -> 0 | C123: 0 | D123: 0
A124: Byproduct Credits | B124: =Q115 -> 0 | C124: 0 | D124: 0
A125: Other Variable Costs (including utilities) | B125: =R115 -> -212216473 | C125: 0.1319555279 | D125: 0.2056157145
A128: INFLATION FACTOR (1 + inflation rate)^(startup year - reference year) = | B128: =(1+inflation_rate)^(startup_year-ref_year) -> 0.9813542689
A129: Feedstock, Utility and Byproduct Cost Information (Start-Up Year $)
B130: Energy Feedstocks | F130: Energy Utilities | J130: Carbon Sequestration Electricity Usage | K130: Energy Byproducts | O130: Other Material Inputs | S130: Other Material Byproducts
A131: Feedstock Name | B131: =Input_Sheet_Template!$B$75 -> Industrial Natural Gas | F131: =Input_Sheet_Template!$B$78 -> Industrial Electricity | J131: =IF(CO2_CashFlow_eUse>0,'HyARC Physical Property Data'!A77,"") -> Industrial Electricity | O131: Type | P131: =Input_Sheet_Template!$B$138 -> Demineralized Water | Q131: =Input_Sheet_Template!$B$140 -> Cooling Water | S131: Type
A132: LHV (GJ or mmBtu/usage unit) | B132: =Input_Sheet_Template!$C$75 -> 1.055 | F132: =Input_Sheet_Template!$C$78 -> 0.0036 | J132: =IF(J131="",0,VLOOKUP(J131,MASTER_PROPERTY_TABLE,9,FALSE)) -> 0.0036 | O132: Usage (/kg H2) | P132: =Input_Sheet_Template!$D$138 -> 3.355 | Q132: =Input_Sheet_Template!$D$140 -> 1.495 | S132: Usage (/kg H2)
A133: Usage (/kg H2) | B133: =feedstockIndustrial_Natural_Gas_Usage -> 0.1558 | F133: =utilityIndustrial_Electricity_Usage -> 0.6 | J133: =CO2_eUse_kWhpkg -> 0.05309432243 | O133: Cost (/usage unit) | P133: =Input_Sheet_Template!$C$138 -> 0.007124853284 | Q133: =Input_Sheet_Template!$C$140 -> 0.0001133499386 | S133: Price (/usage unit)
A134: Price ($/ usage unit) | B134: =feedstockIndustrial_Natural_Gas_Price -> 4.250547516 | F134: =utilityIndustrial_Electricity_Price -> 0.06998061126 | J134: =IF(J131="",0,CO2_eCost) -> 0.06998061126 | O134: Lookup Price? | P134: =Input_Sheet_Template!$F$138 -> Yes | Q134: =Input_Sheet_Template!$F$140 -> Yes | S134: Lookup Price?
A135: Lookup Price? | B135: =Input_Sheet_Template!$G$75 -> yes | F135: =Input_Sheet_Template!$G$78 -> yes | J135: =IF(J131="","","yes") -> yes
A136: CO2 Emissions (kg CO2/kg H2) | B136: =IF(B131="",0,VLOOKUP(B131,MASTER_PROPERTY_TABLE,11,FALSE)*B132*B133) -> 9.256495897 | C136: =IF(C131="",0,VLOOKUP(C131,MASTER_PROPERTY_TABLE,11,FALSE)*C132*C133) -> 0 | D136: =IF(D131="",0,VLOOKUP(D131,MASTER_PROPERTY_TABLE,11,FALSE)*D132*D133) -> 0 | E136: =IF(E131="",0,VLOOKUP(E131,MASTER_PROPERTY_TABLE,11,FALSE)*E132*E133) -> 0 | F136: =IF(F131="",,VLOOKUP(F131,MASTER_PROPERTY_TABLE,11,FALSE)*F132*F133) -> 0 | G136: =IF(G131="",,VLOOKUP(G131,MASTER_PROPERTY_TABLE,11,FALSE)*G132*G133) -> 0 | H136: =IF(H131="",,VLOOKUP(H131,MASTER_PROPERTY_TABLE,11,FALSE)*H132*H133) -> 0 | I136: =IF(I131="",,VLOOKUP(I131,MASTER_PROPERTY_TABLE,11,FALSE)*I132*I133) -> 0 | J136: =IF($J$131="",0,VLOOKUP($J$131,MASTER_PROPERTY_TABLE,12,FALSE)*$J$132*$J$133) -> 0
A137: Unit System Conversion Factor | B137: =IF(B131="",0,IF(VLOOKUP(B131,MASTER_PROPERTY_TABLE,12,FALSE)="English",mmBTU_to_GJ,1)) -> 1 | C137: =IF(C131="",0,IF(VLOOKUP(C131,MASTER_PROPERTY_TABLE,12,FALSE)="English",mmBTU_to_GJ,1)) -> 0 | D137: =IF(D131="",0,IF(VLOOKUP(D131,MASTER_PROPERTY_TABLE,12,FALSE)="English",mmBTU_to_GJ,1)) -> 0 | E137: =IF(E131="",,IF(VLOOKUP(E131,MASTER_PROPERTY_TABLE,12,FALSE)="English",mmBTU_to_GJ,1)) -> 0 | F137: =IF(F131="",,IF(VLOOKUP(F131,MASTER_PROPERTY_TABLE,12,FALSE)="English",mmBTU_to_GJ,1)) -> 1 | G137: =IF(G131="",,IF(VLOOKUP(G131,MASTER_PROPERTY_TABLE,12,FALSE)="English",mmBTU_to_GJ,1)) -> 0 | H137: =IF(H131="",,IF(VLOOKUP(H131,MASTER_PROPERTY_TABLE,12,FALSE)="English",mmBTU_to_GJ,1)) -> 0 | I137: =IF(I131="",,IF(VLOOKUP(I131,MASTER_PROPERTY_TABLE,12,FALSE)="English",mmBTU_to_GJ,1)) -> 0 | J137: =IF($J$131="",0,IF(VLOOKUP($J$131,MASTER_PROPERTY_TABLE,12,FALSE)="English",mmBTU_to_GJ,1)) -> 1 | K137: =IF(K131="",,IF(VLOOKUP(K131,MASTER_PROPERTY_TABLE,12,FALSE)="English",mmBTU_to_GJ,1)) -> 0 | L137: =IF(L131="",,IF(VLOOKUP(L131,MASTER_PROPERTY_TABLE,12,FALSE)="English",mmBTU_to_GJ,1)) -> 0 | M137: =IF(M131="",,IF(VLOOKUP(M131,MASTER_PROPERTY_TABLE,12,FALSE)="English",mmBTU_to_GJ,1)) -> 0 | N137: =IF(N131="",,IF(VLOOKUP(N131,MASTER_PROPERTY_TABLE,12,FALSE)="English",mmBTU_to_GJ,1)) -> 0
A138: Actual Year | B138: =IF(B$131="","",B$131&" ($/kg of H2)") -> Industrial Natural Gas ($/kg of H2) | F138: Industrial Electricity ($/kg of H2) | P138: =IF(P$131="","",P$131&" ($/kg of H2)") -> Demineralized Water ($/kg of H2) | Q138: =IF(Q$131="","",Q$131&" ($/kg of H2)") -> Cooling Water ($/kg of H2) | R138: =IF(R$131="","",R$131&" ($/kg of H2)") ->  | T138: =IF(T$131="","",T$131&" ($/kg of H2)") ->  | U138: =IF(U$131="","",U$131&" ($/kg of H2)") ->  | V138: =IF(V$131="","",V$131&" ($/kg of H2)") -> 
A139: =IF(A65="","",A65) -> 2012 | B139: =IF($A139="","",IF($B$131="","",IF($B$135="no",INFLATION_FACTOR*$B$133*$B$134,INFLATION_FACTOR*$B$133*$B$132*INDEX(FEEDPRICETABLE,MATCH($B$131,List_Energy_Feedstocks,0),MATCH($A139,Feedstock_Year,0))))) -> 0.6708726401 | C139: =IF($A139="","",IF($C$131="","",IF($C$135="no",INFLATION_FACTOR*$C$133*$C$134,INFLATION_FACTOR*$C$133*$C$132*INDEX(FEEDPRICETABLE,MATCH($C$131,List_Energy_Feedstocks,0),MATCH($A139,Feedstock_Year,0))))) ->  | D139: =IF($A139="","",IF($D$131="","",IF($D$135="no",INFLATION_FACTOR*$D$133*$D$134,INFLATION_FACTOR*$D$133*$D$132*INDEX(FEEDPRICETABLE,MATCH($D$131,List_Energy_Feedstocks,0),MATCH($A139,Feedstock_Year,0))))) ->  | E139: =IF($A139="","",IF($E$131="","",IF($E$135="no",INFLATION_FACTOR*$E$133*$E$134,INFLATION_FACTOR*$E$133*$E$132*INDEX(FEEDPRICETABLE,MATCH($E$131,List_Energy_Feedstocks,0),MATCH($A139,Feedstock_Year,0))))) ->  | F139: =IF($A139="","",IF($F$131="","",IF($F$135="no",INFLATION_FACTOR*$F$133*$F$134,INFLATION_FACTOR*$F$133*$F$132*INDEX(FEEDPRICETABLE,MATCH($F$131,List_Energy_Feedstocks,0),MATCH($A139,Feedstock_Year,0))))) -> 0.04158774239 | G139: =IF($A139="","",IF($G$131="","",IF($G$135="no",INFLATION_FACTOR*$G$133*$G$134,INFLATION_FACTOR*$G$133*$G$132*INDEX(FEEDPRICETABLE,MATCH($G$131,List_Energy_Feedstocks,0),MATCH($A139,Feedstock_Year,0))))) ->  | H139: =IF($A139="","",IF($H$131="","",IF($H$135="no",INFLATION_FACTOR*$H$133*$H$134,INFLATION_FACTOR*$H$133*$H$132*INDEX(FEEDPRICETABLE,MATCH(H$131,List_Energy_Feedstocks,0),MATCH($A139,Feedstock_Year,0))))) ->  | I139: =IF($A139="","",IF($I$131="","",IF($I$135="no",INFLATION_FACTOR*$I$133*$I$134,INFLATION_FACTOR*$I$133*$I$132*INDEX(FEEDPRICETABLE,MATCH($I$131,List_Energy_Feedstocks,0),MATCH($A139,Feedstock_Year,0))))) ->  | J139: =IF($A139="","",IF($J$131="","",IF($J$135="no",INFLATION_FACTOR*$J$133*$J$134,INFLATION_FACTOR*$J$133*$J$132*INDEX(FEEDPRICETABLE,MATCH($J$131,List_Energy_Feedstocks,0),MATCH($A139,Feedstock_Year,0))))) -> 0.003680121673 | K139: =IF($A139="","",IF($K$131="","",IF($K$135="no",INFLATION_FACTOR*$K$133*$K$134,INFLATION_FACTOR*$K$133*$K$132*INDEX(FEEDPRICETABLE,MATCH($K$131,List_Energy_Feedstocks,0),MATCH($A139,Feedstock_Year,0))))) ->  | L139: =IF($A139="","",IF($L$131="","",IF($L$135="no",INFLATION_FACTOR*$L$133*$L$134,INFLATION_FACTOR*$L$133*$L$132*INDEX(FEEDPRICETABLE,MATCH($L$131,List_Energy_Feedstocks,0),MATCH($A139,Feedstock_Year,0))))) ->  | M139: =IF($A139="","",IF(M$131="","",IF($M$135="no",INFLATION_FACTOR*$M$133*$M$134,INFLATION_FACTOR*$M$133*$M$132*INDEX(FEEDPRICETABLE,MATCH($M$131,List_Energy_Feedstocks,0),MATCH($A139,Feedstock_Year,0))))) ->  | N139: =IF($A139="","",IF($N$131="","",IF($N$135="no",INFLATION_FACTOR*$N$133*$N$134,INFLATION_FACTOR*$N$133*$N$132*INDEX(FEEDPRICETABLE,MATCH($N$131,List_Energy_Feedstocks,0),MATCH($A139,Feedstock_Year,0))))) ->  | P139: =IF(OR($A139="",$P$131=""),"",IF($P$134="No",INFLATION_FACTOR*$P$132*$P$133,INFLATION_FACTOR*$P$132*INDEX(Tbl_Other_Inputs_and_Byproducts,MATCH($P$131,Other_Inputs_List,0),MATCH($A139,Other_Inputs_years,0)))) -> 0.0234581774 | Q139: =IF(OR($A139="",$Q$131=""),"",IF($Q$134="No",INFLATION_FACTOR*$Q$132*$Q$133,INFLATION_FACTOR*$Q$132*INDEX(Tbl_Other_Inputs_and_Byproducts,MATCH($Q$131,Other_Inputs_List,0),MATCH($A139,Other_Inputs_years,0)))) -> 0.000166298487 | R139: =IF(OR($A139="",$R$131=""),"",IF($R$134="No",INFLATION_FACTOR*$R$132*$R$133,INFLATION_FACTOR*$R$132*INDEX(Tbl_Other_Inputs_and_Byproducts,MATCH($R$131,Other_Inputs_List,0),MATCH($A139,Other_Inputs_years,0)))) ->  | T139: =IF(OR($A139="",$T$131=""),"",IF($T$134="No",INFLATION_FACTOR*$T$132*$T$133,INFLATION_FACTOR*$T$132*INDEX(Tbl_Other_Inputs_and_Byproducts,MATCH($T$131,Other_Inputs_List,0),MATCH($A139,Other_Inputs_years,0)))) ->  | U139: =IF(OR($A139="",$U$131=""),"",IF($U$134="No",INFLATION_FACTOR*$U$132*$U$133,INFLATION_FACTOR*$U$132*INDEX(Tbl_Other_Inputs_and_Byproducts,MATCH($U$131,Other_Inputs_List,0),MATCH($A139,Other_Inputs_years,0)))) ->  | V139: =IF(OR($A139="",$V$131=""),"",IF($V$134="No",INFLATION_FACTOR*$V$132*$V$133,INFLATION_FACTOR*$V$132*INDEX(Tbl_Other_Inputs_and_Byproducts,MATCH($V$131,Other_Inputs_List,0),MATCH($A139,Other_Inputs_years,0)))) -> 
A140: 2013 | B140: =IF($A140="","",IF($B$131="","",IF($B$135="no",INFLATION_FACTOR*$B$133*$B$134,INFLATION_FACTOR*$B$133*$B$132*INDEX(FEEDPRICETABLE,MATCH($B$131,List_Energy_Feedstocks,0),MATCH($A140,Feedstock_Year,0))))) -> 0.7895459499 | F140: =IF($A140="","",IF($F$131="","",IF($F$135="no",INFLATION_FACTOR*$F$133*$F$134,INFLATION_FACTOR*$F$133*$F$132*INDEX(FEEDPRICETABLE,MATCH($F$131,List_Energy_Feedstocks,0),MATCH($A140,Feedstock_Year,0))))) -> 0.04227754959 | J140: 0.003741163083 | P140: =IF(OR($A140="",$P$131=""),"",IF($P$134="No",INFLATION_FACTOR*$P$132*$P$133,INFLATION_FACTOR*$P$132*INDEX(Tbl_Other_Inputs_and_Byproducts,MATCH($P$131,Other_Inputs_List,0),MATCH($A140,Other_Inputs_years,0)))) -> 0.0234581774 | Q140: =IF(OR($A140="",$Q$131=""),"",IF($Q$134="No",INFLATION_FACTOR*$Q$132*$Q$133,INFLATION_FACTOR*$Q$132*INDEX(Tbl_Other_Inputs_and_Byproducts,MATCH($Q$131,Other_Inputs_List,0),MATCH($A140,Other_Inputs_years,0)))) -> 0.000166298487
A141: 2014 | B141: 0.9394581045 | F141: 0.04279870287 | J141: 0.003787280216 | P141: 0.0234581774 | Q141: 0.000166298487
A142: 2015 | B142: 0.5708601924 | F142: 0.04120546296 | J142: 0.003646293561 | P142: 0.0234581774 | Q142: 0.000166298487
A143: 2016 | B143: 0.5350202972 | F143: 0.039803718 | J143: 0.003522252396 | P143: 0.0234581774 | Q143: 0.000166298487
A144: 2017 | B144: 0.6240307328 | F144: 0.04141411824 | J144: 0.003664757579 | P144: 0.0234581774 | Q144: 0.000166298487
A145: 2018 | B145: 0.6823853615 | F145: 0.04047549346 | J145: 0.003581698167 | P145: 0.0234581774 | Q145: 0.000166298487
A146: 2019 | B146: 0.74804676 | F146: 0.04099735215 | J146: 0.003627877724 | P146: 0.0234581774 | Q146: 0.000166298487
A147: 2020 | B147: 0.8129535088 | F147: 0.04176012744 | J147: 0.003695376118 | P147: 0.0234581774 | Q147: 0.000166298487
A148: 2021 | B148: 0.8138156379 | F148: 0.04199012852 | J148: 0.003715729038 | P148: 0.0234581774 | Q148: 0.000166298487
A149: 2022 | B149: 0.8048190095 | F149: 0.04334547318 | J149: 0.003835664215 | P149: 0.0234581774 | Q149: 0.000166298487
A150: 2023 | B150: 0.8066623666 | F150: 0.04348285221 | J150: 0.003847820959 | P150: 0.0234581774 | Q150: 0.000166298487
A151: 2024 | B151: 0.8204969475 | F151: 0.04336822436 | J151: 0.003837677479 | P151: 0.0234581774 | Q151: 0.000166298487
A152: 2025 | B152: 0.83854876 | F152: 0.04440956296 | J152: 0.003929826092 | P152: 0.0234581774 | Q152: 0.000166298487
A153: 2026 | B153: 0.8572148721 | F153: 0.04486056029 | J153: 0.003969735088 | P153: 0.0234581774 | Q153: 0.000166298487
A154: 2027 | B154: 0.8721681262 | F154: 0.0451190345 | J154: 0.00399260761 | P154: 0.0234581774 | Q154: 0.000166298487
A155: 2028 | B155: 0.8869931083 | F155: 0.04541219603 | J155: 0.00401854963 | P155: 0.0234581774 | Q155: 0.000166298487
A156: 2029 | B156: 0.8994497197 | F156: 0.04564252259 | J156: 0.004038931352 | P156: 0.0234581774 | Q156: 0.000166298487
A157: 2030 | B157: 0.9025612735 | F157: 0.04580253828 | J157: 0.004053091226 | P157: 0.0234581774 | Q157: 0.000166298487
A158: 2031 | B158: 0.9064348155 | F158: 0.04586056343 | J158: 0.004058225903 | P158: 0.0234581774 | Q158: 0.000166298487
A159: 2032 | B159: 0.9041633751 | F159: 0.04575593292 | J159: 0.004048967093 | P159: 0.0234581774 | Q159: 0.000166298487
A160: 2033 | B160: 0.8951840229 | F160: 0.0455923832 | J160: 0.00403449449 | P160: 0.0234581774 | Q160: 0.000166298487
A161: 2034 | B161: 0.8949557628 | F161: 0.04545987827 | J161: 0.004022769058 | P161: 0.0234581774 | Q161: 0.000166298487
A162: 2035 | B162: 0.9088608245 | F162: 0.04562062528 | J162: 0.004036993647 | P162: 0.0234581774 | Q162: 0.000166298487
A163: 2036 | B163: 0.9094645748 | F163: 0.04578649753 | J163: 0.004051671772 | P163: 0.0234581774 | Q163: 0.000166298487
A164: 2037 | B164: 0.9111295129 | F164: 0.04575187853 | J164: 0.004048608318 | P164: 0.0234581774 | Q164: 0.000166298487
A165: 2038 | B165: 0.9102416988 | F165: 0.04576204062 | J165: 0.004049507566 | P165: 0.0234581774 | Q165: 0.000166298487
A166: 2039 | B166: 0.9136978596 | F166: 0.04579745724 | J166: 0.004052641602 | P166: 0.0234581774 | Q166: 0.000166298487
A167: 2040 | B167: 0.9067765176 | F167: 0.04569007424 | J167: 0.004043139223 | P167: 0.0234581774 | Q167: 0.000166298487
A168: 2041 | B168: 0.907509916 | F168: 0.04555570285 | J168: 0.004031248626 | P168: 0.0234581774 | Q168: 0.000166298487
A169: 2042 | B169: 0.9162478598 | F169: 0.04560854047 | J169: 0.004035924256 | P169: 0.0234581774 | Q169: 0.000166298487
A170: 2043 | B170: 0.9296224041 | F170: 0.04574772771 | J170: 0.004048241009 | P170: 0.0234581774 | Q170: 0.000166298487
A171: 2044 | B171: 0.9387891956 | F171: 0.04592009943 | J171: 0.004063494276 | P171: 0.0234581774 | Q171: 0.000166298487
A172: 2045 | B172: 0.9508438674 | F172: 0.04608784418 | J172: 0.004078338098 | P172: 0.0234581774 | Q172: 0.000166298487
A173: 2046 | B173: 0.960059277 | F173: 0.04625839163 | J173: 0.004093429934 | P173: 0.0234581774 | Q173: 0.000166298487
A174: 2047 | B174: 0.9701672402 | F174: 0.04641143571 | J174: 0.004106972887 | P174: 0.0234581774 | Q174: 0.000166298487
A175: 2048 | B175: 0.9879499718 | F175: 0.04658358844 | J175: 0.004122206775 | P175: 0.0234581774 | Q175: 0.000166298487
A176: 2049 | B176: 0.9937359758 | F176: 0.04673274086 | J176: 0.004135405353 | P176: 0.0234581774 | Q176: 0.000166298487
A177: 2050 | B177: 1.006317954 | F177: 0.04687734064 | J177: 0.004148201065 | P177: 0.0234581774 | Q177: 0.000166298487
A178: 2051 | B178: 1.011912419 | F178: 0.0469198563 | J178: 0.004151963298 | P178: 0.0234581774 | Q178: 0.000166298487
A179: 2052 | B179: 1.017537986 | F179: 0.04696241052 | J179: 0.004155728944 | P179: 0.0234581774 | Q179: 0.000166298487
A180: 2053 | B180: 1.023194827 | F180: 0.04700500333 | J180: 0.004159498005 | P180: 0.0234581774 | Q180: 0.000166298487
A181: 2054 | B181: 1.028883116 | F181: 0.04704763477 | J181: 0.004163270484 | P181: 0.0234581774 | Q181: 0.000166298487
A184: Tables to calculate equivalent price in startup year
A185: Actual Year | B185: =IF(B$131="","",B$131&" ($/year)") -> Industrial Natural Gas ($/year) | C185: =IF(C$131="","",C$131&" ($/year)") ->  | F185: Industrial Electricity ($/year) | J185: Industrial Electricity ($/year)
A186: =+A139 -> 2012 | B186: =IF($C65="","",IF($C65<0,0,IF(AND($C65=1,start_time<1),-(SUM(B139)*output_kgyear*$E65*percnt_var*start_time+SUM(B139)*output_kgyear*$E65*(1-start_time)),IF($C65<=start_time,-SUM(B139)*output_kgyear*$E65*percnt_var,-SUM(B139)*output_kgyear*$E65)))) -> 0 | C186: =IF($C65="","",IF($C65<0,0,IF(AND($C65=1,start_time<1),-(SUM(C139)*output_kgyear*$E65*percnt_var*start_time+SUM(C139)*output_kgyear*$E65*(1-start_time)),IF($C65<=start_time,-SUM(C139)*output_kgyear*$E65*percnt_var,-SUM(C139)*output_kgyear*$E65)))) -> 0 | D186: 0 | E186: 0 | F186: 0 | G186: 0 | H186: 0 | I186: 0 | J186: 0 | K186: 0 | L186: 0 | M186: 0 | N186: 0
A187: =+A140 -> 2013 | B187: =IF($C66="","",IF($C66<0,0,IF(AND($C66=1,start_time<1),-(SUM(B140)*output_kgyear*$E66*percnt_var*start_time+SUM(B140)*output_kgyear*$E66*(1-start_time)),IF($C66<=start_time,-SUM(B140)*output_kgyear*$E66*percnt_var,-SUM(B140)*output_kgyear*$E66)))) -> 0 | C187: 0 | D187: 0 | E187: 0 | F187: 0 | G187: 0 | H187: 0 | I187: 0 | J187: 0 | K187: 0 | L187: 0 | M187: 0 | N187: 0
A188: 2014 | B188: =IF($C67="","",IF($C67<0,0,IF(AND($C67=1,start_time<1),-(SUM(B141)*output_kgyear*$E67*percnt_var*start_time+SUM(B141)*output_kgyear*$E67*(1-start_time)),IF($C67<=start_time,-SUM(B141)*output_kgyear*$E67*percnt_var,-SUM(B141)*output_kgyear*$E67)))) -> 0 | C188: 0 | D188: 0 | E188: 0 | F188: 0 | G188: 0 | H188: 0 | I188: 0 | J188: 0 | K188: 0 | L188: 0 | M188: 0 | N188: 0
A189: 2015 | B189: =IF($C68="","",IF($C68<0,0,IF(AND($C68=1,start_time<1),-(SUM(B142)*output_kgyear*$E68*percnt_var*start_time+SUM(B142)*output_kgyear*$E68*(1-start_time)),IF($C68<=start_time,-SUM(B142)*output_kgyear*$E68*percnt_var,-SUM(B142)*output_kgyear*$E68)))) -> -53359142.56 | C189: 0 | D189: 0 | E189: 0 | F189: =IF($C68="","",IF($C68<0,0,IF(AND($C68=1,start_time<1),-(SUM(F142)*output_kgyear*$E68*percnt_var*start_time+SUM(F142)*output_kgyear*$E68*(1-start_time)),IF($C68<=start_time,-SUM(F142)*output_kgyear*$E68*percnt_var,-SUM(F142)*output_kgyear*$E68)))) -> -3851535.282 | G189: 0 | H189: 0 | I189: 0 | J189: -340824.4269 | K189: 0 | L189: 0 | M189: 0 | N189: 0
A190: 2016 | B190: =IF($C69="","",IF($C69<0,0,IF(AND($C69=1,start_time<1),-(SUM(B143)*output_kgyear*$E69*percnt_var*start_time+SUM(B143)*output_kgyear*$E69*(1-start_time)),IF($C69<=start_time,-SUM(B143)*output_kgyear*$E69*percnt_var,-SUM(B143)*output_kgyear*$E69)))) -> -67945744.47 | C190: 0 | D190: 0 | E190: 0 | F190: -5054935.797 | G190: 0 | H190: 0 | I190: 0 | J190: -447313.9852 | K190: 0 | L190: 0 | M190: 0 | N190: 0
A191: 2017 | B191: =IF($C70="","",IF($C70<0,0,IF(AND($C70=1,start_time<1),-(SUM(B144)*output_kgyear*$E70*percnt_var*start_time+SUM(B144)*output_kgyear*$E70*(1-start_time)),IF($C70<=start_time,-SUM(B144)*output_kgyear*$E70*percnt_var,-SUM(B144)*output_kgyear*$E70)))) -> -80755510.33 | C191: 0 | D191: 0 | E191: 0 | F191: -5359380.681 | G191: 0 | H191: 0 | I191: 0 | J191: -474254.4765 | K191: 0 | L191: 0 | M191: 0 | N191: 0
A192: 2018 | B192: =IF($C71="","",IF($C71<0,0,IF(AND($C71=1,start_time<1),-(SUM(B145)*output_kgyear*$E71*percnt_var*start_time+SUM(B145)*output_kgyear*$E71*(1-start_time)),IF($C71<=start_time,-SUM(B145)*output_kgyear*$E71*percnt_var,-SUM(B145)*output_kgyear*$E71)))) -> -89984990.07 | C192: 0 | D192: 0 | E192: 0 | F192: -5337434.07 | G192: 0 | H192: 0 | I192: 0 | J192: -472312.4091 | K192: 0 | L192: 0 | M192: 0 | N192: 0
A193: 2019 | B193: =IF($C72="","",IF($C72<0,0,IF(AND($C72=1,start_time<1),-(SUM(B146)*output_kgyear*$E72*percnt_var*start_time+SUM(B146)*output_kgyear*$E72*(1-start_time)),IF($C72<=start_time,-SUM(B146)*output_kgyear*$E72*percnt_var,-SUM(B146)*output_kgyear*$E72)))) -> -100517875.6 | C193: 0 | D193: 0 | E193: 0 | F193: -5508969.446 | G193: 0 | H193: 0 | I193: 0 | J193: -487491.6667 | K193: 0 | L193: 0 | M193: 0 | N193: 0
A194: 2020 | B194: =IF($C73="","",IF($C73<0,0,IF(AND($C73=1,start_time<1),-(SUM(B147)*output_kgyear*$E73*percnt_var*start_time+SUM(B147)*output_kgyear*$E73*(1-start_time)),IF($C73<=start_time,-SUM(B147)*output_kgyear*$E73*percnt_var,-SUM(B147)*output_kgyear*$E73)))) -> -111315194.4 | C194: 0 | D194: 0 | E194: 0 | F194: -5718084.311 | G194: 0 | H194: 0 | I194: 0 | J194: -505996.3535 | K194: 0 | L194: 0 | M194: 0 | N194: 0
A195: 2021 | B195: =IF($C74="","",IF($C74<0,0,IF(AND($C74=1,start_time<1),-(SUM(B148)*output_kgyear*$E74*percnt_var*start_time+SUM(B148)*output_kgyear*$E74*(1-start_time)),IF($C74<=start_time,-SUM(B148)*output_kgyear*$E74*percnt_var,-SUM(B148)*output_kgyear*$E74)))) -> -113550474.7 | C195: 0 | D195: 0 | E195: 0 | F195: -5858819.619 | G195: 0 | H195: 0 | I195: 0 | J195: -518450.0966 | K195: 0 | L195: 0 | M195: 0 | N195: 0
A196: 2022 | B196: =IF($C75="","",IF($C75<0,0,IF(AND($C75=1,start_time<1),-(SUM(B149)*output_kgyear*$E75*percnt_var*start_time+SUM(B149)*output_kgyear*$E75*(1-start_time)),IF($C75<=start_time,-SUM(B149)*output_kgyear*$E75*percnt_var,-SUM(B149)*output_kgyear*$E75)))) -> -114428797.2 | C196: 0 | D196: 0 | E196: 0 | F196: -6162839.473 | G196: 0 | H196: 0 | I196: 0 | J196: -545352.9768 | K196: 0 | L196: 0 | M196: 0 | N196: 0
A197: 2023 | B197: =IF($C76="","",IF($C76<0,0,IF(AND($C76=1,start_time<1),-(SUM(B150)*output_kgyear*$E76*percnt_var*start_time+SUM(B150)*output_kgyear*$E76*(1-start_time)),IF($C76<=start_time,-SUM(B150)*output_kgyear*$E76*percnt_var,-SUM(B150)*output_kgyear*$E76)))) -> -116870011.7 | C197: 0 | D197: 0 | E197: 0 | F197: -6299837.028 | G197: 0 | H197: 0 | I197: 0 | J197: -557475.9641 | K197: 0 | L197: 0 | M197: 0 | N197: 0
A198: 2024 | B198: =IF($C77="","",IF($C77<0,0,IF(AND($C77=1,start_time<1),-(SUM(B151)*output_kgyear*$E77*percnt_var*start_time+SUM(B151)*output_kgyear*$E77*(1-start_time)),IF($C77<=start_time,-SUM(B151)*output_kgyear*$E77*percnt_var,-SUM(B151)*output_kgyear*$E77)))) -> -121132992.1 | C198: 0 | D198: 0 | E198: 0 | F198: -6402610.999 | G198: 0 | H198: 0 | I198: 0 | J198: -566570.488 | K198: 0 | L198: 0 | M198: 0 | N198: 0
A199: 2025 | B199: =IF($C78="","",IF($C78<0,0,IF(AND($C78=1,start_time<1),-(SUM(B152)*output_kgyear*$E78*percnt_var*start_time+SUM(B152)*output_kgyear*$E78*(1-start_time)),IF($C78<=start_time,-SUM(B152)*output_kgyear*$E78*percnt_var,-SUM(B152)*output_kgyear*$E78)))) -> -126150210.7 | C199: 0 | D199: 0 | E199: 0 | F199: -6680918.265 | G199: 0 | H199: 0 | I199: 0 | J199: -591198.0475 | K199: 0 | L199: 0 | M199: 0 | N199: 0
A200: 2026 | B200: =IF($C79="","",IF($C79<0,0,IF(AND($C79=1,start_time<1),-(SUM(B153)*output_kgyear*$E79*percnt_var*start_time+SUM(B153)*output_kgyear*$E79*(1-start_time)),IF($C79<=start_time,-SUM(B153)*output_kgyear*$E79*percnt_var,-SUM(B153)*output_kgyear*$E79)))) -> -131408525 | C200: 0 | D200: 0 | E200: 0 | F200: -6876992.279 | G200: 0 | H200: 0 | I200: 0 | J200: -608548.7424 | K200: 0 | L200: 0 | M200: 0 | N200: 0
A201: 2027 | B201: =IF($C80="","",IF($C80<0,0,IF(AND($C80=1,start_time<1),-(SUM(B154)*output_kgyear*$E80*percnt_var*start_time+SUM(B154)*output_kgyear*$E80*(1-start_time)),IF($C80<=start_time,-SUM(B154)*output_kgyear*$E80*percnt_var,-SUM(B154)*output_kgyear*$E80)))) -> -136241130.4 | C201: 0 | D201: 0 | E201: 0 | F201: -7048031.315 | G201: 0 | H201: 0 | I201: 0 | J201: -623684.0786 | K201: 0 | L201: 0 | M201: 0 | N201: 0
A202: 2028 | B202: =IF($C81="","",IF($C81<0,0,IF(AND($C81=1,start_time<1),-(SUM(B155)*output_kgyear*$E81*percnt_var*start_time+SUM(B155)*output_kgyear*$E81*(1-start_time)),IF($C81<=start_time,-SUM(B155)*output_kgyear*$E81*percnt_var,-SUM(B155)*output_kgyear*$E81)))) -> -141189518.4 | C202: 0 | D202: 0 | E202: 0 | F202: -7228608.685 | G202: 0 | H202: 0 | I202: 0 | J202: -639663.4671 | K202: 0 | L202: 0 | M202: 0 | N202: 0
A203: 2029 | B203: =IF($C82="","",IF($C82<0,0,IF(AND($C82=1,start_time<1),-(SUM(B156)*output_kgyear*$E82*percnt_var*start_time+SUM(B156)*output_kgyear*$E82*(1-start_time)),IF($C82<=start_time,-SUM(B156)*output_kgyear*$E82*percnt_var,-SUM(B156)*output_kgyear*$E82)))) -> -145892607.4 | C203: 0 | D203: 0 | E203: 0 | F203: -7403311.695 | G203: 0 | H203: 0 | I203: 0 | J203: -655123.0304 | K203: 0 | L203: 0 | M203: 0 | N203: 0
A204: 2030 | B204: =IF($C83="","",IF($C83<0,0,IF(AND($C83=1,start_time<1),-(SUM(B157)*output_kgyear*$E83*percnt_var*start_time+SUM(B157)*output_kgyear*$E83*(1-start_time)),IF($C83<=start_time,-SUM(B157)*output_kgyear*$E83*percnt_var,-SUM(B157)*output_kgyear*$E83)))) -> -149178856.7 | C204: 0 | D204: 0 | E204: 0 | F204: -7570422.637 | G204: 0 | H204: 0 | I204: 0 | J204: -669910.7674 | K204: 0 | L204: 0 | M204: 0 | N204: 0
A205: 2031 | B205: =IF($C84="","",IF($C84<0,0,IF(AND($C84=1,start_time<1),-(SUM(B158)*output_kgyear*$E84*percnt_var*start_time+SUM(B158)*output_kgyear*$E84*(1-start_time)),IF($C84<=start_time,-SUM(B158)*output_kgyear*$E84*percnt_var,-SUM(B158)*output_kgyear*$E84)))) -> -152665653.6 | C205: 0 | D205: 0 | E205: 0 | F205: -7724033.513 | G205: 0 | H205: 0 | I205: 0 | J205: -683503.8763 | K205: 0 | L205: 0 | M205: 0 | N205: 0
A206: 2032 | B206: =IF($C85="","",IF($C85<0,0,IF(AND($C85=1,start_time<1),-(SUM(B159)*output_kgyear*$E85*percnt_var*start_time+SUM(B159)*output_kgyear*$E85*(1-start_time)),IF($C85<=start_time,-SUM(B159)*output_kgyear*$E85*percnt_var,-SUM(B159)*output_kgyear*$E85)))) -> -155176466.5 | C206: 0 | D206: 0 | E206: 0 | F206: -7852833.004 | G206: 0 | H206: 0 | I206: 0 | J206: -694901.4125 | K206: 0 | L206: 0 | M206: 0 | N206: 0
A207: 2033 | B207: =IF($C86="","",IF($C86<0,0,IF(AND($C86=1,start_time<1),-(SUM(B160)*output_kgyear*$E86*percnt_var*start_time+SUM(B160)*output_kgyear*$E86*(1-start_time)),IF($C86<=start_time,-SUM(B160)*output_kgyear*$E86*percnt_var,-SUM(B160)*output_kgyear*$E86)))) -> -156554463.3 | C207: 0 | D207: 0 | E207: 0 | F207: -7973434.401 | G207: 0 | H207: 0 | I207: 0 | J207: -705573.495 | K207: 0 | L207: 0 | M207: 0 | N207: 0
A208: 2034 | B208: =IF($C87="","",IF($C87<0,0,IF(AND($C87=1,start_time<1),-(SUM(B161)*output_kgyear*$E87*percnt_var*start_time+SUM(B161)*output_kgyear*$E87*(1-start_time)),IF($C87<=start_time,-SUM(B161)*output_kgyear*$E87*percnt_var,-SUM(B161)*output_kgyear*$E87)))) -> -159488320.3 | C208: 0 | D208: 0 | E208: 0 | F208: -8101316.21 | G208: 0 | H208: 0 | I208: 0 | J208: -716889.825 | K208: 0 | L208: 0 | M208: 0 | N208: 0
A209: 2035 | B209: =IF($C88="","",IF($C88<0,0,IF(AND($C88=1,start_time<1),-(SUM(B162)*output_kgyear*$E88*percnt_var*start_time+SUM(B162)*output_kgyear*$E88*(1-start_time)),IF($C88<=start_time,-SUM(B162)*output_kgyear*$E88*percnt_var,-SUM(B162)*output_kgyear*$E88)))) -> -165043674.2 | C209: 0 | D209: 0 | E209: 0 | F209: -8284431.911 | G209: 0 | H209: 0 | I209: 0 | J209: -733093.8317 | K209: 0 | L209: 0 | M209: 0 | N209: 0
A210: 2036 | B210: =IF($C89="","",IF($C89<0,0,IF(AND($C89=1,start_time<1),-(SUM(B163)*output_kgyear*$E89*percnt_var*start_time+SUM(B163)*output_kgyear*$E89*(1-start_time)),IF($C89<=start_time,-SUM(B163)*output_kgyear*$E89*percnt_var,-SUM(B163)*output_kgyear*$E89)))) -> -168291224.6 | C210: 0 | D210: 0 | E210: 0 | F210: -8472529.83 | G210: 0 | H210: 0 | I210: 0 | J210: -749738.7177 | K210: 0 | L210: 0 | M210: 0 | N210: 0
A211: 2037 | B211: =IF($C90="","",IF($C90<0,0,IF(AND($C90=1,start_time<1),-(SUM(B164)*output_kgyear*$E90*percnt_var*start_time+SUM(B164)*output_kgyear*$E90*(1-start_time)),IF($C90<=start_time,-SUM(B164)*output_kgyear*$E90*percnt_var,-SUM(B164)*output_kgyear*$E90)))) -> -171802698.8 | C211: 0 | D211: 0 | E211: 0 | F211: -8626980.133 | G211: 0 | H211: 0 | I211: 0 | J211: -763406.108 | K211: 0 | L211: 0 | M211: 0 | N211: 0
A212: 2038 | B212: =IF($C91="","",IF($C91<0,0,IF(AND($C91=1,start_time<1),-(SUM(B165)*output_kgyear*$E91*percnt_var*start_time+SUM(B165)*output_kgyear*$E91*(1-start_time)),IF($C91<=start_time,-SUM(B165)*output_kgyear*$E91*percnt_var,-SUM(B165)*output_kgyear*$E91)))) -> -174896363 | C212: 0 | D212: 0 | E212: 0 | F212: -8792845.327 | G212: 0 | H212: 0 | I212: 0 | J212: -778083.6081 | K212: 0 | L212: 0 | M212: 0 | N212: 0
A213: 2039 | B213: =IF($C92="","",IF($C92<0,0,IF(AND($C92=1,start_time<1),-(SUM(B166)*output_kgyear*$E92*percnt_var*start_time+SUM(B166)*output_kgyear*$E92*(1-start_time)),IF($C92<=start_time,-SUM(B166)*output_kgyear*$E92*percnt_var,-SUM(B166)*output_kgyear*$E92)))) -> -178896087.7 | C213: 0 | D213: 0 | E213: 0 | F213: -8966843.731 | G213: 0 | H213: 0 | I213: 0 | J213: -793480.8205 | K213: 0 | L213: 0 | M213: 0 | N213: 0
A214: 2040 | B214: =IF($C93="","",IF($C93<0,0,IF(AND($C93=1,start_time<1),-(SUM(B167)*output_kgyear*$E93*percnt_var*start_time+SUM(B167)*output_kgyear*$E93*(1-start_time)),IF($C93<=start_time,-SUM(B167)*output_kgyear*$E93*percnt_var,-SUM(B167)*output_kgyear*$E93)))) -> -180914211.8 | C214: 0 | D214: 0 | E214: 0 | F214: -9115789.398 | G214: 0 | H214: 0 | I214: 0 | J214: -806661.1026 | K214: 0 | L214: 0 | M214: 0 | N214: 0
A215: 2041 | B215: =IF($C94="","",IF($C94<0,0,IF(AND($C94=1,start_time<1),-(SUM(B168)*output_kgyear*$E94*percnt_var*start_time+SUM(B168)*output_kgyear*$E94*(1-start_time)),IF($C94<=start_time,-SUM(B168)*output_kgyear*$E94*percnt_var,-SUM(B168)*output_kgyear*$E94)))) -> -184500684.8 | C215: 0 | D215: 0 | E215: 0 | F215: -9261671.113 | G215: 0 | H215: 0 | I215: 0 | J215: -819570.2539 | K215: 0 | L215: 0 | M215: 0 | N215: 0
A216: 2042 | B216: =IF($C95="","",IF($C95<0,0,IF(AND($C95=1,start_time<1),-(SUM(B169)*output_kgyear*$E95*percnt_var*start_time+SUM(B169)*output_kgyear*$E95*(1-start_time)),IF($C95<=start_time,-SUM(B169)*output_kgyear*$E95*percnt_var,-SUM(B169)*output_kgyear*$E95)))) -> -189816412.3 | C216: 0 | D216: 0 | E216: 0 | F216: -9448589.082 | G216: 0 | H216: 0 | I216: 0 | J216: -836110.7254 | K216: 0 | L216: 0 | M216: 0 | N216: 0
A217: 2043 | B217: =IF($C96="","",IF($C96<0,0,IF(AND($C96=1,start_time<1),-(SUM(B170)*output_kgyear*$E96*percnt_var*start_time+SUM(B170)*output_kgyear*$E96*(1-start_time)),IF($C96<=start_time,-SUM(B170)*output_kgyear*$E96*percnt_var,-SUM(B170)*output_kgyear*$E96)))) -> -196246334.3 | C217: 0 | D217: 0 | E217: 0 | F217: -9657495.155 | G217: 0 | H217: 0 | I217: 0 | J217: -854596.9361 | K217: 0 | L217: 0 | M217: 0 | N217: 0
A218: 2044 | B218: =IF($C97="","",IF($C97<0,0,IF(AND($C97=1,start_time<1),-(SUM(B171)*output_kgyear*$E97*percnt_var*start_time+SUM(B171)*output_kgyear*$E97*(1-start_time)),IF($C97<=start_time,-SUM(B171)*output_kgyear*$E97*percnt_var,-SUM(B171)*output_kgyear*$E97)))) -> -201946922 | C218: 0 | D218: 0 | E218: 0 | F218: -9878067.175 | G218: 0 | H218: 0 | I218: 0 | J218: -874115.4727 | K218: 0 | L218: 0 | M218: 0 | N218: 0
A219: 2045 | B219: =IF($C98="","",IF($C98<0,0,IF(AND($C98=1,start_time<1),-(SUM(B172)*output_kgyear*$E98*percnt_var*start_time+SUM(B172)*output_kgyear*$E98*(1-start_time)),IF($C98<=start_time,-SUM(B172)*output_kgyear*$E98*percnt_var,-SUM(B172)*output_kgyear*$E98)))) -> -208426314.5 | C219: 0 | D219: 0 | E219: 0 | F219: -10102520.34 | G219: 0 | H219: 0 | I219: 0 | J219: -893977.4535 | K219: 0 | L219: 0 | M219: 0 | N219: 0
... 17 more rows

Sheet Energy Feed & Utility Prices
BW3: Further extrapolated to allow 2040 comission year using GCAM
A4: AEO_2009_Reference_Case | B4: ="Prices are in $(" & ref_year&")/GJ LHV" -> Prices are in $(2016)/GJ LHV | AH4: Except as noted,values are extrapolated based on PNNL mini-CAM model (see AEO Data tab)
A5: Year | B5: Source Data Year | C5: Reference year Conversion | D5: Display Units | E5: Use Category | F5: LHV (MJ/kg) | G5: HHV (MJ/kg) | H5: 2004 | I5: 2005 | J5: 2006 | K5: 2007 | L5: 2008 | M5: 2009 | N5: 2010 | O5: 2011 | P5: 2012 | Q5: 2013 | R5: 2014 | S5: 2015 | T5: 2016 | U5: 2017 | V5: 2018 | W5: 2019 | X5: 2020 | Y5: 2021 | Z5: 2022 | AA5: 2023 | AB5: 2024 | AC5: 2025 | AD5: 2026 | AE5: 2027 | AF5: 2028 | AG5: 2029 | AH5: 2030 | AI5: 2031 | AJ5: 2032 | AK5: 2033 | AL5: 2034 | AM5: 2035 | AN5: 2036 | AO5: 2037 | AP5: 2038 | AQ5: 2039 | AR5: 2040 | AS5: 2041 | AT5: 2042 | AU5: 2043 | AV5: 2044 | AW5: 2045 | AX5: 2046 | AY5: 2047 | AZ5: 2048 | BA5: 2049 | BB5: 2050 | BC5: 2051 | BD5: 2052 | BE5: 2053 | BF5: 2054 | BG5: 2055 | BH5: 2056 | BI5: 2057 | BJ5: 2058 | BK5: 2059 | BL5: 2060 | BM5: 2061 | BN5: 2062 | BO5: 2063 | BP5: 2064 | BQ5: 2065 | BR5: 2066 | BS5: 2067 | BT5: 2068 | BU5: 2069 | BV5: 2070 | BW5: =+BV5+1 -> 2071 | BX5: =+BW5+1 -> 2072 | BY5: =+BX5+1 -> 2073 | BZ5: =+BY5+1 -> 2074 | CA5: =+BZ5+1 -> 2075 | CB5: =+CA5+1 -> 2076 | CC5: =+CB5+1 -> 2077 | CD5: =+CC5+1 -> 2078 | CE5: =+CD5+1 -> 2079 | CF5: =+CE5+1 -> 2080 | CG5: =+CF5+1 -> 2081 | CH5: =+CG5+1 -> 2082 | CI5: =+CH5+1 -> 2083 | CJ5: =+CI5+1 -> 2084 | CK5: =+CJ5+1 -> 2085 | CL5: =+CK5+1 -> 2086 | CM5: =+CL5+1 -> 2087 | CN5: =+CM5+1 -> 2088 | CO5: =+CN5+1 -> 2089 | CP5: =+CO5+1 -> 2090 | CQ5: =+CP5+1 -> 2091 | CR5: =+CQ5+1 -> 2092 | CS5: =+CR5+1 -> 2093 | CT5: =+CS5+1 -> 2094 | CU5: =+CT5+1 -> 2095 | CV5: =+CU5+1 -> 2096 | CW5: =+CV5+1 -> 2097 | CX5: =+CW5+1 -> 2098 | CY5: =+CX5+1 -> 2099 | CZ5: =+CY5+1 -> 2100
A6: Feedstock Type
A7: ='HyARC Physical Property Data'!A73 -> Residential Natural Gas | B7: 2007 | C7: =VLOOKUP(ref_year,DeflatorTable,2,FALSE)/VLOOKUP(B7,DeflatorTable,2,FALSE) -> 1.144635996 | D7: ='HyARC Physical Property Data'!H73 -> mmBtu | E7: Feed Utility | F7: ='HyARC Physical Property Data'!$E$6 -> 47.14126905 | G7: ='HyARC Physical Property Data'!$I$6 -> 52.22466124 | H7: =((13.7000589370728/(mmBTU_to_GJ))*($C$7))*($G$7/$F$7) -> 16.46689578 | I7: =((13.7000589370728/(mmBTU_to_GJ))*($C$7))*($G$7/$F$7) -> 16.46689578 | J7: =((13.7000589370728/(mmBTU_to_GJ))*($C$7))*($G$7/$F$7) -> 16.46689578 | K7: =((12.6911582946777/(mmBTU_to_GJ))*($C$7))*($G$7/$F$7) -> 15.25423956 | L7: =((12.9778490066528/(mmBTU_to_GJ))*($C$7))*($G$7/$F$7) -> 15.59882976 | M7: =((10.7176141738892/(mmBTU_to_GJ))*($C$7))*($G$7/$F$7) -> 12.88212237 | N7: =((11.192774772644/(mmBTU_to_GJ))*($C$7))*($G$7/$F$7) -> 13.45324546 | O7: =((11.4872808456421/(mmBTU_to_GJ))*($C$7))*($G$7/$F$7) -> 13.8072294 | P7: =((11.3991556167603/(mmBTU_to_GJ))*($C$7))*($G$7/$F$7) -> 13.70130657 | Q7: =((11.3077983856201/(mmBTU_to_GJ))*($C$7))*($G$7/$F$7) -> 13.59149902 | R7: =((11.2896461486816/(mmBTU_to_GJ))*($C$7))*($G$7/$F$7) -> 13.56968079 | S7: =((11.3454151153564/(mmBTU_to_GJ))*($C$7))*($G$7/$F$7) -> 13.63671275 | T7: =((11.5382986068726/(mmBTU_to_GJ))*($C$7))*($G$7/$F$7) -> 13.86855061 | U7: =((11.7583208084106/(mmBTU_to_GJ))*($C$7))*($G$7/$F$7) -> 14.13300806 | V7: =((11.9751005172729/(mmBTU_to_GJ))*($C$7))*($G$7/$F$7) -> 14.39356817 | W7: =((12.23952293396/(mmBTU_to_GJ))*($C$7))*($G$7/$F$7) -> 14.71139281 | X7: =((12.557071685791/(mmBTU_to_GJ))*($C$7))*($G$7/$F$7) -> 15.09307308 | Y7: =((12.7957820892334/(mmBTU_to_GJ))*($C$7))*($G$7/$F$7) -> 15.37999297 | Z7: =((12.8716516494751/(mmBTU_to_GJ))*($C$7))*($G$7/$F$7) -> 15.471185 | AA7: =((12.6602811813354/(mmBTU_to_GJ))*($C$7))*($G$7/$F$7) -> 15.21712657 | AB7: =((12.6240320205688/(mmBTU_to_GJ))*($C$7))*($G$7/$F$7) -> 15.1735566 | AC7: =((12.5992183685303/(mmBTU_to_GJ))*($C$7))*($G$7/$F$7) -> 15.14373163 | AD7: =((12.7868556976318/(mmBTU_to_GJ))*($C$7))*($G$7/$F$7) -> 15.36926382 | AE7: =((13.07555103302/(mmBTU_to_GJ))*($C$7))*($G$7/$F$7) -> 15.7162635 | AF7: =((13.407883644104/(mmBTU_to_GJ))*($C$7))*($G$7/$F$7) -> 16.11571335 | AG7: =((13.6725673675537/(mmBTU_to_GJ))*($C$7))*($G$7/$F$7) -> 16.43385207 | AH7: =((13.9620389938354/(mmBTU_to_GJ))*($C$7))*($G$7/$F$7) -> 16.78178481 | AI7: =($BB7-$AH7)/20+AH7 -> 16.92425292 | AJ7: =($BB7-$AH7)/20+AI7 -> 17.06672102 | AK7: 17.20918913 | AL7: 17.35165723 | AM7: 17.49412534 | AN7: 17.63659344 | AO7: 17.77906155 | AP7: 17.92152965 | AQ7: 18.06399776 | AR7: 18.20646586 | AS7: 18.34893397 | AT7: 18.49140207 | AU7: 18.63387018 | AV7: 18.77633828 | AW7: 18.91880639 | AX7: 19.06127449 | AY7: 19.2037426 | AZ7: =($BB7-$AH7)/20+AY7 -> 19.3462107 | BA7: 19.48867881 | BB7: =1.16978897829057*AH7 -> 19.63114691 | BC7: =($BQ7-$BB7)/15+BB7 -> 19.82552969 | BD7: =($BQ7-$BB7)/15+BC7 -> 20.01991246 | BE7: 20.21429523 | BF7: 20.40867801 | BG7: 20.60306078 | BH7: 20.79744355 | BI7: 20.99182633 | BJ7: 21.1862091 | BK7: 21.38059187 | BL7: 21.57497465 | BM7: 21.76935742 | BN7: 21.96374019 | BO7: 22.15812296 | BP7: 22.35250574 | BQ7: =1.14852629914794*BB7 -> 22.54688851 | BR7: =($BV7-$BQ7)/5+BQ7 -> 22.77014224 | BS7: =($BV7-$BQ7)/5+BR7 -> 22.99339597 | BT7: =($BV7-$BQ7)/5+BS7 -> 23.21664969 | BU7: =($BV7-$BQ7)/5+BT7 -> 23.43990342 | BV7: =1.04950876638265*BQ7 -> 23.66315715 | BW7: =+BV7*BW$133/BV$133 -> 23.74172579 | BX7: =+BW7*BX$133/BW$133 -> 23.8205553 | BY7: 23.89964655 | BZ7: 23.9790004 | CA7: 24.05861773 | CB7: 24.1099571 | CC7: 24.16140601 | CD7: 24.21296472 | CE7: 24.26463345 | CF7: 24.31641244 | CG7: 24.33322474 | CH7: 24.35004868 | CI7: 24.36688424 | CJ7: 24.38373145 | CK7: 24.4005903 | CL7: 24.4063047 | CM7: 24.41202044 | CN7: 24.41773752 | CO7: 24.42345594 | CP7: 24.4291757 | CQ7: 24.43784454 | CR7: 24.44651646 | CS7: 24.45519145 | CT7: 24.46386953 | CU7: 24.47255068 | CV7: 24.48591101 | CW7: 24.49927864 | CX7: 24.51265356 | CY7: 24.52603578 | CZ7: 24.53942532
A8: ='HyARC Physical Property Data'!A71 -> Commercial Natural Gas | B8: 2007 | C8: =VLOOKUP(ref_year,DeflatorTable,2,FALSE)/VLOOKUP(B8,DeflatorTable,2,FALSE) -> 1.144635996 | D8: ='HyARC Physical Property Data'!H71 -> mmBtu | E8: Feed Utility | F8: ='HyARC Physical Property Data'!$E$6 -> 47.14126905 | G8: ='HyARC Physical Property Data'!$I$6 -> 52.22466124 | H8: =((11.8960943222046/(mmBTU_to_GJ))*($C$8))*($G$8/$F$8) -> 14.29860604 | I8: =((11.8960943222046/(mmBTU_to_GJ))*($C$8))*($G$8/$F$8) -> 14.29860604 | J8: =((11.8960943222046/(mmBTU_to_GJ))*($C$8))*($G$8/$F$8) -> 14.29860604 | K8: =((10.9898433685303/(mmBTU_to_GJ))*($C$8))*($G$8/$F$8) -> 13.20933043 | L8: =((11.3387994766235/(mmBTU_to_GJ))*($C$8))*($G$8/$F$8) -> 13.62876103 | M8: =((8.90759468078613/(mmBTU_to_GJ))*($C$8))*($G$8/$F$8) -> 10.70655491 | N8: =((9.46560573577881/(mmBTU_to_GJ))*($C$8))*($G$8/$F$8) -> 11.37726078 | O8: =((9.74632167816162/(mmBTU_to_GJ))*($C$8))*($G$8/$F$8) -> 11.71466956 | P8: =((9.72109222412109/(mmBTU_to_GJ))*($C$8))*($G$8/$F$8) -> 11.68434481 | Q8: =((9.67193412780762/(mmBTU_to_GJ))*($C$8))*($G$8/$F$8) -> 11.62525884 | R8: =((9.71388721466064/(mmBTU_to_GJ))*($C$8))*($G$8/$F$8) -> 11.67568469 | S8: =((9.83065605163574/(mmBTU_to_GJ))*($C$8))*($G$8/$F$8) -> 11.81603593 | T8: =((10.0382099151611/(mmBTU_to_GJ))*($C$8))*($G$8/$F$8) -> 12.06550696 | U8: =((10.2545003890991/(mmBTU_to_GJ))*($C$8))*($G$8/$F$8) -> 12.32547904 | V8: =((10.476261138916/(mmBTU_to_GJ))*($C$8))*($G$8/$F$8) -> 12.59202615 | W8: =((10.746561050415/(mmBTU_to_GJ))*($C$8))*($G$8/$F$8) -> 12.9169153 | X8: =((11.0803880691528/(mmBTU_to_GJ))*($C$8))*($G$8/$F$8) -> 13.31816136 | Y8: =((11.3143692016602/(mmBTU_to_GJ))*($C$8))*($G$8/$F$8) -> 13.59939686 | Z8: =((11.4017143249512/(mmBTU_to_GJ))*($C$8))*($G$8/$F$8) -> 13.70438203 | AA8: =((11.2125005722046/(mmBTU_to_GJ))*($C$8))*($G$8/$F$8) -> 13.47695504 | AB8: =((11.1975994110107/(mmBTU_to_GJ))*($C$8))*($G$8/$F$8) -> 13.45904447 | AC8: =((11.159740447998/(mmBTU_to_GJ))*($C$8))*($G$8/$F$8) -> 13.41353959 | AD8: =((11.3503875732422/(mmBTU_to_GJ))*($C$8))*($G$8/$F$8) -> 13.64268943 | AE8: =((11.6409521102905/(mmBTU_to_GJ))*($C$8))*($G$8/$F$8) -> 13.99193581 | AF8: =((11.9785671234131/(mmBTU_to_GJ))*($C$8))*($G$8/$F$8) -> 14.39773488 | AG8: =((12.2332496643066/(mmBTU_to_GJ))*($C$8))*($G$8/$F$8) -> 14.70385261 | AH8: =((12.5188312530518/(mmBTU_to_GJ))*($C$8))*($G$8/$F$8) -> 15.04710969 | AI8: =($BB8-$AH8)/20+AH8 -> 15.17485136 | AJ8: 15.30259303 | AK8: 15.4303347 | AL8: 15.55807637 | AM8: 15.68581803 | AN8: 15.8135597 | AO8: 15.94130137 | AP8: 16.06904304 | AQ8: 16.19678471 | AR8: 16.32452638 | AS8: 16.45226805 | AT8: 16.58000972 | AU8: 16.70775139 | AV8: 16.83549306 | AW8: 16.96323472 | AX8: 17.09097639 | AY8: 17.21871806 | AZ8: 17.34645973 | BA8: 17.4742014 | BB8: =1.16978897829057*AH8 -> 17.60194307 | BC8: =($BQ8-$BB8)/15+BB8 -> 17.77623317 | BD8: 17.95052326 | BE8: 18.12481336 | BF8: 18.29910346 | BG8: 18.47339356 | BH8: 18.64768365 | BI8: 18.82197375 | BJ8: 18.99626385 | BK8: 19.17055395 | BL8: 19.34484404 | BM8: 19.51913414 | BN8: 19.69342424 | BO8: 19.86771434 | BP8: 20.04200443 | BQ8: =1.14852629914794*BB8 -> 20.21629453 | BR8: =($BV8-$BQ8)/5+BQ8 -> 20.41647129 | BS8: 20.61664805 | BT8: 20.81682481 | BU8: 21.01700157 | BV8: =1.04950876638265*BQ8 -> 21.21717833 | BW8: =+BV8*BW$134/BV$134 -> 21.2876256 | BX8: =+BW8*BX$134/BW$134 -> 21.35830678 | BY8: 21.42922264 | BZ8: 21.50037396 | CA8: 21.57176152 | CB8: 21.61779412 | CC8: 21.66392494 | CD8: 21.7101542 | CE8: 21.75648211 | CF8: 21.80290888 | CG8: 21.81798336 | CH8: 21.83306826 | CI8: 21.84816359 | CJ8: 21.86326936 | CK8: 21.87838557 | CL8: 21.88350929 | CM8: 21.88863422 | CN8: 21.89376034 | CO8: 21.89888767 | CP8: 21.90401619 | CQ8: 21.91178897 | CR8: 21.9195645 | CS8: 21.92734279 | CT8: 21.93512384 | CU8: 21.94290765 | CV8: 21.95488697 | CW8: 21.96687283 | CX8: 21.97886524 | CY8: 21.99086419 | CZ8: 22.00286969
A9: ='HyARC Physical Property Data'!A72 -> Industrial Natural Gas | B9: 2007 | C9: =VLOOKUP(ref_year,DeflatorTable,2,FALSE)/VLOOKUP(B9,DeflatorTable,2,FALSE) -> 1.144635996 | D9: ='HyARC Physical Property Data'!H72 -> mmBtu | E9: Feed Utility | F9: ='HyARC Physical Property Data'!$E$6 -> 47.14126905 | G9: ='HyARC Physical Property Data'!$I$6 -> 52.22466124 | H9: =((7.95407009124756/(mmBTU_to_GJ))*($C$9))*($G$9/$F$9) -> 9.560458378 | I9: =((7.95407009124756/(mmBTU_to_GJ))*($C$9))*($G$9/$F$9) -> 9.560458378 | J9: =((7.95407009124756/(mmBTU_to_GJ))*($C$9))*($G$9/$F$9) -> 9.560458378 | K9: =((7.51525163650513/(mmBTU_to_GJ))*($C$9))*($G$9/$F$9) -> 9.033017015 | L9: =((8.80127239227294/(mmBTU_to_GJ))*($C$9))*($G$9/$F$9) -> 10.57875998 | M9: =((4.84856796264648/(mmBTU_to_GJ))*($C$9))*($G$9/$F$9) -> 5.827775173 | N9: =((5.49891996383666/(mmBTU_to_GJ))*($C$9))*($G$9/$F$9) -> 6.60947098 | O9: =((5.82616424560547/(mmBTU_to_GJ))*($C$9))*($G$9/$F$9) -> 7.00280487 | P9: =((5.87778615951538/(mmBTU_to_GJ))*($C$9))*($G$9/$F$9) -> 7.064852244 | Q9: =((5.95383930206299/(mmBTU_to_GJ))*($C$9))*($G$9/$F$9) -> 7.156264929 | R9: =((6.10985708236694/(mmBTU_to_GJ))*($C$9))*($G$9/$F$9) -> 7.343791752 | S9: =((6.32948446273804/(mmBTU_to_GJ))*($C$9))*($G$9/$F$9) -> 7.607774644 | T9: =((6.51258134841919/(mmBTU_to_GJ))*($C$9))*($G$9/$F$9) -> 7.827849416 | U9: =((6.70273017883301/(mmBTU_to_GJ))*($C$9))*($G$9/$F$9) -> 8.056400328 | V9: =((6.89887094497681/(mmBTU_to_GJ))*($C$9))*($G$9/$F$9) -> 8.292153296 | W9: =((7.15282821655273/(mmBTU_to_GJ))*($C$9))*($G$9/$F$9) -> 8.597399277 | X9: =((7.46860218048096/(mmBTU_to_GJ))*($C$9))*($G$9/$F$9) -> 8.976946327 | Y9: =((7.67867755889893/(mmBTU_to_GJ))*($C$9))*($G$9/$F$9) -> 9.229448114 | Z9: =((7.75380706787109/(mmBTU_to_GJ))*($C$9))*($G$9/$F$9) -> 9.31975063 | AA9: =((7.55847835540771/(mmBTU_to_GJ))*($C$9))*($G$9/$F$9) -> 9.084973717 | AB9: =((7.54617786407471/(mmBTU_to_GJ))*($C$9))*($G$9/$F$9) -> 9.070189042 | AC9: =((7.45927095413208/(mmBTU_to_GJ))*($C$9))*($G$9/$F$9) -> 8.965730584 | AD9: =((7.60022306442261/(mmBTU_to_GJ))*($C$9))*($G$9/$F$9) -> 9.135149105 | AE9: =((7.85960483551025/(mmBTU_to_GJ))*($C$9))*($G$9/$F$9) -> 9.446915106 | AF9: =((8.19417572021484/(mmBTU_to_GJ))*($C$9))*($G$9/$F$9) -> 9.849055266 | AG9: =((8.42161273956299/(mmBTU_to_GJ))*($C$9))*($G$9/$F$9) -> 10.12242502 | AH9: =((8.69355010986328/(mmBTU_to_GJ))*($C$9))*($G$9/$F$9) -> 10.44928232 | AI9: =($BB9-$AH9)/20+AH9 -> 10.53799097 | AJ9: 10.62669962 | AK9: 10.71540827 | AL9: 10.80411691 | AM9: 10.89282556 | AN9: 10.98153421 | AO9: 11.07024286 | AP9: 11.15895151 | AQ9: 11.24766016 | AR9: 11.33636881 | AS9: 11.42507745 | AT9: 11.5137861 | AU9: 11.60249475 | AV9: 11.6912034 | AW9: 11.77991205 | AX9: 11.8686207 | AY9: 11.95732934 | AZ9: 12.04603799 | BA9: 12.13474664 | BB9: =1.16978897829057*AH9 -> 12.22345529 | BC9: 12.34448893 | BD9: 12.46552257 | BE9: 12.58655621 | BF9: 12.70758984 | BG9: 12.82862348 | BH9: 12.94965712 | BI9: 13.07069076 | BJ9: 13.1917244 | BK9: 13.31275804 | BL9: 13.43379167 | BM9: 13.55482531 | BN9: 13.67585895 | BO9: 13.79689259 | BP9: 13.91792623 | BQ9: =1.14852629914794*BB9 -> 14.03895987 | BR9: 14.17797018 | BS9: 14.3169805 | BT9: 14.45599082 | BU9: 14.59500113 | BV9: =1.04950876638265*BQ9 -> 14.73401145 | BW9: =+BV9*BW$135/BV$135 -> 14.7829327 | BX9: =+BW9*BX$135/BW$135 -> 14.83201638 | BY9: 14.88126304 | BZ9: 14.93067321 | CA9: 14.98024743 | CB9: 15.01221421 | CC9: 15.0442492 | CD9: 15.07635254 | CE9: 15.1085244 | CF9: 15.14076491 | CG9: 15.15123319 | CH9: 15.16170872 | CI9: 15.17219149 | CJ9: 15.1826815 | CK9: 15.19317877 | CL9: 15.19673688 | CM9: 15.20029582 | CN9: 15.2038556 | CO9: 15.20741621 | CP9: 15.21097765 | CQ9: 15.21637536 | CR9: 15.22177498 | CS9: 15.22717652 | CT9: 15.23257998 | CU9: 15.23798535 | CV9: 15.24630424 | CW9: 15.25462768 | CX9: 15.26295566 | CY9: 15.27128818 | CZ9: 15.27962526
A10: ='HyARC Physical Property Data'!A74 -> Electric Utility Natural Gas | B10: 2007 | C10: 1.144635996 | D10: ='HyARC Physical Property Data'!H74 -> mmBtu | E10: Feed Utility | F10: ='HyARC Physical Property Data'!$E$6 -> 47.14126905 | G10: ='HyARC Physical Property Data'!$I$6 -> 52.22466124 | H10: =((7.05463790893555/(mmBTU_to_GJ))*($C$10))*($G$10/$F$10) -> 8.479378649 | I10: =((7.05463790893555/(mmBTU_to_GJ))*($C$10))*($G$10/$F$10) -> 8.479378649 | J10: =((7.05463790893555/(mmBTU_to_GJ))*($C$10))*($G$10/$F$10) -> 8.479378649 | K10: =((7.01915979385375/(mmBTU_to_GJ))*($C$10))*($G$10/$F$10) -> 8.436735443 | L10: =((8.87161254882813/(mmBTU_to_GJ))*($C$10))*($G$10/$F$10) -> 10.6633059 | M10: =((4.55562210083008/(mmBTU_to_GJ))*($C$10))*($G$10/$F$10) -> 5.475666543 | N10: =((5.12931346893311/(mmBTU_to_GJ))*($C$10))*($G$10/$F$10) -> 6.165219487 | O10: =((5.45354604721069/(mmBTU_to_GJ))*($C$10))*($G$10/$F$10) -> 6.554933436 | P10: =((5.51876354217529/(mmBTU_to_GJ))*($C$10))*($G$10/$F$10) -> 6.633322128 | Q10: =((5.53977298736572/(mmBTU_to_GJ))*($C$10))*($G$10/$F$10) -> 6.658574599 | R10: =((5.68350362777709/(mmBTU_to_GJ))*($C$10))*($G$10/$F$10) -> 6.831332796 | S10: =((5.8920464515686/(mmBTU_to_GJ))*($C$10))*($G$10/$F$10) -> 7.081992516 | T10: =((6.08193254470825/(mmBTU_to_GJ))*($C$10))*($G$10/$F$10) -> 7.31022763 | U10: =((6.26939964294434/(mmBTU_to_GJ))*($C$10))*($G$10/$F$10) -> 7.535555213 | V10: =((6.47751331329346/(mmBTU_to_GJ))*($C$10))*($G$10/$F$10) -> 7.785699109 | W10: =((6.73541975021362/(mmBTU_to_GJ))*($C$10))*($G$10/$F$10) -> 8.095691821 | X10: =((7.02784395217896/(mmBTU_to_GJ))*($C$10))*($G$10/$F$10) -> 8.447173437 | Y10: =((7.25390911102295/(mmBTU_to_GJ))*($C$10))*($G$10/$F$10) -> 8.718894269 | Z10: =((7.3283839225769/(mmBTU_to_GJ))*($C$10))*($G$10/$F$10) -> 8.808409866 | AA10: =((7.15062761306763/(mmBTU_to_GJ))*($C$10))*($G$10/$F$10) -> 8.594754244 | AB10: =((7.19241189956665/(mmBTU_to_GJ))*($C$10))*($G$10/$F$10) -> 8.644977202 | AC10: =((7.13988399505615/(mmBTU_to_GJ))*($C$10))*($G$10/$F$10) -> 8.581840866 | AD10: =((7.28062534332275/(mmBTU_to_GJ))*($C$10))*($G$10/$F$10) -> 8.751006059 | AE10: =((7.5354790687561/(mmBTU_to_GJ))*($C$10))*($G$10/$F$10) -> 9.057329539 | AF10: =((7.86007928848267/(mmBTU_to_GJ))*($C$10))*($G$10/$F$10) -> 9.447485378 | AG10: =((8.07421207427979/(mmBTU_to_GJ))*($C$10))*($G$10/$F$10) -> 9.704863999 | AH10: =((8.33951759338379/(mmBTU_to_GJ))*($C$10))*($G$10/$F$10) -> 10.0237501 | AI10: =($BB10-$AH10)/20+AH10 -> 10.10884621 | AJ10: 10.19394233 | AK10: 10.27903844 | AL10: 10.36413455 | AM10: 10.44923067 | AN10: 10.53432678 | AO10: 10.6194229 | AP10: 10.70451901 | AQ10: 10.78961513 | AR10: 10.87471124 | AS10: 10.95980735 | AT10: 11.04490347 | AU10: 11.12999958 | AV10: 11.2150957 | AW10: 11.30019181 | AX10: 11.38528793 | AY10: 11.47038404 | AZ10: 11.55548016 | BA10: 11.64057627 | BB10: =1.16978897829057*AH10 -> 11.72567238 | BC10: 11.8417771 | BD10: 11.95788181 | BE10: 12.07398653 | BF10: 12.19009124 | BG10: 12.30619596 | BH10: 12.42230067 | BI10: 12.53840539 | BJ10: 12.6545101 | BK10: 12.77061482 | BL10: 12.88671953 | BM10: 13.00282425 | BN10: 13.11892896 | BO10: 13.23503368 | BP10: 13.35113839 | BQ10: =1.14852629914794*BB10 -> 13.46724311 | BR10: 13.60059243 | BS10: 13.73394175 | BT10: 13.86729106 | BU10: 14.00064038 | BV10: =1.04950876638265*BQ10 -> 14.1339897 | BW10: =+BV10*BW$136/BV$136 -> 14.1809187 | BX10: =+BW10*BX$136/BW$136 -> 14.22800352 | BY10: 14.27524468 | BZ10: 14.32264269 | CA10: 14.37019807 | CB10: 14.40086304 | CC10: 14.43159345 | CD10: 14.46238944 | CE10: 14.49325114 | CF10: 14.5241787 | CG10: 14.53422068 | CH10: 14.5442696 | CI10: 14.55432548 | CJ10: 14.5643883 | CK10: 14.57445808 | CL10: 14.57787129 | CM10: 14.5812853 | CN10: 14.58470011 | CO10: 14.58811572 | CP10: 14.59153213 | CQ10: 14.59671002 | CR10: 14.60188975 | CS10: 14.60707132 | CT10: 14.61225473 | CU10: 14.61743998 | CV10: 14.6254201 | CW10: 14.63340457 | CX10: 14.6413934 | CY10: 14.6493866 | CZ10: 14.65738416
A11: ='HyARC Physical Property Data'!A75 -> Bio Methane | B11: 2007 | C11: 1.144635996 | D11: ='HyARC Physical Property Data'!H75 -> mmBtu | E11: Feed Utility | F11: ='HyARC Physical Property Data'!$E$6 -> 47.14126905 | G11: ='HyARC Physical Property Data'!$I$6 -> 52.22466124 | H11: =13.11*($C$11/mmBTU_to_GJ) -> 14.22386531 | I11: 14.22386531 | J11: 14.22386531 | K11: 14.22386531 | L11: 14.22386531 | M11: 14.22386531 | N11: 14.22386531 | O11: 14.22386531 | P11: 14.22386531 | Q11: 14.22386531 | R11: 14.22386531 | S11: 14.22386531 | T11: 14.22386531 | U11: 14.22386531 | V11: 14.22386531 | W11: 14.22386531 | X11: 14.22386531 | Y11: 14.22386531 | Z11: 14.22386531 | AA11: 14.22386531 | AB11: 14.22386531 | AC11: 14.22386531 | AD11: 14.22386531 | AE11: 14.22386531 | AF11: 14.22386531 | AG11: 14.22386531 | AH11: 14.22386531 | AI11: 14.22386531 | AJ11: 14.22386531 | AK11: 14.22386531 | AL11: 14.22386531 | AM11: 14.22386531 | AN11: =13.11*($C$11/mmBTU_to_GJ) -> 14.22386531 | AO11: 14.22386531 | AP11: 14.22386531 | AQ11: 14.22386531 | AR11: 14.22386531 | AS11: 14.22386531 | AT11: 14.22386531 | AU11: 14.22386531 | AV11: 14.22386531 | AW11: 14.22386531 | AX11: 14.22386531 | AY11: 14.22386531 | AZ11: 14.22386531 | BA11: 14.22386531 | BB11: 14.22386531 | BC11: 14.22386531 | BD11: 14.22386531 | BE11: 14.22386531 | BF11: 14.22386531 | BG11: 14.22386531 | BH11: 14.22386531 | BI11: 14.22386531 | BJ11: 14.22386531 | BK11: 14.22386531 | BL11: 14.22386531 | BM11: 14.22386531 | BN11: 14.22386531 | BO11: 14.22386531 | BP11: 14.22386531 | BQ11: 14.22386531 | BR11: 14.22386531 | BS11: 14.22386531 | BT11: 14.22386531 | BU11: 14.22386531 | BV11: 14.22386531 | BW11: =+BV11*BW$136/BV$136 -> 14.27109273 | BX11: =+BW11*BX$136/BW$136 -> 14.31847695 | BY11: 14.3660185 | BZ11: 14.41371791 | CA11: 14.46157569 | CB11: 14.49243566 | CC11: 14.52336147 | CD11: 14.55435328 | CE11: 14.58541123 | CF11: 14.61653545 | CG11: 14.62664129 | CH11: 14.63675411 | CI11: 14.64687393 | CJ11: 14.65700074 | CK11: 14.66713456 | CL11: 14.67056947 | CM11: 14.67400519 | CN11: 14.67744171 | CO11: 14.68087904 | CP11: 14.68431717 | CQ11: 14.68952799 | CR11: 14.69474066 | CS11: 14.69995518 | CT11: 14.70517154 | CU11: 14.71038976 | CV11: 14.71842063 | CW11: 14.72645587 | CX11: 14.73449551 | CY11: 14.74253953 | CZ11: 14.75058794
A12: ='HyARC Physical Property Data'!A85 -> Woody Biomass | B12: 2005 | C12: =VLOOKUP(ref_year,DeflatorTable,2,FALSE)/VLOOKUP(B12,DeflatorTable,2,FALSE) -> 1.211250149 | D12: =+'HyARC Physical Property Data'!$H$85 -> kg | E12: Feed | F12: ='HyARC Physical Property Data'!$E$45 -> 19.55106924 | G12: ='HyARC Physical Property Data'!$I$45 -> 20.58865638 | H12: =1.27*($C$12) -> 1.53828769 | I12: 1.53828769 | J12: 1.53828769 | K12: 1.53828769 | L12: 1.53828769 | M12: 1.53828769 | N12: 1.53828769 | O12: 1.53828769 | P12: =1.28*($C$12) -> 1.550400191 | Q12: =1.32*($C$12) -> 1.598850197 | R12: =1.32*($C$12) -> 1.598850197 | S12: =1.34*($C$12) -> 1.6230752 | T12: =1.34*($C$12) -> 1.6230752 | U12: =1.36*($C$12) -> 1.647300203 | V12: =1.36*($C$12) -> 1.647300203 | W12: =1.38*($C$12) -> 1.671525206 | X12: =1.4*($C$12) -> 1.695750209 | Y12: =1.46*($C$12) -> 1.768425218 | Z12: =1.48*($C$12) -> 1.792650221 | AA12: =1.48*($C$12) -> 1.792650221 | AB12: =1.51*($C$12) -> 1.828987726 | AC12: =1.52*($C$12) -> 1.841100227 | AD12: =1.62*($C$12) -> 1.962225242 | AE12: =1.72*($C$12) -> 2.083350257 | AF12: =1.82*($C$12) -> 2.204475272 | AG12: =1.91*($C$12) -> 2.313487786 | AH12: =2.01*($C$12) -> 2.4346128 | AI12: =2.11*($C$12) -> 2.555737815 | AJ12: =2.2*($C$12) -> 2.664750329 | AK12: =2.3*($C$12) -> 2.785875344 | AL12: =2.4*($C$12) -> 2.907000359 | AM12: =2.5*($C$12) -> 3.028125374 | AN12: =2.57*($C$12) -> 3.112912884 | AO12: =2.64*($C$12) -> 3.197700395 | AP12: =2.71*($C$12) -> 3.282487905 | AQ12: =2.78*($C$12) -> 3.367275416 | AR12: =2.85*($C$12) -> 3.452062926 | AS12: =2.92*($C$12) -> 3.536850437 | AT12: =2.99*($C$12) -> 3.621637947 | AU12: =3.07*($C$12) -> 3.718537959 | AV12: =3.14*($C$12) -> 3.803325469 | AW12: =3.21*($C$12) -> 3.88811298 | AX12: =3.28*($C$12) -> 3.97290049 | AY12: =3.35*($C$12) -> 4.057688001 | AZ12: =3.42*($C$12) -> 4.142475511 | BA12: =3.49*($C$12) -> 4.227263022 | BB12: =3.56*($C$12) -> 4.312050532 | BC12: =3.64*($C$12) -> 4.408950544 | BD12: =3.71*($C$12) -> 4.493738055 | BE12: =3.78*($C$12) -> 4.578525565 | BF12: =3.85*($C$12) -> 4.663313076 | BG12: =3.92*($C$12) -> 4.748100586 | BH12: =3.99*($C$12) -> 4.832888096 | BI12: =4.06*($C$12) -> 4.917675607 | BJ12: =4.14*($C$12) -> 5.014575619 | BK12: =4.21*($C$12) -> 5.099363129 | BL12: =4.28*($C$12) -> 5.18415064 | BM12: =4.35*($C$12) -> 5.26893815 | BN12: =4.42*($C$12) -> 5.353725661 | BO12: =4.49*($C$12) -> 5.438513171 | BP12: =4.56*($C$12) -> 5.523300682 | BQ12: =4.63*($C$12) -> 5.608088192 | BR12: =4.71*($C$12) -> 5.704988204 | BS12: =4.78*($C$12) -> 5.789775715 | BT12: =4.85*($C$12) -> 5.874563225 | BU12: =4.92*($C$12) -> 5.959350735 | BV12: =4.99*($C$12) -> 6.044138246 | BW12: =+BV12*BW$137/BV$137 -> 6.058665976 | BX12: =+BW12*BX$137/BW$137 -> 6.073228626 | BY12: 6.087826278 | BZ12: 6.102459018 | CA12: 6.117126928 | CB12: 6.129966715 | CC12: 6.142833453 | CD12: 6.155727198 | CE12: 6.168648006 | CF12: 6.181595935 | CG12: 6.197524392 | CH12: 6.213493892 | CI12: 6.229504542 | CJ12: 6.245556447 | CK12: 6.261649715 | CL12: 6.275052266 | CM12: 6.288483504 | CN12: 6.30194349 | CO12: 6.315432287 | CP12: 6.328949955 | CQ12: 6.341322549 | CR12: 6.35371933 | CS12: 6.366140346 | CT12: 6.378585644 | CU12: 6.391055272 | CV12: 6.405777239 | CW12: 6.420533119 | CX12: 6.435322989 | CY12: 6.450146929 | CZ12: 6.465005015
A13: ='HyARC Physical Property Data'!A86 -> Woody Biomass B2A | B13: 2007 | C13: =VLOOKUP(ref_year,DeflatorTable,2,FALSE)/VLOOKUP(B13,DeflatorTable,2,FALSE) -> 1.144635996 | D13: =+'HyARC Physical Property Data'!$H$86 -> kg | E13: Feed | F13: ='HyARC Physical Property Data'!$E$45 -> 19.55106924 | G13: ='HyARC Physical Property Data'!$I$45 -> 20.58865638 | H13: =3.80872262322035*($C$13) -> 4.359601012 | I13: =3.80872262322035*($C$13) -> 4.359601012 | J13: =3.80872262322035*($C$13) -> 4.359601012 | K13: =3.80872262322035*($C$13) -> 4.359601012 | L13: =3.58036841709093*($C$13) -> 4.098218568 | M13: =3.28153451771169*($C$13) -> 3.75616253 | N13: =3.05599949931226*($C$13) -> 3.49800703 | O13: =2.9206784882726*($C$13) -> 3.343113729 | P13: =2.85865635821276*($C$13) -> 3.272120967 | Q13: 3.272120967 | R13: 3.272120967 | S13: 3.272120967 | T13: 3.272120967 | U13: 3.272120967 | V13: 3.272120967 | W13: 3.272120967 | X13: 3.272120967 | Y13: 3.272120967 | Z13: 3.272120967 | AA13: 3.272120967 | AB13: 3.272120967 | AC13: 3.272120967 | AD13: 3.272120967 | AE13: 3.272120967 | AF13: 3.272120967 | AG13: 3.272120967 | AH13: 3.272120967 | AI13: 3.272120967 | AJ13: 3.272120967 | AK13: 3.272120967 | AL13: 3.272120967 | AM13: 3.272120967 | AN13: 3.272120967 | AO13: 3.272120967 | AP13: 3.272120967 | AQ13: 3.272120967 | AR13: 3.272120967 | AS13: 3.272120967 | AT13: 3.272120967 | AU13: 3.272120967 | AV13: 3.272120967 | AW13: 3.272120967 | AX13: 3.272120967 | AY13: 3.272120967 | AZ13: 3.272120967 | BA13: 3.272120967 | BB13: 3.272120967 | BC13: 3.272120967 | BD13: 3.272120967 | BE13: 3.272120967 | BF13: 3.272120967 | BG13: 3.272120967 | BH13: 3.272120967 | BI13: 3.272120967 | BJ13: 3.272120967 | BK13: 3.272120967 | BL13: 3.272120967 | BM13: 3.272120967 | BN13: 3.272120967 | BO13: 3.272120967 | BP13: 3.272120967 | BQ13: 3.272120967 | BR13: 3.272120967 | BS13: 3.272120967 | BT13: 3.272120967 | BU13: 3.272120967 | BV13: 3.272120967 | BW13: =+BV13*BW$137/BV$137 -> 3.279985858 | BX13: =+BW13*BX$137/BW$137 -> 3.287869654 | BY13: 3.295772399 | BZ13: 3.303694139 | CA13: 3.31163492 | CB13: 3.318586008 | CC13: 3.325551686 | CD13: 3.332531985 | CE13: 3.339526936 | CF13: 3.346536569 | CG13: 3.355159773 | CH13: 3.363805197 | CI13: 3.372472898 | CJ13: 3.381162933 | CK13: 3.389875361 | CL13: 3.397131113 | CM13: 3.404402395 | CN13: 3.411689241 | CO13: 3.418991684 | CP13: 3.426309757 | CQ13: 3.43300792 | CR13: 3.439719178 | CS13: 3.446443555 | CT13: 3.453181078 | CU13: 3.459931773 | CV13: 3.467901818 | CW13: 3.475890223 | CX13: 3.48389703 | CY13: 3.49192228 | CZ13: 3.499966017
A14: ='HyARC Physical Property Data'!$A$87 -> Woody Biomass MYPP | B14: 2007 | C14: =VLOOKUP(ref_year,DeflatorTable,2,FALSE)/VLOOKUP(B14,DeflatorTable,2,FALSE) -> 1.144635996 | D14: =+'HyARC Physical Property Data'!$H$87 -> kg | E14: Feed | F14: 18.608 | H14: =4.44432502149613*$C$14 -> 5.087134396 | I14: =4.44432502149613*$C$14 -> 5.087134396 | J14: 5.087134396 | K14: 5.087134396 | L14: 5.087134396 | M14: 5.087134396 | N14: 5.087134396 | O14: =N14-($N$14-$U$14)/7 -> 4.96648082 | P14: 4.845827244 | Q14: 4.725173667 | R14: 4.604520091 | S14: 4.483866515 | T14: 4.363212939 | U14: =3.70647033533964*$C$14 -> 4.242559363 | V14: =3.70647033533964*$C$14 -> 4.242559363 | W14: 4.242559363 | X14: 4.242559363 | Y14: 4.242559363 | Z14: 4.242559363 | AA14: 4.242559363 | AB14: 4.242559363 | AC14: 4.242559363 | AD14: 4.242559363 | AE14: 4.242559363 | AF14: 4.242559363 | AG14: 4.242559363 | AH14: 4.242559363 | AI14: 4.242559363 | AJ14: 4.242559363 | AK14: 4.242559363 | AL14: 4.242559363 | AM14: 4.242559363 | AN14: 4.242559363 | AO14: 4.242559363 | AP14: 4.242559363 | AQ14: 4.242559363 | AR14: 4.242559363 | AS14: 4.242559363 | AT14: 4.242559363 | AU14: 4.242559363 | AV14: 4.242559363 | AW14: 4.242559363 | AX14: 4.242559363 | AY14: 4.242559363 | AZ14: 4.242559363 | BA14: 4.242559363 | BB14: 4.242559363 | BC14: 4.242559363 | BD14: 4.242559363 | BE14: 4.242559363 | BF14: 4.242559363 | BG14: 4.242559363 | BH14: 4.242559363 | BI14: 4.242559363 | BJ14: 4.242559363 | BK14: 4.242559363 | BL14: 4.242559363 | BM14: 4.242559363 | BN14: 4.242559363 | BO14: 4.242559363 | BP14: 4.242559363 | BQ14: 4.242559363 | BR14: 4.242559363 | BS14: 4.242559363 | BT14: 4.242559363 | BU14: 4.242559363 | BV14: 4.242559363 | BW14: =+BV14*BW$137/BV$137 -> 4.252756806 | BX14: =+BW14*BX$137/BW$137 -> 4.262978761 | BY14: 4.273225284 | BZ14: 4.283496437 | CA14: 4.293792277 | CB14: 4.302804903 | CC14: 4.311836447 | CD14: 4.320886948 | CE14: 4.329956445 | CF14: 4.33904498 | CG14: 4.350225634 | CH14: 4.361435099 | CI14: 4.372673447 | CJ14: 4.383940754 | CK14: 4.395237094 | CL14: 4.404644741 | CM14: 4.414072524 | CN14: 4.423520487 | CO14: 4.432988672 | CP14: 4.442477123 | CQ14: 4.451161813 | CR14: 4.45986348 | CS14: 4.468582158 | CT14: 4.477317881 | CU14: 4.486070682 | CV14: 4.496404466 | CW14: 4.506762054 | CX14: 4.517143502 | CY14: 4.527548863 | CZ14: 4.537978193
A15: ='HyARC Physical Property Data'!A79 -> Electric Utility Steam Coal | B15: 2007 | C15: =VLOOKUP(ref_year,DeflatorTable,2,FALSE)/VLOOKUP(B15,DeflatorTable,2,FALSE) -> 1.144635996 | D15: =+'HyARC Physical Property Data'!$H$79 -> kg | E15: Feed | F15: ='HyARC Physical Property Data'!E42 -> 22.732203 | G15: ='HyARC Physical Property Data'!I42 -> 23.96761519 | H15: =1.73552525043488*($C$15/mmBTU_to_GJ*$G$15/$F$15) -> 1.985313857 | I15: =1.73552525043488*($C$15/mmBTU_to_GJ*$G$15/$F$15) -> 1.985313857 | J15: =1.73552525043488*($C$15/mmBTU_to_GJ*$G$15/$F$15) -> 1.985313857 | K15: =1.78000020980835*($C$15/mmBTU_to_GJ*$G$15/$F$15) -> 2.036189955 | L15: =1.9310736656189*($C$15/mmBTU_to_GJ*$G$15/$F$15) -> 2.209006931 | M15: =1.98230564594269*($C$15/mmBTU_to_GJ*$G$15/$F$15) -> 2.267612566 | N15: =1.86225914955139*($C$15/mmBTU_to_GJ*$G$15/$F$15) -> 2.130288161 | O15: =1.87335216999054*($C$15/mmBTU_to_GJ*$G$15/$F$15) -> 2.142977765 | P15: =1.85759365558624*($C$15/mmBTU_to_GJ*$G$15/$F$15) -> 2.124951178 | Q15: =1.88174879550934*($C$15/mmBTU_to_GJ*$G$15/$F$15) -> 2.15258289 | R15: =1.90431761741638*($C$15/mmBTU_to_GJ*$G$15/$F$15) -> 2.17839997 | S15: =1.90719401836395*($C$15/mmBTU_to_GJ*$G$15/$F$15) -> 2.181690362 | T15: =1.91704928874969*($C$15/mmBTU_to_GJ*$G$15/$F$15) -> 2.19296407 | U15: =1.92595064640045*($C$15/mmBTU_to_GJ*$G$15/$F$15) -> 2.203146572 | V15: =1.94080138206482*($C$15/mmBTU_to_GJ*$G$15/$F$15) -> 2.220134726 | W15: =1.94636797904968*($C$15/mmBTU_to_GJ*$G$15/$F$15) -> 2.226502506 | X15: =1.95628917217255*($C$15/mmBTU_to_GJ*$G$15/$F$15) -> 2.237851625 | Y15: =1.96225011348724*($C$15/mmBTU_to_GJ*$G$15/$F$15) -> 2.244670505 | Z15: =1.97535526752472*($C$15/mmBTU_to_GJ*$G$15/$F$15) -> 2.259661842 | AA15: =1.98115420341492*($C$15/mmBTU_to_GJ*$G$15/$F$15) -> 2.2662954 | AB15: =1.98549652099609*($C$15/mmBTU_to_GJ*$G$15/$F$15) -> 2.271262694 | AC15: =1.98988306522369*($C$15/mmBTU_to_GJ*$G$15/$F$15) -> 2.276280579 | AD15: =1.99634909629822*($C$15/mmBTU_to_GJ*$G$15/$F$15) -> 2.283677246 | AE15: =2.00744533538818*($C$15/mmBTU_to_GJ*$G$15/$F$15) -> 2.296370531 | AF15: =2.02021908760071*($C$15/mmBTU_to_GJ*$G$15/$F$15) -> 2.310982769 | AG15: =2.03361201286316*($C$15/mmBTU_to_GJ*$G$15/$F$15) -> 2.326303295 | AH15: =2.04451942443848*($C$15/mmBTU_to_GJ*$G$15/$F$15) -> 2.338780575 | AI15: =(($BB$15-$AH$15)/20+AH15) -> 2.343923258 | AJ15: =(($BB$15-$AH$15)/20+AI15) -> 2.349065942 | AK15: 2.354208625 | AL15: 2.359351308 | AM15: 2.364493991 | AN15: 2.369636674 | AO15: 2.374779357 | AP15: 2.37992204 | AQ15: 2.385064723 | AR15: 2.390207406 | AS15: 2.395350089 | AT15: 2.400492772 | AU15: 2.405635456 | AV15: 2.410778139 | AW15: 2.415920822 | AX15: 2.421063505 | AY15: 2.426206188 | AZ15: 2.431348871 | BA15: 2.436491554 | BB15: =(1.04397747398165*AH15) -> 2.441634237 | BC15: =(($BQ$15-$BB$15)/15+BB15) -> 2.446264979 | BD15: =(($BQ$15-$BB$15)/15+BC15) -> 2.450895721 | BE15: 2.455526463 | BF15: 2.460157204 | BG15: 2.464787946 | BH15: 2.469418688 | BI15: 2.47404943 | BJ15: 2.478680172 | BK15: 2.483310913 | BL15: 2.487941655 | BM15: 2.492572397 | BN15: 2.497203139 | BO15: 2.501833881 | BP15: 2.506464622 | BQ15: =(1.02844862093285*BB15) -> 2.511095364 | BR15: =(($BV$15-$BQ$15)/5+BQ15) -> 2.515857844 | BS15: =(($BV$15-$BQ$15)/5+BR15) -> 2.520620324 | BT15: =(($BV$15-$BQ$15)/5+BS15) -> 2.525382804 | BU15: =(($BV$15-$BQ$15)/5+BT15) -> 2.530145284 | BV15: =(1.00948287364428*BQ15) -> 2.534907764 | BW15: =+BV15*BW$138/BV$138 -> 2.543478174 | BX15: =+BW15*BX$138/BW$138 -> 2.55207756 | BY15: 2.56070602 | BZ15: 2.569363652 | CA15: 2.578050556 | CB15: 2.585431919 | CC15: 2.592834417 | CD15: 2.600258109 | CE15: 2.607703056 | CF15: 2.615169319 | CG15: 2.620869819 | CH15: 2.626582745 | CI15: 2.632308123 | CJ15: 2.638045982 | CK15: 2.643796348 | CL15: 2.647694616 | CM15: 2.651598633 | CN15: 2.655508406 | CO15: 2.659423944 | CP15: 2.663345255 | CQ15: 2.664658441 | CR15: 2.665972275 | CS15: 2.667286756 | CT15: 2.668601885 | CU15: 2.669917663 | CV15: 2.668026607 | CW15: 2.66613689 | CX15: 2.664248511 | CY15: 2.66236147 | CZ15: 2.660475766
A16: ='HyARC Physical Property Data'!A76 -> Commercial Electricity | B16: 2007 | C16: 1.144635996 | D16: ='HyARC Physical Property Data'!$H$76 -> kWh | E16: Feed Utility Byprod | H16: =(28.3762531280518/(mmBTU_to_GJ))*($C$16) -> 30.78718555 | I16: =(28.3762531280518/(mmBTU_to_GJ))*($C$16) -> 30.78718555 | J16: =(28.3762531280518/(mmBTU_to_GJ))*($C$16) -> 30.78718555 | K16: =(28.0297355651855/(mmBTU_to_GJ))*($C$16) -> 30.4112268 | L16: =(29.057315826416/(mmBTU_to_GJ))*($C$16) -> 31.52611339 | M16: =(27.6067714691162/(mmBTU_to_GJ))*($C$16) -> 29.9523264 | N16: =(24.8355846405029/(mmBTU_to_GJ))*($C$16) -> 26.94569114 | O16: =(25.5812511444092/(mmBTU_to_GJ))*($C$16) -> 27.75471173 | P16: =(25.4402256011963/(mmBTU_to_GJ))*($C$16) -> 27.60170423 | Q16: =(25.4701290130615/(mmBTU_to_GJ))*($C$16) -> 27.63414832 | R16: =(25.6722831726074/(mmBTU_to_GJ))*($C$16) -> 27.85347811 | S16: =(25.7632827758789/(mmBTU_to_GJ))*($C$16) -> 27.95220932 | T16: =(26.1006698608398/(mmBTU_to_GJ))*($C$16) -> 28.31826183 | U16: =(26.4680442810059/(mmBTU_to_GJ))*($C$16) -> 28.7168495 | V16: =(26.885612487793/(mmBTU_to_GJ))*($C$16) -> 29.16989556 | W16: =(27.1694507598877/(mmBTU_to_GJ))*($C$16) -> 29.47784959 | X16: =(27.6201095581055/(mmBTU_to_GJ))*($C$16) -> 29.96679773 | Y16: =(28.0024471282958/(mmBTU_to_GJ))*($C$16) -> 30.38161986 | Z16: =(28.2454071044922/(mmBTU_to_GJ))*($C$16) -> 30.64522245 | AA16: =(28.1863746643066/(mmBTU_to_GJ))*($C$16) -> 30.58117443 | AB16: =(28.2032489776611/(mmBTU_to_GJ))*($C$16) -> 30.59948244 | AC16: =(28.1397113800049/(mmBTU_to_GJ))*($C$16) -> 30.5305465 | AD16: =(28.178466796875/(mmBTU_to_GJ))*($C$16) -> 30.57259469 | AE16: =(28.4951820373535/(mmBTU_to_GJ))*($C$16) -> 30.91621902 | AF16: =(28.9155654907227/(mmBTU_to_GJ))*($C$16) -> 31.37231952 | AG16: =(29.2894115447998/(mmBTU_to_GJ))*($C$16) -> 31.77792867 | AH16: =(29.6516952514648/(mmBTU_to_GJ))*($C$16) -> 32.1709931 | AI16: =($BB16-$AH16)/20+AH16 -> 32.16150778 | AJ16: 32.15202247 | AK16: 32.14253716 | AL16: 32.13305184 | AM16: 32.12356653 | AN16: 32.11408122 | AO16: 32.1045959 | AP16: 32.09511059 | AQ16: 32.08562528 | AR16: 32.07613996 | AS16: 32.06665465 | AT16: 32.05716934 | AU16: 32.04768402 | AV16: 32.03819871 | AW16: 32.0287134 | AX16: 32.01922809 | AY16: 32.00974277 | AZ16: 32.00025746 | BA16: 31.99077215 | BB16: =0.994103189054944*AH16 -> 31.98128683 | BC16: =($BQ16-$BB16)/15+BB16 -> 32.00160286 | BD16: 32.0219189 | BE16: 32.04223493 | BF16: 32.06255096 | BG16: 32.08286699 | BH16: 32.10318302 | BI16: 32.12349905 | BJ16: 32.14381509 | BK16: 32.16413112 | BL16: 32.18444715 | BM16: 32.20476318 | BN16: 32.22507921 | BO16: 32.24539524 | BP16: 32.26571127 | BQ16: =1.00952871208344*BB16 -> 32.28602731 | BR16: =($BV16-$BQ16)/5+BQ16 -> 32.30653692 | BS16: 32.32704654 | BT16: 32.34755616 | BU16: 32.36806578 | BV16: =1.00317623736115*BQ16 -> 32.38857539 | BW16: =+BV16*BW$139/BV$139 -> 32.37431458 | BX16: =+BW16*BX$139/BW$139 -> 32.36006005 | BY16: 32.34581179 | BZ16: 32.33156981 | CA16: 32.3173341 | CB16: 32.29144842 | CC16: 32.26558347 | CD16: 32.23973924 | CE16: 32.21391571 | CF16: 32.18811287 | CG16: 32.15256801 | CH16: 32.1170624 | CI16: 32.08159599 | CJ16: 32.04616876 | CK16: 32.01078064 | CL16: 31.97219895 | CM16: 31.93366375 | CN16: 31.895175 | CO16: 31.85673265 | CP16: 31.81833662 | CQ16: 31.773864 | CR16: 31.72945353 | CS16: 31.68510514 | CT16: 31.64081874 | CU16: 31.59659423 | CV16: 31.55342324 | CW16: 31.51031123 | CX16: 31.46725813 | CY16: 31.42426386 | CZ16: 31.38132832
A17: ='HyARC Physical Property Data'!A77 -> Industrial Electricity | B17: 2007 | C17: 1.144635996 | D17: ='HyARC Physical Property Data'!$H$77 -> kWh | E17: Feed Utility Byprod | H17: =(18.4008941650391/(mmBTU_to_GJ))*($C$17) -> 19.96428987 | I17: =(18.4008941650391/(mmBTU_to_GJ))*($C$17) -> 19.96428987 | J17: =(18.4008941650391/(mmBTU_to_GJ))*($C$17) -> 19.96428987 | K17: =(18.6226921081543/(mmBTU_to_GJ))*($C$17) -> 20.20493244 | L17: =(20.3344097137451/(mmBTU_to_GJ))*($C$17) -> 22.06208276 | M17: =(19.1594867706299/(mmBTU_to_GJ))*($C$17) -> 20.7873348 | N17: =(16.8281726837158/(mmBTU_to_GJ))*($C$17) -> 18.25794521 | O17: =(17.2643089294434/(mmBTU_to_GJ))*($C$17) -> 18.73113691 | P17: =(17.1560707092285/(mmBTU_to_GJ))*($C$17) -> 18.61370244 | Q17: =(17.0836048126221/(mmBTU_to_GJ))*($C$17) -> 18.53507962 | R17: =(17.1988334655762/(mmBTU_to_GJ))*($C$17) -> 18.66009845 | S17: =(17.3181438446045/(mmBTU_to_GJ))*($C$17) -> 18.7895458 | T17: =(17.6150741577148/(mmBTU_to_GJ))*($C$17) -> 19.11170422 | U17: =(17.9101543426514/(mmBTU_to_GJ))*($C$17) -> 19.43185531 | V17: =(18.2101707458496/(mmBTU_to_GJ))*($C$17) -> 19.75736201 | W17: =(18.456880569458/(mmBTU_to_GJ))*($C$17) -> 20.02503305 | X17: =(18.8030014038086/(mmBTU_to_GJ))*($C$17) -> 20.40056136 | Y17: =(19.0852069854736/(mmBTU_to_GJ))*($C$17) -> 20.70674398 | Z17: =(19.30615234375/(mmBTU_to_GJ))*($C$17) -> 20.94646153 | AA17: =(19.3043308258057/(mmBTU_to_GJ))*($C$17) -> 20.94448525 | AB17: =(19.3253479003906/(mmBTU_to_GJ))*($C$17) -> 20.967288 | AC17: =(19.3248138427734/(mmBTU_to_GJ))*($C$17) -> 20.96670856 | AD17: =(19.3542194366455/(mmBTU_to_GJ))*($C$17) -> 20.99861254 | AE17: =(19.6148834228516/(mmBTU_to_GJ))*($C$17) -> 21.28142333 | AF17: =(19.97239112854/(mmBTU_to_GJ))*($C$17) -> 21.66930598 | AG17: =(20.29469871521/(mmBTU_to_GJ))*($C$17) -> 22.01899779 | AH17: =(20.5609893798828/(mmBTU_to_GJ))*($C$17) -> 22.30791332 | AI17: 22.30133604 | AJ17: 22.29475876 | AK17: 22.28818149 | AL17: 22.28160421 | AM17: 22.27502693 | AN17: 22.26844965 | AO17: 22.26187238 | AP17: 22.2552951 | AQ17: 22.24871782 | AR17: 22.24214054 | AS17: 22.23556327 | AT17: 22.22898599 | AU17: 22.22240871 | AV17: 22.21583143 | AW17: 22.20925416 | AX17: 22.20267688 | AY17: 22.1960996 | AZ17: 22.18952233 | BA17: 22.18294505 | BB17: =0.994103189054944*AH17 -> 22.17636777 | BC17: 22.19045525 | BD17: 22.20454273 | BE17: 22.21863022 | BF17: 22.2327177 | BG17: 22.24680518 | BH17: 22.26089266 | BI17: 22.27498014 | BJ17: 22.28906762 | BK17: 22.3031551 | BL17: 22.31724259 | BM17: 22.33133007 | BN17: 22.34541755 | BO17: 22.35950503 | BP17: 22.37359251 | BQ17: =1.00952871208344*BB17 -> 22.38767999 | BR17: 22.40190171 | BS17: 22.41612343 | BT17: 22.43034515 | BU17: 22.44456686 | BV17: =1.00317623736115*BQ17 -> 22.45878858 | BW17: =+BV17*BW$140/BV$140 -> 22.46557472 | BX17: =+BW17*BX$140/BW$140 -> 22.47236291 | BY17: 22.47915315 | BZ17: 22.48594544 | CA17: 22.49273979 | CB17: 22.49019603 | CC17: 22.48765257 | CD17: 22.48510938 | CE17: 22.48256649 | CF17: 22.48002389 | CG17: 22.46982675 | CH17: 22.45963424 | CI17: 22.44944635 | CJ17: 22.43926308 | CK17: 22.42908443 | CL17: 22.41659732 | CM17: 22.40411716 | CN17: 22.39164395 | CO17: 22.37917768 | CP17: 22.36671836 | CQ17: 22.34964846 | CR17: 22.33259159 | CS17: 22.31554774 | CT17: 22.2985169 | CU17: 22.28149905 | CV17: 22.26549905 | CW17: 22.24951054 | CX17: 22.23353351 | CY17: 22.21756795 | CZ17: 22.20161385
A18: ='HyARC Physical Property Data'!A78 -> Residential Electricity | B18: 2007 | C18: 1.144635996 | D18: ='HyARC Physical Property Data'!$H$78 -> kWh | E18: Feed Utility Byprod | H18: =(31.2067794799805/(mmBTU_to_GJ))*($C$18) -> 33.85820199 | I18: =(31.2067794799805/(mmBTU_to_GJ))*($C$18) -> 33.85820199 | J18: =(31.2067794799805/(mmBTU_to_GJ))*($C$18) -> 33.85820199 | K18: =(31.181957244873/(mmBTU_to_GJ))*($C$18) -> 33.83127078 | L18: =(31.772819519043/(mmBTU_to_GJ))*($C$18) -> 34.47233451 | M18: =(30.736837387085/(mmBTU_to_GJ))*($C$18) -> 33.34833219 | N18: =(28.6163578033447/(mmBTU_to_GJ))*($C$18) -> 31.04769024 | O18: =(29.8736190795898/(mmBTU_to_GJ))*($C$18) -> 32.41177225 | P18: =(30.101655960083/(mmBTU_to_GJ))*($C$18) -> 32.65918383 | Q18: =(30.4253902435303/(mmBTU_to_GJ))*($C$18) -> 33.01042356 | R18: =(30.7938537597656/(mmBTU_to_GJ))*($C$18) -> 33.41019285 | S18: =(30.8830280303955/(mmBTU_to_GJ))*($C$18) -> 33.50694364 | T18: =(31.1491451263428/(mmBTU_to_GJ))*($C$18) -> 33.79567085 | U18: =(31.4898681640625/(mmBTU_to_GJ))*($C$18) -> 34.16534275 | V18: =(31.8156299591064/(mmBTU_to_GJ))*($C$18) -> 34.51878225 | W18: =(32.0206985473633/(mmBTU_to_GJ))*($C$18) -> 34.74127409 | X18: =(32.4303588867188/(mmBTU_to_GJ))*($C$18) -> 35.18574041 | Y18: =(32.7907905578613/(mmBTU_to_GJ))*($C$18) -> 35.57679545 | Z18: =(32.9940071105957/(mmBTU_to_GJ))*($C$18) -> 35.7972779 | AA18: =(32.9234657287598/(mmBTU_to_GJ))*($C$18) -> 35.7207431 | AB18: =(32.9201545715332/(mmBTU_to_GJ))*($C$18) -> 35.71715062 | AC18: =(32.902271270752/(mmBTU_to_GJ))*($C$18) -> 35.6977479 | AD18: =(32.9582405090332/(mmBTU_to_GJ))*($C$18) -> 35.75847245 | AE18: =(33.321102142334/(mmBTU_to_GJ))*($C$18) -> 36.15216391 | AF18: =(33.7343635559082/(mmBTU_to_GJ))*($C$18) -> 36.60053727 | AG18: =(34.1495399475098/(mmBTU_to_GJ))*($C$18) -> 37.0509883 | AH18: =(34.4904899597167/(mmBTU_to_GJ))*($C$18) -> 37.42090646 | AI18: 37.40987326 | AJ18: 37.39884006 | AK18: 37.38780686 | AL18: 37.37677366 | AM18: 37.36574046 | AN18: 37.35470726 | AO18: 37.34367406 | AP18: 37.33264086 | AQ18: 37.32160766 | AR18: 37.31057445 | AS18: 37.29954125 | AT18: 37.28850805 | AU18: 37.27747485 | AV18: 37.26644165 | AW18: 37.25540845 | AX18: 37.24437525 | AY18: 37.23334205 | AZ18: 37.22230885 | BA18: 37.21127565 | BB18: =0.994103189054944*AH18 -> 37.20024245 | BC18: 37.22387381 | BD18: 37.24750517 | BE18: 37.27113653 | BF18: 37.29476789 | BG18: 37.31839925 | BH18: 37.34203061 | BI18: 37.36566197 | BJ18: 37.38929333 | BK18: 37.41292469 | BL18: 37.43655605 | BM18: 37.46018741 | BN18: 37.48381877 | BO18: 37.50745013 | BP18: 37.53108149 | BQ18: =1.00952871208344*BB18 -> 37.55471285 | BR18: 37.57856939 | BS18: 37.60242592 | BT18: 37.62628246 | BU18: 37.65013899 | BV18: =1.00317623736115*BQ18 -> 37.67399553 | BW18: =+BV18*BW$141/BV$141 -> 37.65740753 | BX18: =+BW18*BX$141/BW$141 -> 37.64082683 | BY18: 37.62425343 | BZ18: 37.60768733 | CA18: 37.59112852 | CB18: 37.56101862 | CC18: 37.53093283 | CD18: 37.50087114 | CE18: 37.47083353 | CF18: 37.44081997 | CG18: 37.39947462 | CH18: 37.35817493 | CI18: 37.31692084 | CJ18: 37.27571231 | CK18: 37.23454929 | CL18: 37.18967153 | CM18: 37.14484786 | CN18: 37.10007822 | CO18: 37.05536254 | CP18: 37.01070075 | CQ18: 36.95897074 | CR18: 36.90731303 | CS18: 36.85572752 | CT18: 36.80421412 | CU18: 36.75277271 | CV18: 36.70255674 | CW18: 36.65240938 | CX18: 36.60233054 | CY18: 36.55232012 | CZ18: 36.50237804
A22: AEO_2013_Reference_Case | B22: ="Prices are in $(" & ref_year&")/GJ LHV" -> Prices are in $(2016)/GJ LHV | AS22: Except as noted,values are extrapolated based on PNNL mini-CAM model (see AEO Data tab)
A23: Year | B23: Source Data Year | C23: Reference year Conversion | D23: Display Units | E23: Use Category | F23: LHV (MJ/kg) | G23: HHV (MJ/kg) | H23: 2004 | I23: 2005 | J23: 2006 | K23: 2007 | L23: 2008 | M23: 2009 | N23: 2010 | O23: 2011 | P23: 2012 | Q23: 2013 | R23: 2014 | S23: 2015 | T23: 2016 | U23: 2017 | V23: 2018 | W23: 2019 | X23: 2020 | Y23: 2021 | Z23: 2022 | AA23: 2023 | AB23: 2024 | AC23: 2025 | AD23: 2026 | AE23: 2027 | AF23: 2028 | AG23: 2029 | AH23: 2030 | AI23: 2031 | AJ23: 2032 | AK23: 2033 | AL23: 2034 | AM23: 2035 | AN23: 2036 | AO23: 2037 | AP23: 2038 | AQ23: 2039 | AR23: 2040 | AS23: 2041 | AT23: 2042 | AU23: 2043 | AV23: 2044 | AW23: 2045 | AX23: 2046 | AY23: 2047 | AZ23: 2048 | BA23: 2049 | BB23: 2050 | BC23: 2051 | BD23: 2052 | BE23: 2053 | BF23: 2054 | BG23: 2055 | BH23: 2056 | BI23: 2057 | BJ23: 2058 | BK23: 2059 | BL23: 2060 | BM23: 2061 | BN23: 2062 | BO23: 2063 | BP23: 2064 | BQ23: 2065 | BR23: 2066 | BS23: 2067 | BT23: 2068 | BU23: 2069 | BV23: 2070 | BW23: =+BV23+1 -> 2071 | BX23: =+BW23+1 -> 2072 | BY23: =+BX23+1 -> 2073 | BZ23: =+BY23+1 -> 2074 | CA23: =+BZ23+1 -> 2075 | CB23: =+CA23+1 -> 2076 | CC23: =+CB23+1 -> 2077 | CD23: =+CC23+1 -> 2078 | CE23: =+CD23+1 -> 2079 | CF23: =+CE23+1 -> 2080 | CG23: =+CF23+1 -> 2081 | CH23: =+CG23+1 -> 2082 | CI23: =+CH23+1 -> 2083 | CJ23: =+CI23+1 -> 2084 | CK23: =+CJ23+1 -> 2085 | CL23: =+CK23+1 -> 2086 | CM23: =+CL23+1 -> 2087 | CN23: =+CM23+1 -> 2088 | CO23: =+CN23+1 -> 2089 | CP23: =+CO23+1 -> 2090 | CQ23: =+CP23+1 -> 2091 | CR23: =+CQ23+1 -> 2092 | CS23: =+CR23+1 -> 2093 | CT23: =+CS23+1 -> 2094 | CU23: =+CT23+1 -> 2095 | CV23: =+CU23+1 -> 2096 | CW23: =+CV23+1 -> 2097 | CX23: =+CW23+1 -> 2098 | CY23: =+CX23+1 -> 2099 | CZ23: =+CY23+1 -> 2100
A24: Feedstock Type
A25: ='HyARC Physical Property Data'!A73 -> Residential Natural Gas | B25: 2011 | C25: =VLOOKUP(ref_year,DeflatorTable,2,FALSE)/VLOOKUP(B25,DeflatorTable,2,FALSE) -> 1.078455477 | D25: ='HyARC Physical Property Data'!H73 -> mmBtu | E25: Feed Utility | F25: ='HyARC Physical Property Data'!$E$6 -> 47.14126905 | G25: ='HyARC Physical Property Data'!$I$6 -> 52.22466124 | H25: 14.38614184 | I25: 14.38614184 | J25: 14.38614184 | K25: 13.32671663 | L25: 13.62776448 | M25: 11.25433973 | N25: =((N42/(mmBTU_to_GJ))*($C25))*($G25/$F25) -> 12.86407262 | O25: 12.23325661 | P25: 11.85052706 | Q25: 11.8658425 | R25: 11.61169509 | S25: 11.50138751 | T25: 12.07520438 | U25: 12.4463443 | V25: 12.90727044 | W25: 13.16477786 | X25: 13.33616259 | Y25: 13.54426403 | Z25: 13.81965192 | AA25: 14.0790868 | AB25: 14.25151905 | AC25: 14.35320746 | AD25: 14.54298905 | AE25: 14.64658339 | AF25: 14.81893751 | AG25: 14.98745483 | AH25: 15.13989911 | AI25: 15.34158063 | AJ25: 15.53944234 | AK25: 15.78188914 | AL25: 16.13639091 | AM25: 16.53263527 | AN25: 17.01379174 | AO25: 17.45793477 | AP25: 17.94079446 | AQ25: 18.18255951 | AR25: 18.53057906 | AS25: =($BB25-$AR25)/10+AR25 -> 18.5378192 | AT25: =($BB25-$AR25)/10+AS25 -> 18.54505934 | AU25: 18.55229949 | AV25: 18.55953963 | AW25: 18.56677977 | AX25: 18.57401992 | AY25: 18.58126006 | AZ25: 18.5885002 | BA25: 18.59574035 | BB25: ='AEO Data'!$B$30*AM25 -> 18.60298049 | BC25: =($BQ25-$BB25)/15+BB25 -> 18.75456373 | BD25: =($BQ25-$BB25)/15+BC25 -> 18.90614697 | BE25: 19.05773021 | BF25: 19.20931345 | BG25: 19.36089669 | BH25: 19.51247993 | BI25: 19.66406317 | BJ25: 19.81564641 | BK25: 19.96722965 | BL25: 20.11881289 | BM25: 20.27039613 | BN25: 20.42197937 | BO25: 20.57356261 | BP25: 20.72514585 | BQ25: ='AEO Data'!$C$30*BB25 -> 20.87672909 | BR25: =($BV25-$BQ25)/5+BQ25 -> 20.99605775 | BS25: =($BV25-$BQ25)/5+BR25 -> 21.11538641 | BT25: =($BV25-$BQ25)/5+BS25 -> 21.23471506 | BU25: =($BV25-$BQ25)/5+BT25 -> 21.35404372 | BV25: ='AEO Data'!$D$30*BQ25 -> 21.47337238 | BW25: =+BV25*BW$133/BV$133 -> 21.54467029 | BX25: =+BW25*BX$133/BW$133 -> 21.61620493 | BY25: 21.68797708 | BZ25: 21.75998754 | CA25: 21.8322371 | CB25: 21.87882553 | CC25: 21.92551337 | CD25: 21.97230084 | CE25: 22.01918816 | CF25: 22.06617553 | CG25: 22.08143203 | CH25: 22.09669907 | CI25: 22.11197668 | CJ25: 22.12726484 | CK25: 22.14256358 | CL25: 22.14774917 | CM25: 22.15293598 | CN25: 22.158124 | CO25: 22.16331324 | CP25: 22.16850369 | CQ25: 22.17637032 | CR25: 22.18423974 | CS25: 22.19211195 | CT25: 22.19998696 | CU25: 22.20786476 | CV25: 22.21998873 | CW25: 22.23211932 | CX25: 22.24425653 | CY25: 22.25640036 | CZ25: 22.26855083
A26: ='HyARC Physical Property Data'!A71 -> Commercial Natural Gas | B26: 2011 | C26: =VLOOKUP(ref_year,DeflatorTable,2,FALSE)/VLOOKUP(B26,DeflatorTable,2,FALSE) -> 1.078455477 | D26: ='HyARC Physical Property Data'!H71 -> mmBtu | E26: Feed Utility | F26: ='HyARC Physical Property Data'!$E$6 -> 47.14126905 | G26: ='HyARC Physical Property Data'!$I$6 -> 52.22466124 | H26: 12.49183679 | I26: 12.49183679 | J26: 12.49183679 | K26: 11.54020185 | L26: 11.90663327 | M26: 9.353676585 | N26: =((N43/(mmBTU_to_GJ))*($C26))*($G26/$F26) -> 10.64172898 | O26: 10.00742045 | P26: 9.142144908 | Q26: 9.583735368 | R26: 9.326131684 | S26: 9.177892243 | T26: 9.695062169 | U26: 9.99375162 | V26: 10.38727015 | W26: 10.58945448 | X26: 10.72218596 | Y26: 10.88403875 | Z26: 11.1198629 | AA26: 11.33776695 | AB26: 11.47527064 | AC26: 11.54393868 | AD26: 11.70461936 | AE26: 11.7640499 | AF26: 11.89086993 | AG26: 12.0101387 | AH26: 12.11420981 | AI26: 12.26730752 | AJ26: 12.40568434 | AK26: 12.59127015 | AL26: 12.89129025 | AM26: 13.22904741 | AN26: 13.65874475 | AO26: 14.04402007 | AP26: 14.47460299 | AQ26: 14.66414676 | AR26: 14.96314877 | AS26: =($BB26-$AR26)/10+AR26 -> 14.95540306 | AT26: 14.94765735 | AU26: 14.93991164 | AV26: 14.93216593 | AW26: 14.92442022 | AX26: 14.9166745 | AY26: 14.90892879 | AZ26: 14.90118308 | BA26: 14.89343737 | BB26: ='AEO Data'!$B$30*AM26 -> 14.88569166 | BC26: =($BQ26-$BB26)/15+BB26 -> 15.0069852 | BD26: 15.12827874 | BE26: 15.24957228 | BF26: 15.37086582 | BG26: 15.49215936 | BH26: 15.6134529 | BI26: 15.73474644 | BJ26: 15.85603998 | BK26: 15.97733352 | BL26: 16.09862706 | BM26: 16.2199206 | BN26: 16.34121415 | BO26: 16.46250769 | BP26: 16.58380123 | BQ26: ='AEO Data'!$C$30*BB26 -> 16.70509477 | BR26: =($BV26-$BQ26)/5+BQ26 -> 16.80057891 | BS26: 16.89606305 | BT26: 16.99154719 | BU26: 17.08703133 | BV26: ='AEO Data'!$D$30*BQ26 -> 17.18251547 | BW26: =+BV26*BW$134/BV$134 -> 17.23956647 | BX26: =+BW26*BX$134/BW$134 -> 17.2968069 | BY26: 17.35423739 | BZ26: 17.41185856 | CA26: 17.46967105 | CB26: 17.50695007 | CC26: 17.54430865 | CD26: 17.58174694 | CE26: 17.61926513 | CF26: 17.65686338 | CG26: 17.66907129 | CH26: 17.68128764 | CI26: 17.69351244 | CJ26: 17.70574569 | CK26: 17.7179874 | CL26: 17.7221368 | CM26: 17.72628717 | CN26: 17.73043851 | CO26: 17.73459082 | CP26: 17.7387441 | CQ26: 17.7450388 | CR26: 17.75133574 | CS26: 17.75763491 | CT26: 17.76393631 | CU26: 17.77023995 | CV26: 17.77994128 | CW26: 17.78964791 | CX26: 17.79935984 | CY26: 17.80907706 | CZ26: 17.8187996
A27: ='HyARC Physical Property Data'!A72 -> Industrial Natural Gas | B27: 2011 | C27: =VLOOKUP(ref_year,DeflatorTable,2,FALSE)/VLOOKUP(B27,DeflatorTable,2,FALSE) -> 1.078455477 | D27: ='HyARC Physical Property Data'!H72 -> mmBtu | E27: Feed Utility | F27: ='HyARC Physical Property Data'!$E$6 -> 47.14126905 | G27: ='HyARC Physical Property Data'!$I$6 -> 52.22466124 | H27: 8.352400601 | I27: 8.352400601 | J27: 8.352400601 | K27: 7.891606632 | L27: 9.242029801 | M27: 5.091378565 | N27: =((N44/(mmBTU_to_GJ))*($C27))*($G27/$F27) -> 6.210383241 | O27: 5.53753359 | P27: 4.257706279 | Q27: 4.908082196 | R27: 4.954585668 | S27: 5.008358421 | T27: 5.510607011 | U27: 5.739257006 | V27: 6.026128071 | W27: 6.171696031 | X27: 6.261855961 | Y27: 6.387867414 | Z27: 6.599741098 | AA27: 6.806902603 | AB27: 6.919360735 | AC27: 6.966006897 | AD27: 7.084418388 | AE27: 7.12876112 | AF27: 7.244120623 | AG27: 7.345442111 | AH27: 7.430638455 | AI27: 7.561039335 | AJ27: 7.66806051 | AK27: 7.832106874 | AL27: 8.118350553 | AM27: 8.431658973 | AN27: 8.848167636 | AO27: 9.233720417 | AP27: 9.624713551 | AQ27: 9.783781606 | AR27: 10.05751157 | AS27: =($BB27-$AR27)/10+AR27 -> 10.0005141 | AT27: 9.943516635 | AU27: 9.886519169 | AV27: 9.829521703 | AW27: 9.772524237 | AX27: 9.715526772 | AY27: 9.658529306 | AZ27: 9.60153184 | BA27: 9.544534374 | BB27: ='AEO Data'!$B$30*AM27 -> 9.487536908 | BC27: 9.564844498 | BD27: 9.642152088 | BE27: 9.719459678 | BF27: 9.796767268 | BG27: 9.874074858 | BH27: 9.951382447 | BI27: 10.02869004 | BJ27: 10.10599763 | BK27: 10.18330522 | BL27: 10.26061281 | BM27: 10.3379204 | BN27: 10.41522799 | BO27: 10.49253558 | BP27: 10.56984317 | BQ27: ='AEO Data'!$C$30*BB27 -> 10.64715076 | BR27: 10.70800848 | BS27: 10.7688662 | BT27: 10.82972393 | BU27: 10.89058165 | BV27: ='AEO Data'!$D$30*BQ27 -> 10.95143937 | BW27: =+BV27*BW$135/BV$135 -> 10.98780137 | BX27: =+BW27*BX$135/BW$135 -> 11.0242841 | BY27: 11.06088797 | BZ27: 11.09761337 | CA27: 11.13446071 | CB27: 11.15822085 | CC27: 11.18203169 | CD27: 11.20589334 | CE27: 11.22980592 | CF27: 11.25376952 | CG27: 11.26155034 | CH27: 11.26933655 | CI27: 11.27712814 | CJ27: 11.28492512 | CK27: 11.29272749 | CL27: 11.29537215 | CM27: 11.29801743 | CN27: 11.30066332 | CO27: 11.30330984 | CP27: 11.30595697 | CQ27: 11.30996896 | CR27: 11.31398237 | CS27: 11.31799721 | CT27: 11.32201347 | CU27: 11.32603115 | CV27: 11.33221439 | CW27: 11.338401 | CX27: 11.34459099 | CY27: 11.35078435 | CZ27: 11.3569811
A28: ='HyARC Physical Property Data'!A74 -> Electric Utility Natural Gas | B28: 2011 | C28: 1.078455477 | D28: ='HyARC Physical Property Data'!H74 -> mmBtu | E28: Feed Utility | F28: ='HyARC Physical Property Data'!$E$6 -> 47.14126905 | G28: ='HyARC Physical Property Data'!$I$6 -> 52.22466124 | H28: 7.407925909 | I28: 7.407925909 | J28: 7.407925909 | K28: 7.370671092 | L28: 9.31589251 | M28: 4.783762318 | N28: =((N45/(mmBTU_to_GJ))*($C28))*($G28/$F28) -> 5.954678698 | O28: 5.407188201 | P28: 3.761766642 | Q28: 4.207701231 | R28: 4.256044955 | S28: 4.351004265 | T28: 4.849907559 | U28: 5.037958746 | V28: 5.325534202 | W28: 5.46100059 | X28: 5.54539968 | Y28: 5.670718065 | Z28: 5.891470261 | AA28: 6.102590858 | AB28: 6.24885868 | AC28: 6.31683592 | AD28: 6.465015341 | AE28: 6.523862662 | AF28: 6.643985305 | AG28: 6.755164886 | AH28: 6.854630267 | AI28: 7.002792701 | AJ28: 7.126792899 | AK28: 7.299714377 | AL28: 7.585633039 | AM28: 7.905098661 | AN28: 8.31813859 | AO28: 8.691597795 | AP28: 9.084597654 | AQ28: 9.235224328 | AR28: 9.487531481 | AS28: =($BB28-$AR28)/10+AR28 -> 9.428281995 | AT28: 9.369032508 | AU28: 9.309783022 | AV28: 9.250533536 | AW28: 9.19128405 | AX28: 9.132034563 | AY28: 9.072785077 | AZ28: 9.013535591 | BA28: 8.954286104 | BB28: ='AEO Data'!$B$30*AM28 -> 8.895036618 | BC28: 8.96751632 | BD28: 9.039996021 | BE28: 9.112475722 | BF28: 9.184955424 | BG28: 9.257435125 | BH28: 9.329914827 | BI28: 9.402394528 | BJ28: 9.47487423 | BK28: 9.547353931 | BL28: 9.619833632 | BM28: 9.692313334 | BN28: 9.764793035 | BO28: 9.837272737 | BP28: 9.909752438 | BQ28: ='AEO Data'!$C$30*BB28 -> 9.98223214 | BR28: 10.03928927 | BS28: 10.09634641 | BT28: 10.15340355 | BU28: 10.21046068 | BV28: ='AEO Data'!$D$30*BQ28 -> 10.26751782 | BW28: =+BV28*BW$136/BV$136 -> 10.30160899 | BX28: =+BW28*BX$136/BW$136 -> 10.33581336 | BY28: 10.3701313 | BZ28: 10.40456319 | CA28: 10.4391094 | CB28: 10.46138571 | CC28: 10.48370956 | CD28: 10.50608104 | CE28: 10.52850026 | CF28: 10.55096733 | CG28: 10.55826224 | CH28: 10.5655622 | CI28: 10.5728672 | CJ28: 10.58017726 | CK28: 10.58749236 | CL28: 10.58997186 | CM28: 10.59245194 | CN28: 10.5949326 | CO28: 10.59741384 | CP28: 10.59989566 | CQ28: 10.6036571 | CR28: 10.60741987 | CS28: 10.61118398 | CT28: 10.61494942 | CU28: 10.6187162 | CV28: 10.62451329 | CW28: 10.63031354 | CX28: 10.63611696 | CY28: 10.64192355 | CZ28: 10.64773331
A29: ='HyARC Physical Property Data'!A75 -> Bio Methane | B29: 2007 | C29: 1.144635996 | D29: ='HyARC Physical Property Data'!H75 -> mmBtu | E29: Feed Utility | F29: ='HyARC Physical Property Data'!$E$6 -> 47.14126905 | G29: ='HyARC Physical Property Data'!$I$6 -> 52.22466124 | H29: 12.42654028 | I29: 12.42654028 | J29: 12.42654028 | K29: 12.42654028 | L29: 12.42654028 | M29: 12.42654028 | N29: =13.11*($C$29/mmBTU_to_GJ) -> 14.22386531 | O29: 14.22386531 | P29: 14.22386531 | Q29: 14.22386531 | R29: 14.22386531 | S29: 14.22386531 | T29: 14.22386531 | U29: 14.22386531 | V29: 14.22386531 | W29: 14.22386531 | X29: 14.22386531 | Y29: 14.22386531 | Z29: 14.22386531 | AA29: 14.22386531 | AB29: 14.22386531 | AC29: 14.22386531 | AD29: 14.22386531 | AE29: 14.22386531 | AF29: 14.22386531 | AG29: 14.22386531 | AH29: 14.22386531 | AI29: 14.22386531 | AJ29: 14.22386531 | AK29: 14.22386531 | AL29: 14.22386531 | AM29: 14.22386531 | AN29: =13.11*($C$29/mmBTU_to_GJ) -> 14.22386531 | AO29: 14.22386531 | AP29: 14.22386531 | AQ29: 14.22386531 | AR29: 14.22386531 | AS29: 14.22386531 | AT29: 14.22386531 | AU29: 14.22386531 | AV29: 14.22386531 | AW29: 14.22386531 | AX29: 14.22386531 | AY29: 14.22386531 | AZ29: 14.22386531 | BA29: 14.22386531 | BB29: 14.22386531 | BC29: 14.22386531 | BD29: 14.22386531 | BE29: 14.22386531 | BF29: 14.22386531 | BG29: 14.22386531 | BH29: 14.22386531 | BI29: 14.22386531 | BJ29: 14.22386531 | BK29: 14.22386531 | BL29: 14.22386531 | BM29: 14.22386531 | BN29: 14.22386531 | BO29: 14.22386531 | BP29: 14.22386531 | BQ29: 14.22386531 | BR29: 14.22386531 | BS29: 14.22386531 | BT29: 14.22386531 | BU29: 14.22386531 | BV29: 14.22386531 | BW29: =+BV29*BW$136/BV$136 -> 14.27109273 | BX29: =+BW29*BX$136/BW$136 -> 14.31847695 | BY29: 14.3660185 | BZ29: 14.41371791 | CA29: 14.46157569 | CB29: 14.49243566 | CC29: 14.52336147 | CD29: 14.55435328 | CE29: 14.58541123 | CF29: 14.61653545 | CG29: 14.62664129 | CH29: 14.63675411 | CI29: 14.64687393 | CJ29: 14.65700074 | CK29: 14.66713456 | CL29: 14.67056947 | CM29: 14.67400519 | CN29: 14.67744171 | CO29: 14.68087904 | CP29: 14.68431717 | CQ29: 14.68952799 | CR29: 14.69474066 | CS29: 14.69995518 | CT29: 14.70517154 | CU29: 14.71038976 | CV29: 14.71842063 | CW29: 14.72645587 | CX29: 14.73449551 | CY29: 14.74253953 | CZ29: 14.75058794
A30: ='HyARC Physical Property Data'!A85 -> Woody Biomass | B30: 2005 | C30: =VLOOKUP(ref_year,DeflatorTable,2,FALSE)/VLOOKUP(B30,DeflatorTable,2,FALSE) -> 1.211250149 | D30: =+'HyARC Physical Property Data'!$H$85 -> kg | E30: Feed | F30: ='HyARC Physical Property Data'!$E$45 -> 19.55106924 | G30: ='HyARC Physical Property Data'!$I$45 -> 20.58865638 | H30: 1.343823884 | I30: 1.343823884 | J30: 1.343823884 | K30: 1.343823884 | L30: 1.343823884 | M30: 1.343823884 | N30: =1.27*($C$30) -> 1.53828769 | O30: =1.27*($C$30) -> 1.53828769 | P30: =1.28*($C$30) -> 1.550400191 | Q30: =1.32*($C$30) -> 1.598850197 | R30: =1.32*($C$30) -> 1.598850197 | S30: =1.34*($C$30) -> 1.6230752 | T30: =1.34*($C$30) -> 1.6230752 | U30: =1.36*($C$30) -> 1.647300203 | V30: =1.36*($C$30) -> 1.647300203 | W30: =1.38*($C$30) -> 1.671525206 | X30: =1.4*($C$30) -> 1.695750209 | Y30: =1.46*($C$30) -> 1.768425218 | Z30: =1.48*($C$30) -> 1.792650221 | AA30: =1.48*($C$30) -> 1.792650221 | AB30: =1.51*($C$30) -> 1.828987726 | AC30: =1.52*($C$30) -> 1.841100227 | AD30: =1.62*($C$30) -> 1.962225242 | AE30: =1.72*($C$30) -> 2.083350257 | AF30: =1.82*($C$30) -> 2.204475272 | AG30: =1.91*($C$30) -> 2.313487786 | AH30: =2.01*($C$30) -> 2.4346128 | AI30: =2.11*($C$30) -> 2.555737815 | AJ30: =2.2*($C$30) -> 2.664750329 | AK30: =2.3*($C$30) -> 2.785875344 | AL30: =2.4*($C$30) -> 2.907000359 | AM30: =2.5*($C$30) -> 3.028125374 | AN30: =2.57*($C$30) -> 3.112912884 | AO30: =2.64*($C$30) -> 3.197700395 | AP30: =2.71*($C$30) -> 3.282487905 | AQ30: =2.78*($C$30) -> 3.367275416 | AR30: =2.85*($C$30) -> 3.452062926 | AS30: =2.92*($C$30) -> 3.536850437 | AT30: =2.99*($C$30) -> 3.621637947 | AU30: =3.07*($C$30) -> 3.718537959 | AV30: =3.14*($C$30) -> 3.803325469 | AW30: =3.21*($C$30) -> 3.88811298 | AX30: =3.28*($C$30) -> 3.97290049 | AY30: =3.35*($C$30) -> 4.057688001 | AZ30: =3.42*($C$30) -> 4.142475511 | BA30: =3.49*($C$30) -> 4.227263022 | BB30: =3.56*($C$30) -> 4.312050532 | BC30: =3.64*($C$30) -> 4.408950544 | BD30: =3.71*($C$30) -> 4.493738055 | BE30: =3.78*($C$30) -> 4.578525565 | BF30: =3.85*($C$30) -> 4.663313076 | BG30: =3.92*($C$30) -> 4.748100586 | BH30: =3.99*($C$30) -> 4.832888096 | BI30: =4.06*($C$30) -> 4.917675607 | BJ30: =4.14*($C$30) -> 5.014575619 | BK30: =4.21*($C$30) -> 5.099363129 | BL30: =4.28*($C$30) -> 5.18415064 | BM30: =4.35*($C$30) -> 5.26893815 | BN30: =4.42*($C$30) -> 5.353725661 | BO30: =4.49*($C$30) -> 5.438513171 | BP30: =4.56*($C$30) -> 5.523300682 | BQ30: =4.63*($C$30) -> 5.608088192 | BR30: =4.71*($C$30) -> 5.704988204 | BS30: =4.78*($C$30) -> 5.789775715 | BT30: =4.85*($C$30) -> 5.874563225 | BU30: =4.92*($C$30) -> 5.959350735 | BV30: =4.99*($C$30) -> 6.044138246 | BW30: =+BV30*BW$137/BV$137 -> 6.058665976 | BX30: =+BW30*BX$137/BW$137 -> 6.073228626 | BY30: 6.087826278 | BZ30: 6.102459018 | CA30: 6.117126928 | CB30: 6.129966715 | CC30: 6.142833453 | CD30: 6.155727198 | CE30: 6.168648006 | CF30: 6.181595935 | CG30: 6.197524392 | CH30: 6.213493892 | CI30: 6.229504542 | CJ30: 6.245556447 | CK30: 6.261649715 | CL30: 6.275052266 | CM30: 6.288483504 | CN30: 6.30194349 | CO30: 6.315432287 | CP30: 6.328949955 | CQ30: 6.341322549 | CR30: 6.35371933 | CS30: 6.366140346 | CT30: 6.378585644 | CU30: 6.391055272 | CV30: 6.405777239 | CW30: 6.420533119 | CX30: 6.435322989 | CY30: 6.450146929 | CZ30: 6.465005015
A31: ='HyARC Physical Property Data'!$A$87 -> Woody Biomass MYPP | B31: 2007 | C31: =VLOOKUP(ref_year,DeflatorTable,2,FALSE)/VLOOKUP(B31,DeflatorTable,2,FALSE) -> 1.144635996 | D31: =+'HyARC Physical Property Data'!$H$87 -> kg | E31: Feed | F31: 18.608 | H31: 4.444325021 | I31: 4.444325021 | J31: 4.444325021 | K31: 4.444325021 | L31: 4.444325021 | M31: 4.444325021 | N31: =4.44432502149613*$C$31 -> 5.087134396 | O31: =N31-($N$31-$U$31)/7 -> 4.96648082 | P31: 4.845827244 | Q31: 4.725173667 | R31: 4.604520091 | S31: 4.483866515 | T31: 4.363212939 | U31: =3.70647033533964*$C$31 -> 4.242559363 | V31: =3.70647033533964*$C$31 -> 4.242559363 | W31: 4.242559363 | X31: 4.242559363 | Y31: 4.242559363 | Z31: 4.242559363 | AA31: 4.242559363 | AB31: 4.242559363 | AC31: 4.242559363 | AD31: 4.242559363 | AE31: 4.242559363 | AF31: 4.242559363 | AG31: 4.242559363 | AH31: 4.242559363 | AI31: 4.242559363 | AJ31: 4.242559363 | AK31: 4.242559363 | AL31: 4.242559363 | AM31: 4.242559363 | AN31: 4.242559363 | AO31: 4.242559363 | AP31: 4.242559363 | AQ31: 4.242559363 | AR31: 4.242559363 | AS31: 4.242559363 | AT31: 4.242559363 | AU31: 4.242559363 | AV31: 4.242559363 | AW31: 4.242559363 | AX31: 4.242559363 | AY31: 4.242559363 | AZ31: 4.242559363 | BA31: 4.242559363 | BB31: 4.242559363 | BC31: 4.242559363 | BD31: 4.242559363 | BE31: 4.242559363 | BF31: 4.242559363 | BG31: 4.242559363 | BH31: 4.242559363 | BI31: 4.242559363 | BJ31: 4.242559363 | BK31: 4.242559363 | BL31: 4.242559363 | BM31: 4.242559363 | BN31: 4.242559363 | BO31: 4.242559363 | BP31: 4.242559363 | BQ31: 4.242559363 | BR31: 4.242559363 | BS31: 4.242559363 | BT31: 4.242559363 | BU31: 4.242559363 | BV31: 4.242559363 | BW31: =+BV31*BW$137/BV$137 -> 4.252756806 | BX31: =+BW31*BX$137/BW$137 -> 4.262978761 | BY31: 4.273225284 | BZ31: 4.283496437 | CA31: 4.293792277 | CB31: 4.302804903 | CC31: 4.311836447 | CD31: 4.320886948 | CE31: 4.329956445 | CF31: 4.33904498 | CG31: 4.350225634 | CH31: 4.361435099 | CI31: 4.372673447 | CJ31: 4.383940754 | CK31: 4.395237094 | CL31: 4.404644741 | CM31: 4.414072524 | CN31: 4.423520487 | CO31: 4.432988672 | CP31: 4.442477123 | CQ31: 4.451161813 | CR31: 4.45986348 | CS31: 4.468582158 | CT31: 4.477317881 | CU31: 4.486070682 | CV31: 4.496404466 | CW31: 4.506762054 | CX31: 4.517143502 | CY31: 4.527548863 | CZ31: 4.537978193
A32: ='HyARC Physical Property Data'!A79 -> Electric Utility Steam Coal | B32: 2011 | C32: =VLOOKUP(ref_year,DeflatorTable,2,FALSE)/VLOOKUP(B32,DeflatorTable,2,FALSE) -> 1.078455477 | D32: =+'HyARC Physical Property Data'!$H$79 -> kg | E32: Feed | F32: ='HyARC Physical Property Data'!E42 -> 22.732203 | G32: ='HyARC Physical Property Data'!I42 -> 23.96761519 | H32: 1.73444996 | I32: 1.73444996 | J32: 1.73444996 | K32: 1.778897364 | L32: 1.929877218 | M32: 1.981077456 | N32: =N50*($C32/mmBTU_to_GJ*$G32/$F32) -> 2.476743341 | O32: 2.565133754 | P32: 2.59237375 | Q32: 2.518692978 | R32: 2.581316731 | S32: 2.582493674 | T32: 2.649529888 | U32: 2.664595199 | V32: 2.673194864 | W32: 2.677033942 | X32: 2.71177426 | Y32: 2.744537916 | Z32: 2.793041577 | AA32: 2.83250907 | AB32: 2.86626429 | AC32: 2.901018619 | AD32: 2.940829926 | AE32: 2.97671701 | AF32: 3.009172419 | AG32: 3.048265919 | AH32: 3.090113166 | AI32: 3.122349784 | AJ32: 3.151280829 | AK32: 3.184025084 | AL32: 3.219986535 | AM32: 3.26591644 | AN32: 3.30558548 | AO32: 3.342505083 | AP32: 3.378857771 | AQ32: 3.416579248 | AR32: 3.450583437 | AS32: =($BB32-$AR32)/10+AR32 -> 3.447867869 | AT32: 3.4451523 | AU32: 3.442436731 | AV32: 3.439721162 | AW32: 3.437005594 | AX32: 3.434290025 | AY32: 3.431574456 | AZ32: 3.428858888 | BA32: 3.426143319 | BB32: =('AEO Data'!$B$28*AM32) -> 3.42342775 | BC32: =(($BQ$32-$BB$32)/15+BB32) -> 3.435442053 | BD32: =(($BQ$32-$BB$32)/15+BC32) -> 3.447456355 | BE32: 3.459470657 | BF32: 3.47148496 | BG32: 3.483499262 | BH32: 3.495513564 | BI32: 3.507527867 | BJ32: 3.519542169 | BK32: 3.531556471 | BL32: 3.543570774 | BM32: 3.555585076 | BN32: 3.567599378 | BO32: 3.579613681 | BP32: 3.591627983 | BQ32: =('AEO Data'!$C$28*BB32) -> 3.603642285 | BR32: =(($BV$32-$BQ$32)/5+BQ32) -> 3.615195206 | BS32: =(($BV$32-$BQ$32)/5+BR32) -> 3.626748126 | BT32: =(($BV$32-$BQ$32)/5+BS32) -> 3.638301046 | BU32: =(($BV$32-$BQ$32)/5+BT32) -> 3.649853966 | BV32: =('AEO Data'!$D$28*BQ32) -> 3.661406886 | BW32: =+BV32*BW$138/BV$138 -> 3.673785939 | BX32: =+BW32*BX$138/BW$138 -> 3.686206845 | BY32: 3.698669745 | BZ32: 3.711174782 | CA32: 3.723722098 | CB32: 3.734383699 | CC32: 3.745075826 | CD32: 3.755798566 | CE32: 3.766552007 | CF32: 3.777336237 | CG32: 3.785570007 | CH32: 3.793821726 | CI32: 3.802091431 | CJ32: 3.810379163 | CK32: 3.81868496 | CL32: 3.824315598 | CM32: 3.829954538 | CN32: 3.835601793 | CO32: 3.841257374 | CP32: 3.846921295 | CQ32: 3.848818053 | CR32: 3.850715747 | CS32: 3.852614377 | CT32: 3.854513942 | CU32: 3.856414444 | CV32: 3.853683013 | CW32: 3.850953516 | CX32: 3.848225952 | CY32: 3.845500321 | CZ32: 3.84277662
A33: ='HyARC Physical Property Data'!A76 -> Commercial Electricity | B33: 2011 | C33: 1.078455477 | D33: ='HyARC Physical Property Data'!$H$76 -> kWh | E33: Feed Utility Byprod | H33: 26.8969224 | I33: 26.8969224 | J33: 26.8969224 | K33: 26.56846973 | L33: 27.54247946 | M33: 26.16755589 | N33: =(N51/(mmBTU_to_GJ))*($C33) -> 31.17051075 | O33: 30.64720224 | P33: 29.0962882 | Q33: 28.38790548 | R33: 28.46330434 | S33: 28.35059501 | T33: 28.85790865 | U33: 29.15179134 | V33: 29.28185205 | W33: 29.21215214 | X33: 29.20167016 | Y33: 29.31328366 | Z33: 29.3019011 | AA33: 29.26493001 | AB33: 29.26934197 | AC33: 29.11915861 | AD33: 29.00960593 | AE33: 29.00042424 | AF33: 29.11621662 | AG33: 29.2126837 | AH33: 29.28931946 | AI33: 29.42095339 | AJ33: 29.55537085 | AK33: 29.72829071 | AL33: 29.92188727 | AM33: 30.31786341 | AN33: 30.77094555 | AO33: 31.18123397 | AP33: 31.63203858 | AQ33: 32.17637033 | AR33: 32.45297116 | AS33: =($BB33-$AR33)/10+AR33 -> 32.1638826 | AT33: 31.87479404 | AU33: 31.58570548 | AV33: 31.29661692 | AW33: 31.00752836 | AX33: 30.7184398 | AY33: 30.42935123 | AZ33: 30.14026267 | BA33: 29.85117411 | BB33: ='AEO Data'!$B$33*AM33 -> 29.56208555 | BC33: =($BQ33-$BB33)/15+BB33 -> 29.57930913 | BD33: 29.5965327 | BE33: 29.61375628 | BF33: 29.63097985 | BG33: 29.64820343 | BH33: 29.665427 | BI33: 29.68265058 | BJ33: 29.69987415 | BK33: 29.71709773 | BL33: 29.7343213 | BM33: 29.75154488 | BN33: 29.76876845 | BO33: 29.78599203 | BP33: 29.8032156 | BQ33: ='AEO Data'!$C$33*BB33 -> 29.82043918 | BR33: =($BV33-$BQ33)/5+BQ33 -> 29.80035958 | BS33: 29.78027998 | BT33: 29.76020038 | BU33: 29.74012078 | BV33: ='AEO Data'!$D$33*BQ33 -> 29.72004118 | BW33: =+BV33*BW$139/BV$139 -> 29.70695533 | BX33: =+BW33*BX$139/BW$139 -> 29.69387525 | BY33: 29.68080093 | BZ33: 29.66773236 | CA33: 29.65466954 | CB33: 29.63091661 | CC33: 29.60718271 | CD33: 29.58346782 | CE33: 29.55977193 | CF33: 29.53609501 | CG33: 29.50347873 | CH33: 29.47089847 | CI33: 29.43835419 | CJ33: 29.40584585 | CK33: 29.3733734 | CL33: 29.3379705 | CM33: 29.30261027 | CN33: 29.26729265 | CO33: 29.23201761 | CP33: 29.19678508 | CQ33: 29.15597661 | CR33: 29.11522517 | CS33: 29.0745307 | CT33: 29.03389311 | CU33: 28.99331231 | CV33: 28.95369823 | CW33: 28.91413828 | CX33: 28.87463237 | CY33: 28.83518045 | CZ33: 28.79578243
A34: ='HyARC Physical Property Data'!A77 -> Industrial Electricity | B34: 2011 | C34: 1.078455477 | D34: ='HyARC Physical Property Data'!$H$77 -> kWh | E34: Feed Utility Byprod | H34: 17.44160584 | I34: 17.44160584 | J34: 17.44160584 | K34: 17.65184086 | L34: 19.274322 | M34: 18.16065097 | N34: =(N52/(mmBTU_to_GJ))*($C34) -> 20.71088695 | O34: 20.41985423 | P34: 18.84589804 | Q34: 18.54633173 | R34: 18.44732543 | S34: 18.28211116 | T34: 18.77648538 | U34: 19.0506124 | V34: 19.20070274 | W34: 19.14348735 | X34: 19.13649324 | Y34: 19.27362575 | Z34: 19.38316105 | AA34: 19.51427159 | AB34: 19.58471671 | AC34: 19.6084274 | AD34: 19.70286534 | AE34: 19.79295267 | AF34: 19.8998046 | AG34: 20.04636517 | AH34: 20.1649278 | AI34: 20.30858012 | AJ34: 20.47470724 | AK34: 20.6540181 | AL34: 20.8828643 | AM34: 21.257348 | AN34: 21.73672606 | AO34: 22.15261121 | AP34: 22.55807366 | AQ34: 22.98862989 | AR34: 23.25010066 | AS34: =($BB34-$AR34)/10+AR34 -> 22.99783408 | AT34: 22.74556751 | AU34: 22.49330093 | AV34: 22.24103436 | AW34: 21.98876778 | AX34: 21.73650121 | AY34: 21.48423463 | AZ34: 21.23196806 | BA34: 20.97970148 | BB34: ='AEO Data'!$B$33*AM34 -> 20.72743491 | BC34: =($BQ34-$BB34)/15+BB34 -> 20.7395112 | BD34: 20.7515875 | BE34: 20.7636638 | BF34: 20.7757401 | BG34: 20.78781639 | BH34: 20.79989269 | BI34: 20.81196899 | BJ34: 20.82404528 | BK34: 20.83612158 | BL34: 20.84819788 | BM34: 20.86027418 | BN34: 20.87235047 | BO34: 20.88442677 | BP34: 20.89650307 | BQ34: ='AEO Data'!$C$33*BB34 -> 20.90857936 | BR34: 20.89450057 | BS34: 20.88042177 | BT34: 20.86634298 | BU34: 20.85226418 | BV34: ='AEO Data'!$D$33*BQ34 -> 20.83818538 | BW34: =+BV34*BW$140/BV$140 -> 20.84448184 | BX34: =+BW34*BX$140/BW$140 -> 20.8507802 | BY34: 20.85708047 | BZ34: 20.86338264 | CA34: 20.86968671 | CB34: 20.86732651 | CC34: 20.86496657 | CD34: 20.8626069 | CE34: 20.8602475 | CF34: 20.85788837 | CG34: 20.84842705 | CH34: 20.83897002 | CI34: 20.82951728 | CJ34: 20.82006882 | CK34: 20.81062465 | CL34: 20.7990386 | CM34: 20.787459 | CN34: 20.77588584 | CO34: 20.76431913 | CP34: 20.75275885 | CQ34: 20.7369207 | CR34: 20.72109464 | CS34: 20.70528066 | CT34: 20.68947874 | CU34: 20.67368889 | CV34: 20.65884343 | CW34: 20.64400863 | CX34: 20.62918448 | CY34: 20.61437098 | CZ34: 20.59956812
A35: ='HyARC Physical Property Data'!A78 -> Residential Electricity | B35: 2011 | C35: 1.078455477 | D35: ='HyARC Physical Property Data'!$H$78 -> kWh | E35: Feed Utility Byprod | H35: 29.57988576 | I35: 29.57988576 | J35: 29.57988576 | K35: 29.55635758 | L35: 30.11641661 | M35: 29.13444302 | N35: =(N53/(mmBTU_to_GJ))*($C35) -> 35.29035788 | O35: 35.09925454 | P35: 34.00632425 | Q35: 33.27306857 | R35: 33.74133292 | S35: 33.79742794 | T35: 34.32483969 | U35: 34.57830841 | V35: 34.58686757 | W35: 34.39055494 | X35: 34.36280541 | Y35: 34.40713862 | Z35: 34.44029678 | AA35: 34.45280584 | AB35: 34.59232322 | AC35: 34.71438496 | AD35: 34.88479013 | AE35: 35.02752345 | AF35: 35.17875869 | AG35: 35.27823828 | AH35: 35.32998881 | AI35: 35.45757265 | AJ35: 35.58126894 | AK35: 35.70016891 | AL35: 35.8625056 | AM35: 36.20879816 | AN35: 36.63270579 | AO35: 36.9802649 | AP35: 37.31435507 | AQ35: 37.7266072 | AR35: 37.92339619 | AS35: =($BB35-$AR35)/10+AR35 -> 37.6616734 | AT35: 37.39995062 | AU35: 37.13822783 | AV35: 36.87650505 | AW35: 36.61478226 | AX35: 36.35305948 | AY35: 36.09133669 | AZ35: 35.82961391 | BA35: 35.56789112 | BB35: ='AEO Data'!$B$33*AM35 -> 35.30616834 | BC35: =($BQ35-$BB35)/15+BB35 -> 35.32673855 | BD35: 35.34730876 | BE35: 35.36787898 | BF35: 35.38844919 | BG35: 35.40901941 | BH35: 35.42958962 | BI35: 35.45015984 | BJ35: 35.47073005 | BK35: 35.49130027 | BL35: 35.51187048 | BM35: 35.53244069 | BN35: 35.55301091 | BO35: 35.57358112 | BP35: 35.59415134 | BQ35: ='AEO Data'!$C$33*BB35 -> 35.61472155 | BR35: 35.59074037 | BS35: 35.56675919 | BT35: 35.54277801 | BU35: 35.51879683 | BV35: ='AEO Data'!$D$33*BQ35 -> 35.49481565 | BW35: =+BV35*BW$141/BV$141 -> 35.47918715 | BX35: =+BW35*BX$141/BW$141 -> 35.46356553 | BY35: 35.44795079 | BZ35: 35.43234292 | CA35: 35.41674193 | CB35: 35.38837367 | CC35: 35.36002813 | CD35: 35.3317053 | CE35: 35.30340516 | CF35: 35.27512768 | CG35: 35.23617387 | CH35: 35.19726308 | CI35: 35.15839526 | CJ35: 35.11957036 | CK35: 35.08078833 | CL35: 35.03850644 | CM35: 34.99627551 | CN35: 34.95409548 | CO35: 34.91196629 | CP35: 34.86988788 | CQ35: 34.82115009 | CR35: 34.77248042 | CS35: 34.72387878 | CT35: 34.67534507 | CU35: 34.62687919 | CV35: 34.57956787 | CW35: 34.53232119 | CX35: 34.48513906 | CY35: 34.4380214 | CZ35: 34.39096812
A39: AEO 2013 Reference Case Values:
A40: 2011 $/MMBtu
A42: Residential Natural Gas | N42: 11.359373 | O42: 10.802343 | P42: 10.464381 | Q42: 10.477905 | R42: 10.253485 | S42: 10.15608 | T42: 10.662778 | U42: 10.990506 | V42: 11.397518 | W42: 11.624905 | X42: 11.776243 | Y42: 11.960003 | Z42: 12.203179 | AA42: 12.432268 | AB42: 12.584531 | AC42: 12.674325 | AD42: 12.841908 | AE42: 12.933385 | AF42: 13.085579 | AG42: 13.234385 | AH42: 13.368998 | AI42: 13.547089 | AJ42: 13.721807 | AK42: 13.935895 | AL42: 14.248931 | AM42: 14.598827 | AN42: 15.023703 | AO42: 15.415895 | AP42: 15.842275 | AQ42: 16.055761 | AR42: 16.363073
A43: Commercial Natural Gas | N43: 9.396975 | O43: 8.836861 | P43: 8.072796 | Q43: 8.462734 | R43: 8.235262 | S43: 8.104362 | T43: 8.561039 | U43: 8.824791 | V43: 9.17228 | W43: 9.350815 | X43: 9.468021 | Y43: 9.610942 | Z43: 9.819182 | AA43: 10.011598 | AB43: 10.133018 | AC43: 10.193654 | AD43: 10.33554 | AE43: 10.388019 | AF43: 10.500005 | AG43: 10.605323 | AH43: 10.697221 | AI43: 10.832411 | AJ43: 10.954602 | AK43: 11.11848 | AL43: 11.383407 | AM43: 11.681657 | AN43: 12.061093 | AO43: 12.401303 | AP43: 12.781521 | AQ43: 12.948894 | AR43: 13.212922
A44: Industrial Natural Gas | N44: 5.48396 | O44: 4.889813 | P44: 3.759686 | Q44: 4.333988 | R44: 4.375052 | S44: 4.422535 | T44: 4.866036 | U44: 5.067941 | V44: 5.321257 | W44: 5.449798 | X44: 5.529412 | Y44: 5.640684 | Z44: 5.827775 | AA44: 6.010705 | AB44: 6.110009 | AC44: 6.151199 | AD44: 6.25576 | AE44: 6.294916 | AF44: 6.396782 | AG44: 6.486252 | AH44: 6.561483 | AI44: 6.676631 | AJ44: 6.771134 | AK44: 6.915992 | AL44: 7.168754 | AM44: 7.445415 | AN44: 7.813205 | AO44: 8.15366 | AP44: 8.498919 | AQ44: 8.639381 | AR44: 8.881093
A45: ='HyARC Physical Property Data'!$A$74 -> Electric Utility Natural Gas | N45: 5.258165 | O45: 4.774714 | P45: 3.321756 | Q45: 3.71553 | R45: 3.758219 | S45: 3.842071 | T45: 4.282618 | U45: 4.448673 | V45: 4.702611 | W45: 4.822232 | X45: 4.896759 | Y45: 5.007419 | Z45: 5.20235 | AA45: 5.388776 | AB45: 5.517935 | AC45: 5.577961 | AD45: 5.708808 | AE45: 5.760772 | AF45: 5.866844 | AG45: 5.965019 | AH45: 6.05285 | AI45: 6.183682 | AJ45: 6.293178 | AK45: 6.445873 | AL45: 6.698348 | AM45: 6.980446 | AN45: 7.345173 | AO45: 7.674949 | AP45: 8.02198 | AQ45: 8.154988 | AR45: 8.377783
A46: ='HyARC Physical Property Data'!$A$85 -> Woody Biomass
